Workbook

Sheet Lotto4_R740XD_1
E1: Convenzione | F1: =SUM(J9:J135)*F5 -> 0
E2: 0.2 | F2: =SUM(K9:K135)*F5 -> 0
E3: Totale | F3: =SUM(F1:F2) -> 0
E4: =IF(M98>1,"ERRORE NELLA CONFIGURAZIONE","") ->  | H4: =IF($E$12="TS3L4-VSAN","vSAN Server Ready",IF($E$12="TS3L4-GPUDW","GPU Double-Wide Server Ready",IF($E$12="TS3L4-GPUSW","GPU Single-Wide Server Ready",IF(N9="VxFlex","PowerFlex Server","")))) -> 
C5: POWEREDGE R740XD Consulta la Guida alla Convenzione ---> | D5: =HYPERLINK("https://convenzioni.converge.it/docs/L4GuidaAllaConvenzioneTecnologieServer3.pdf","&") -> & | E5: Quantità Server | H5: =Riepilogo!G8 -> Version 5.1
C8: Base | D8: =HYPERLINK("https://convenzioni.converge.it/docs/ts3_datasheet/dell-emc-poweredge-r740xd-spec-sheet.pdf","i") -> i
C9: PowerEdge R740XD Server (General Purpose) | E9: =IF($F$5>0,"TS3L4-SRV-U","") ->  | F9: =IF($F$5>0,1,"") ->  | J9: =VLOOKUP($C9,TS3L4_ALL,10,FALSE) -> 2530 | L9: =VLOOKUP($C9,TS3L4_ALL,12,FALSE) -> L4N01 | N9: =IF(C9=ConfigurationTS3L4!A14,"VxFlex","") ->  | P9: =IF(E12="TS3L4-GPUSW",1,IF(E12="TS3L4-GPUDW",1,"")) -> 
C11: Chassis Configuration | D11: =HYPERLINK("https://dellservervr.dell.com/poweredge-r740/","i") -> i | E11: =IF($N$75="SW","MAX 4 GPU",IF($N$75="DW","MAX 2 GPU","")) -> 
C12: =VLOOKUP($C$9,TS3L4_Chassis,2,FALSE) -> Chassis with Up to 24 x 2.5 Hard Drives for 1CPU Configuration | E12: =VLOOKUP($C$9,TS3L4_Chassis,13,FALSE) ->  | F12: =VLOOKUP($C$9,TS3L4_Chassis,7,FALSE) ->  | H12: =IF(E12="TS3L4-VSAN","ATTENZIONE SELEZIONARE UNA COMPONENTE PER IL BOOT A SCELTA TRA ''ISDM Module'' oppure ''BOSS Controller Card''","") ->  | J12: =VLOOKUP($C$9,TS3L4_Chassis,10,FALSE) -> 0 | K12: =VLOOKUP($C9,TS3L4_Chassis,11,FALSE) -> 0 | L12: =VLOOKUP($C9,TS3L4_Chassis,12,FALSE) ->  | N12: Chassis with Up to 24 x 2.5'' Hard Drives for 2CPU Configuration | O12: =IF(C12=N12,1,0) -> 0
C14: Trusted Platform Module (TPM)
C15: Trusted Platform Module 2.0
C17: Processor | D17: =HYPERLINK("https://ark.intel.com/content/www/it/it/ark/products/199345/intel-xeon-gold-6238r-processor-38-5m-cache-2-20-ghz.html","i") -> i
C18: Intel Xeon Gold 6238R 2.2G, 28C/56T, 10.4GT/s, 38.5 M Cache, Turbo, HT (165W) | E18: =IF(F12=1,VLOOKUP($C$18,TS3L4_CPU8core,13,FALSE),VLOOKUP($C$18,TS3L4_CPU8core,13,FALSE)) ->  | F18: =IF(F12=1,VLOOKUP($C$18,TS3L4_CPU8core,7,FALSE),VLOOKUP($C$18,TS3L4_CPU8core,7,FALSE)) -> 0 | J18: =IF(F12=1,VLOOKUP($C$18,TS3L4_CPU8core,10,FALSE),VLOOKUP($C$18,TS3L4_CPU8core,10,FALSE)) -> 0 | K18: =IF(F12=1,VLOOKUP($C$18,TS3L4_CPU8core,11,FALSE),VLOOKUP($C$18,TS3L4_CPU8core,11,FALSE)) -> 0 | L18: =IF(K18=0,0,VLOOKUP($C18,TS3L4_CPU8core,12,FALSE)) -> 0
C20: Additional Processor
C21: No Additional Processor | E21: =IF(F12=1,VLOOKUP($C$18,TS3L4_CPU,13,FALSE),VLOOKUP($C$21,TS3L4_CPU,13,FALSE)) ->  | F21: =IF(F12=1,VLOOKUP($C$18,TS3L4_CPU,7,FALSE),VLOOKUP($C$21,TS3L4_CPU,7,FALSE)) -> 0 | J21: =IF(F12=1,VLOOKUP($C$18,TS3L4_CPU,10,FALSE),VLOOKUP($C$21,TS3L4_CPU,10,FALSE)) -> 0 | K21: =IF(F12=1,VLOOKUP($C$18,TS3L4_CPU,11,FALSE),VLOOKUP($C$21,TS3L4_CPU,11,FALSE)) -> 0 | L21: =IF(F12=1,VLOOKUP(C18,TS3L4_ALL,12,FALSE),VLOOKUP($C21,TS3L4_CPU,12,FALSE)) ->  | N21: =IF(F12=1,"Intel Xeon Gold 6238R 2.2G, 28C/56T, 10.4GT/s, 38.5 M Cache, Turbo, HT (165W)",C21) -> No Additional Processor
E22: =IF(E21="TS3L4-CPU8CORE","TS3L4-CPU","") ->  | F22: =IFERROR(O22,"") ->  | J22: =IFERROR(N22,0) -> 0 | L22: =IF(E22="TS3L4-CPU","L4N02",0) -> 0 | N22: =VLOOKUP($L$22,Tabella_prezzi!$A$3:$K$496,4,FALSE) ->  | O22: =VLOOKUP($L$22,Tabella_prezzi!$A$3:$K$496,7,FALSE) -> 
C23: Memory Capacity
C24: 64GB | E24: =IFERROR(N24,"TS3L4-RAM64") ->  | F24: =IFERROR(O24,IF($N$9="VxFlex",5,1)) -> 0 | J24: =IFERROR(P24,444) -> 0 | L24: =IFERROR(Q24,"L4N04") ->  | N24: =IF($F$21=1,VLOOKUP($C$24,TS3L4_RAM2CPU,13,FALSE),VLOOKUP($C$24,TS3L4_RAM1CPU,13,FALSE)) ->  | O24: =IF($F$21=1,VLOOKUP($C$24,TS3L4_RAM2CPU,7,FALSE),VLOOKUP($C$24,TS3L4_RAM1CPU,7,FALSE)) -> 0 | P24: =IF($F$21=1,VLOOKUP($C$24,TS3L4_RAM2CPU,10,FALSE),VLOOKUP($C$24,TS3L4_RAM1CPU,10,FALSE)) -> 0 | Q24: =IF($F$21=1,VLOOKUP($C$24,TS3L4_RAM2CPU,12,FALSE),VLOOKUP($C$24,TS3L4_RAM1CPU,12,FALSE)) ->  | S24: 384GB | T24: =IF(N9="VxFlex",0,1) -> 1 | U24: =IF(N9="VxFlex",VLOOKUP(C24,ConfigurationTS3L4!A60:A63,1,FALSE),"192GB") -> 192GB | V24: =IFERROR(U24,1) -> 192GB | W24: =IF(C24="64GB",1,0) -> 1 | X24: =W24*F12 -> 
C26: Operating System
C27: No Operating System | E27: =VLOOKUP($C$27,TS3L4_OS,13,FALSE) ->  | F27: =VLOOKUP($C$27,TS3L4_OS,7,FALSE) -> 0 | J27: =VLOOKUP($C$27,TS3L4_OS,10,FALSE) -> 0 | K27: =VLOOKUP($C$27,TS3L4_OS,11,FALSE) -> 0 | L27: =VLOOKUP($C27,TS3L4_ALL,12,FALSE) -> 
E28: =IF($F$27+$F$18=2,"",IF($F$18+$F$21+$F$27=2,VLOOKUP($C$27,TS3L4_OS,23,FALSE),VLOOKUP($C$27,TS3L4_OS,23,FALSE))) ->  | F28: =IF($F$27+$F$18=2,0,IF($F$18+$F$21+$F$27=2,VLOOKUP($C$27,TS3L4_OS,14,FALSE),VLOOKUP($C$27,TS3L4_OS,19,FALSE))) -> 0 | J28: =IF($F$27+$F$18=2,0,IF($F$18+$F$21+$F$27=2,VLOOKUP($C$27,TS3L4_OS,17,FALSE),VLOOKUP($C$27,TS3L4_OS,21,FALSE))) -> 0 | K28: =IF($F$27+$F$18=2,0,IF($F$18+$F$21+$F$27=2,VLOOKUP($C$27,TS3L4_OS,18,FALSE),VLOOKUP($C$27,TS3L4_OS,22,FALSE))) -> 0 | L28: =IF($F$27+$F$18=2,0,IF($F$18+$F$21+$F$27=2,VLOOKUP($C$27,TS3L4_OS,20,FALSE),VLOOKUP($C$27,TS3L4_OS,20,FALSE))) -> 0
C29: Disk Controller | D29: =IF(L30="",HYPERLINK("https://convenzioni.converge.it/docs/ts3_datasheet/dellemc-poweredge-raid-controller-h740p.pdf","i"),HYPERLINK("https://convenzioni.converge.it/docs/ts3_datasheet/dellemc-poweredge-hba330.pdf","i")) -> i | H29: =IF(F30=1,"Selezionando questo controller in una soluzione vSAN, per il boot si deve utilizzare la componentete 'ISDM Module'' oppure ''BOSS Controller Card''","") -> 
A30: =IF($E$12="TS3L4-VSAN","vSAN HCL","") ->  | C30: PERC H740P RAID Controller, 8GB NV Cache | E30: =IF(C12="Chassis with Up to 24 x 2.5'' Hard Drives for 2CPU Configuration","TS3L4-HBA330-L",IF(N9="VxFlex","TS3L4-HBA330-L",VLOOKUP($C30,TS3L4_CRTL,13,FALSE))) ->  | F30: =IF(C12="Chassis with Up to 24 x 2.5'' Hard Drives for 2CPU Configuration","1",IF(N9="VxFlex","1",VLOOKUP($C30,TS3L4_CRTL,7,FALSE))) ->  | J30: =IF(C30=ConfigurationTS3L4!A48,0,VLOOKUP($C30,TS3L4_CRTL,10,FALSE)) -> 0 | K30: =IF(C12="Chassis with Up to 24 x 2.5'' Hard Drives for 2CPU Configuration",180,IF(N9="VxFlex",180,IF(H4="",0,VLOOKUP($C30,TS3L4_CRTL,11,FALSE)))) -> 0 | L30: =IF(C12="Chassis with Up to 24 x 2.5'' Hard Drives for 2CPU Configuration","L4N34",IF(N9="VxFlex","L4N34",IF(H4="","",VLOOKUP($C30,TS3L4_ALL,12,FALSE)))) ->  | N30: =IF(E30="TS3L4-HBA330-L",1,0) -> 0 | O30: =IF(C30="PERC H740P RAID Controller, 8GB NV Cache",1,0) -> 1 | P30: =IF(Q30=1,Q30*N30,O30*N30) -> 0 | Q30: =IF(H4="",1,0) -> 1
C32: Hard Drivers Bays disponibili n° 24 | E32: Usati | F32: Disponibili | M32: =IF(C12="Chassis with Up to 24 x 2.5'' Hard Drives for 2CPU Configuration",ConfigurationTS3L4!$A$110,IF($H$4="",ConfigurationTS3L4!$A$109,ConfigurationTS3L4!$A$109:$A$110)) -> PERC H740P RAID Controller, 8GB NV Cache
E33: =F35+F37+F39+F45+F47+F49+F51+F57+F41+F43+F53 -> 2 | F33: =24-E33 -> 22
H34: Configurazione RAID e/o NOTE
A35: =IF($E$12="TS3L4-VSAN","vSAN HCL","") ->  | C35: =ConfigurationTS3L4!A73 -> 300GB 15K RPM SAS 12Gbps 2.5in Hot-plug | E35: =VLOOKUP($C35,TS3L4_HDD,13,FALSE) -> TS3L4-HDD300GB | H35: Specificare la configurazione RAID per l'installazione del Sistema Operativo, se richiesto. e/o inserire eventuali note. | J35: =VLOOKUP($C35,TS3L4_HDD,10,FALSE)*F35 -> 0 | K35: =VLOOKUP($C35,TS3L4_HDD,11,FALSE) -> 0 | L35: =VLOOKUP($C35,TS3L4_ALL,12,FALSE) -> L4N12
A37: =IF($E$12="TS3L4-VSAN","vSAN HCL","") ->  | C37: =ConfigurationTS3L4!A74 -> 1.2TB 10K RPM SAS 12Gbps 2.5in Hot-plug | E37: =VLOOKUP($C37,TS3L4_HDD,13,FALSE) -> TS3L4-HDD1TB | J37: =VLOOKUP($C37,TS3L4_HDD,10,FALSE)*F37 -> 0 | K37: =VLOOKUP($C37,TS3L4_HDD,11,FALSE) -> 0 | L37: =VLOOKUP($C37,TS3L4_ALL,12,FALSE) -> L4N11
A39: =IF($E$12="TS3L4-VSAN","vSAN HCL","") ->  | C39: =ConfigurationTS3L4!A75 -> 2.4TB 10K RPM SAS 12Gbps 2.5in Hot-plug | E39: =VLOOKUP($C39,TS3L4_HDD,13,FALSE) -> TS3L4-HDD2TB | J39: =VLOOKUP($C39,TS3L4_HDD,10,FALSE)*F39 -> 0 | K39: =VLOOKUP($C39,TS3L4_HDD,11,FALSE) -> 0 | L39: =VLOOKUP($C39,TS3L4_ALL,12,FALSE) -> L4N10
A41: =IF($E$12="TS3L4-VSAN","vSAN HCL","") ->  | C41: =ConfigurationTS3L4!A76 -> 960GB SSD SAS Read Intensive 12Gbps 2.5in Hot-plug | E41: =VLOOKUP($C41,TS3L4_HDD,13,FALSE) -> TS3L4-RI800GB | F41: 2 | J41: =IF(F41>2,(VLOOKUP($C41,TS3L4_HDD,10,FALSE)*(F41-2)),0) -> 0 | K41: =VLOOKUP($C41,TS3L4_HDD,11,FALSE) -> 0 | L41: =VLOOKUP($C41,TS3L4_ALL,12,FALSE) -> L4N15
A43: =IF($E$12="TS3L4-VSAN","vSAN HCL","") ->  | C43: =ConfigurationTS3L4!A77 -> 1.92TB SSD SAS Read Intensive 12Gbps 2.5in Hot-plug | E43: =VLOOKUP($C43,TS3L4_HDD,13,FALSE) -> TS3L4-RI1600GB | J43: =VLOOKUP($C43,TS3L4_HDD,10,FALSE)*F43 -> 0 | K43: =VLOOKUP($C43,TS3L4_HDD,11,FALSE) -> 0 | L43: =VLOOKUP($C43,TS3L4_ALL,12,FALSE) -> L4N13
A45: =IF($E$12="TS3L4-VSAN","vSAN HCL","") ->  | C45: =ConfigurationTS3L4!A78 -> 3.84TB SSD SAS Read Intensive 12Gbps 2.5in Hot-plug | E45: =VLOOKUP($C45,TS3L4_HDD,13,FALSE) -> TS3L4-RI3840GB | J45: =VLOOKUP($C45,TS3L4_HDD,10,FALSE)*F45 -> 0 | K45: =VLOOKUP($C45,TS3L4_HDD,11,FALSE)*F45 -> 0 | L45: =VLOOKUP($C45,TS3L4_ALL,12,FALSE) -> L4N51
A47: =IF($E$12="TS3L4-VSAN","vSAN HCL","") ->  | C47: =ConfigurationTS3L4!A79 -> 7.68TB SSD SAS Read Intensive 12Gbps 2.5in Hot-plug | E47: =VLOOKUP($C47,TS3L4_HDD,13,FALSE) -> TS3L4-RI7680GB | J47: =VLOOKUP($C47,TS3L4_HDD,10,FALSE)*F47 -> 0 | K47: =VLOOKUP($C47,TS3L4_HDD,11,FALSE)*F47 -> 0 | L47: =VLOOKUP($C47,TS3L4_ALL,12,FALSE) -> L4N52
A49: =IF($E$12="TS3L4-VSAN","vSAN HCL","") ->  | C49: =ConfigurationTS3L4!A80 -> 960GB SSD SAS Mixed Use 12Gbps 512e 2.5in Hot-Plug | E49: =VLOOKUP($C49,TS3L4_HDD,13,FALSE) -> TS3L4-MU800GB | J49: =VLOOKUP($C49,TS3L4_HDD,10,FALSE)*F49 -> 0 | K49: =VLOOKUP($C49,TS3L4_HDD,11,FALSE) -> 0 | L49: =VLOOKUP($C49,TS3L4_ALL,12,FALSE) -> L4N16
A51: =IF($E$12="TS3L4-VSAN","vSAN HCL","") ->  | C51: =ConfigurationTS3L4!A81 -> 1.6TB SSD SAS Mix Use 12Gbps 2.5in Hot-plug | E51: =VLOOKUP($C51,TS3L4_HDD,13,FALSE) -> TS3L4-MU1600GB | J51: =VLOOKUP($C51,TS3L4_HDD,10,FALSE)*F51 -> 0 | K51: =VLOOKUP($C51,TS3L4_HDD,11,FALSE) -> 0 | L51: =VLOOKUP($C51,TS3L4_ALL,12,FALSE) -> L4N14
A53: =IF($E$12="TS3L4-VSAN","vSAN HCL","") ->  | C53: =ConfigurationTS3L4!A82 -> 800GB SSD SAS Write Intensive 12Gbps 2.5in Hot Plug | E53: =VLOOKUP($C53,TS3L4_HDD,13,FALSE) -> TS3L4-WI800GB | J53: =VLOOKUP($C53,TS3L4_HDD,10,FALSE)*F53 -> 0 | K53: =VLOOKUP($C53,TS3L4_HDD,11,FALSE)*F53 -> 0 | L53: =VLOOKUP($C53,TS3L4_ALL,12,FALSE) -> L4N53
C55: =ConfigurationTS3L4!A83 -> 1.6TB SSD SAS Write Intensive 12Gbps 2.5in Hot Plug | E55: =VLOOKUP($C55,TS3L4_HDD,13,FALSE) -> TS3L4-WI1600GB | J55: =IF(F55>2,VLOOKUP($C55,TS3L4_HDD,10,FALSE)*(F55-2),0) -> 0 | K55: =VLOOKUP($C55,TS3L4_HDD,11,FALSE)*F55 -> 0 | L55: =VLOOKUP($C55,TS3L4_ALL,12,FALSE) -> L4N54
A57: =IF($E$12="TS3L4-VSAN","vSAN HCL","") ->  | C57: 480GB SSD SAS Read Intensive 12Gbps 2.5in Hot-plug
C59: ISDM Module
C60: No ISDM | E60: =IF(K60>0,VLOOKUP($C60,TS3L4_ISDM,13,FALSE),"") ->  | F60: =VLOOKUP($C60,TS3L4_ISDM,7,FALSE) ->  | J60: =VLOOKUP($C60,TS3L4_ISDM,10,FALSE) -> 0 | K60: =VLOOKUP($C60,TS3L4_ISDM,11,FALSE) -> 0 | L60: =VLOOKUP($C60,TS3L4_ALL,12,FALSE) -> 
A62: =IF(H62="","",M63) ->  | C62: Power Supply | D62: =IF(H62="","",M63) ->  | H62: =IF(E63="TS3L4-PSU2000W","Verificare, per ogni Server, la disponibilità di 2 prese C19 sulle PDU","") -> 
C63: =IF(O12=1,"Dual, Hot-plug Power Supply (1+1), 1100W",IF($E$12="TS3L4-GPUDW","Dual, Hot-plug Power Supply (1+1), 2000W",IF($E$12="TS3L4-GPUSW","Dual, Hot-plug Power Supply (1+1), 2000W","Dual, Hot-plug, Redundant Power Supply (1+1), 750W"))) -> Dual, Hot-plug, Redundant Power Supply (1+1), 750W | E63: =VLOOKUP($C63,TS3L4_PSU,13,FALSE) ->  | F63: =VLOOKUP($C63,TS3L4_PSU,7,FALSE) ->  | J63: =VLOOKUP($C63,TS3L4_PSU,10,FALSE) -> 0 | K63: =VLOOKUP($C63,TS3L4_PSU,11,FALSE) -> 0 | L63: =VLOOKUP($C63,TS3L4_ALL,12,FALSE) ->  | M63: ⚠ | N63: =IF(H62="",ConfigurationTS3L4!A526,ConfigurationTS3L4!A527) -> _C14C13
C65: Embedded Systems Management | D65: =HYPERLINK("https://convenzioni.converge.it/docs/ts3_datasheet/idrac-spec-sheet.pdf","i") -> i
C66: iDRAC9,Enterprise
C68: Infrastructure Management Console | D68: =HYPERLINK("https://www.dell.com/support/kbdoc/en-it/000175879/support-for-openmanage-enterprise#OME-Resources","i") -> i
C69: No OMEA | E69: =IF(N9="VxFlex","TS3L4-OMEA",VLOOKUP($C69,TS3L4_ALL,13,FALSE)) ->  | F69: =IF(N9="VxFlex",1,VLOOKUP($C69,TS3L4_ALL,7,FALSE)) ->  | J69: =VLOOKUP($C69,TS3L4_ALL,10,FALSE) -> 0 | K69: =IF(N9="VxFlex",214,VLOOKUP($C69,TS3L4_ALL,11,FALSE)) -> 0 | L69: =IF(N9="VxFlex","L4N96",VLOOKUP($C69,TS3L4_ALL,12,FALSE)) -> 
C71: Network Cards
C72: Broadcom 5720 QP 1Gb Network Daughter Card
M75: =IF($E$12="TS3L4-GPUDW","1",IF($E$12="TS3L4-GPUSW","20",IF($F$21=1,"300","4000"))) -> 4000 | N75: =IF($E$12="TS3L4-GPUDW","DW",IF($E$12="TS3L4-GPUSW","SW",IF($E$12="TS3L4-PWRFLEX","PX",IF($F$21=1,"2CPU","1CPU")))) -> 1CPU
C76: PCI Slot 1 Processor 1 x8 PCIe Gen3 for FL/FH | N76: =IF(N75="DW","DW",IF(N75="SW","SW",0)) -> 0 | O76: Selected | P76: 1CPU | Q76: 2CPU | R76: PX | S76: DW | T76: SW
E77: =IF($N$9="VxFlex","TS3L4-MCX4DP",VLOOKUP($C77,TS3L4_ALL,13,)) ->  | F77: =IF($N$9="VxFlex",1,VLOOKUP($C77,TS3L4_ALL,7,FALSE)) ->  | H77: =IF(M77="Errore","ERRORE nella selezione del PCI Slot",IFERROR(O78,"ERRORE nella selezione del PCI Slot")) ->  | J77: =VLOOKUP($C77,TS3L4_ALL,10,FALSE) -> 0 | K77: =IF($N$9="VxFlex",419,VLOOKUP($C77,TS3L4_ALL,11,FALSE)) -> 0 | L77: =IF($N$9="VxFlex","L4N94",VLOOKUP($C77,TS3L4_ALL,12,FALSE)) ->  | N77: =IF(L77="L4N56","DW",IF(L77="L4N57","DW",IF(L77="L4N58","DW",IF(L77="L4N55","SW","CPU")))) -> CPU | O77: =HLOOKUP($N$75,$P$76:$T$99,2,FALSE) -> TS3L2_PCI_A | P77: TS3L2_PCI_A | Q77: TS3L2_PCI_A | R77: TS3L2_PCI_A | S77: TS3L2_PCI_A | T77: TS3L2_PCI_A | V77: PCI-1 | W77: =IF($N$75="SW",ConfigurationTS3L4!$A$290:$A$309,IF($N$75="DW",ConfigurationTS3L4!$A$239:$A$262,ConfigurationTS3L4!$A$166:$A$181)) -> 
H78: =IF(L77="L4N33",IF($M$98>1,"ERRORE: SOLO UNA BOSS CARD PUO' ESSERE CONFIGURATA",""),"") ->  | O78: =HLOOKUP($N$75,$P$76:$T$99,3,FALSE) ->  | P78: =VLOOKUP(C77,TS3L4_PCI_A,12,FALSE) ->  | Q78: =VLOOKUP(C77,TS3L4_PCI_A,12,FALSE) ->  | R78: =VLOOKUP(C77,TS3L4_PCI_A,12,FALSE) ->  | S78: =VLOOKUP(C77,TS3L4_PCI_A,12,FALSE) ->  | T78: =VLOOKUP(C77,TS3L4_PCI_A,12,FALSE) -> 
C79: PCI Slot 2 Processor 1 x8 PCIe Gen3 for FL/FH
E80: =VLOOKUP($C80,TS3L4_ALL,13,FALSE) ->  | F80: =VLOOKUP($C80,TS3L4_ALL,7,FALSE) ->  | H80: =IFERROR(O81,"ERRORE nella selezione del PCI Slot") ->  | J80: =VLOOKUP($C80,TS3L4_ALL,10,FALSE) -> 0 | K80: =VLOOKUP($C80,TS3L4_ALL,11,FALSE) -> 0 | L80: =VLOOKUP($C80,TS3L4_ALL,12,FALSE) ->  | M80: =IF(F80="","OK",IF(N80+F80=2,"Errore","OK")) -> OK | N80: =IF(N77="dw",1,0) -> 0 | O80: =HLOOKUP($N$75,$P$76:$T$99,5,FALSE) -> TS3L2_PCI_A | P80: TS3L2_PCI_A | Q80: TS3L2_PCI_A | R80: TS3L2_PCI_A | S80: TS3L2_PCI_A | T80: TS3L2_PCI_A | V80: PCI-2
H81: =IF(L80="L4N33",IF($M$98>1,"ERRORE: SOLO UNA BOSS CARD PUO' ESSERE CONFIGURATA",""),"") ->  | O81: =HLOOKUP($N$75,$P$76:$T$99,6,FALSE) ->  | P81: =VLOOKUP(C80,TS3L4_PCI_A,12,FALSE) ->  | Q81: =VLOOKUP(C80,TS3L4_PCI_A,12,FALSE) ->  | R81: =VLOOKUP(C80,TS3L4_PCI_A,12,FALSE) ->  | S81: =VLOOKUP(C80,TS3L4_PCI_A,12,FALSE) ->  | T81: =VLOOKUP(C80,TS3L4_PCI_A,12,FALSE) -> 
C82: PCI Slot 3 Processor 1 x8 PCIe Gen3 for HL/FH
E83: =IF($N$9="VxFlex","TS3L4-BOSS480",VLOOKUP($C83,TS3L4_ALL,13,)) ->  | F83: =IF($N$9="VxFlex",1,VLOOKUP($C83,TS3L4_ALL,7,FALSE)) ->  | H83: =IFERROR(O84,"ERRORE nella selezione del PCI Slot") ->  | J83: =VLOOKUP($C83,TS3L4_ALL,10,FALSE) -> 0 | K83: =IF($N$9="VxFlex",748,VLOOKUP($C83,TS3L4_ALL,11,FALSE)) -> 0 | L83: =IF($N$9="VxFlex","L4N33",VLOOKUP($C83,TS3L4_ALL,12,FALSE)) ->  | O83: =HLOOKUP($N$75,$P$76:$T$99,8,FALSE) -> TS3L2_PCI_A | P83: TS3L2_PCI_A | Q83: TS3L2_PCI_A | R83: TS3L2_PCI_A | S83: TS3L2_PCI_A | T83: TS3L2_PCI_A | V83: PCI-3
H84: =IF(L83="L4N33",IF($M$98>1,"ERRORE: SOLO UNA BOSS CARD PUO' ESSERE CONFIGURATA",""),"") ->  | O84: =HLOOKUP($N$75,$P$76:$T$99,9,FALSE) ->  | P84: =VLOOKUP(C83,TS3L4_PCI_A,12,FALSE) ->  | Q84: =VLOOKUP(C83,TS3L4_PCI_A,12,FALSE) ->  | R84: =VLOOKUP(C83,TS3L4_PCI_A,12,FALSE) ->  | S84: =VLOOKUP(C83,TS3L4_PCI_A,12,FALSE) ->  | T84: =VLOOKUP(C83,TS3L4_PCI_A,12,FALSE) -> 
C85: PCI Slot 4 Processor 2 x16 PCIe Gen3 for FL/FH | D85: =IF($N$75="SW","GPU Slot",IF($N$75="DW","GPU Slot","")) -> 
E86: =VLOOKUP($C86,TS3L4_ALL,13,FALSE) ->  | F86: =VLOOKUP($C86,TS3L4_ALL,7,FALSE) ->  | H86: =IFERROR(O87,"ERRORE nella selezione del PCI Slot") ->  | J86: =VLOOKUP($C86,TS3L4_ALL,10,FALSE) -> 0 | K86: =VLOOKUP($C86,TS3L4_ALL,11,FALSE) -> 0 | L86: =VLOOKUP($C86,TS3L4_ALL,12,FALSE) ->  | N86: =IF(L86="L4N56","DW",IF(L86="L4N57","DW",IF(L86="L4N108","DW",IF(L86="L4N55","SW",1)))) -> 1 | O86: =HLOOKUP($N$75,$P$76:$T$99,11,FALSE) -> - | P86: - | Q86: TS3L2_PCI_B | R86: TS3L2_PCI_I | S86: TS3L2_PCI_F | T86: TS3L2_PCI_H | V86: PCI-4
H87: =IF(L86="L4N33",IF($M$98>1,"ERRORE: SOLO UNA BOSS CARD PUO' ESSERE CONFIGURATA",""),"") ->  | O87: =HLOOKUP($N$75,$P$76:$T$99,12,FALSE) ->  | P87: =VLOOKUP(C86,TS3L4_PCI_A,12,FALSE) ->  | Q87: =VLOOKUP(C86,TS3L4_PCI_B,12,FALSE) ->  | R87: =VLOOKUP(C86,TS3L4_PCI_I,12,FALSE) ->  | S87: =VLOOKUP(C86,TS3L4_PCI_F,12,FALSE) ->  | T87: =VLOOKUP(C86,TS3L4_PCI_H,12,FALSE) -> 
C88: PCI Slot 5 Processor 2 x8 PCIe Gen3 for FL/FH | D88: =IF($N$75="SW","GPU Slot","") -> 
E89: =VLOOKUP($C89,TS3L4_ALL,13,FALSE) ->  | F89: =VLOOKUP($C89,TS3L4_ALL,7,FALSE) ->  | H89: =IF(M89="Errore","ERRORE nella selezione del PCI Slot",IFERROR(O90,"ERRORE nella selezione del PCI Slot")) ->  | J89: =VLOOKUP($C89,TS3L4_ALL,10,FALSE) -> 0 | K89: =VLOOKUP($C89,TS3L4_ALL,11,FALSE) -> 0 | L89: =VLOOKUP($C89,TS3L4_ALL,12,FALSE) ->  | M89: =IF(F89="","OK",IF(N89+F89=2,"Errore","OK")) -> OK | N89: =IF(N86="dw",1,0) -> 0 | O89: =HLOOKUP($N$75,$P$76:$T$99,14,FALSE) -> - | P89: - | Q89: TS3L2_PCI_A | R89: TS3L2_PCI_I | S89: TS3L2_PCI_A | T89: TS3L2_PCI_L | V89: PCI-5
H90: =IF(L89="L4N33",IF($M$98>1,"ERRORE: SOLO UNA BOSS CARD PUO' ESSERE CONFIGURATA",""),"") ->  | O90: =HLOOKUP($N$75,$P$76:$T$99,15,FALSE) ->  | P90: =VLOOKUP(C89,TS3L4_PCI_A,12,FALSE) ->  | Q90: =VLOOKUP(C89,TS3L4_PCI_A,12,FALSE) ->  | R90: =VLOOKUP(C89,TS3L4_PCI_I,12,FALSE) ->  | S90: =VLOOKUP(C89,TS3L4_PCI_A,12,FALSE) ->  | T90: =VLOOKUP(C89,TS3L4_PCI_L,12,FALSE) -> 
C91: PCI Slot 6 Processor 1 x8 PCIe Gen3 for HL/LP
E92: =IF($N$9="VxFlex","TS3L4-MCX4DP-L",VLOOKUP($C92,TS3L4_ALL,13,)) ->  | F92: =IF($N$9="VxFlex",1,VLOOKUP($C92,TS3L4_ALL,7,FALSE)) ->  | H92: =IF(M92="Errore","ERRORE nella selezione del PCI Slot",IFERROR(O93,"ERRORE nella selezione del PCI Slot")) ->  | J92: =VLOOKUP($C92,TS3L4_ALL,10,FALSE) -> 0 | K92: =IF($N$9="VxFlex",419,VLOOKUP($C92,TS3L4_ALL,11,FALSE)) -> 0 | L92: =IF($N$9="VxFlex","L4N95",VLOOKUP($C92,TS3L4_ALL,12,FALSE)) ->  | O92: =HLOOKUP($N$75,$P$76:$T$99,17,FALSE) -> TS3L2_PCI_C | P92: TS3L2_PCI_C | Q92: TS3L2_PCI_C | R92: TS3L2_PCI_C | S92: TS3L2_PCI_C | T92: TS3L2_PCI_C | V92: PCI-6
O93: =HLOOKUP($N$75,$P$76:$T$99,18,FALSE) ->  | P93: =VLOOKUP(C92,TS3L4_PCI_C,12,FALSE) ->  | Q93: =VLOOKUP(C92,TS3L4_PCI_C,12,FALSE) ->  | R93: =VLOOKUP(C92,TS3L4_PCI_C,12,FALSE) ->  | S93: =VLOOKUP(C92,TS3L4_PCI_C,12,FALSE) ->  | T93: =VLOOKUP(C92,TS3L4_PCI_C,12,FALSE) -> 
C94: PCI Slot 7 Processor 2 x8 PCIe Gen3 for FL/FH | D94: =IF($N$75="SW","GPU Slot","") -> 
E95: =VLOOKUP($C95,TS3L4_ALL,13,FALSE) ->  | F95: =VLOOKUP($C95,TS3L4_ALL,7,FALSE) ->  | H95: =IF(M95="Errore","ERRORE nella selezione del PCI Slot",IFERROR(O96,"ERRORE nella selezione del PCI Slot")) ->  | J95: =VLOOKUP($C95,TS3L4_ALL,10,FALSE) -> 0 | K95: =VLOOKUP($C95,TS3L4_ALL,11,FALSE) -> 0 | L95: =VLOOKUP($C95,TS3L4_ALL,12,FALSE) ->  | M95: =IF(F95="","OK",IF(N95+F95=2,"Errore","OK")) -> OK | N95: =IF(N98="dw",1,0) -> 0 | O95: =HLOOKUP($N$75,$P$76:$T$99,20,FALSE) -> - | P95: - | Q95: TS3L2_PCI_A | R95: TS3L2_PCI_I | S95: TS3L2_PCI_A | T95: TS3L2_PCI_L | V95: PCI-7
H96: =IF(L95="L4N33",IF($M$98>1,"ERRORE: SOLO UNA BOSS CARD PUO' ESSERE CONFIGURATA",""),"") ->  | O96: =HLOOKUP($N$75,$P$76:$T$99,21,FALSE) ->  | P96: =VLOOKUP(C95,TS3L4_PCI_A,12,FALSE) ->  | Q96: =VLOOKUP(C95,TS3L4_PCI_A,12,FALSE) ->  | R96: =VLOOKUP(C95,TS3L4_PCI_I,12,FALSE) ->  | S96: =VLOOKUP(C95,TS3L4_PCI_A,12,FALSE) ->  | T96: =VLOOKUP(C95,TS3L4_PCI_L,12,FALSE) -> 
C97: PCI Slot 8 Processor 2 x16 PCIe Gen3 for FL/FH | D97: =IF($N$75="SW","GPU Slot",IF($N$75="DW","GPU Slot","")) ->  | M97: boss card
E98: =VLOOKUP($C98,TS3L4_ALL,13,FALSE) ->  | F98: =VLOOKUP($C98,TS3L4_ALL,7,FALSE) ->  | H98: =IF(M98="Errore","ERRORE nella selezione del PCI Slot",IFERROR(O99,"ERRORE nella selezione del PCI Slot")) ->  | J98: =VLOOKUP($C98,TS3L4_ALL,10,FALSE) -> 0 | K98: =VLOOKUP($C98,TS3L4_ALL,11,FALSE) -> 0 | L98: =VLOOKUP($C98,TS3L4_ALL,12,FALSE) ->  | M98: =COUNTIF(L77:L98,"L4N33") -> 0 | N98: =IF(L98="L4N56","DW",IF(L98="L4N57","DW",IF(L98="L4N108","DW",IF(L98="L4N55","SW",1)))) -> 1 | O98: =HLOOKUP($N$75,$P$76:$T$99,23,FALSE) -> - | P98: - | Q98: TS3L2_PCI_D | R98: TS3L2_PCI_I | S98: TS3L2_PCI_E | T98: TS3L2_PCI_G | V98: PCI-8
H99: =IF(L98="L4N33",IF($M$98>1,"ERRORE: SOLO UNA BOSS CARD PUO' ESSERE CONFIGURATA",""),"") ->  | O99: =HLOOKUP($N$75,$P$76:$T$99,24,FALSE) ->  | P99: =VLOOKUP(C98,TS3L4_PCI_A,12,FALSE) ->  | Q99: =VLOOKUP(C98,TS3L4_PCI_D,12,FALSE) ->  | R99: =VLOOKUP(C98,TS3L4_PCI_I,12,FALSE) ->  | S99: =VLOOKUP(C98,TS3L4_PCI_E,12,FALSE) ->  | T99: =VLOOKUP(C98,TS3L4_PCI_G,12,FALSE) -> 
C100: SFP+ Transceivers
C101: Transceiver, SFP+ SR Optic for SFP+ ports (Intel X710) | E101: =IF(K101>0,VLOOKUP($C101,ConfigurationTS3L4!$A$1:$M$4832,13,FALSE),"") ->  | J101: 0 | K101: =IF(F101>0,VLOOKUP($C101,TS3L4_ALL,11,FALSE)*(F101),0) -> 0 | L101: =IF(F101>0,VLOOKUP($C101,TS3L4_ALL,12,FALSE),0) -> 0
C103: SFP+ Direct Attach Cables (Twinax)
C104: Cable, SFP+ to SFP+, 10GbE, Copper Twinax Direct Attach Cable, 3 Meter | E104: =IF(K104>0,VLOOKUP($C104,ConfigurationTS3L4!$A$1:$M$4832,13,FALSE),"") ->  | J104: 0 | K104: =IF(F104>0,VLOOKUP($C104,TS3L4_ALL,11,FALSE)*F104,0) -> 0 | L104: =IF(F104>0,VLOOKUP($C104,TS3L4_ALL,12,FALSE),0) -> 0
C106: QSFP28 Transceivers
C107: Dell EMC PowerEdge QSFP28 SR4 100GbE 85C optic | E107: =IF(K107>0,VLOOKUP($C107,ConfigurationTS3L4!$A$1:$M$4832,13,FALSE),"") ->  | J107: 0 | K107: =IF(F107>0,VLOOKUP($C107,TS3L4_ALL,11,FALSE)*F107,0) -> 0 | L107: =IF(F107>0,VLOOKUP($C107,TS3L4_ALL,12,FALSE),0) -> 0
C109: Mellanox LinkX 100Gb/s Passive Copper Cables
C110: Mellanox LinkX 100Gb/s Passive Copper Cables - attacco cavo diretto - 3 m - nero | E110: =IF(K110>0,VLOOKUP($C110,ConfigurationTS3L4!$A$1:$M$4832,13,FALSE),"") ->  | J110: 0 | K110: =IF(F110>0,VLOOKUP($C110,TS3L4_ALL,11,FALSE)*F110,0) -> 0 | L110: =IF(F110>0,VLOOKUP($C110,TS3L4_ALL,12,FALSE),0) -> 0
C112: Mellanox LinkX 100Gb/s VCSEL-Based Active Optical Cables - cavo InfiniBand - 10 m | E112: =IF(K112>0,VLOOKUP($C112,ConfigurationTS3L4!$A$1:$M$4832,13,FALSE),"") ->  | J112: 0 | K112: =IF(F112>0,VLOOKUP($C112,TS3L4_ALL,11,FALSE)*F112,0) -> 0 | L112: =IF(F112>0,VLOOKUP($C112,TS3L4_ALL,12,FALSE),0) -> 0
C114: Cavi RJ45
C115: Cavo “patch” di 3 mt RJ45 certificato per gigabit ethernet | E115: =IF(K115>0,VLOOKUP($C115,ConfigurationTS3L4!$A$1:$M$4832,13,FALSE),"") -> TS3L4-RJ453M | F115: 5 | J115: 0 | K115: =IF(F115>0,VLOOKUP($C115,TS3L4_ALL,11,FALSE)*(F115),0) -> 15 | L115: =IF(F115>0,VLOOKUP($C115,TS3L4_ALL,12,FALSE),0) -> L4N62
C117: Cavi LC-LC
C118: Dell Networking Cable, OM4 LC/LC Fiber Cable, 3 Meter | E118: =IF(K118>0,VLOOKUP($C118,ConfigurationTS3L4!$A$1:$M$4832,13,FALSE),"") ->  | J118: 0 | K118: =IF(F118>0,VLOOKUP($C118,TS3L4_ALL,11,FALSE)*(F118),0) -> 0 | L118: =IF(F118>0,VLOOKUP($C118,TS3L4_ALL,12,FALSE),0) -> 0
C120: Cavi DAC
C121: Dell Networking, Cable, SFP+ to SFP+, 10GbE, Copper Twinax Direct Attach Cable, 3 Meter | E121: =IF(K121>0,VLOOKUP($C121,ConfigurationTS3L4!$A$1:$M$4832,13,FALSE),"") ->  | J121: 0 | K121: =IF(F121>0,VLOOKUP($C121,TS3L4_ALL,11,FALSE)*(F121),0) -> 0 | L121: =IF(F121>0,VLOOKUP($C121,TS3L4_ALL,12,FALSE),0) -> 0
C122: Mellanox LinkX 100Gb/s Passive Copper DAC 3m per scheda TS3L4-CONX6DP | E122: =IF(K122>0,VLOOKUP($C122,ConfigurationTS3L4!$A$1:$M$4832,13,FALSE),"") ->  | J122: 0 | K122: =IF(F122>0,VLOOKUP($C122,TS3L4_ALL,11,FALSE)*(F122),0) -> 0 | L122: =IF(F122>0,VLOOKUP($C122,TS3L4_ALL,12,FALSE),0) -> 0
C123: Dell Cable SFP28 to SFP28 25GbE Passive Copper Twinax Direct Attach Cable 3 Meter | E123: =IF(K123>0,VLOOKUP($C123,ConfigurationTS3L4!$A$1:$M$4832,13,FALSE),"") ->  | J123: 0 | K123: =IF(F123>0,VLOOKUP($C123,TS3L4_ALL,11,FALSE)*(F123),0) -> 0 | L123: =IF(F123>0,VLOOKUP($C123,TS3L4_ALL,12,FALSE),0) -> 0
O124: =IF($N$9="VxFlex",ConfigurationTS3L4!$A$236,IF($N$98="DW",ConfigurationTS3L4!$A$333,IF($N$75="1CPU",ConfigurationTS3L4!$A$92:$A$93,ConfigurationTS3L4!$A$166:$A$181))) -> 
C125: Cable Management Arm
C126: No | E126: =IF($N$9="VxFlex","TS3L4-BZLSTD",VLOOKUP($C126,TS3L4_ALL,13,)) ->  | F126: =IF($N$9="VxFlex",1,VLOOKUP($C126,TS3L4_ALL,7,FALSE)) ->  | J126: =VLOOKUP($C126,TS3L4_ALL,10,FALSE) -> 0 | K126: =IF($N$9="VxFlex",42,VLOOKUP($C126,TS3L4_ALL,11,FALSE)) -> 0 | L126: =IF($N$9="VxFlex","L4N69",VLOOKUP($C126,TS3L4_ALL,12,FALSE)) -> 
C128: Bezel
C129: No Bezel | E129: =IF($N$9="VxFlex","TS3L4-BZLSTD",VLOOKUP($C129,TS3L4_ALL,13,)) ->  | F129: =IF($N$9="VxFlex",1,VLOOKUP($C129,TS3L4_ALL,7,FALSE)) ->  | J129: =VLOOKUP($C129,TS3L4_ALL,10,FALSE) -> 0 | K129: =IF($N$9="VxFlex",42,VLOOKUP($C129,TS3L4_ALL,11,FALSE)) -> 0 | L129: =IF($N$9="VxFlex","L4N69",VLOOKUP($C129,TS3L4_ALL,12,FALSE)) -> 
C131: Warranty | D131: =HYPERLINK("https://convenzioni.converge.it/docs/ts3_datasheet/TS3warranty.pdf","i") -> i
C132: Manutenzione in garanzia (36 mesi) | E132: =VLOOKUP($C132,TS3L4_WARRANTY,13,FALSE) ->  | F132: =VLOOKUP($C132,TS3L4_WARRANTY,7,FALSE) ->  | J132: =VLOOKUP($C132,TS3L4_WARRANTY,10,FALSE) -> 0 | K132: =VLOOKUP($C132,TS3L4_WARRANTY,11,FALSE) -> 0 | L132: =VLOOKUP($C132,TS3L4_ALL,12,FALSE) -> 
C134: Hard Disk Retention | D134: =HYPERLINK("https://convenzioni.converge.it/docs/ts3_datasheet/DELL_HDD_KYHD.pdf","i") -> i
E135: =IFERROR(N135,VLOOKUP(C135,TS3L4_ALL,13,FALSE)) ->  | F135: =IF(C135="","",1) ->  | J135: =IFERROR(O135,VLOOKUP(C135,TS3L4_ALL,10,FALSE)) -> 0 | K135: =IFERROR(P135,VLOOKUP(C135,TS3L4_ALL,11,FALSE)) -> 0 | L135: =IFERROR(Q135,VLOOKUP(C135,TS3L4_ALL,12,FALSE)) ->  | N135: =IF(F132+F135=2,VLOOKUP("Hard Disk Retention (60 mesi)",TS3L4_ALL,13,FALSE),VLOOKUP(C135,TS3L4_ALL,13,FALSE)) ->  | O135: =IF(F132+F135=2,VLOOKUP("Hard Disk Retention (60 mesi)",TS3L4_ALL,10,FALSE),VLOOKUP(C135,TS3L4_ALL,10,FALSE)) ->  | P135: =IF(F132+F135=2,VLOOKUP("Hard Disk Retention (60 mesi)",TS3L4_ALL,11,FALSE),VLOOKUP(C135,TS3L4_ALL,11,FALSE)) ->  | Q135: =IF(F132+F135=2,VLOOKUP("Hard Disk Retention (60 mesi)",TS3L4_ALL,12,FALSE),VLOOKUP(C135,TS3L4_ALL,12,FALSE)) -> 
C138: UPS
E139: =VLOOKUP($C139,TS3L4_UPS,13,FALSE) ->  | F139: =VLOOKUP($C139,TS3L4_UPS,7,FALSE) ->  | J139: =VLOOKUP($C139,TS3L4_UPS,10,FALSE) ->  | K139: =VLOOKUP($C139,TS3L4_UPS,11,FALSE) ->  | L139: =VLOOKUP($C139,TS3L4_ALL,12,FALSE) -> 
C141: Kit Graphical User Interface
E142: =VLOOKUP($C142,TS3L4_GUI,13,FALSE) ->  | F142: =VLOOKUP($C142,TS3L4_GUI,7,FALSE) ->  | J142: =VLOOKUP($C142,TS3L4_GUI,10,FALSE) ->  | K142: =VLOOKUP($C142,TS3L4_GUI,11,FALSE) ->  | L142: =VLOOKUP($C142,TS3L4_ALL,12,FALSE) -> 

Sheet Lotto4_R740XD_2
E1: Convenzione | F1: =SUM(J9:J135)*F5 -> 0
E2: 0.2 | F2: =SUM(K9:K135)*F5 -> 0
E3: Totale | F3: =SUM(F1:F2) -> 0
E4: =IF(M98>1,"ERRORE NELLA CONFIGURAZIONE","") ->  | H4: =IF($E$12="TS3L4-VSAN","vSAN Server Ready",IF($E$12="TS3L4-GPUDW","GPU Double-Wide Server Ready",IF($E$12="TS3L4-GPUSW","GPU Single-Wide Server Ready",IF(N9="VxFlex","PowerFlex Server","")))) -> 
C5: POWEREDGE R740XD Consulta la Guida alla Convenzione ---> | D5: =HYPERLINK("https://convenzioni.converge.it/docs/L4GuidaAllaConvenzioneTecnologieServer3.pdf","&") -> & | E5: Quantità Server | H5: =Riepilogo!G8 -> Version 5.1
C8: Base | D8: =HYPERLINK("https://convenzioni.converge.it/docs/ts3_datasheet/dell-emc-poweredge-r740xd-spec-sheet.pdf","i") -> i
C9: PowerEdge R740XD Server (General Purpose) | E9: =IF($F$5>0,"TS3L4-SRV-U","") ->  | F9: =IF($F$5>0,1,"") ->  | J9: =VLOOKUP($C9,TS3L4_ALL,10,FALSE) -> 2530 | L9: =VLOOKUP($C9,TS3L4_ALL,12,FALSE) -> L4N01 | N9: =IF(C9=ConfigurationTS3L4!A14,"VxFlex","") ->  | P9: =IF(E12="TS3L4-GPUSW",1,IF(E12="TS3L4-GPUDW",1,"")) -> 
C11: Chassis Configuration | D11: =HYPERLINK("https://dellservervr.dell.com/poweredge-r740/","i") -> i | E11: =IF($N$75="SW","MAX 4 GPU",IF($N$75="DW","MAX 2 GPU","")) -> 
C12: =VLOOKUP($C$9,TS3L4_Chassis,2,FALSE) -> Chassis with Up to 24 x 2.5 Hard Drives for 1CPU Configuration | E12: =VLOOKUP($C$9,TS3L4_Chassis,13,FALSE) ->  | F12: =VLOOKUP($C$9,TS3L4_Chassis,7,FALSE) ->  | H12: =IF(E12="TS3L4-VSAN","ATTENZIONE SELEZIONARE UNA COMPONENTE PER IL BOOT A SCELTA TRA ''ISDM Module'' oppure ''BOSS Controller Card''","") ->  | J12: =VLOOKUP($C$9,TS3L4_Chassis,10,FALSE) -> 0 | K12: =VLOOKUP($C9,TS3L4_Chassis,11,FALSE) -> 0 | L12: =VLOOKUP($C9,TS3L4_Chassis,12,FALSE) ->  | N12: Chassis with Up to 24 x 2.5'' Hard Drives for 2CPU Configuration | O12: =IF(C12=N12,1,0) -> 0
C14: Trusted Platform Module (TPM)
C15: Trusted Platform Module 2.0
C17: Processor | D17: =HYPERLINK("https://ark.intel.com/content/www/it/it/ark/products/199345/intel-xeon-gold-6238r-processor-38-5m-cache-2-20-ghz.html","i") -> i
C18: Intel Xeon Gold 6238R 2.2G, 28C/56T, 10.4GT/s, 38.5 M Cache, Turbo, HT (165W) | E18: =IF(F12=1,VLOOKUP($C$18,TS3L4_CPU8core,13,FALSE),VLOOKUP($C$18,TS3L4_CPU8core,13,FALSE)) ->  | F18: =IF(F12=1,VLOOKUP($C$18,TS3L4_CPU8core,7,FALSE),VLOOKUP($C$18,TS3L4_CPU8core,7,FALSE)) -> 0 | J18: =IF(F12=1,VLOOKUP($C$18,TS3L4_CPU8core,10,FALSE),VLOOKUP($C$18,TS3L4_CPU8core,10,FALSE)) -> 0 | K18: =IF(F12=1,VLOOKUP($C$18,TS3L4_CPU8core,11,FALSE),VLOOKUP($C$18,TS3L4_CPU8core,11,FALSE)) -> 0 | L18: =IF(K18=0,0,VLOOKUP($C18,TS3L4_CPU8core,12,FALSE)) -> 0
C20: Additional Processor
C21: No Additional Processor | E21: =IF(F12=1,VLOOKUP($C$18,TS3L4_CPU,13,FALSE),VLOOKUP($C$21,TS3L4_CPU,13,FALSE)) ->  | F21: =IF(F12=1,VLOOKUP($C$18,TS3L4_CPU,7,FALSE),VLOOKUP($C$21,TS3L4_CPU,7,FALSE)) -> 0 | J21: =IF(F12=1,VLOOKUP($C$18,TS3L4_CPU,10,FALSE),VLOOKUP($C$21,TS3L4_CPU,10,FALSE)) -> 0 | K21: =IF(F12=1,VLOOKUP($C$18,TS3L4_CPU,11,FALSE),VLOOKUP($C$21,TS3L4_CPU,11,FALSE)) -> 0 | L21: =IF(F12=1,VLOOKUP(C18,TS3L4_ALL,12,FALSE),VLOOKUP($C21,TS3L4_CPU,12,FALSE)) ->  | N21: =IF(F12=1,"Intel Xeon Gold 6238R 2.2G, 28C/56T, 10.4GT/s, 38.5 M Cache, Turbo, HT (165W)",C21) -> No Additional Processor
E22: =IF(E21="TS3L4-CPU8CORE","TS3L4-CPU","") ->  | F22: =IFERROR(O22,"") ->  | J22: =IFERROR(N22,0) -> 0 | L22: =IF(E22="TS3L4-CPU","L4N02",0) -> 0 | N22: =VLOOKUP($L$22,Tabella_prezzi!$A$3:$K$496,4,FALSE) ->  | O22: =VLOOKUP($L$22,Tabella_prezzi!$A$3:$K$496,7,FALSE) -> 
C23: Memory Capacity
C24: 64GB | E24: =IFERROR(N24,"TS3L4-RAM64") ->  | F24: =IFERROR(O24,IF($N$9="VxFlex",5,1)) -> 0 | J24: =IFERROR(P24,444) -> 0 | L24: =IFERROR(Q24,"L4N04") ->  | N24: =IF($F$21=1,VLOOKUP($C$24,TS3L4_RAM2CPU,13,FALSE),VLOOKUP($C$24,TS3L4_RAM1CPU,13,FALSE)) ->  | O24: =IF($F$21=1,VLOOKUP($C$24,TS3L4_RAM2CPU,7,FALSE),VLOOKUP($C$24,TS3L4_RAM1CPU,7,FALSE)) -> 0 | P24: =IF($F$21=1,VLOOKUP($C$24,TS3L4_RAM2CPU,10,FALSE),VLOOKUP($C$24,TS3L4_RAM1CPU,10,FALSE)) -> 0 | Q24: =IF($F$21=1,VLOOKUP($C$24,TS3L4_RAM2CPU,12,FALSE),VLOOKUP($C$24,TS3L4_RAM1CPU,12,FALSE)) ->  | S24: 384GB | T24: =IF(N9="VxFlex",0,1) -> 1 | U24: =IF(N9="VxFlex",VLOOKUP(C24,ConfigurationTS3L4!A60:A63,1,FALSE),"192GB") -> 192GB | V24: =IFERROR(U24,1) -> 192GB | W24: =IF(C24="64GB",1,0) -> 1 | X24: =W24*F12 -> 
C26: Operating System
C27: No Operating System | E27: =VLOOKUP($C$27,TS3L4_OS,13,FALSE) ->  | F27: =VLOOKUP($C$27,TS3L4_OS,7,FALSE) -> 0 | J27: =VLOOKUP($C$27,TS3L4_OS,10,FALSE) -> 0 | K27: =VLOOKUP($C$27,TS3L4_OS,11,FALSE) -> 0 | L27: =VLOOKUP($C27,TS3L4_ALL,12,FALSE) -> 
E28: =IF($F$27+$F$18=2,"",IF($F$18+$F$21+$F$27=2,VLOOKUP($C$27,TS3L4_OS,23,FALSE),VLOOKUP($C$27,TS3L4_OS,23,FALSE))) ->  | F28: =IF($F$27+$F$18=2,0,IF($F$18+$F$21+$F$27=2,VLOOKUP($C$27,TS3L4_OS,14,FALSE),VLOOKUP($C$27,TS3L4_OS,19,FALSE))) -> 0 | J28: =IF($F$27+$F$18=2,0,IF($F$18+$F$21+$F$27=2,VLOOKUP($C$27,TS3L4_OS,17,FALSE),VLOOKUP($C$27,TS3L4_OS,21,FALSE))) -> 0 | K28: =IF($F$27+$F$18=2,0,IF($F$18+$F$21+$F$27=2,VLOOKUP($C$27,TS3L4_OS,18,FALSE),VLOOKUP($C$27,TS3L4_OS,22,FALSE))) -> 0 | L28: =IF($F$27+$F$18=2,0,IF($F$18+$F$21+$F$27=2,VLOOKUP($C$27,TS3L4_OS,20,FALSE),VLOOKUP($C$27,TS3L4_OS,20,FALSE))) -> 0
C29: Disk Controller | D29: =IF(L30="",HYPERLINK("https://convenzioni.converge.it/docs/ts3_datasheet/dellemc-poweredge-raid-controller-h740p.pdf","i"),HYPERLINK("https://convenzioni.converge.it/docs/ts3_datasheet/dellemc-poweredge-hba330.pdf","i")) -> i | H29: =IF(F30=1,"Selezionando questo controller in una soluzione vSAN, per il boot si deve utilizzare la componentete 'ISDM Module'' oppure ''BOSS Controller Card''","") -> 
A30: =IF($E$12="TS3L4-VSAN","vSAN HCL","") ->  | C30: PERC H740P RAID Controller, 8GB NV Cache | E30: =IF(C12="Chassis with Up to 24 x 2.5'' Hard Drives for 2CPU Configuration","TS3L4-HBA330-L",IF(N9="VxFlex","TS3L4-HBA330-L",VLOOKUP($C30,TS3L4_CRTL,13,FALSE))) ->  | F30: =IF(C12="Chassis with Up to 24 x 2.5'' Hard Drives for 2CPU Configuration","1",IF(N9="VxFlex","1",VLOOKUP($C30,TS3L4_CRTL,7,FALSE))) ->  | J30: =IF(C30=ConfigurationTS3L4!A48,0,VLOOKUP($C30,TS3L4_CRTL,10,FALSE)) -> 0 | K30: =IF(C12="Chassis with Up to 24 x 2.5'' Hard Drives for 2CPU Configuration",180,IF(N9="VxFlex",180,IF(H4="",0,VLOOKUP($C30,TS3L4_CRTL,11,FALSE)))) -> 0 | L30: =IF(C12="Chassis with Up to 24 x 2.5'' Hard Drives for 2CPU Configuration","L4N34",IF(N9="VxFlex","L4N34",IF(H4="","",VLOOKUP($C30,TS3L4_ALL,12,FALSE)))) ->  | N30: =IF(E30="TS3L4-HBA330-L",1,0) -> 0 | O30: =IF(C30="PERC H740P RAID Controller, 8GB NV Cache",1,0) -> 1 | P30: =IF(Q30=1,Q30*N30,O30*N30) -> 0 | Q30: =IF(H4="",1,0) -> 1
C32: Hard Drivers Bays disponibili n° 24 | E32: Usati | F32: Disponibili | M32: =IF(C12="Chassis with Up to 24 x 2.5'' Hard Drives for 2CPU Configuration",ConfigurationTS3L4!$A$110,IF($H$4="",ConfigurationTS3L4!$A$109,ConfigurationTS3L4!$A$109:$A$110)) -> PERC H740P RAID Controller, 8GB NV Cache
E33: =F35+F37+F39+F45+F47+F49+F51+F57+F41+F43+F53 -> 2 | F33: =24-E33 -> 22
H34: Configurazione RAID e/o NOTE
A35: =IF($E$12="TS3L4-VSAN","vSAN HCL","") ->  | C35: =ConfigurationTS3L4!A73 -> 300GB 15K RPM SAS 12Gbps 2.5in Hot-plug | E35: =VLOOKUP($C35,TS3L4_HDD,13,FALSE) -> TS3L4-HDD300GB | H35: Specificare la configurazione RAID per l'installazione del Sistema Operativo, se richiesto. e/o inserire eventuali note. | J35: =VLOOKUP($C35,TS3L4_HDD,10,FALSE)*F35 -> 0 | K35: =VLOOKUP($C35,TS3L4_HDD,11,FALSE) -> 0 | L35: =VLOOKUP($C35,TS3L4_ALL,12,FALSE) -> L4N12
A37: =IF($E$12="TS3L4-VSAN","vSAN HCL","") ->  | C37: =ConfigurationTS3L4!A74 -> 1.2TB 10K RPM SAS 12Gbps 2.5in Hot-plug | E37: =VLOOKUP($C37,TS3L4_HDD,13,FALSE) -> TS3L4-HDD1TB | J37: =VLOOKUP($C37,TS3L4_HDD,10,FALSE)*F37 -> 0 | K37: =VLOOKUP($C37,TS3L4_HDD,11,FALSE) -> 0 | L37: =VLOOKUP($C37,TS3L4_ALL,12,FALSE) -> L4N11
A39: =IF($E$12="TS3L4-VSAN","vSAN HCL","") ->  | C39: =ConfigurationTS3L4!A75 -> 2.4TB 10K RPM SAS 12Gbps 2.5in Hot-plug | E39: =VLOOKUP($C39,TS3L4_HDD,13,FALSE) -> TS3L4-HDD2TB | J39: =VLOOKUP($C39,TS3L4_HDD,10,FALSE)*F39 -> 0 | K39: =VLOOKUP($C39,TS3L4_HDD,11,FALSE) -> 0 | L39: =VLOOKUP($C39,TS3L4_ALL,12,FALSE) -> L4N10
A41: =IF($E$12="TS3L4-VSAN","vSAN HCL","") ->  | C41: =ConfigurationTS3L4!A76 -> 960GB SSD SAS Read Intensive 12Gbps 2.5in Hot-plug | E41: =VLOOKUP($C41,TS3L4_HDD,13,FALSE) -> TS3L4-RI800GB | F41: 2 | J41: =IF(F41>2,(VLOOKUP($C41,TS3L4_HDD,10,FALSE)*(F41-2)),0) -> 0 | K41: =VLOOKUP($C41,TS3L4_HDD,11,FALSE) -> 0 | L41: =VLOOKUP($C41,TS3L4_ALL,12,FALSE) -> L4N15
A43: =IF($E$12="TS3L4-VSAN","vSAN HCL","") ->  | C43: =ConfigurationTS3L4!A77 -> 1.92TB SSD SAS Read Intensive 12Gbps 2.5in Hot-plug | E43: =VLOOKUP($C43,TS3L4_HDD,13,FALSE) -> TS3L4-RI1600GB | J43: =VLOOKUP($C43,TS3L4_HDD,10,FALSE)*F43 -> 0 | K43: =VLOOKUP($C43,TS3L4_HDD,11,FALSE) -> 0 | L43: =VLOOKUP($C43,TS3L4_ALL,12,FALSE) -> L4N13
A45: =IF($E$12="TS3L4-VSAN","vSAN HCL","") ->  | C45: =ConfigurationTS3L4!A78 -> 3.84TB SSD SAS Read Intensive 12Gbps 2.5in Hot-plug | E45: =VLOOKUP($C45,TS3L4_HDD,13,FALSE) -> TS3L4-RI3840GB | J45: =VLOOKUP($C45,TS3L4_HDD,10,FALSE)*F45 -> 0 | K45: =VLOOKUP($C45,TS3L4_HDD,11,FALSE)*F45 -> 0 | L45: =VLOOKUP($C45,TS3L4_ALL,12,FALSE) -> L4N51
A47: =IF($E$12="TS3L4-VSAN","vSAN HCL","") ->  | C47: =ConfigurationTS3L4!A79 -> 7.68TB SSD SAS Read Intensive 12Gbps 2.5in Hot-plug | E47: =VLOOKUP($C47,TS3L4_HDD,13,FALSE) -> TS3L4-RI7680GB | J47: =VLOOKUP($C47,TS3L4_HDD,10,FALSE)*F47 -> 0 | K47: =VLOOKUP($C47,TS3L4_HDD,11,FALSE)*F47 -> 0 | L47: =VLOOKUP($C47,TS3L4_ALL,12,FALSE) -> L4N52
A49: =IF($E$12="TS3L4-VSAN","vSAN HCL","") ->  | C49: =ConfigurationTS3L4!A80 -> 960GB SSD SAS Mixed Use 12Gbps 512e 2.5in Hot-Plug | E49: =VLOOKUP($C49,TS3L4_HDD,13,FALSE) -> TS3L4-MU800GB | J49: =VLOOKUP($C49,TS3L4_HDD,10,FALSE)*F49 -> 0 | K49: =VLOOKUP($C49,TS3L4_HDD,11,FALSE) -> 0 | L49: =VLOOKUP($C49,TS3L4_ALL,12,FALSE) -> L4N16
A51: =IF($E$12="TS3L4-VSAN","vSAN HCL","") ->  | C51: =ConfigurationTS3L4!A81 -> 1.6TB SSD SAS Mix Use 12Gbps 2.5in Hot-plug | E51: =VLOOKUP($C51,TS3L4_HDD,13,FALSE) -> TS3L4-MU1600GB | J51: =VLOOKUP($C51,TS3L4_HDD,10,FALSE)*F51 -> 0 | K51: =VLOOKUP($C51,TS3L4_HDD,11,FALSE) -> 0 | L51: =VLOOKUP($C51,TS3L4_ALL,12,FALSE) -> L4N14
A53: =IF($E$12="TS3L4-VSAN","vSAN HCL","") ->  | C53: =ConfigurationTS3L4!A82 -> 800GB SSD SAS Write Intensive 12Gbps 2.5in Hot Plug | E53: =VLOOKUP($C53,TS3L4_HDD,13,FALSE) -> TS3L4-WI800GB | J53: =VLOOKUP($C53,TS3L4_HDD,10,FALSE)*F53 -> 0 | K53: =VLOOKUP($C53,TS3L4_HDD,11,FALSE)*F53 -> 0 | L53: =VLOOKUP($C53,TS3L4_ALL,12,FALSE) -> L4N53
C55: =ConfigurationTS3L4!A83 -> 1.6TB SSD SAS Write Intensive 12Gbps 2.5in Hot Plug | E55: =VLOOKUP($C55,TS3L4_HDD,13,FALSE) -> TS3L4-WI1600GB | J55: =IF(F55>2,VLOOKUP($C55,TS3L4_HDD,10,FALSE)*(F55-2),0) -> 0 | K55: =VLOOKUP($C55,TS3L4_HDD,11,FALSE)*F55 -> 0 | L55: =VLOOKUP($C55,TS3L4_ALL,12,FALSE) -> L4N54
A57: =IF($E$12="TS3L4-VSAN","vSAN HCL","") ->  | C57: 480GB SSD SAS Read Intensive 12Gbps 2.5in Hot-plug
C59: ISDM Module
C60: No ISDM | E60: =IF(K60>0,VLOOKUP($C60,TS3L4_ISDM,13,FALSE),"") ->  | F60: =VLOOKUP($C60,TS3L4_ISDM,7,FALSE) ->  | J60: =VLOOKUP($C60,TS3L4_ISDM,10,FALSE) -> 0 | K60: =VLOOKUP($C60,TS3L4_ISDM,11,FALSE) -> 0 | L60: =VLOOKUP($C60,TS3L4_ALL,12,FALSE) -> 
A62: =IF(H62="","",M63) ->  | C62: Power Supply | D62: =IF(H62="","",M63) ->  | H62: =IF(E63="TS3L4-PSU2000W","Verificare, per ogni Server, la disponibilità di 2 prese C19 sulle PDU","") -> 
C63: =IF(O12=1,"Dual, Hot-plug Power Supply (1+1), 1100W",IF($E$12="TS3L4-GPUDW","Dual, Hot-plug Power Supply (1+1), 2000W",IF($E$12="TS3L4-GPUSW","Dual, Hot-plug Power Supply (1+1), 2000W","Dual, Hot-plug, Redundant Power Supply (1+1), 750W"))) -> Dual, Hot-plug, Redundant Power Supply (1+1), 750W | E63: =VLOOKUP($C63,TS3L4_PSU,13,FALSE) ->  | F63: =VLOOKUP($C63,TS3L4_PSU,7,FALSE) ->  | J63: =VLOOKUP($C63,TS3L4_PSU,10,FALSE) -> 0 | K63: =VLOOKUP($C63,TS3L4_PSU,11,FALSE) -> 0 | L63: =VLOOKUP($C63,TS3L4_ALL,12,FALSE) ->  | M63: ⚠ | N63: =IF(H62="",ConfigurationTS3L4!A526,ConfigurationTS3L4!A527) -> _C14C13
C65: Embedded Systems Management | D65: =HYPERLINK("https://convenzioni.converge.it/docs/ts3_datasheet/idrac-spec-sheet.pdf","i") -> i
C66: iDRAC9,Enterprise
C68: Infrastructure Management Console | D68: =HYPERLINK("https://www.dell.com/support/kbdoc/en-it/000175879/support-for-openmanage-enterprise#OME-Resources","i") -> i
C69: No OMEA | E69: =IF(N9="VxFlex","TS3L4-OMEA",VLOOKUP($C69,TS3L4_ALL,13,FALSE)) ->  | F69: =IF(N9="VxFlex",1,VLOOKUP($C69,TS3L4_ALL,7,FALSE)) ->  | J69: =VLOOKUP($C69,TS3L4_ALL,10,FALSE) -> 0 | K69: =IF(N9="VxFlex",214,VLOOKUP($C69,TS3L4_ALL,11,FALSE)) -> 0 | L69: =IF(N9="VxFlex","L4N96",VLOOKUP($C69,TS3L4_ALL,12,FALSE)) -> 
C71: Network Cards
C72: Broadcom 5720 QP 1Gb Network Daughter Card
M75: =IF($E$12="TS3L4-GPUDW","1",IF($E$12="TS3L4-GPUSW","20",IF($F$21=1,"300","4000"))) -> 4000 | N75: =IF($E$12="TS3L4-GPUDW","DW",IF($E$12="TS3L4-GPUSW","SW",IF($E$12="TS3L4-PWRFLEX","PX",IF($F$21=1,"2CPU","1CPU")))) -> 1CPU
C76: PCI Slot 1 Processor 1 x8 PCIe Gen3 for FL/FH | N76: =IF(N75="DW","DW",IF(N75="SW","SW",0)) -> 0 | O76: Selected | P76: 1CPU | Q76: 2CPU | R76: PX | S76: DW | T76: SW
E77: =IF($N$9="VxFlex","TS3L4-MCX4DP",VLOOKUP($C77,TS3L4_ALL,13,)) ->  | F77: =IF($N$9="VxFlex",1,VLOOKUP($C77,TS3L4_ALL,7,FALSE)) ->  | H77: =IF(M77="Errore","ERRORE nella selezione del PCI Slot",IFERROR(O78,"ERRORE nella selezione del PCI Slot")) ->  | J77: =VLOOKUP($C77,TS3L4_ALL,10,FALSE) -> 0 | K77: =IF($N$9="VxFlex",419,VLOOKUP($C77,TS3L4_ALL,11,FALSE)) -> 0 | L77: =IF($N$9="VxFlex","L4N94",VLOOKUP($C77,TS3L4_ALL,12,FALSE)) ->  | N77: =IF(L77="L4N56","DW",IF(L77="L4N57","DW",IF(L77="L4N58","DW",IF(L77="L4N55","SW","CPU")))) -> CPU | O77: =HLOOKUP($N$75,$P$76:$T$99,2,FALSE) -> TS3L2_PCI_A | P77: TS3L2_PCI_A | Q77: TS3L2_PCI_A | R77: TS3L2_PCI_A | S77: TS3L2_PCI_A | T77: TS3L2_PCI_A | V77: PCI-1 | W77: =IF($N$75="SW",ConfigurationTS3L4!$A$290:$A$309,IF($N$75="DW",ConfigurationTS3L4!$A$239:$A$262,ConfigurationTS3L4!$A$166:$A$181)) -> 
H78: =IF(L77="L4N33",IF($M$98>1,"ERRORE: SOLO UNA BOSS CARD PUO' ESSERE CONFIGURATA",""),"") ->  | O78: =HLOOKUP($N$75,$P$76:$T$99,3,FALSE) ->  | P78: =VLOOKUP(C77,TS3L4_PCI_A,12,FALSE) ->  | Q78: =VLOOKUP(C77,TS3L4_PCI_A,12,FALSE) ->  | R78: =VLOOKUP(C77,TS3L4_PCI_A,12,FALSE) ->  | S78: =VLOOKUP(C77,TS3L4_PCI_A,12,FALSE) ->  | T78: =VLOOKUP(C77,TS3L4_PCI_A,12,FALSE) -> 
C79: PCI Slot 2 Processor 1 x8 PCIe Gen3 for FL/FH
E80: =VLOOKUP($C80,TS3L4_ALL,13,FALSE) ->  | F80: =VLOOKUP($C80,TS3L4_ALL,7,FALSE) ->  | H80: =IFERROR(O81,"ERRORE nella selezione del PCI Slot") ->  | J80: =VLOOKUP($C80,TS3L4_ALL,10,FALSE) -> 0 | K80: =VLOOKUP($C80,TS3L4_ALL,11,FALSE) -> 0 | L80: =VLOOKUP($C80,TS3L4_ALL,12,FALSE) ->  | M80: =IF(F80="","OK",IF(N80+F80=2,"Errore","OK")) -> OK | N80: =IF(N77="dw",1,0) -> 0 | O80: =HLOOKUP($N$75,$P$76:$T$99,5,FALSE) -> TS3L2_PCI_A | P80: TS3L2_PCI_A | Q80: TS3L2_PCI_A | R80: TS3L2_PCI_A | S80: TS3L2_PCI_A | T80: TS3L2_PCI_A | V80: PCI-2
H81: =IF(L80="L4N33",IF($M$98>1,"ERRORE: SOLO UNA BOSS CARD PUO' ESSERE CONFIGURATA",""),"") ->  | O81: =HLOOKUP($N$75,$P$76:$T$99,6,FALSE) ->  | P81: =VLOOKUP(C80,TS3L4_PCI_A,12,FALSE) ->  | Q81: =VLOOKUP(C80,TS3L4_PCI_A,12,FALSE) ->  | R81: =VLOOKUP(C80,TS3L4_PCI_A,12,FALSE) ->  | S81: =VLOOKUP(C80,TS3L4_PCI_A,12,FALSE) ->  | T81: =VLOOKUP(C80,TS3L4_PCI_A,12,FALSE) -> 
C82: PCI Slot 3 Processor 1 x8 PCIe Gen3 for HL/FH
E83: =IF($N$9="VxFlex","TS3L4-BOSS480",VLOOKUP($C83,TS3L4_ALL,13,)) ->  | F83: =IF($N$9="VxFlex",1,VLOOKUP($C83,TS3L4_ALL,7,FALSE)) ->  | H83: =IFERROR(O84,"ERRORE nella selezione del PCI Slot") ->  | J83: =VLOOKUP($C83,TS3L4_ALL,10,FALSE) -> 0 | K83: =IF($N$9="VxFlex",748,VLOOKUP($C83,TS3L4_ALL,11,FALSE)) -> 0 | L83: =IF($N$9="VxFlex","L4N33",VLOOKUP($C83,TS3L4_ALL,12,FALSE)) ->  | O83: =HLOOKUP($N$75,$P$76:$T$99,8,FALSE) -> TS3L2_PCI_A | P83: TS3L2_PCI_A | Q83: TS3L2_PCI_A | R83: TS3L2_PCI_A | S83: TS3L2_PCI_A | T83: TS3L2_PCI_A | V83: PCI-3
H84: =IF(L83="L4N33",IF($M$98>1,"ERRORE: SOLO UNA BOSS CARD PUO' ESSERE CONFIGURATA",""),"") ->  | O84: =HLOOKUP($N$75,$P$76:$T$99,9,FALSE) ->  | P84: =VLOOKUP(C83,TS3L4_PCI_A,12,FALSE) ->  | Q84: =VLOOKUP(C83,TS3L4_PCI_A,12,FALSE) ->  | R84: =VLOOKUP(C83,TS3L4_PCI_A,12,FALSE) ->  | S84: =VLOOKUP(C83,TS3L4_PCI_A,12,FALSE) ->  | T84: =VLOOKUP(C83,TS3L4_PCI_A,12,FALSE) -> 
C85: PCI Slot 4 Processor 2 x16 PCIe Gen3 for FL/FH | D85: =IF($N$75="SW","GPU Slot",IF($N$75="DW","GPU Slot","")) -> 
E86: =VLOOKUP($C86,TS3L4_ALL,13,FALSE) ->  | F86: =VLOOKUP($C86,TS3L4_ALL,7,FALSE) ->  | H86: =IFERROR(O87,"ERRORE nella selezione del PCI Slot") ->  | J86: =VLOOKUP($C86,TS3L4_ALL,10,FALSE) -> 0 | K86: =VLOOKUP($C86,TS3L4_ALL,11,FALSE) -> 0 | L86: =VLOOKUP($C86,TS3L4_ALL,12,FALSE) ->  | N86: =IF(L86="L4N56","DW",IF(L86="L4N57","DW",IF(L86="L4N108","DW",IF(L86="L4N55","SW",1)))) -> 1 | O86: =HLOOKUP($N$75,$P$76:$T$99,11,FALSE) -> - | P86: - | Q86: TS3L2_PCI_B | R86: TS3L2_PCI_I | S86: TS3L2_PCI_F | T86: TS3L2_PCI_H | V86: PCI-4
H87: =IF(L86="L4N33",IF($M$98>1,"ERRORE: SOLO UNA BOSS CARD PUO' ESSERE CONFIGURATA",""),"") ->  | O87: =HLOOKUP($N$75,$P$76:$T$99,12,FALSE) ->  | P87: =VLOOKUP(C86,TS3L4_PCI_A,12,FALSE) ->  | Q87: =VLOOKUP(C86,TS3L4_PCI_B,12,FALSE) ->  | R87: =VLOOKUP(C86,TS3L4_PCI_I,12,FALSE) ->  | S87: =VLOOKUP(C86,TS3L4_PCI_F,12,FALSE) ->  | T87: =VLOOKUP(C86,TS3L4_PCI_H,12,FALSE) -> 
C88: PCI Slot 5 Processor 2 x8 PCIe Gen3 for FL/FH | D88: =IF($N$75="SW","GPU Slot","") -> 
E89: =VLOOKUP($C89,TS3L4_ALL,13,FALSE) ->  | F89: =VLOOKUP($C89,TS3L4_ALL,7,FALSE) ->  | H89: =IF(M89="Errore","ERRORE nella selezione del PCI Slot",IFERROR(O90,"ERRORE nella selezione del PCI Slot")) ->  | J89: =VLOOKUP($C89,TS3L4_ALL,10,FALSE) -> 0 | K89: =VLOOKUP($C89,TS3L4_ALL,11,FALSE) -> 0 | L89: =VLOOKUP($C89,TS3L4_ALL,12,FALSE) ->  | M89: =IF(F89="","OK",IF(N89+F89=2,"Errore","OK")) -> OK | N89: =IF(N86="dw",1,0) -> 0 | O89: =HLOOKUP($N$75,$P$76:$T$99,14,FALSE) -> - | P89: - | Q89: TS3L2_PCI_A | R89: TS3L2_PCI_I | S89: TS3L2_PCI_A | T89: TS3L2_PCI_L | V89: PCI-5
H90: =IF(L89="L4N33",IF($M$98>1,"ERRORE: SOLO UNA BOSS CARD PUO' ESSERE CONFIGURATA",""),"") ->  | O90: =HLOOKUP($N$75,$P$76:$T$99,15,FALSE) ->  | P90: =VLOOKUP(C89,TS3L4_PCI_A,12,FALSE) ->  | Q90: =VLOOKUP(C89,TS3L4_PCI_A,12,FALSE) ->  | R90: =VLOOKUP(C89,TS3L4_PCI_I,12,FALSE) ->  | S90: =VLOOKUP(C89,TS3L4_PCI_A,12,FALSE) ->  | T90: =VLOOKUP(C89,TS3L4_PCI_L,12,FALSE) -> 
C91: PCI Slot 6 Processor 1 x8 PCIe Gen3 for HL/LP
E92: =IF($N$9="VxFlex","TS3L4-MCX4DP-L",VLOOKUP($C92,TS3L4_ALL,13,)) ->  | F92: =IF($N$9="VxFlex",1,VLOOKUP($C92,TS3L4_ALL,7,FALSE)) ->  | H92: =IF(M92="Errore","ERRORE nella selezione del PCI Slot",IFERROR(O93,"ERRORE nella selezione del PCI Slot")) ->  | J92: =VLOOKUP($C92,TS3L4_ALL,10,FALSE) -> 0 | K92: =IF($N$9="VxFlex",419,VLOOKUP($C92,TS3L4_ALL,11,FALSE)) -> 0 | L92: =IF($N$9="VxFlex","L4N95",VLOOKUP($C92,TS3L4_ALL,12,FALSE)) ->  | O92: =HLOOKUP($N$75,$P$76:$T$99,17,FALSE) -> TS3L2_PCI_C | P92: TS3L2_PCI_C | Q92: TS3L2_PCI_C | R92: TS3L2_PCI_C | S92: TS3L2_PCI_C | T92: TS3L2_PCI_C | V92: PCI-6
O93: =HLOOKUP($N$75,$P$76:$T$99,18,FALSE) ->  | P93: =VLOOKUP(C92,TS3L4_PCI_C,12,FALSE) ->  | Q93: =VLOOKUP(C92,TS3L4_PCI_C,12,FALSE) ->  | R93: =VLOOKUP(C92,TS3L4_PCI_C,12,FALSE) ->  | S93: =VLOOKUP(C92,TS3L4_PCI_C,12,FALSE) ->  | T93: =VLOOKUP(C92,TS3L4_PCI_C,12,FALSE) -> 
C94: PCI Slot 7 Processor 2 x8 PCIe Gen3 for FL/FH | D94: =IF($N$75="SW","GPU Slot","") -> 
E95: =VLOOKUP($C95,TS3L4_ALL,13,FALSE) ->  | F95: =VLOOKUP($C95,TS3L4_ALL,7,FALSE) ->  | H95: =IF(M95="Errore","ERRORE nella selezione del PCI Slot",IFERROR(O96,"ERRORE nella selezione del PCI Slot")) ->  | J95: =VLOOKUP($C95,TS3L4_ALL,10,FALSE) -> 0 | K95: =VLOOKUP($C95,TS3L4_ALL,11,FALSE) -> 0 | L95: =VLOOKUP($C95,TS3L4_ALL,12,FALSE) ->  | M95: =IF(F95="","OK",IF(N95+F95=2,"Errore","OK")) -> OK | N95: =IF(N98="dw",1,0) -> 0 | O95: =HLOOKUP($N$75,$P$76:$T$99,20,FALSE) -> - | P95: - | Q95: TS3L2_PCI_A | R95: TS3L2_PCI_I | S95: TS3L2_PCI_A | T95: TS3L2_PCI_L | V95: PCI-7
H96: =IF(L95="L4N33",IF($M$98>1,"ERRORE: SOLO UNA BOSS CARD PUO' ESSERE CONFIGURATA",""),"") ->  | O96: =HLOOKUP($N$75,$P$76:$T$99,21,FALSE) ->  | P96: =VLOOKUP(C95,TS3L4_PCI_A,12,FALSE) ->  | Q96: =VLOOKUP(C95,TS3L4_PCI_A,12,FALSE) ->  | R96: =VLOOKUP(C95,TS3L4_PCI_I,12,FALSE) ->  | S96: =VLOOKUP(C95,TS3L4_PCI_A,12,FALSE) ->  | T96: =VLOOKUP(C95,TS3L4_PCI_L,12,FALSE) -> 
C97: PCI Slot 8 Processor 2 x16 PCIe Gen3 for FL/FH | D97: =IF($N$75="SW","GPU Slot",IF($N$75="DW","GPU Slot","")) ->  | M97: boss card
E98: =VLOOKUP($C98,TS3L4_ALL,13,FALSE) ->  | F98: =VLOOKUP($C98,TS3L4_ALL,7,FALSE) ->  | H98: =IF(M98="Errore","ERRORE nella selezione del PCI Slot",IFERROR(O99,"ERRORE nella selezione del PCI Slot")) ->  | J98: =VLOOKUP($C98,TS3L4_ALL,10,FALSE) -> 0 | K98: =VLOOKUP($C98,TS3L4_ALL,11,FALSE) -> 0 | L98: =VLOOKUP($C98,TS3L4_ALL,12,FALSE) ->  | M98: =COUNTIF(L77:L98,"L4N33") -> 0 | N98: =IF(L98="L4N56","DW",IF(L98="L4N57","DW",IF(L98="L4N108","DW",IF(L98="L4N55","SW",1)))) -> 1 | O98: =HLOOKUP($N$75,$P$76:$T$99,23,FALSE) -> - | P98: - | Q98: TS3L2_PCI_D | R98: TS3L2_PCI_I | S98: TS3L2_PCI_E | T98: TS3L2_PCI_G | V98: PCI-8
H99: =IF(L98="L4N33",IF($M$98>1,"ERRORE: SOLO UNA BOSS CARD PUO' ESSERE CONFIGURATA",""),"") ->  | O99: =HLOOKUP($N$75,$P$76:$T$99,24,FALSE) ->  | P99: =VLOOKUP(C98,TS3L4_PCI_A,12,FALSE) ->  | Q99: =VLOOKUP(C98,TS3L4_PCI_D,12,FALSE) ->  | R99: =VLOOKUP(C98,TS3L4_PCI_I,12,FALSE) ->  | S99: =VLOOKUP(C98,TS3L4_PCI_E,12,FALSE) ->  | T99: =VLOOKUP(C98,TS3L4_PCI_G,12,FALSE) -> 
C100: SFP+ Transceivers
C101: Transceiver, SFP+ SR Optic for SFP+ ports (Intel X710) | E101: =IF(K101>0,VLOOKUP($C101,ConfigurationTS3L4!$A$1:$M$4832,13,FALSE),"") ->  | J101: 0 | K101: =IF(F101>0,VLOOKUP($C101,TS3L4_ALL,11,FALSE)*(F101),0) -> 0 | L101: =IF(F101>0,VLOOKUP($C101,TS3L4_ALL,12,FALSE),0) -> 0
C103: SFP+ Direct Attach Cables (Twinax)
C104: Cable, SFP+ to SFP+, 10GbE, Copper Twinax Direct Attach Cable, 3 Meter | E104: =IF(K104>0,VLOOKUP($C104,ConfigurationTS3L4!$A$1:$M$4832,13,FALSE),"") ->  | J104: 0 | K104: =IF(F104>0,VLOOKUP($C104,TS3L4_ALL,11,FALSE)*F104,0) -> 0 | L104: =IF(F104>0,VLOOKUP($C104,TS3L4_ALL,12,FALSE),0) -> 0
C106: QSFP28 Transceivers
C107: Dell EMC PowerEdge QSFP28 SR4 100GbE 85C optic | E107: =IF(K107>0,VLOOKUP($C107,ConfigurationTS3L4!$A$1:$M$4832,13,FALSE),"") ->  | J107: 0 | K107: =IF(F107>0,VLOOKUP($C107,TS3L4_ALL,11,FALSE)*F107,0) -> 0 | L107: =IF(F107>0,VLOOKUP($C107,TS3L4_ALL,12,FALSE),0) -> 0
C109: Mellanox LinkX 100Gb/s Passive Copper Cables
C110: Mellanox LinkX 100Gb/s Passive Copper Cables - attacco cavo diretto - 3 m - nero | E110: =IF(K110>0,VLOOKUP($C110,ConfigurationTS3L4!$A$1:$M$4832,13,FALSE),"") ->  | J110: 0 | K110: =IF(F110>0,VLOOKUP($C110,TS3L4_ALL,11,FALSE)*F110,0) -> 0 | L110: =IF(F110>0,VLOOKUP($C110,TS3L4_ALL,12,FALSE),0) -> 0
C112: Mellanox LinkX 100Gb/s VCSEL-Based Active Optical Cables - cavo InfiniBand - 10 m | E112: =IF(K112>0,VLOOKUP($C112,ConfigurationTS3L4!$A$1:$M$4832,13,FALSE),"") ->  | J112: 0 | K112: =IF(F112>0,VLOOKUP($C112,TS3L4_ALL,11,FALSE)*F112,0) -> 0 | L112: =IF(F112>0,VLOOKUP($C112,TS3L4_ALL,12,FALSE),0) -> 0
C114: Cavi RJ45
C115: Cavo “patch” di 3 mt RJ45 certificato per gigabit ethernet | E115: =IF(K115>0,VLOOKUP($C115,ConfigurationTS3L4!$A$1:$M$4832,13,FALSE),"") -> TS3L4-RJ453M | F115: 5 | J115: 0 | K115: =IF(F115>0,VLOOKUP($C115,TS3L4_ALL,11,FALSE)*(F115),0) -> 15 | L115: =IF(F115>0,VLOOKUP($C115,TS3L4_ALL,12,FALSE),0) -> L4N62
C117: Cavi LC-LC
C118: Dell Networking Cable, OM4 LC/LC Fiber Cable, 3 Meter | E118: =IF(K118>0,VLOOKUP($C118,ConfigurationTS3L4!$A$1:$M$4832,13,FALSE),"") ->  | J118: 0 | K118: =IF(F118>0,VLOOKUP($C118,TS3L4_ALL,11,FALSE)*(F118),0) -> 0 | L118: =IF(F118>0,VLOOKUP($C118,TS3L4_ALL,12,FALSE),0) -> 0
C120: Cavi DAC
C121: Dell Networking, Cable, SFP+ to SFP+, 10GbE, Copper Twinax Direct Attach Cable, 3 Meter | E121: =IF(K121>0,VLOOKUP($C121,ConfigurationTS3L4!$A$1:$M$4832,13,FALSE),"") ->  | J121: 0 | K121: =IF(F121>0,VLOOKUP($C121,TS3L4_ALL,11,FALSE)*(F121),0) -> 0 | L121: =IF(F121>0,VLOOKUP($C121,TS3L4_ALL,12,FALSE),0) -> 0
C122: Mellanox LinkX 100Gb/s Passive Copper DAC 3m per scheda TS3L4-CONX6DP | E122: =IF(K122>0,VLOOKUP($C122,ConfigurationTS3L4!$A$1:$M$4832,13,FALSE),"") ->  | J122: 0 | K122: =IF(F122>0,VLOOKUP($C122,TS3L4_ALL,11,FALSE)*(F122),0) -> 0 | L122: =IF(F122>0,VLOOKUP($C122,TS3L4_ALL,12,FALSE),0) -> 0
C123: Dell Cable SFP28 to SFP28 25GbE Passive Copper Twinax Direct Attach Cable 3 Meter | E123: =IF(K123>0,VLOOKUP($C123,ConfigurationTS3L4!$A$1:$M$4832,13,FALSE),"") ->  | J123: 0 | K123: =IF(F123>0,VLOOKUP($C123,TS3L4_ALL,11,FALSE)*(F123),0) -> 0 | L123: =IF(F123>0,VLOOKUP($C123,TS3L4_ALL,12,FALSE),0) -> 0
O124: =IF($N$9="VxFlex",ConfigurationTS3L4!$A$236,IF($N$98="DW",ConfigurationTS3L4!$A$333,IF($N$75="1CPU",ConfigurationTS3L4!$A$92:$A$93,ConfigurationTS3L4!$A$166:$A$181))) -> 
C125: Cable Management Arm
C126: No | E126: =IF($N$9="VxFlex","TS3L4-BZLSTD",VLOOKUP($C126,TS3L4_ALL,13,)) ->  | F126: =IF($N$9="VxFlex",1,VLOOKUP($C126,TS3L4_ALL,7,FALSE)) ->  | J126: =VLOOKUP($C126,TS3L4_ALL,10,FALSE) -> 0 | K126: =IF($N$9="VxFlex",42,VLOOKUP($C126,TS3L4_ALL,11,FALSE)) -> 0 | L126: =IF($N$9="VxFlex","L4N69",VLOOKUP($C126,TS3L4_ALL,12,FALSE)) -> 
C128: Bezel
C129: No Bezel | E129: =IF($N$9="VxFlex","TS3L4-BZLSTD",VLOOKUP($C129,TS3L4_ALL,13,)) ->  | F129: =IF($N$9="VxFlex",1,VLOOKUP($C129,TS3L4_ALL,7,FALSE)) ->  | J129: =VLOOKUP($C129,TS3L4_ALL,10,FALSE) -> 0 | K129: =IF($N$9="VxFlex",42,VLOOKUP($C129,TS3L4_ALL,11,FALSE)) -> 0 | L129: =IF($N$9="VxFlex","L4N69",VLOOKUP($C129,TS3L4_ALL,12,FALSE)) -> 
C131: Warranty | D131: =HYPERLINK("https://convenzioni.converge.it/docs/ts3_datasheet/TS3warranty.pdf","i") -> i
C132: Manutenzione in garanzia (36 mesi) | E132: =VLOOKUP($C132,TS3L4_WARRANTY,13,FALSE) ->  | F132: =VLOOKUP($C132,TS3L4_WARRANTY,7,FALSE) ->  | J132: =VLOOKUP($C132,TS3L4_WARRANTY,10,FALSE) -> 0 | K132: =VLOOKUP($C132,TS3L4_WARRANTY,11,FALSE) -> 0 | L132: =VLOOKUP($C132,TS3L4_ALL,12,FALSE) -> 
C134: Hard Disk Retention | D134: =HYPERLINK("https://convenzioni.converge.it/docs/ts3_datasheet/DELL_HDD_KYHD.pdf","i") -> i
E135: =IFERROR(N135,VLOOKUP(C135,TS3L4_ALL,13,FALSE)) ->  | F135: =IF(C135="","",1) ->  | J135: =IFERROR(O135,VLOOKUP(C135,TS3L4_ALL,10,FALSE)) -> 0 | K135: =IFERROR(P135,VLOOKUP(C135,TS3L4_ALL,11,FALSE)) -> 0 | L135: =IFERROR(Q135,VLOOKUP(C135,TS3L4_ALL,12,FALSE)) ->  | N135: =IF(F132+F135=2,VLOOKUP("Hard Disk Retention (60 mesi)",TS3L4_ALL,13,FALSE),VLOOKUP(C135,TS3L4_ALL,13,FALSE)) ->  | O135: =IF(F132+F135=2,VLOOKUP("Hard Disk Retention (60 mesi)",TS3L4_ALL,10,FALSE),VLOOKUP(C135,TS3L4_ALL,10,FALSE)) ->  | P135: =IF(F132+F135=2,VLOOKUP("Hard Disk Retention (60 mesi)",TS3L4_ALL,11,FALSE),VLOOKUP(C135,TS3L4_ALL,11,FALSE)) ->  | Q135: =IF(F132+F135=2,VLOOKUP("Hard Disk Retention (60 mesi)",TS3L4_ALL,12,FALSE),VLOOKUP(C135,TS3L4_ALL,12,FALSE)) -> 
C138: UPS
E139: =VLOOKUP($C139,TS3L4_UPS,13,FALSE) ->  | F139: =VLOOKUP($C139,TS3L4_UPS,7,FALSE) ->  | J139: =VLOOKUP($C139,TS3L4_UPS,10,FALSE) ->  | K139: =VLOOKUP($C139,TS3L4_UPS,11,FALSE) ->  | L139: =VLOOKUP($C139,TS3L4_ALL,12,FALSE) -> 
C141: Kit Graphical User Interface
E142: =VLOOKUP($C142,TS3L4_GUI,13,FALSE) ->  | F142: =VLOOKUP($C142,TS3L4_GUI,7,FALSE) ->  | J142: =VLOOKUP($C142,TS3L4_GUI,10,FALSE) ->  | K142: =VLOOKUP($C142,TS3L4_GUI,11,FALSE) ->  | L142: =VLOOKUP($C142,TS3L4_ALL,12,FALSE) -> 

Sheet Lotto4_R740XD_3
E1: Convenzione | F1: =SUM(J9:J135)*F5 -> 0
E2: 0.2 | F2: =SUM(K9:K135)*F5 -> 0
E3: Totale | F3: =SUM(F1:F2) -> 0
E4: =IF(M98>1,"ERRORE NELLA CONFIGURAZIONE","") ->  | H4: =IF($E$12="TS3L4-VSAN","vSAN Server Ready",IF($E$12="TS3L4-GPUDW","GPU Double-Wide Server Ready",IF($E$12="TS3L4-GPUSW","GPU Single-Wide Server Ready",IF(N9="VxFlex","VxFlex Server","")))) -> 
C5: POWEREDGE R740XD Consulta la Guida alla Convenzione ---> | D5: =HYPERLINK("https://convenzioni.converge.it/docs/L4GuidaAllaConvenzioneTecnologieServer3.pdf","&") -> & | E5: Quantità Server | H5: =Riepilogo!G8 -> Version 5.1
C8: Base | D8: =HYPERLINK("https://convenzioni.converge.it/docs/ts3_datasheet/dell-emc-poweredge-r740xd-spec-sheet.pdf","i") -> i
C9: PowerEdge R740XD Server (General Purpose) | E9: =IF($F$5>0,"TS3L4-SRV-U","") ->  | F9: =IF($F$5>0,1,"") ->  | J9: =VLOOKUP($C9,TS3L4_ALL,10,FALSE) -> 2530 | L9: =VLOOKUP($C9,TS3L4_ALL,12,FALSE) -> L4N01 | N9: =IF(C9=ConfigurationTS3L4!A14,"VxFlex","") ->  | P9: =IF(E12="TS3L4-GPUSW",1,IF(E12="TS3L4-GPUDW",1,"")) -> 
C11: Chassis Configuration | D11: =HYPERLINK("https://dellservervr.dell.com/poweredge-r740/","i") -> i | E11: =IF($N$75="SW","MAX 4 GPU",IF($N$75="DW","MAX 2 GPU","")) -> 
C12: =VLOOKUP($C$9,TS3L4_Chassis,2,FALSE) -> Chassis with Up to 24 x 2.5 Hard Drives for 1CPU Configuration | E12: =VLOOKUP($C$9,TS3L4_Chassis,13,FALSE) ->  | F12: =VLOOKUP($C$9,TS3L4_Chassis,7,FALSE) ->  | H12: =IF(E12="TS3L4-VSAN","ATTENZIONE SELEZIONARE UNA COMPONENTE PER IL BOOT A SCELTA TRA ''ISDM Module'' oppure ''BOSS Controller Card''","") ->  | J12: =VLOOKUP($C$9,TS3L4_Chassis,10,FALSE) -> 0 | K12: =VLOOKUP($C9,TS3L4_Chassis,11,FALSE) -> 0 | L12: =VLOOKUP($C9,TS3L4_Chassis,12,FALSE) ->  | N12: Chassis with Up to 24 x 2.5'' Hard Drives for 2CPU Configuration | O12: =IF(C12=N12,1,0) -> 0
C14: Trusted Platform Module (TPM)
C15: Trusted Platform Module 2.0
C17: Processor | D17: =HYPERLINK("https://ark.intel.com/content/www/it/it/ark/products/199345/intel-xeon-gold-6238r-processor-38-5m-cache-2-20-ghz.html","i") -> i
C18: Intel Xeon Gold 6238R 2.2G, 28C/56T, 10.4GT/s, 38.5 M Cache, Turbo, HT (165W) | E18: =IF(F12=1,VLOOKUP($C$18,TS3L4_CPU8core,13,FALSE),VLOOKUP($C$18,TS3L4_CPU8core,13,FALSE)) ->  | F18: =IF(F12=1,VLOOKUP($C$18,TS3L4_CPU8core,7,FALSE),VLOOKUP($C$18,TS3L4_CPU8core,7,FALSE)) -> 0 | J18: =IF(F12=1,VLOOKUP($C$18,TS3L4_CPU8core,10,FALSE),VLOOKUP($C$18,TS3L4_CPU8core,10,FALSE)) -> 0 | K18: =IF(F12=1,VLOOKUP($C$18,TS3L4_CPU8core,11,FALSE),VLOOKUP($C$18,TS3L4_CPU8core,11,FALSE)) -> 0 | L18: =IF(K18=0,0,VLOOKUP($C18,TS3L4_CPU8core,12,FALSE)) -> 0
C20: Additional Processor
C21: No Additional Processor | E21: =IF(F12=1,VLOOKUP($C$18,TS3L4_CPU,13,FALSE),VLOOKUP($C$21,TS3L4_CPU,13,FALSE)) ->  | F21: =IF(F12=1,VLOOKUP($C$18,TS3L4_CPU,7,FALSE),VLOOKUP($C$21,TS3L4_CPU,7,FALSE)) -> 0 | J21: =IF(F12=1,VLOOKUP($C$18,TS3L4_CPU,10,FALSE),VLOOKUP($C$21,TS3L4_CPU,10,FALSE)) -> 0 | K21: =IF(F12=1,VLOOKUP($C$18,TS3L4_CPU,11,FALSE),VLOOKUP($C$21,TS3L4_CPU,11,FALSE)) -> 0 | L21: =IF(F12=1,VLOOKUP(C18,TS3L4_ALL,12,FALSE),VLOOKUP($C21,TS3L4_CPU,12,FALSE)) ->  | N21: =IF(F12=1,"Intel Xeon Gold 6238R 2.2G, 28C/56T, 10.4GT/s, 38.5 M Cache, Turbo, HT (165W)",C21) -> No Additional Processor
E22: =IF(E21="TS3L4-CPU8CORE","TS3L4-CPU","") ->  | F22: =IFERROR(O22,"") ->  | J22: =IFERROR(N22,0) -> 0 | L22: =IF(E22="TS3L4-CPU","L4N02",0) -> 0 | N22: =VLOOKUP($L$22,Tabella_prezzi!$A$3:$K$496,4,FALSE) ->  | O22: =VLOOKUP($L$22,Tabella_prezzi!$A$3:$K$496,7,FALSE) -> 
C23: Memory Capacity
C24: 64GB | E24: =IFERROR(N24,"TS3L4-RAM64") ->  | F24: =IFERROR(O24,IF($N$9="VxFlex",5,1)) -> 0 | J24: =IFERROR(P24,444) -> 0 | L24: =IFERROR(Q24,"L4N04") ->  | N24: =IF($F$21=1,VLOOKUP($C$24,TS3L4_RAM2CPU,13,FALSE),VLOOKUP($C$24,TS3L4_RAM1CPU,13,FALSE)) ->  | O24: =IF($F$21=1,VLOOKUP($C$24,TS3L4_RAM2CPU,7,FALSE),VLOOKUP($C$24,TS3L4_RAM1CPU,7,FALSE)) -> 0 | P24: =IF($F$21=1,VLOOKUP($C$24,TS3L4_RAM2CPU,10,FALSE),VLOOKUP($C$24,TS3L4_RAM1CPU,10,FALSE)) -> 0 | Q24: =IF($F$21=1,VLOOKUP($C$24,TS3L4_RAM2CPU,12,FALSE),VLOOKUP($C$24,TS3L4_RAM1CPU,12,FALSE)) ->  | S24: 384GB | T24: =IF(N9="VxFlex",0,1) -> 1 | U24: =IF(N9="VxFlex",VLOOKUP(C24,ConfigurationTS3L4!A60:A63,1,FALSE),"192GB") -> 192GB | V24: =IFERROR(U24,1) -> 192GB | W24: =IF(C24="64GB",1,0) -> 1 | X24: =W24*F12 -> 
C26: Operating System
C27: No Operating System | E27: =VLOOKUP($C$27,TS3L4_OS,13,FALSE) ->  | F27: =VLOOKUP($C$27,TS3L4_OS,7,FALSE) -> 0 | J27: =VLOOKUP($C$27,TS3L4_OS,10,FALSE) -> 0 | K27: =VLOOKUP($C$27,TS3L4_OS,11,FALSE) -> 0 | L27: =VLOOKUP($C27,TS3L4_ALL,12,FALSE) -> 
E28: =IF($F$27+$F$18=2,"",IF($F$18+$F$21+$F$27=2,VLOOKUP($C$27,TS3L4_OS,23,FALSE),VLOOKUP($C$27,TS3L4_OS,23,FALSE))) ->  | F28: =IF($F$27+$F$18=2,0,IF($F$18+$F$21+$F$27=2,VLOOKUP($C$27,TS3L4_OS,14,FALSE),VLOOKUP($C$27,TS3L4_OS,19,FALSE))) -> 0 | J28: =IF($F$27+$F$18=2,0,IF($F$18+$F$21+$F$27=2,VLOOKUP($C$27,TS3L4_OS,17,FALSE),VLOOKUP($C$27,TS3L4_OS,21,FALSE))) -> 0 | K28: =IF($F$27+$F$18=2,0,IF($F$18+$F$21+$F$27=2,VLOOKUP($C$27,TS3L4_OS,18,FALSE),VLOOKUP($C$27,TS3L4_OS,22,FALSE))) -> 0 | L28: =IF($F$27+$F$18=2,0,IF($F$18+$F$21+$F$27=2,VLOOKUP($C$27,TS3L4_OS,20,FALSE),VLOOKUP($C$27,TS3L4_OS,20,FALSE))) -> 0
C29: Disk Controller | D29: =IF(L30="",HYPERLINK("https://convenzioni.converge.it/docs/ts3_datasheet/dellemc-poweredge-raid-controller-h740p.pdf","i"),HYPERLINK("https://convenzioni.converge.it/docs/ts3_datasheet/dellemc-poweredge-hba330.pdf","i")) -> i | H29: =IF(F30=1,"Selezionando questo controller in una soluzione vSAN, per il boot si deve utilizzare la componentete 'ISDM Module'' oppure ''BOSS Controller Card''","") -> 
A30: =IF($E$12="TS3L4-VSAN","vSAN HCL","") ->  | C30: PERC H740P RAID Controller, 8GB NV Cache | E30: =IF(C12="Chassis with Up to 24 x 2.5'' Hard Drives for 2CPU Configuration","TS3L4-HBA330-L",IF(N9="VxFlex","TS3L4-HBA330-L",VLOOKUP($C30,TS3L4_CRTL,13,FALSE))) ->  | F30: =IF(C12="Chassis with Up to 24 x 2.5'' Hard Drives for 2CPU Configuration","1",IF(N9="VxFlex","1",VLOOKUP($C30,TS3L4_CRTL,7,FALSE))) ->  | J30: =IF(C30=ConfigurationTS3L4!A48,0,VLOOKUP($C30,TS3L4_CRTL,10,FALSE)) -> 0 | K30: =IF(C12="Chassis with Up to 24 x 2.5'' Hard Drives for 2CPU Configuration",180,IF(N9="VxFlex",180,IF(H4="",0,VLOOKUP($C30,TS3L4_CRTL,11,FALSE)))) -> 0 | L30: =IF(C12="Chassis with Up to 24 x 2.5'' Hard Drives for 2CPU Configuration","L4N34",IF(N9="VxFlex","L4N34",IF(H4="","",VLOOKUP($C30,TS3L4_ALL,12,FALSE)))) ->  | N30: =IF(E30="TS3L4-HBA330-L",1,0) -> 0 | O30: =IF(C30="PERC H740P RAID Controller, 8GB NV Cache",1,0) -> 1 | P30: =IF(Q30=1,Q30*N30,O30*N30) -> 0 | Q30: =IF(H4="",1,0) -> 1
C32: Hard Drivers Bays disponibili n° 24 | E32: Usati | F32: Disponibili | M32: =IF(C12="Chassis with Up to 24 x 2.5'' Hard Drives for 2CPU Configuration",ConfigurationTS3L4!$A$110,IF($H$4="",ConfigurationTS3L4!$A$109,ConfigurationTS3L4!$A$109:$A$110)) -> PERC H740P RAID Controller, 8GB NV Cache
E33: =F35+F37+F39+F45+F47+F49+F51+F57+F41+F43+F53 -> 2 | F33: =24-E33 -> 22
H34: Configurazione RAID e/o NOTE
A35: =IF($E$12="TS3L4-VSAN","vSAN HCL","") ->  | C35: =ConfigurationTS3L4!A73 -> 300GB 15K RPM SAS 12Gbps 2.5in Hot-plug | E35: =VLOOKUP($C35,TS3L4_HDD,13,FALSE) -> TS3L4-HDD300GB | H35: Specificare la configurazione RAID per l'installazione del Sistema Operativo, se richiesto. e/o inserire eventuali note. | J35: =VLOOKUP($C35,TS3L4_HDD,10,FALSE)*F35 -> 0 | K35: =VLOOKUP($C35,TS3L4_HDD,11,FALSE) -> 0 | L35: =VLOOKUP($C35,TS3L4_ALL,12,FALSE) -> L4N12
A37: =IF($E$12="TS3L4-VSAN","vSAN HCL","") ->  | C37: =ConfigurationTS3L4!A74 -> 1.2TB 10K RPM SAS 12Gbps 2.5in Hot-plug | E37: =VLOOKUP($C37,TS3L4_HDD,13,FALSE) -> TS3L4-HDD1TB | J37: =VLOOKUP($C37,TS3L4_HDD,10,FALSE)*F37 -> 0 | K37: =VLOOKUP($C37,TS3L4_HDD,11,FALSE) -> 0 | L37: =VLOOKUP($C37,TS3L4_ALL,12,FALSE) -> L4N11
A39: =IF($E$12="TS3L4-VSAN","vSAN HCL","") ->  | C39: =ConfigurationTS3L4!A75 -> 2.4TB 10K RPM SAS 12Gbps 2.5in Hot-plug | E39: =VLOOKUP($C39,TS3L4_HDD,13,FALSE) -> TS3L4-HDD2TB | J39: =VLOOKUP($C39,TS3L4_HDD,10,FALSE)*F39 -> 0 | K39: =VLOOKUP($C39,TS3L4_HDD,11,FALSE) -> 0 | L39: =VLOOKUP($C39,TS3L4_ALL,12,FALSE) -> L4N10
A41: =IF($E$12="TS3L4-VSAN","vSAN HCL","") ->  | C41: =ConfigurationTS3L4!A76 -> 960GB SSD SAS Read Intensive 12Gbps 2.5in Hot-plug | E41: =VLOOKUP($C41,TS3L4_HDD,13,FALSE) -> TS3L4-RI800GB | F41: 2 | J41: =IF(F41>2,(VLOOKUP($C41,TS3L4_HDD,10,FALSE)*(F41-2)),0) -> 0 | K41: =VLOOKUP($C41,TS3L4_HDD,11,FALSE) -> 0 | L41: =VLOOKUP($C41,TS3L4_ALL,12,FALSE) -> L4N15
A43: =IF($E$12="TS3L4-VSAN","vSAN HCL","") ->  | C43: =ConfigurationTS3L4!A77 -> 1.92TB SSD SAS Read Intensive 12Gbps 2.5in Hot-plug | E43: =VLOOKUP($C43,TS3L4_HDD,13,FALSE) -> TS3L4-RI1600GB | J43: =VLOOKUP($C43,TS3L4_HDD,10,FALSE)*F43 -> 0 | K43: =VLOOKUP($C43,TS3L4_HDD,11,FALSE) -> 0 | L43: =VLOOKUP($C43,TS3L4_ALL,12,FALSE) -> L4N13
A45: =IF($E$12="TS3L4-VSAN","vSAN HCL","") ->  | C45: =ConfigurationTS3L4!A78 -> 3.84TB SSD SAS Read Intensive 12Gbps 2.5in Hot-plug | E45: =VLOOKUP($C45,TS3L4_HDD,13,FALSE) -> TS3L4-RI3840GB | J45: =VLOOKUP($C45,TS3L4_HDD,10,FALSE)*F45 -> 0 | K45: =VLOOKUP($C45,TS3L4_HDD,11,FALSE)*F45 -> 0 | L45: =VLOOKUP($C45,TS3L4_ALL,12,FALSE) -> L4N51
A47: =IF($E$12="TS3L4-VSAN","vSAN HCL","") ->  | C47: =ConfigurationTS3L4!A79 -> 7.68TB SSD SAS Read Intensive 12Gbps 2.5in Hot-plug | E47: =VLOOKUP($C47,TS3L4_HDD,13,FALSE) -> TS3L4-RI7680GB | J47: =VLOOKUP($C47,TS3L4_HDD,10,FALSE)*F47 -> 0 | K47: =VLOOKUP($C47,TS3L4_HDD,11,FALSE)*F47 -> 0 | L47: =VLOOKUP($C47,TS3L4_ALL,12,FALSE) -> L4N52
A49: =IF($E$12="TS3L4-VSAN","vSAN HCL","") ->  | C49: =ConfigurationTS3L4!A80 -> 960GB SSD SAS Mixed Use 12Gbps 512e 2.5in Hot-Plug | E49: =VLOOKUP($C49,TS3L4_HDD,13,FALSE) -> TS3L4-MU800GB | J49: =VLOOKUP($C49,TS3L4_HDD,10,FALSE)*F49 -> 0 | K49: =VLOOKUP($C49,TS3L4_HDD,11,FALSE) -> 0 | L49: =VLOOKUP($C49,TS3L4_ALL,12,FALSE) -> L4N16
A51: =IF($E$12="TS3L4-VSAN","vSAN HCL","") ->  | C51: =ConfigurationTS3L4!A81 -> 1.6TB SSD SAS Mix Use 12Gbps 2.5in Hot-plug | E51: =VLOOKUP($C51,TS3L4_HDD,13,FALSE) -> TS3L4-MU1600GB | J51: =VLOOKUP($C51,TS3L4_HDD,10,FALSE)*F51 -> 0 | K51: =VLOOKUP($C51,TS3L4_HDD,11,FALSE) -> 0 | L51: =VLOOKUP($C51,TS3L4_ALL,12,FALSE) -> L4N14
A53: =IF($E$12="TS3L4-VSAN","vSAN HCL","") ->  | C53: =ConfigurationTS3L4!A82 -> 800GB SSD SAS Write Intensive 12Gbps 2.5in Hot Plug | E53: =VLOOKUP($C53,TS3L4_HDD,13,FALSE) -> TS3L4-WI800GB | J53: =VLOOKUP($C53,TS3L4_HDD,10,FALSE)*F53 -> 0 | K53: =VLOOKUP($C53,TS3L4_HDD,11,FALSE)*F53 -> 0 | L53: =VLOOKUP($C53,TS3L4_ALL,12,FALSE) -> L4N53
C55: =ConfigurationTS3L4!A83 -> 1.6TB SSD SAS Write Intensive 12Gbps 2.5in Hot Plug | E55: =VLOOKUP($C55,TS3L4_HDD,13,FALSE) -> TS3L4-WI1600GB | J55: =IF(F55>2,VLOOKUP($C55,TS3L4_HDD,10,FALSE)*(F55-2),0) -> 0 | K55: =VLOOKUP($C55,TS3L4_HDD,11,FALSE)*F55 -> 0 | L55: =VLOOKUP($C55,TS3L4_ALL,12,FALSE) -> L4N54
A57: =IF($E$12="TS3L4-VSAN","vSAN HCL","") ->  | C57: 480GB SSD SAS Read Intensive 12Gbps 2.5in Hot-plug
C59: ISDM Module
C60: No ISDM | E60: =IF(K60>0,VLOOKUP($C60,TS3L4_ISDM,13,FALSE),"") ->  | F60: =VLOOKUP($C60,TS3L4_ISDM,7,FALSE) ->  | J60: =VLOOKUP($C60,TS3L4_ISDM,10,FALSE) -> 0 | K60: =VLOOKUP($C60,TS3L4_ISDM,11,FALSE) -> 0 | L60: =VLOOKUP($C60,TS3L4_ALL,12,FALSE) -> 
A62: =IF(H62="","",M63) ->  | C62: Power Supply | D62: =IF(H62="","",M63) ->  | H62: =IF(E63="TS3L4-PSU2000W","Verificare, per ogni Server, la disponibilità di 2 prese C19 sulle PDU","") -> 
C63: =IF(O12=1,"Dual, Hot-plug Power Supply (1+1), 1100W",IF($E$12="TS3L4-GPUDW","Dual, Hot-plug Power Supply (1+1), 2000W",IF($E$12="TS3L4-GPUSW","Dual, Hot-plug Power Supply (1+1), 2000W","Dual, Hot-plug, Redundant Power Supply (1+1), 750W"))) -> Dual, Hot-plug, Redundant Power Supply (1+1), 750W | E63: =VLOOKUP($C63,TS3L4_PSU,13,FALSE) ->  | F63: =VLOOKUP($C63,TS3L4_PSU,7,FALSE) ->  | J63: =VLOOKUP($C63,TS3L4_PSU,10,FALSE) -> 0 | K63: =VLOOKUP($C63,TS3L4_PSU,11,FALSE) -> 0 | L63: =VLOOKUP($C63,TS3L4_ALL,12,FALSE) ->  | M63: ⚠ | N63: =IF(H62="",ConfigurationTS3L4!A526,ConfigurationTS3L4!A527) -> _C14C13
C65: Embedded Systems Management | D65: =HYPERLINK("https://convenzioni.converge.it/docs/ts3_datasheet/idrac-spec-sheet.pdf","i") -> i
C66: iDRAC9,Enterprise
C68: Infrastructure Management Console | D68: =HYPERLINK("https://www.dell.com/support/kbdoc/en-it/000175879/support-for-openmanage-enterprise#OME-Resources","i") -> i
C69: No OMEA | E69: =IF(N9="VxFlex","TS3L4-OMEA",VLOOKUP($C69,TS3L4_ALL,13,FALSE)) ->  | F69: =IF(N9="VxFlex",1,VLOOKUP($C69,TS3L4_ALL,7,FALSE)) ->  | J69: =VLOOKUP($C69,TS3L4_ALL,10,FALSE) -> 0 | K69: =IF(N9="VxFlex",214,VLOOKUP($C69,TS3L4_ALL,11,FALSE)) -> 0 | L69: =IF(N9="VxFlex","L4N96",VLOOKUP($C69,TS3L4_ALL,12,FALSE)) -> 
C71: Network Cards
C72: Broadcom 5720 QP 1Gb Network Daughter Card
M75: =IF($E$12="TS3L4-GPUDW","1",IF($E$12="TS3L4-GPUSW","20",IF($F$21=1,"300","4000"))) -> 4000 | N75: =IF($E$12="TS3L4-GPUDW","DW",IF($E$12="TS3L4-GPUSW","SW",IF($E$12="TS3L4-PWRFLEX","PX",IF($F$21=1,"2CPU","1CPU")))) -> 1CPU
C76: PCI Slot 1 Processor 1 x8 PCIe Gen3 for FL/FH | N76: =IF(N75="DW","DW",IF(N75="SW","SW",0)) -> 0 | O76: Selected | P76: 1CPU | Q76: 2CPU | R76: PX | S76: DW | T76: SW
E77: =IF($N$9="VxFlex","TS3L4-MCX4DP",VLOOKUP($C77,TS3L4_ALL,13,)) ->  | F77: =IF($N$9="VxFlex",1,VLOOKUP($C77,TS3L4_ALL,7,FALSE)) ->  | H77: =IF(M77="Errore","ERRORE nella selezione del PCI Slot",IFERROR(O78,"ERRORE nella selezione del PCI Slot")) ->  | J77: =VLOOKUP($C77,TS3L4_ALL,10,FALSE) -> 0 | K77: =IF($N$9="VxFlex",419,VLOOKUP($C77,TS3L4_ALL,11,FALSE)) -> 0 | L77: =IF($N$9="VxFlex","L4N94",VLOOKUP($C77,TS3L4_ALL,12,FALSE)) ->  | N77: =IF(L77="L4N56","DW",IF(L77="L4N57","DW",IF(L77="L4N58","DW",IF(L77="L4N55","SW","CPU")))) -> CPU | O77: =HLOOKUP($N$75,$P$76:$T$99,2,FALSE) -> TS3L2_PCI_A | P77: TS3L2_PCI_A | Q77: TS3L2_PCI_A | R77: TS3L2_PCI_A | S77: TS3L2_PCI_A | T77: TS3L2_PCI_A | V77: PCI-1 | W77: =IF($N$75="SW",ConfigurationTS3L4!$A$290:$A$309,IF($N$75="DW",ConfigurationTS3L4!$A$239:$A$262,ConfigurationTS3L4!$A$166:$A$181)) -> 
O78: =HLOOKUP($N$75,$P$76:$T$99,3,FALSE) ->  | P78: =VLOOKUP(C77,TS3L4_PCI_A,12,FALSE) ->  | Q78: =VLOOKUP(C77,TS3L4_PCI_A,12,FALSE) ->  | R78: =VLOOKUP(C77,TS3L4_PCI_A,12,FALSE) ->  | S78: =VLOOKUP(C77,TS3L4_PCI_A,12,FALSE) ->  | T78: =VLOOKUP(C77,TS3L4_PCI_A,12,FALSE) -> 
C79: PCI Slot 2 Processor 1 x8 PCIe Gen3 for FL/FH
E80: =VLOOKUP($C80,TS3L4_ALL,13,FALSE) ->  | F80: =VLOOKUP($C80,TS3L4_ALL,7,FALSE) ->  | H80: =IFERROR(O81,"ERRORE nella selezione del PCI Slot") ->  | J80: =VLOOKUP($C80,TS3L4_ALL,10,FALSE) -> 0 | K80: =VLOOKUP($C80,TS3L4_ALL,11,FALSE) -> 0 | L80: =VLOOKUP($C80,TS3L4_ALL,12,FALSE) ->  | M80: =IF(F80="","OK",IF(N80+F80=2,"Errore","OK")) -> OK | N80: =IF(N77="dw",1,0) -> 0 | O80: =HLOOKUP($N$75,$P$76:$T$99,5,FALSE) -> TS3L2_PCI_A | P80: TS3L2_PCI_A | Q80: TS3L2_PCI_A | R80: TS3L2_PCI_A | S80: TS3L2_PCI_A | T80: TS3L2_PCI_A | V80: PCI-2
O81: =HLOOKUP($N$75,$P$76:$T$99,6,FALSE) ->  | P81: =VLOOKUP(C80,TS3L4_PCI_A,12,FALSE) ->  | Q81: =VLOOKUP(C80,TS3L4_PCI_A,12,FALSE) ->  | R81: =VLOOKUP(C80,TS3L4_PCI_A,12,FALSE) ->  | S81: =VLOOKUP(C80,TS3L4_PCI_A,12,FALSE) ->  | T81: =VLOOKUP(C80,TS3L4_PCI_A,12,FALSE) -> 
C82: PCI Slot 3 Processor 1 x8 PCIe Gen3 for HL/FH
E83: =IF($N$9="VxFlex","TS3L4-BOSS480",VLOOKUP($C83,TS3L4_ALL,13,)) ->  | F83: =IF($N$9="VxFlex",1,VLOOKUP($C83,TS3L4_ALL,7,FALSE)) ->  | H83: =IFERROR(O84,"ERRORE nella selezione del PCI Slot") ->  | J83: =VLOOKUP($C83,TS3L4_ALL,10,FALSE) -> 0 | K83: =IF($N$9="VxFlex",748,VLOOKUP($C83,TS3L4_ALL,11,FALSE)) -> 0 | L83: =IF($N$9="VxFlex","L4N33",VLOOKUP($C83,TS3L4_ALL,12,FALSE)) ->  | O83: =HLOOKUP($N$75,$P$76:$T$99,8,FALSE) -> TS3L2_PCI_A | P83: TS3L2_PCI_A | Q83: TS3L2_PCI_A | R83: TS3L2_PCI_A | S83: TS3L2_PCI_A | T83: TS3L2_PCI_A | V83: PCI-3
O84: =HLOOKUP($N$75,$P$76:$T$99,9,FALSE) ->  | P84: =VLOOKUP(C83,TS3L4_PCI_A,12,FALSE) ->  | Q84: =VLOOKUP(C83,TS3L4_PCI_A,12,FALSE) ->  | R84: =VLOOKUP(C83,TS3L4_PCI_A,12,FALSE) ->  | S84: =VLOOKUP(C83,TS3L4_PCI_A,12,FALSE) ->  | T84: =VLOOKUP(C83,TS3L4_PCI_A,12,FALSE) -> 
C85: PCI Slot 4 Processor 2 x16 PCIe Gen3 for FL/FH | D85: =IF($N$75="SW","GPU Slot",IF($N$75="DW","GPU Slot","")) -> 
E86: =VLOOKUP($C86,TS3L4_ALL,13,FALSE) ->  | F86: =VLOOKUP($C86,TS3L4_ALL,7,FALSE) ->  | H86: =IFERROR(O87,"ERRORE nella selezione del PCI Slot") ->  | J86: =VLOOKUP($C86,TS3L4_ALL,10,FALSE) -> 0 | K86: =VLOOKUP($C86,TS3L4_ALL,11,FALSE) -> 0 | L86: =VLOOKUP($C86,TS3L4_ALL,12,FALSE) ->  | N86: =IF(L86="L4N56","DW",IF(L86="L4N57","DW",IF(L86="L4N108","DW",IF(L86="L4N55","SW",1)))) -> 1 | O86: =HLOOKUP($N$75,$P$76:$T$99,11,FALSE) -> - | P86: - | Q86: TS3L2_PCI_B | R86: TS3L2_PCI_I | S86: TS3L2_PCI_F | T86: TS3L2_PCI_H | V86: PCI-4
O87: =HLOOKUP($N$75,$P$76:$T$99,12,FALSE) ->  | P87: =VLOOKUP(C86,TS3L4_PCI_A,12,FALSE) ->  | Q87: =VLOOKUP(C86,TS3L4_PCI_B,12,FALSE) ->  | R87: =VLOOKUP(C86,TS3L4_PCI_I,12,FALSE) ->  | S87: =VLOOKUP(C86,TS3L4_PCI_F,12,FALSE) ->  | T87: =VLOOKUP(C86,TS3L4_PCI_H,12,FALSE) -> 
C88: PCI Slot 5 Processor 2 x8 PCIe Gen3 for FL/FH | D88: =IF($N$75="SW","GPU Slot","") -> 
E89: =VLOOKUP($C89,TS3L4_ALL,13,FALSE) ->  | F89: =VLOOKUP($C89,TS3L4_ALL,7,FALSE) ->  | H89: =IF(M89="Errore","ERRORE nella selezione del PCI Slot",IFERROR(O90,"ERRORE nella selezione del PCI Slot")) ->  | J89: =VLOOKUP($C89,TS3L4_ALL,10,FALSE) -> 0 | K89: =VLOOKUP($C89,TS3L4_ALL,11,FALSE) -> 0 | L89: =VLOOKUP($C89,TS3L4_ALL,12,FALSE) ->  | M89: =IF(F89="","OK",IF(N89+F89=2,"Errore","OK")) -> OK | N89: =IF(N86="dw",1,0) -> 0 | O89: =HLOOKUP($N$75,$P$76:$T$99,14,FALSE) -> - | P89: - | Q89: TS3L2_PCI_A | R89: TS3L2_PCI_I | S89: TS3L2_PCI_A | T89: TS3L2_PCI_L | V89: PCI-5
O90: =HLOOKUP($N$75,$P$76:$T$99,15,FALSE) ->  | P90: =VLOOKUP(C89,TS3L4_PCI_A,12,FALSE) ->  | Q90: =VLOOKUP(C89,TS3L4_PCI_A,12,FALSE) ->  | R90: =VLOOKUP(C89,TS3L4_PCI_I,12,FALSE) ->  | S90: =VLOOKUP(C89,TS3L4_PCI_A,12,FALSE) ->  | T90: =VLOOKUP(C89,TS3L4_PCI_L,12,FALSE) -> 
C91: PCI Slot 6 Processor 1 x8 PCIe Gen3 for HL/LP
E92: =IF($N$9="VxFlex","TS3L4-MCX4DP-L",VLOOKUP($C92,TS3L4_ALL,13,)) ->  | F92: =IF($N$9="VxFlex",1,VLOOKUP($C92,TS3L4_ALL,7,FALSE)) ->  | H92: =IF(M92="Errore","ERRORE nella selezione del PCI Slot",IFERROR(O93,"ERRORE nella selezione del PCI Slot")) ->  | J92: =VLOOKUP($C92,TS3L4_ALL,10,FALSE) -> 0 | K92: =IF($N$9="VxFlex",419,VLOOKUP($C92,TS3L4_ALL,11,FALSE)) -> 0 | L92: =IF($N$9="VxFlex","L4N95",VLOOKUP($C92,TS3L4_ALL,12,FALSE)) ->  | O92: =HLOOKUP($N$75,$P$76:$T$99,17,FALSE) -> TS3L2_PCI_C | P92: TS3L2_PCI_C | Q92: TS3L2_PCI_C | R92: TS3L2_PCI_C | S92: TS3L2_PCI_C | T92: TS3L2_PCI_C | V92: PCI-6
O93: =HLOOKUP($N$75,$P$76:$T$99,18,FALSE) ->  | P93: =VLOOKUP(C92,TS3L4_PCI_C,12,FALSE) ->  | Q93: =VLOOKUP(C92,TS3L4_PCI_C,12,FALSE) ->  | R93: =VLOOKUP(C92,TS3L4_PCI_C,12,FALSE) ->  | S93: =VLOOKUP(C92,TS3L4_PCI_C,12,FALSE) ->  | T93: =VLOOKUP(C92,TS3L4_PCI_C,12,FALSE) -> 
C94: PCI Slot 7 Processor 2 x8 PCIe Gen3 for FL/FH | D94: =IF($N$75="SW","GPU Slot","") -> 
E95: =VLOOKUP($C95,TS3L4_ALL,13,FALSE) ->  | F95: =VLOOKUP($C95,TS3L4_ALL,7,FALSE) ->  | H95: =IF(M95="Errore","ERRORE nella selezione del PCI Slot",IFERROR(O96,"ERRORE nella selezione del PCI Slot")) ->  | J95: =VLOOKUP($C95,TS3L4_ALL,10,FALSE) -> 0 | K95: =VLOOKUP($C95,TS3L4_ALL,11,FALSE) -> 0 | L95: =VLOOKUP($C95,TS3L4_ALL,12,FALSE) ->  | M95: =IF(F95="","OK",IF(N95+F95=2,"Errore","OK")) -> OK | N95: =IF(N98="dw",1,0) -> 0 | O95: =HLOOKUP($N$75,$P$76:$T$99,20,FALSE) -> - | P95: - | Q95: TS3L2_PCI_A | R95: TS3L2_PCI_I | S95: TS3L2_PCI_A | T95: TS3L2_PCI_L | V95: PCI-7
O96: =HLOOKUP($N$75,$P$76:$T$99,21,FALSE) ->  | P96: =VLOOKUP(C95,TS3L4_PCI_A,12,FALSE) ->  | Q96: =VLOOKUP(C95,TS3L4_PCI_A,12,FALSE) ->  | R96: =VLOOKUP(C95,TS3L4_PCI_I,12,FALSE) ->  | S96: =VLOOKUP(C95,TS3L4_PCI_A,12,FALSE) ->  | T96: =VLOOKUP(C95,TS3L4_PCI_L,12,FALSE) -> 
C97: PCI Slot 8 Processor 2 x16 PCIe Gen3 for FL/FH | D97: =IF($N$75="SW","GPU Slot",IF($N$75="DW","GPU Slot","")) ->  | M97: boss card
E98: =VLOOKUP($C98,TS3L4_ALL,13,FALSE) ->  | F98: =VLOOKUP($C98,TS3L4_ALL,7,FALSE) ->  | H98: =IF(M98="Errore","ERRORE nella selezione del PCI Slot",IFERROR(O99,"ERRORE nella selezione del PCI Slot")) ->  | J98: =VLOOKUP($C98,TS3L4_ALL,10,FALSE) -> 0 | K98: =VLOOKUP($C98,TS3L4_ALL,11,FALSE) -> 0 | L98: =VLOOKUP($C98,TS3L4_ALL,12,FALSE) ->  | M98: =COUNTIF(L77:L98,"L4N33") -> 0 | N98: =IF(L98="L4N56","DW",IF(L98="L4N57","DW",IF(L98="L4N108","DW",IF(L98="L4N55","SW",1)))) -> 1 | O98: =HLOOKUP($N$75,$P$76:$T$99,23,FALSE) -> - | P98: - | Q98: TS3L2_PCI_D | R98: TS3L2_PCI_I | S98: TS3L2_PCI_E | T98: TS3L2_PCI_G | V98: PCI-8
O99: =HLOOKUP($N$75,$P$76:$T$99,24,FALSE) ->  | P99: =VLOOKUP(C98,TS3L4_PCI_A,12,FALSE) ->  | Q99: =VLOOKUP(C98,TS3L4_PCI_D,12,FALSE) ->  | R99: =VLOOKUP(C98,TS3L4_PCI_I,12,FALSE) ->  | S99: =VLOOKUP(C98,TS3L4_PCI_E,12,FALSE) ->  | T99: =VLOOKUP(C98,TS3L4_PCI_G,12,FALSE) -> 
C100: SFP+ Transceivers
C101: Transceiver, SFP+ SR Optic for SFP+ ports (Intel X710) | E101: =IF(K101>0,VLOOKUP($C101,ConfigurationTS3L4!$A$1:$M$4832,13,FALSE),"") ->  | J101: 0 | K101: =IF(F101>0,VLOOKUP($C101,TS3L4_ALL,11,FALSE)*(F101),0) -> 0 | L101: =IF(F101>0,VLOOKUP($C101,TS3L4_ALL,12,FALSE),0) -> 0
C103: SFP+ Direct Attach Cables (Twinax)
C104: Cable, SFP+ to SFP+, 10GbE, Copper Twinax Direct Attach Cable, 3 Meter | E104: =IF(K104>0,VLOOKUP($C104,ConfigurationTS3L4!$A$1:$M$4832,13,FALSE),"") ->  | J104: 0 | K104: =IF(F104>0,VLOOKUP($C104,TS3L4_ALL,11,FALSE)*F104,0) -> 0 | L104: =IF(F104>0,VLOOKUP($C104,TS3L4_ALL,12,FALSE),0) -> 0
C106: QSFP28 Transceivers
C107: Dell EMC PowerEdge QSFP28 SR4 100GbE 85C optic | E107: =IF(K107>0,VLOOKUP($C107,ConfigurationTS3L4!$A$1:$M$4832,13,FALSE),"") ->  | J107: 0 | K107: =IF(F107>0,VLOOKUP($C107,TS3L4_ALL,11,FALSE)*F107,0) -> 0 | L107: =IF(F107>0,VLOOKUP($C107,TS3L4_ALL,12,FALSE),0) -> 0
C109: Mellanox LinkX 100Gb/s Passive Copper Cables
C110: Mellanox LinkX 100Gb/s Passive Copper Cables - attacco cavo diretto - 3 m - nero | E110: =IF(K110>0,VLOOKUP($C110,ConfigurationTS3L4!$A$1:$M$4832,13,FALSE),"") ->  | J110: 0 | K110: =IF(F110>0,VLOOKUP($C110,TS3L4_ALL,11,FALSE)*F110,0) -> 0 | L110: =IF(F110>0,VLOOKUP($C110,TS3L4_ALL,12,FALSE),0) -> 0
C112: Mellanox LinkX 100Gb/s VCSEL-Based Active Optical Cables - cavo InfiniBand - 10 m | E112: =IF(K112>0,VLOOKUP($C112,ConfigurationTS3L4!$A$1:$M$4832,13,FALSE),"") ->  | J112: 0 | K112: =IF(F112>0,VLOOKUP($C112,TS3L4_ALL,11,FALSE)*F112,0) -> 0 | L112: =IF(F112>0,VLOOKUP($C112,TS3L4_ALL,12,FALSE),0) -> 0
C114: Cavi RJ45
C115: Cavo “patch” di 3 mt RJ45 certificato per gigabit ethernet | E115: =IF(K115>0,VLOOKUP($C115,ConfigurationTS3L4!$A$1:$M$4832,13,FALSE),"") -> TS3L4-RJ453M | F115: 5 | J115: 0 | K115: =IF(F115>0,VLOOKUP($C115,TS3L4_ALL,11,FALSE)*(F115),0) -> 15 | L115: =IF(F115>0,VLOOKUP($C115,TS3L4_ALL,12,FALSE),0) -> L4N62
C117: Cavi LC-LC
C118: Dell Networking Cable, OM4 LC/LC Fiber Cable, 3 Meter | E118: =IF(K118>0,VLOOKUP($C118,ConfigurationTS3L4!$A$1:$M$4832,13,FALSE),"") ->  | J118: 0 | K118: =IF(F118>0,VLOOKUP($C118,TS3L4_ALL,11,FALSE)*(F118),0) -> 0 | L118: =IF(F118>0,VLOOKUP($C118,TS3L4_ALL,12,FALSE),0) -> 0
C120: Cavi DAC
C121: Dell Networking, Cable, SFP+ to SFP+, 10GbE, Copper Twinax Direct Attach Cable, 3 Meter | E121: =IF(K121>0,VLOOKUP($C121,ConfigurationTS3L4!$A$1:$M$4832,13,FALSE),"") ->  | J121: 0 | K121: =IF(F121>0,VLOOKUP($C121,TS3L4_ALL,11,FALSE)*(F121),0) -> 0 | L121: =IF(F121>0,VLOOKUP($C121,TS3L4_ALL,12,FALSE),0) -> 0
C122: Mellanox LinkX 100Gb/s Passive Copper DAC 3m per scheda TS3L4-CONX6DP | E122: =IF(K122>0,VLOOKUP($C122,ConfigurationTS3L4!$A$1:$M$4832,13,FALSE),"") ->  | J122: 0 | K122: =IF(F122>0,VLOOKUP($C122,TS3L4_ALL,11,FALSE)*(F122),0) -> 0 | L122: =IF(F122>0,VLOOKUP($C122,TS3L4_ALL,12,FALSE),0) -> 0
C123: Dell Cable SFP28 to SFP28 25GbE Passive Copper Twinax Direct Attach Cable 3 Meter | E123: =IF(K123>0,VLOOKUP($C123,ConfigurationTS3L4!$A$1:$M$4832,13,FALSE),"") ->  | J123: 0 | K123: =IF(F123>0,VLOOKUP($C123,TS3L4_ALL,11,FALSE)*(F123),0) -> 0 | L123: =IF(F123>0,VLOOKUP($C123,TS3L4_ALL,12,FALSE),0) -> 0
O124: =IF($N$9="VxFlex",ConfigurationTS3L4!$A$236,IF($N$98="DW",ConfigurationTS3L4!$A$333,IF($N$75="1CPU",ConfigurationTS3L4!$A$92:$A$93,ConfigurationTS3L4!$A$166:$A$181))) -> 
C125: Cable Management Arm
C126: No | E126: =IF($N$9="VxFlex","TS3L4-BZLSTD",VLOOKUP($C126,TS3L4_ALL,13,)) ->  | F126: =IF($N$9="VxFlex",1,VLOOKUP($C126,TS3L4_ALL,7,FALSE)) ->  | J126: =VLOOKUP($C126,TS3L4_ALL,10,FALSE) -> 0 | K126: =IF($N$9="VxFlex",42,VLOOKUP($C126,TS3L4_ALL,11,FALSE)) -> 0 | L126: =IF($N$9="VxFlex","L4N69",VLOOKUP($C126,TS3L4_ALL,12,FALSE)) -> 
C128: Bezel
C129: No Bezel | E129: =IF($N$9="VxFlex","TS3L4-BZLSTD",VLOOKUP($C129,TS3L4_ALL,13,)) ->  | F129: =IF($N$9="VxFlex",1,VLOOKUP($C129,TS3L4_ALL,7,FALSE)) ->  | J129: =VLOOKUP($C129,TS3L4_ALL,10,FALSE) -> 0 | K129: =IF($N$9="VxFlex",42,VLOOKUP($C129,TS3L4_ALL,11,FALSE)) -> 0 | L129: =IF($N$9="VxFlex","L4N69",VLOOKUP($C129,TS3L4_ALL,12,FALSE)) -> 
C131: Warranty | D131: =HYPERLINK("https://convenzioni.converge.it/docs/ts3_datasheet/TS3warranty.pdf","i") -> i
C132: Manutenzione in garanzia (36 mesi) | E132: =VLOOKUP($C132,TS3L4_WARRANTY,13,FALSE) ->  | F132: =VLOOKUP($C132,TS3L4_WARRANTY,7,FALSE) ->  | J132: =VLOOKUP($C132,TS3L4_WARRANTY,10,FALSE) -> 0 | K132: =VLOOKUP($C132,TS3L4_WARRANTY,11,FALSE) -> 0 | L132: =VLOOKUP($C132,TS3L4_ALL,12,FALSE) -> 
C134: Hard Disk Retention | D134: =HYPERLINK("https://convenzioni.converge.it/docs/ts3_datasheet/DELL_HDD_KYHD.pdf","i") -> i
E135: =IFERROR(N135,VLOOKUP(C135,TS3L4_ALL,13,FALSE)) ->  | F135: =IF(C135="","",1) ->  | J135: =IFERROR(O135,VLOOKUP(C135,TS3L4_ALL,10,FALSE)) -> 0 | K135: =IFERROR(P135,VLOOKUP(C135,TS3L4_ALL,11,FALSE)) -> 0 | L135: =IFERROR(Q135,VLOOKUP(C135,TS3L4_ALL,12,FALSE)) ->  | N135: =IF(F132+F135=2,VLOOKUP("Hard Disk Retention (60 mesi)",TS3L4_ALL,13,FALSE),VLOOKUP(C135,TS3L4_ALL,13,FALSE)) ->  | O135: =IF(F132+F135=2,VLOOKUP("Hard Disk Retention (60 mesi)",TS3L4_ALL,10,FALSE),VLOOKUP(C135,TS3L4_ALL,10,FALSE)) ->  | P135: =IF(F132+F135=2,VLOOKUP("Hard Disk Retention (60 mesi)",TS3L4_ALL,11,FALSE),VLOOKUP(C135,TS3L4_ALL,11,FALSE)) ->  | Q135: =IF(F132+F135=2,VLOOKUP("Hard Disk Retention (60 mesi)",TS3L4_ALL,12,FALSE),VLOOKUP(C135,TS3L4_ALL,12,FALSE)) -> 
C138: UPS
E139: =VLOOKUP($C139,TS3L4_UPS,13,FALSE) ->  | F139: =VLOOKUP($C139,TS3L4_UPS,7,FALSE) ->  | J139: =VLOOKUP($C139,TS3L4_UPS,10,FALSE) ->  | K139: =VLOOKUP($C139,TS3L4_UPS,11,FALSE) ->  | L139: =VLOOKUP($C139,TS3L4_ALL,12,FALSE) -> 
C141: Kit Graphical User Interface
E142: =VLOOKUP($C142,TS3L4_GUI,13,FALSE) ->  | F142: =VLOOKUP($C142,TS3L4_GUI,7,FALSE) ->  | J142: =VLOOKUP($C142,TS3L4_GUI,10,FALSE) ->  | K142: =VLOOKUP($C142,TS3L4_GUI,11,FALSE) ->  | L142: =VLOOKUP($C142,TS3L4_ALL,12,FALSE) -> 

Sheet Altre_Opzioni
E1: Convenzione | F1: =SUM(J9:J179) -> 0
E2: 0.2 | F2: =SUM(K9:K179) -> 0
E3: Totale | F3: =SUM(F1:F2) -> 0
C5: Opzioni
C8: Opzione Rack APC con PDU Monofase | D8: =HYPERLINK("https://convenzioni.converge.it/docs/ts3_datasheet/RACK_APC_MONO.pdf","i") -> i
C9: Armadio Rack 42U 600x1200, 2 x PDU Monofase 2G, ZeroU, 32A, 230V, (36) C13 & (6) C19 | E9: =VLOOKUP($C9,TS3L4_ALL,13,FALSE) -> TS3L4-RACKM32A | J9: =VLOOKUP($C9,TS3L4_ALL,10,FALSE)*F9 -> 0 | K9: =VLOOKUP($C9,TS3L4_ALL,11,FALSE)*F9 -> 0 | L9: =VLOOKUP($C9,TS3L4_ALL,12,FALSE) -> L4N89
C11: Opzione Rack APC con PDU Trifase | D11: =HYPERLINK("https://convenzioni.converge.it/docs/ts3_datasheet/RACK_APC_3PH.pdf","i") -> i
C12: Armadio Rack 42U 600x1200, 2 x PDU Trifase 2G, ZeroU, 22.0kW(32A) 17.3kW(24A), 230V, (30) C13 & (12) C19 | E12: =VLOOKUP($C12,TS3L4_ALL,13,FALSE) -> TS3L4-RACKT32A | J12: =VLOOKUP($C12,TS3L4_ALL,10,FALSE)*F12 -> 0 | K12: =VLOOKUP($C12,TS3L4_ALL,11,FALSE)*F12 -> 0 | L12: =VLOOKUP($C12,TS3L4_ALL,12,FALSE) -> L4N90
C15: OpzRack | D15: =HYPERLINK("https://convenzioni.converge.it/docs/ts3_datasheet/TS3Rack.pdf","i") -> i
C16: Rack 42U con portata 1000 KG e 4 ruote + coppia PDU 12 prese Shuko bipasso ITA | E16: =VLOOKUP($C16,TS3L4_ALL,13,FALSE) -> TS3L4-RACK | J16: =VLOOKUP($C16,TS3L4_ALL,10,FALSE)*F16 -> 0 | K16: =VLOOKUP($C16,TS3L4_ALL,11,FALSE) -> 0 | L16: =VLOOKUP($C16,TS3L4_ALL,12,FALSE) -> L4N29
C19: Prodotti VMware
C20: VMware vSphere 7 Standard Acceleration Kit OEM for 6 CPU, 3YR License and Maintenance | E20: =VLOOKUP($C20,TS3L4_ALL,13,FALSE) -> TS3L4-VS7STD6AK | J20: =VLOOKUP($C20,TS3L4_ALL,10,FALSE)*F20 -> 0 | K20: =VLOOKUP($C20,TS3L4_ALL,11,FALSE)*F20 -> 0 | L20: =VLOOKUP($C20,TS3L4_ALL,12,FALSE) -> L4N72
C21: VMware vSphere 7 Standard OEM, 1 CPU (max 32 cores/CPU socket), 3YR License and Maintenance | E21: TS3L4-VS7STD | J21: 0 | K21: 0 | L21: L4N73
C22: VMware vSphere 7 Enterprise Plus Acceleration Kit OEM for 6 CPU, 3YR License and Maintenance | E22: TS3L4-VS7EPL6AK | J22: 0 | K22: 0 | L22: L4N74
C23: VMware vSphere 7 Enterprise Plus OEM, 1 CPU (max 32 cores/CPU socket), 3YR License and Maintenance | E23: TS3L4-VS7EPL | J23: 0 | K23: 0 | L23: L4N80
C24: VMware vCenter 7 Standard OEM ,Per Instance,3YR License and Maintenance | E24: TS3L4-VCS7STD | J24: 0 | K24: 0 | L24: L4N81
C25: VMware vSAN 7 Enterprise OEM, 1 CPU (max 32 cores/CPU socket), 3YR License and Maintenance | E25: TS3L4-ST7ENT | J25: 0 | K25: 0 | L25: L4N82
C26: VMware Horizon 8 Advanced OEM,10 Pack,CCU, 3YR License and Maintenance | E26: TS3L4-HZ8ADC10 | J26: 0 | K26: 0 | L26: L4N83
C27: VMware Horizon 8 Enterprise OEM,10 Pack,CCU, 3YR License and Maintenance | E27: TS3L4-HZ8ENC10 | J27: 0 | K27: 0 | L27: L4N84
C28: VMware Horizon Advanced OEM, 10 Pack, Named User, 3YR License and Maintenance | E28: TS3L4-HZ8ADN10 | J28: 0 | K28: 0 | L28: L4N85
C29: VMware Horizon 8 Enterprise OEM,10 Pack, Named User, 3YR License and Maintenance | E29: TS3L4-HZ8ENN10 | J29: 0 | K29: 0 | L29: L4N86
C32: Enclosure Dischi SAS 3.5" (No disk) | D32: =HYPERLINK("https://convenzioni.converge.it/docs/ts3_datasheet/MD1400_MD1420.pdf","i") -> i
C33: Enclosure SAS 12 Slot 3.5", 3YR ProSupport and 4hr Mission Critical | E33: =VLOOKUP($C33,TS3L4_ALL,13,FALSE) -> TS3L4-Encl13Y4H | J33: =VLOOKUP($C33,TS3L4_ALL,10,FALSE)*F33 -> 0 | K33: =VLOOKUP($C33,TS3L4_ALL,11,FALSE)*F33 -> 0 | L33: =VLOOKUP($C33,TS3L4_ALL,12,FALSE) -> L4N87
C34: Enclosure SAS 12 Slot 3.5", 5YR ProSupport and 4hr Mission Critical | E34: =VLOOKUP($C34,TS3L4_ALL,13,FALSE) -> TS3L4-Encl25Y4H | J34: =VLOOKUP($C34,TS3L4_ALL,10,FALSE)*F34 -> 0 | K34: =VLOOKUP($C34,TS3L4_ALL,11,FALSE)*F34 -> 0 | L34: =VLOOKUP($C34,TS3L4_ALL,12,FALSE) -> L4N88
C35: Dischi per Enclosure 3.5"
C36: HDD 16TB SAS 12Gbps 7k 3.5in Hot-Plug per Enclosure 3.5" | E36: =VLOOKUP($C36,TS3L4_ALL,13,FALSE) -> TS3L4-ED16TB | J36: =VLOOKUP($C36,TS3L4_ALL,10,FALSE)*F36 -> 0 | K36: =VLOOKUP($C36,TS3L4_ALL,11,FALSE)*F36 -> 0 | L36: =VLOOKUP($C36,TS3L4_ALL,12,FALSE) -> L4N103
C37: HDD 12TB SAS 12Gbps 7k 3.5in Hot-Plug per Enclosure 3.5" | E37: =VLOOKUP($C37,TS3L4_ALL,13,FALSE) -> TS3L4-ED12TB | J37: =VLOOKUP($C37,TS3L4_ALL,10,FALSE)*F37 -> 0 | K37: =VLOOKUP($C37,TS3L4_ALL,11,FALSE)*F37 -> 0 | L37: =VLOOKUP($C37,TS3L4_ALL,12,FALSE) -> L4N104
C38: HDD 8TB SAS 12Gbps 7k 3.5in Hot-Plug per Enclosure 3.5" | E38: =VLOOKUP($C38,TS3L4_ALL,13,FALSE) -> TS3L4-ED08TB | J38: =VLOOKUP($C38,TS3L4_ALL,10,FALSE)*F38 -> 0 | K38: =VLOOKUP($C38,TS3L4_ALL,11,FALSE)*F38 -> 0 | L38: =VLOOKUP($C38,TS3L4_ALL,12,FALSE) -> L4N105
C40: Enclosure Dischi SAS 2.5" (No disk)
C41: Enclosure SAS 12 Slot 2.5", 3YR ProSupport and 4hr Mission Critical | E41: =VLOOKUP($C41,TS3L4_ALL,13,FALSE) -> TS3L4-Encl33Y4H | J41: =VLOOKUP($C41,TS3L4_ALL,10,FALSE)*F41 -> 0 | K41: =VLOOKUP($C41,TS3L4_ALL,11,FALSE)*F41 -> 0 | L41: =VLOOKUP($C41,TS3L4_ALL,12,FALSE) -> L4N98
C42: Enclosure SAS 12 Slot 2.5", 5YR ProSupport and 4hr Mission Critical | E42: =VLOOKUP($C42,TS3L4_ALL,13,FALSE) -> TS3L4-Encl45Y4H | J42: =VLOOKUP($C42,TS3L4_ALL,10,FALSE)*F42 -> 0 | K42: =VLOOKUP($C42,TS3L4_ALL,11,FALSE)*F42 -> 0 | L42: =VLOOKUP($C42,TS3L4_ALL,12,FALSE) -> L4N99
C43: Dischi per Enclosure 2.5"
C44: HDD 2400GB 10K SAS 12Gbps 2.5in Hot-plug per Enclosure 2.5" | E44: =VLOOKUP($C44,TS3L4_ALL,13,FALSE) -> TS3L4-ED2TB | J44: =VLOOKUP($C44,TS3L4_ALL,10,FALSE)*F44 -> 0 | K44: =VLOOKUP($C44,TS3L4_ALL,11,FALSE)*F44 -> 0 | L44: =VLOOKUP($C44,TS3L4_ALL,12,FALSE) -> L4N106
C45: SSD 960GB SAS RI 12Gbps 2.5in Hot-plug, 1 DWPD per Enclosure 2.5" | E45: =VLOOKUP($C45,TS3L4_ALL,13,FALSE) -> TS3L2-EDRI800 | J45: =VLOOKUP($C45,TS3L4_ALL,10,FALSE)*F45 -> 0 | K45: =VLOOKUP($C45,TS3L4_ALL,11,FALSE)*F45 -> 0 | L45: =VLOOKUP($C45,TS3L4_ALL,12,FALSE) -> L4N107
C48: NVIDIA Virtual GPU Software Packaging | D48: =HYPERLINK("https://www.nvidia.com/content/dam/en-zz/Solutions/design-visualization/solutions/resources/documents1/Virtual-GPU-Packaging-and-Licensing-Guide.pdf","i") -> i
C49: NVIDIA vApps Subscription License 1 Year, 1 CCU | E49: =VLOOKUP($C49,TS3L4_ALL,13,FALSE) -> TS3L4-VAPPS1Y | J49: =VLOOKUP($C49,TS3L4_ALL,10,FALSE)*F49 -> 0 | K49: =VLOOKUP($C49,TS3L4_ALL,11,FALSE)*F49 -> 0 | L49: =VLOOKUP($C49,TS3L4_ALL,12,FALSE) -> L4N110
C50: NVIDIA vApps Subscription License 3 Years, 1 CCU | E50: TS3L4-VAPPS3Y | J50: 0 | K50: 0 | L50: L4N111
C51: NVIDIA vApps Subscription License 5 Years, 1 CCU | E51: TS3L4-VAPPS5Y | J51: 0 | K51: 0 | L51: L4N112
C52: NVIDIA vPC Subscription License 1 Year, 1 CCU | E52: TS3L4-VPC1Y | J52: 0 | K52: 0 | L52: L4N113
C53: NVIDIA vPC Subscription License 3 Years, 1 CCU | E53: TS3L4-VPC3Y | J53: 0 | K53: 0 | L53: L4N114
C54: NVIDIA vPC Subscription License 5 Years, 1 CCU | E54: TS3L4-VPC5Y | J54: 0 | K54: 0 | L54: L4N115
C55: NVIDIA RTX vWS Subscription License 1 Year, 1 CCU | E55: TS3L4-VWS1Y | J55: 0 | K55: 0 | L55: L4N116
C56: NVIDIA RTX vWS Subscription License 3 Years, 1 CCU | E56: TS3L4-VWS3Y | J56: 0 | K56: 0 | L56: L4N117
C57: NVIDIA RTX vWS Subscription License 5 Years, 1 CCU | E57: TS3L4-VWS5Y | J57: 0 | K57: 0 | L57: L4N118
C58: NVIDIA Virtual Compute Server Subscription, 1 GPU (Max 8 CC VMs), 1 Year | E58: TS3L4-VCS1Y | J58: 0 | K58: 0 | L58: L4N119
C59: NVIDIA Virtual Compute Server Subscription, 1 GPU (Max 8 CC VMs), 3 Years | E59: TS3L4-VCS3Y | J59: 0 | K59: 0 | L59: L4N120
C60: NVIDIA Virtual Compute Server Subscription, 1 GPU (Max 8 CC VMs), 5 Years | E60: TS3L4-VCS5Y | J60: 0 | K60: 0 | L60: L4N121
C61: NVIDIA vApps Bundle Perpetual License Plus 4yr vApps SUMS, 1CCU | E61: TS3L4-VAPPS-P4Y | J61: 0 | K61: 0 | L61: L4N122
C62: NVIDIA vApps Bundle Perpetual License Plus 5yr vApps SUMS, 1CCU | E62: TS3L4-VAPPS-P5Y | J62: 0 | K62: 0 | L62: L4N123
C63: NVIDIA vPC Bundle Perpetual License Plus 4yr vPC SUMS, 1CCU | E63: TS3L4-VPC-P4Y | J63: 0 | K63: 0 | L63: L4N124
C64: NVIDIA vPC Bundle Perpetual License Plus 5yr vPC SUMS, 1CCU | E64: TS3L4-VPC-P5Y | J64: 0 | K64: 0 | L64: L4N125
C65: NVIDIA RTX vWS Bundle Perpetual License Plus 4yr RTX vWS SUMS, 1CCU | E65: TS3L4-VWS-P4Y | J65: 0 | K65: 0 | L65: L4N126
C66: NVIDIA RTX vWS Bundle Perpetual License Plus 5yr RTX vWS SUMS, 1CCU | E66: TS3L4-VWS-P5Y | J66: 0 | K66: 0 | L66: L4N127
C67: NVIDIA vPC to NVIDIA RTX vWS Upgrade 4 year SUMS Bundle | E67: TS3L4-VWSUPG4Y | J67: 0 | K67: 0 | L67: L4N128
C68: NVIDIA vPC to NVIDIA RTX vWS Upgrade 5 year SUMS Bundle | E68: TS3L4-VWSUPG5Y | J68: 0 | K68: 0 | L68: L4N129
C71: OpzUps (3000VA) | D71: =HYPERLINK("https://convenzioni.converge.it/docs/ts3_datasheet/RPMM_UPS.pdf","i") -> i
C72: BUNDLE PMEUPS3RTSER Comprensivo di UPS e scheda SNMP + Kit Rack incluso | E72: =VLOOKUP($C72,TS3L4_ALL,13,FALSE) -> TS3L4-UPS | J72: =VLOOKUP($C72,TS3L4_ALL,10,FALSE)*F72 -> 0 | K72: =VLOOKUP($C72,TS3L4_ALL,11,FALSE) -> 0 | L72: =VLOOKUP($C72,TS3L4_ALL,12,FALSE) -> L4N19
C75: OpzGUI | D75: =HYPERLINK("https://convenzioni.converge.it/docs/ts3_datasheet/KVM_datasheet_ITA.pdf","i") -> i
C76: Unità KVM - monitor 17", cavo combi PS2 e USB da 1,8mt, tastiera ita, touch pad | E76: =VLOOKUP($C76,TS3L4_ALL,13,FALSE) -> TS3L4-GUI | J76: =VLOOKUP($C76,TS3L4_ALL,10,FALSE)*F76 -> 0 | K76: =VLOOKUP($C76,TS3L4_ALL,11,FALSE) -> 0 | L76: =VLOOKUP($C76,TS3L4_ALL,12,FALSE) -> L4N20
C79: OpzKVM | D79: =HYPERLINK("https://convenzioni.converge.it/docs/ts3_datasheet/T9816NIP.pdf","i") -> i
C80: Switch 16 porte IP con relativi cavi combi PS/2 e USB inclusi | E80: =VLOOKUP($C80,TS3L4_ALL,13,FALSE) -> TS3L4-SWKVM | J80: =VLOOKUP($C80,TS3L4_ALL,10,FALSE)*F80 -> 0 | K80: =VLOOKUP($C80,TS3L4_ALL,11,FALSE) -> 0 | L80: =VLOOKUP($C80,TS3L4_ALL,12,FALSE) -> L4N21
C82: =IF(Riepilogo!P49+Riepilogo!P89>0,"OpzDeviceCal","") -> 
C83: =IF(Riepilogo!P49+Riepilogo!P89>0,"1-pack of Windows Server 2019/2016 Device CALs (STD or DC)","") ->  | E83: =VLOOKUP($C83,TS3L4_ALL,13,FALSE) ->  | J83: =VLOOKUP($C83,TS3L4_ALL,10,FALSE)*F83 -> 0 | K83: =VLOOKUP($C83,TS3L4_ALL,11,FALSE) -> 0 | L83: =VLOOKUP($C83,TS3L4_ALL,12,FALSE) -> 
C85: =IF(Riepilogo!P49+Riepilogo!P89>0,"OpzUserCal","") -> 
C86: =IF(Riepilogo!P49+Riepilogo!P89>0,"1-pack of Windows Server 2019/2016 User CALs (STD or DC)","") ->  | E86: =VLOOKUP($C86,TS3L4_ALL,13,FALSE) ->  | J86: =VLOOKUP($C86,TS3L4_ALL,10,FALSE)*F86 -> 0 | K86: =VLOOKUP($C86,TS3L4_ALL,11,FALSE) -> 0 | L86: =VLOOKUP($C86,TS3L4_ALL,12,FALSE) -> 

Sheet ConfigurationTS3L4 (hidden)
B2: Module Name | C2: Option ID | D2: Option Name | E2: Option List Price | F2: SKUs | G2: Qty | H2: SKU Customer Kit | I2: Attributo | J2: Valore inserito | L2: N° | M2: Codice Convenzione
A3: PowerEdge R740XD Server (General Purpose) | B3: Chassis with Up to 24 x 2.5 Hard Drives for 1CPU Configuration | D3: =VLOOKUP(L3,Tabella_prezzi!$A$3:$K$303,8,FALSE) -> PowerEdge R740xd Server | H3: =VLOOKUP(L3,Tabella_prezzi!$A$3:$K$303,9,FALSE) -> L4N01-ServerR740XD | I3: =VLOOKUP(L3,Tabella_prezzi!$A$3:$K$303,3,FALSE) -> Server rackable bi-processore prest. | J3: =VLOOKUP(L3,Tabella_prezzi!$A$3:$K$303,4,FALSE) -> 2530 | L3: L4N01 | M3: =VLOOKUP(L3,Tabella_prezzi!$A$3:$K$303,6,FALSE) -> TS3L4-SRV-U
A4: PowerEdge R740XD Server (vSAN Ready) | B4: Chassis with Up to 24 x 2.5" Hard Drives for 2CPU Configuration | D4: =VLOOKUP(L4,Tabella_prezzi!$A$3:$K$303,8,FALSE) -> PowerEdge R740xd Server | H4: =VLOOKUP(L4,Tabella_prezzi!$A$3:$K$303,9,FALSE) -> L4N01-ServerR740XD | I4: =VLOOKUP(L4,Tabella_prezzi!$A$3:$K$303,3,FALSE) -> Server rackable bi-processore prest. | J4: =VLOOKUP(L4,Tabella_prezzi!$A$3:$K$303,4,FALSE) -> 2530 | L4: L4N01 | M4: =VLOOKUP(L4,Tabella_prezzi!$A$3:$K$303,6,FALSE) -> TS3L4-SRV-U
A5: PowerEdge R740XD Server (GPU Single-Wide Ready) | B5: Chassis with Up to 24 x 2.5 Hard Drives for 2CPU, GPU Single-Wide Configuration | D5: =VLOOKUP(L5,Tabella_prezzi!$A$3:$K$303,8,FALSE) -> PowerEdge R740xd Server | H5: =VLOOKUP(L5,Tabella_prezzi!$A$3:$K$303,9,FALSE) -> L4N01-ServerR740XD | I5: =VLOOKUP(L5,Tabella_prezzi!$A$3:$K$303,3,FALSE) -> Server rackable bi-processore prest. | J5: =VLOOKUP(L5,Tabella_prezzi!$A$3:$K$303,4,FALSE) -> 2530 | L5: L4N01 | M5: =VLOOKUP(L5,Tabella_prezzi!$A$3:$K$303,6,FALSE) -> TS3L4-SRV-U
A6: PowerEdge R740XD Server (GPU Double-Wide Ready) | B6: Chassis with Up to 24 x 2.5 Hard Drives for 2CPU, GPU Double-Wide Configuration | D6: =VLOOKUP(L6,Tabella_prezzi!$A$3:$K$303,8,FALSE) -> PowerEdge R740xd Server | H6: =VLOOKUP(L6,Tabella_prezzi!$A$3:$K$303,9,FALSE) -> L4N01-ServerR740XD | I6: =VLOOKUP(L6,Tabella_prezzi!$A$3:$K$303,3,FALSE) -> Server rackable bi-processore prest. | J6: =VLOOKUP(L6,Tabella_prezzi!$A$3:$K$303,4,FALSE) -> 2530 | L6: L4N01 | M6: =VLOOKUP(L6,Tabella_prezzi!$A$3:$K$303,6,FALSE) -> TS3L4-SRV-U
A7: PowerEdge R740XD Server (PowerFlex) | B7: Chassis with Up to 24 x 2.5" Hard Drives for 2CPU Configuration | D7: =VLOOKUP(L7,Tabella_prezzi!$A$3:$K$303,8,FALSE) -> PowerEdge R740xd Server | H7: =VLOOKUP(L7,Tabella_prezzi!$A$3:$K$303,9,FALSE) -> L4N01-ServerR740XD | I7: =VLOOKUP(L7,Tabella_prezzi!$A$3:$K$303,3,FALSE) -> Server rackable bi-processore prest. | J7: =VLOOKUP(L7,Tabella_prezzi!$A$3:$K$303,4,FALSE) -> 2530 | L7: L4N01 | M7: =VLOOKUP(L7,Tabella_prezzi!$A$3:$K$303,6,FALSE) -> TS3L4-SRV-U
A9: TS3L4_Chassis
A10: PowerEdge R740XD Server (General Purpose) | B10: Chassis with Up to 24 x 2.5 Hard Drives for 1CPU Configuration | G10: ="" ->  | I10: ="" ->  | L10: ="" ->  | M10: ="" -> 
A11: PowerEdge R740XD Server (vSAN Ready) | B11: Chassis with Up to 24 x 2.5'' Hard Drives for 2CPU Configuration | D11: =VLOOKUP(L11,Tabella_prezzi!$A$3:$K$303,8,FALSE) -> Kit upgrade chassies for Server vSAN Ready | G11: 1 | H11: =VLOOKUP(L11,Tabella_prezzi!$A$3:$K$303,9,FALSE) -> TS3-OpzA20VSAN | I11: =VLOOKUP(L11,Tabella_prezzi!$A$3:$K$303,3,FALSE) -> 0 | K11: =VLOOKUP(L11,Tabella_prezzi!$A$3:$K$303,4,FALSE) -> 80 | L11: L4N38 | M11: =VLOOKUP(L11,Tabella_prezzi!$A$3:$K$303,6,FALSE) -> TS3L4-VSAN
A12: PowerEdge R740XD Server (GPU Single-Wide Ready) | B12: Chassis with Up to 24 x 2.5 Hard Drives for 2CPU, GPU Single-Wide Configuration | D12: =VLOOKUP(L12,Tabella_prezzi!$A$3:$K$303,8,FALSE) -> Kit upgrade chassies for Server GPU Single-Wide Ready | G12: 1 | H12: =VLOOKUP(L12,Tabella_prezzi!$A$3:$K$303,9,FALSE) -> TS3-OpzA20GPUSW | I12: =VLOOKUP(L12,Tabella_prezzi!$A$3:$K$303,3,FALSE) -> 0 | K12: =VLOOKUP(L12,Tabella_prezzi!$A$3:$K$303,4,FALSE) -> 299 | L12: L4N36 | M12: =VLOOKUP(L12,Tabella_prezzi!$A$3:$K$303,6,FALSE) -> TS3L4-GPUSW
A13: PowerEdge R740XD Server (GPU Double-Wide Ready) | B13: Chassis with Up to 24 x 2.5 Hard Drives for 2CPU, GPU Double-Wide Configuration | D13: =VLOOKUP(L13,Tabella_prezzi!$A$3:$K$303,8,FALSE) -> Kit upgrade chassies for Server GPU Double-Wide Ready | G13: 1 | H13: =VLOOKUP(L13,Tabella_prezzi!$A$3:$K$303,9,FALSE) -> TS3-OpzA20GPUDW | I13: =VLOOKUP(L13,Tabella_prezzi!$A$3:$K$303,3,FALSE) -> 0 | K13: =VLOOKUP(L13,Tabella_prezzi!$A$3:$K$303,4,FALSE) -> 299 | L13: L4N37 | M13: =VLOOKUP(L13,Tabella_prezzi!$A$3:$K$303,6,FALSE) -> TS3L4-GPUDW
A14: PowerEdge R740XD Server (PowerFlex) | B14: Chassis with Up to 24 x 2.5'' Hard Drives for 2CPU Configuration | D14: Kit upgrade chassies for Server PowerFlex | G14: 1 | H14: =VLOOKUP(L14,Tabella_prezzi!$A$3:$K$303,9,FALSE) -> TS3-OpzA20PWRFLX | I14: =VLOOKUP(L14,Tabella_prezzi!$A$3:$K$303,3,FALSE) -> 0 | K14: =VLOOKUP(L14,Tabella_prezzi!$A$3:$K$303,4,FALSE) -> 80 | L14: L4N97 | M14: =VLOOKUP(L14,Tabella_prezzi!$A$3:$K$303,6,FALSE) -> TS3L4-PWRFLEX
A16: TS3L4_CPU
A17: No Additional Processor | G17: 0 | I17: ="" ->  | L17: ="" ->  | M17: ="" -> 
A18: Intel Xeon Gold 6238R 2.2G, 28C/56T, 10.4GT/s, 38.5 M Cache, Turbo, HT (165W) | D18: =VLOOKUP(L18,Tabella_prezzi!$A$3:$K$303,8,FALSE) -> Processore INTEL XEON GOLD 6238R 28C | G18: 1 | H18: =VLOOKUP(L18,Tabella_prezzi!$A$3:$K$303,9,FALSE) -> L4N02-OpzCPU | I18: =VLOOKUP(L18,Tabella_prezzi!$A$3:$K$303,3,FALSE) -> Kit n. 1 Processore aggiuntivo | J18: =VLOOKUP(L18,Tabella_prezzi!$A$3:$K$303,4,FALSE) -> 730 | L18: L4N02 | M18: =VLOOKUP(L18,Tabella_prezzi!$A$3:$K$303,6,FALSE) -> TS3L4-CPU
A19: Intel Xeon Gold 6234 3.3G, 8C/16T, 10.4GT/s, 24.75M Cache, Turbo, HT (130W) | D19: =VLOOKUP(L19,Tabella_prezzi!$A$3:$K$303,8,FALSE) -> Upgrade da Processore aggiuntivo a Processore 8 core | G19: 1 | H19: =VLOOKUP(L19,Tabella_prezzi!$A$3:$K$303,9,FALSE) -> TS3-OpzA20CPU8C | I19: =VLOOKUP(L19,Tabella_prezzi!$A$3:$K$303,3,FALSE) -> Kit n. 1 Processore 8 Core aggiuntivo | K19: =VLOOKUP(L19,Tabella_prezzi!$A$3:$K$303,4,FALSE) -> 99999 | L19: L4N48 | M19: =VLOOKUP(L19,Tabella_prezzi!$A$3:$K$303,6,FALSE) -> TS3L4-CPU8CORE
A21: TS3L4_CPU8core
A22: Intel Xeon Gold 6238R 2.2G, 28C/56T, 10.4GT/s, 38.5 M Cache, Turbo, HT (165W) | G22: 0 | I22: ="" ->  | L22: ="" ->  | M22: ="" -> 
A23: Intel Xeon Gold 6234 3.3G, 8C/16T, 10.4GT/s, 24.75M Cache, Turbo, HT (130W) | D23: =VLOOKUP(L23,Tabella_prezzi!$A$3:$K$303,8,FALSE) -> Upgrade da Processore base a Processore 8 core | G23: 1 | H23: =VLOOKUP(L23,Tabella_prezzi!$A$3:$K$303,9,FALSE) -> TS3-OpzA20SRV8C | I23: =VLOOKUP(L23,Tabella_prezzi!$A$3:$K$303,3,FALSE) -> Kit n. 1 Processore 8 Core base | K23: =VLOOKUP(L23,Tabella_prezzi!$A$3:$K$303,4,FALSE) -> 99999 | L23: L4N47 | M23: =VLOOKUP(L23,Tabella_prezzi!$A$3:$K$303,6,FALSE) -> TS3L4-SRV8CORE
A25: TS3L4_CPU8coreadd
A26: No Additional Processor | G26: 0 | I26: ="" ->  | L26: ="" ->  | M26: ="" -> 
A27: Intel Xeon Gold 6234 3.3G, 8C/16T, 10.4GT/s, 24.75M Cache, Turbo, HT (130W) | D27: =VLOOKUP(L27,Tabella_prezzi!$A$3:$K$303,8,FALSE) -> Upgrade da Processore aggiuntivo a Processore 8 core | G27: 1 | H27: =VLOOKUP(L27,Tabella_prezzi!$A$3:$K$303,9,FALSE) -> TS3-OpzA20CPU8C | I27: =VLOOKUP(L27,Tabella_prezzi!$A$3:$K$303,3,FALSE) -> Kit n. 1 Processore 8 Core aggiuntivo | K27: =VLOOKUP(L27,Tabella_prezzi!$A$3:$K$303,4,FALSE) -> 99999 | L27: L4N48 | M27: =VLOOKUP(L27,Tabella_prezzi!$A$3:$K$303,6,FALSE) -> TS3L4-CPU8CORE
A30: TS3L4_RAM (1CPU)
A31: 64GB | B31: Memory Capacity | D31: =D32 -> 64GB - 2RX4 DDR4 RDIMM 3200MHz | F31: 370-AEVP | G31: 0 | H31: =H32 -> L4N04-OpzRAM64GB | I31: ="" ->  | L31: ="" ->  | M31: ="" -> 
A32: 128GB | B32: Memory Capacity | D32: =VLOOKUP(L32,Tabella_prezzi!$A$3:$K$303,8,FALSE) -> 64GB - 2RX4 DDR4 RDIMM 3200MHz | F32: 370-AEVP | G32: 1 | H32: =VLOOKUP(L32,Tabella_prezzi!$A$3:$K$303,9,FALSE) -> L4N04-OpzRAM64GB | I32: =VLOOKUP(L32,Tabella_prezzi!$A$3:$K$303,3,FALSE) -> OpzRAM64GB | J32: =VLOOKUP(L32,Tabella_prezzi!$A$3:$K$303,4,FALSE)*G32 -> 444 | L32: L4N04 | M32: =VLOOKUP(L32,Tabella_prezzi!$A$3:$K$303,6,FALSE) -> TS3L4-RAM64
A33: 192GB | B33: Memory Capacity | D33: =VLOOKUP(L33,Tabella_prezzi!$A$3:$K$303,8,FALSE) -> 64GB - 2RX4 DDR4 RDIMM 3200MHz | F33: 370-AEVP | G33: 2 | H33: =VLOOKUP(L33,Tabella_prezzi!$A$3:$K$303,9,FALSE) -> L4N04-OpzRAM64GB | I33: =VLOOKUP(L33,Tabella_prezzi!$A$3:$K$303,3,FALSE) -> OpzRAM64GB | J33: =VLOOKUP(L33,Tabella_prezzi!$A$3:$K$303,4,FALSE)*G33 -> 888 | L33: L4N04 | M33: =VLOOKUP(L33,Tabella_prezzi!$A$3:$K$303,6,FALSE) -> TS3L4-RAM64
A34: 256GB | B34: Memory Capacity | D34: =VLOOKUP(L34,Tabella_prezzi!$A$3:$K$303,8,FALSE) -> 64GB - 2RX4 DDR4 RDIMM 3200MHz | F34: 370-AEVP | G34: 3 | H34: =VLOOKUP(L34,Tabella_prezzi!$A$3:$K$303,9,FALSE) -> L4N04-OpzRAM64GB | I34: =VLOOKUP(L34,Tabella_prezzi!$A$3:$K$303,3,FALSE) -> OpzRAM64GB | J34: =VLOOKUP(L34,Tabella_prezzi!$A$3:$K$303,4,FALSE)*G34 -> 1332 | L34: L4N04 | M34: =VLOOKUP(L34,Tabella_prezzi!$A$3:$K$303,6,FALSE) -> TS3L4-RAM64
A35: 320GB | B35: Memory Capacity | D35: =VLOOKUP(L35,Tabella_prezzi!$A$3:$K$303,8,FALSE) -> 64GB - 2RX4 DDR4 RDIMM 3200MHz | F35: 370-AEVP | G35: 4 | H35: =VLOOKUP(L35,Tabella_prezzi!$A$3:$K$303,9,FALSE) -> L4N04-OpzRAM64GB | I35: =VLOOKUP(L35,Tabella_prezzi!$A$3:$K$303,3,FALSE) -> OpzRAM64GB | J35: =VLOOKUP(L35,Tabella_prezzi!$A$3:$K$303,4,FALSE)*G35 -> 1776 | L35: L4N04 | M35: =VLOOKUP(L35,Tabella_prezzi!$A$3:$K$303,6,FALSE) -> TS3L4-RAM64
A36: 384GB | B36: Memory Capacity | D36: =VLOOKUP(L36,Tabella_prezzi!$A$3:$K$303,8,FALSE) -> 64GB - 2RX4 DDR4 RDIMM 3200MHz | F36: 370-AEVP | G36: 5 | H36: =VLOOKUP(L36,Tabella_prezzi!$A$3:$K$303,9,FALSE) -> L4N04-OpzRAM64GB | I36: =VLOOKUP(L36,Tabella_prezzi!$A$3:$K$303,3,FALSE) -> OpzRAM64GB | J36: =VLOOKUP(L36,Tabella_prezzi!$A$3:$K$303,4,FALSE)*G36 -> 2220 | L36: L4N04 | M36: =VLOOKUP(L36,Tabella_prezzi!$A$3:$K$303,6,FALSE) -> TS3L4-RAM64
A37: 448GB | B37: Memory Capacity | D37: =VLOOKUP(L37,Tabella_prezzi!$A$3:$K$303,8,FALSE) -> 64GB - 2RX4 DDR4 RDIMM 3200MHz | F37: 370-AEVP | G37: 6 | H37: =VLOOKUP(L37,Tabella_prezzi!$A$3:$K$303,9,FALSE) -> L4N04-OpzRAM64GB | I37: =VLOOKUP(L37,Tabella_prezzi!$A$3:$K$303,3,FALSE) -> OpzRAM64GB | J37: =VLOOKUP(L37,Tabella_prezzi!$A$3:$K$303,4,FALSE)*G37 -> 2664 | L37: L4N04 | M37: =VLOOKUP(L37,Tabella_prezzi!$A$3:$K$303,6,FALSE) -> TS3L4-RAM64
A38: 512GB | B38: Memory Capacity | D38: =VLOOKUP(L38,Tabella_prezzi!$A$3:$K$303,8,FALSE) -> 64GB - 2RX4 DDR4 RDIMM 3200MHz | F38: 370-AEVP | G38: 7 | H38: =VLOOKUP(L38,Tabella_prezzi!$A$3:$K$303,9,FALSE) -> L4N04-OpzRAM64GB | I38: =VLOOKUP(L38,Tabella_prezzi!$A$3:$K$303,3,FALSE) -> OpzRAM64GB | J38: =VLOOKUP(L38,Tabella_prezzi!$A$3:$K$303,4,FALSE)*G38 -> 3108 | L38: L4N04 | M38: =VLOOKUP(L38,Tabella_prezzi!$A$3:$K$303,6,FALSE) -> TS3L4-RAM64
A39: 576GB | B39: Memory Capacity | D39: =VLOOKUP(L39,Tabella_prezzi!$A$3:$K$303,8,FALSE) -> 64GB - 2RX4 DDR4 RDIMM 3200MHz | F39: 370-AEVP | G39: 8 | H39: =VLOOKUP(L39,Tabella_prezzi!$A$3:$K$303,9,FALSE) -> L4N04-OpzRAM64GB | I39: =VLOOKUP(L39,Tabella_prezzi!$A$3:$K$303,3,FALSE) -> OpzRAM64GB | J39: =VLOOKUP(L39,Tabella_prezzi!$A$3:$K$303,4,FALSE)*G39 -> 3552 | L39: L4N04 | M39: =VLOOKUP(L39,Tabella_prezzi!$A$3:$K$303,6,FALSE) -> TS3L4-RAM64
A40: 640GB | B40: Memory Capacity | D40: =VLOOKUP(L40,Tabella_prezzi!$A$3:$K$303,8,FALSE) -> 64GB - 2RX4 DDR4 RDIMM 3200MHz | F40: 370-AEVP | G40: 9 | H40: =VLOOKUP(L40,Tabella_prezzi!$A$3:$K$303,9,FALSE) -> L4N04-OpzRAM64GB | I40: =VLOOKUP(L40,Tabella_prezzi!$A$3:$K$303,3,FALSE) -> OpzRAM64GB | J40: =VLOOKUP(L40,Tabella_prezzi!$A$3:$K$303,4,FALSE)*G40 -> 3996 | L40: L4N04 | M40: =VLOOKUP(L40,Tabella_prezzi!$A$3:$K$303,6,FALSE) -> TS3L4-RAM64
A41: 704GB | B41: Memory Capacity | D41: =VLOOKUP(L41,Tabella_prezzi!$A$3:$K$303,8,FALSE) -> 64GB - 2RX4 DDR4 RDIMM 3200MHz | F41: 370-AEVP | G41: 10 | H41: =VLOOKUP(L41,Tabella_prezzi!$A$3:$K$303,9,FALSE) -> L4N04-OpzRAM64GB | I41: =VLOOKUP(L41,Tabella_prezzi!$A$3:$K$303,3,FALSE) -> OpzRAM64GB | J41: =VLOOKUP(L41,Tabella_prezzi!$A$3:$K$303,4,FALSE)*G41 -> 4440 | L41: L4N04 | M41: =VLOOKUP(L41,Tabella_prezzi!$A$3:$K$303,6,FALSE) -> TS3L4-RAM64
A42: 768GB | B42: Memory Capacity | D42: =VLOOKUP(L42,Tabella_prezzi!$A$3:$K$303,8,FALSE) -> 64GB - 2RX4 DDR4 RDIMM 3200MHz | F42: 370-AEVP | G42: 11 | H42: =VLOOKUP(L42,Tabella_prezzi!$A$3:$K$303,9,FALSE) -> L4N04-OpzRAM64GB | I42: =VLOOKUP(L42,Tabella_prezzi!$A$3:$K$303,3,FALSE) -> OpzRAM64GB | J42: =VLOOKUP(L42,Tabella_prezzi!$A$3:$K$303,4,FALSE)*G42 -> 4884 | L42: L4N04 | M42: =VLOOKUP(L42,Tabella_prezzi!$A$3:$K$303,6,FALSE) -> TS3L4-RAM64
A44: TS3L4_RAM (2CPU)
A45: 128GB | B45: Memory Capacity | D45: =VLOOKUP(L45,Tabella_prezzi!$A$3:$K$303,8,FALSE) -> 64GB - 2RX4 DDR4 RDIMM 3200MHz | F45: 370-AEVP | G45: 1 | H45: =VLOOKUP(L45,Tabella_prezzi!$A$3:$K$303,9,FALSE) -> L4N04-OpzRAM64GB | I45: =VLOOKUP(L45,Tabella_prezzi!$A$3:$K$303,3,FALSE) -> OpzRAM64GB | J45: =VLOOKUP(L45,Tabella_prezzi!$A$3:$K$303,4,FALSE)*G45 -> 444 | L45: L4N04 | M45: =VLOOKUP(L45,Tabella_prezzi!$A$3:$K$303,6,FALSE) -> TS3L4-RAM64
A46: 256GB | B46: Memory Capacity | D46: =VLOOKUP(L46,Tabella_prezzi!$A$3:$K$303,8,FALSE) -> 64GB - 2RX4 DDR4 RDIMM 3200MHz | F46: 370-AEVP | G46: 3 | H46: =VLOOKUP(L46,Tabella_prezzi!$A$3:$K$303,9,FALSE) -> L4N04-OpzRAM64GB | I46: =VLOOKUP(L46,Tabella_prezzi!$A$3:$K$303,3,FALSE) -> OpzRAM64GB | J46: =VLOOKUP(L46,Tabella_prezzi!$A$3:$K$303,4,FALSE)*G46 -> 1332 | L46: L4N04 | M46: =VLOOKUP(L46,Tabella_prezzi!$A$3:$K$303,6,FALSE) -> TS3L4-RAM64
A47: 384GB | B47: Memory Capacity | D47: =VLOOKUP(L47,Tabella_prezzi!$A$3:$K$303,8,FALSE) -> 64GB - 2RX4 DDR4 RDIMM 3200MHz | F47: 370-AEVP | G47: 5 | H47: =VLOOKUP(L47,Tabella_prezzi!$A$3:$K$303,9,FALSE) -> L4N04-OpzRAM64GB | I47: =VLOOKUP(L47,Tabella_prezzi!$A$3:$K$303,3,FALSE) -> OpzRAM64GB | J47: =VLOOKUP(L47,Tabella_prezzi!$A$3:$K$303,4,FALSE)*G47 -> 2220 | L47: L4N04 | M47: =VLOOKUP(L47,Tabella_prezzi!$A$3:$K$303,6,FALSE) -> TS3L4-RAM64
A48: 512GB | B48: Memory Capacity | D48: =VLOOKUP(L48,Tabella_prezzi!$A$3:$K$303,8,FALSE) -> 64GB - 2RX4 DDR4 RDIMM 3200MHz | F48: 370-AEVP | G48: 7 | H48: =VLOOKUP(L48,Tabella_prezzi!$A$3:$K$303,9,FALSE) -> L4N04-OpzRAM64GB | I48: =VLOOKUP(L48,Tabella_prezzi!$A$3:$K$303,3,FALSE) -> OpzRAM64GB | J48: =VLOOKUP(L48,Tabella_prezzi!$A$3:$K$303,4,FALSE)*G48 -> 3108 | L48: L4N04 | M48: =VLOOKUP(L48,Tabella_prezzi!$A$3:$K$303,6,FALSE) -> TS3L4-RAM64
A49: 640GB | B49: Memory Capacity | D49: =VLOOKUP(L49,Tabella_prezzi!$A$3:$K$303,8,FALSE) -> 64GB - 2RX4 DDR4 RDIMM 3200MHz | F49: 370-AEVP | G49: 9 | H49: =VLOOKUP(L49,Tabella_prezzi!$A$3:$K$303,9,FALSE) -> L4N04-OpzRAM64GB | I49: =VLOOKUP(L49,Tabella_prezzi!$A$3:$K$303,3,FALSE) -> OpzRAM64GB | J49: =VLOOKUP(L49,Tabella_prezzi!$A$3:$K$303,4,FALSE)*G49 -> 3996 | L49: L4N04 | M49: =VLOOKUP(L49,Tabella_prezzi!$A$3:$K$303,6,FALSE) -> TS3L4-RAM64
A50: 768GB | B50: Memory Capacity | D50: =VLOOKUP(L50,Tabella_prezzi!$A$3:$K$303,8,FALSE) -> 64GB - 2RX4 DDR4 RDIMM 3200MHz | F50: 370-AEVP | G50: 11 | H50: =VLOOKUP(L50,Tabella_prezzi!$A$3:$K$303,9,FALSE) -> L4N04-OpzRAM64GB | I50: =VLOOKUP(L50,Tabella_prezzi!$A$3:$K$303,3,FALSE) -> OpzRAM64GB | J50: =VLOOKUP(L50,Tabella_prezzi!$A$3:$K$303,4,FALSE)*G50 -> 4884 | L50: L4N04 | M50: =VLOOKUP(L50,Tabella_prezzi!$A$3:$K$303,6,FALSE) -> TS3L4-RAM64
A51: 896GB | B51: Memory Capacity | D51: =VLOOKUP(L51,Tabella_prezzi!$A$3:$K$303,8,FALSE) -> 64GB - 2RX4 DDR4 RDIMM 3200MHz | F51: 370-AEVP | G51: 13 | H51: =VLOOKUP(L51,Tabella_prezzi!$A$3:$K$303,9,FALSE) -> L4N04-OpzRAM64GB | I51: =VLOOKUP(L51,Tabella_prezzi!$A$3:$K$303,3,FALSE) -> OpzRAM64GB | J51: =VLOOKUP(L51,Tabella_prezzi!$A$3:$K$303,4,FALSE)*G51 -> 5772 | L51: L4N04 | M51: =VLOOKUP(L51,Tabella_prezzi!$A$3:$K$303,6,FALSE) -> TS3L4-RAM64
A52: 1024GB | B52: Memory Capacity | D52: =VLOOKUP(L52,Tabella_prezzi!$A$3:$K$303,8,FALSE) -> 64GB - 2RX4 DDR4 RDIMM 3200MHz | F52: 370-AEVP | G52: 15 | H52: =VLOOKUP(L52,Tabella_prezzi!$A$3:$K$303,9,FALSE) -> L4N04-OpzRAM64GB | I52: =VLOOKUP(L52,Tabella_prezzi!$A$3:$K$303,3,FALSE) -> OpzRAM64GB | J52: =VLOOKUP(L52,Tabella_prezzi!$A$3:$K$303,4,FALSE)*G52 -> 6660 | L52: L4N04 | M52: =VLOOKUP(L52,Tabella_prezzi!$A$3:$K$303,6,FALSE) -> TS3L4-RAM64
A53: 1152GB | B53: Memory Capacity | D53: =VLOOKUP(L53,Tabella_prezzi!$A$3:$K$303,8,FALSE) -> 64GB - 2RX4 DDR4 RDIMM 3200MHz | F53: 370-AEVP | G53: 17 | H53: =VLOOKUP(L53,Tabella_prezzi!$A$3:$K$303,9,FALSE) -> L4N04-OpzRAM64GB | I53: =VLOOKUP(L53,Tabella_prezzi!$A$3:$K$303,3,FALSE) -> OpzRAM64GB | J53: =VLOOKUP(L53,Tabella_prezzi!$A$3:$K$303,4,FALSE)*G53 -> 7548 | L53: L4N04 | M53: =VLOOKUP(L53,Tabella_prezzi!$A$3:$K$303,6,FALSE) -> TS3L4-RAM64
A54: 1280GB | B54: Memory Capacity | D54: =VLOOKUP(L54,Tabella_prezzi!$A$3:$K$303,8,FALSE) -> 64GB - 2RX4 DDR4 RDIMM 3200MHz | F54: 370-AEVP | G54: 19 | H54: =VLOOKUP(L54,Tabella_prezzi!$A$3:$K$303,9,FALSE) -> L4N04-OpzRAM64GB | I54: =VLOOKUP(L54,Tabella_prezzi!$A$3:$K$303,3,FALSE) -> OpzRAM64GB | J54: =VLOOKUP(L54,Tabella_prezzi!$A$3:$K$303,4,FALSE)*G54 -> 8436 | L54: L4N04 | M54: =VLOOKUP(L54,Tabella_prezzi!$A$3:$K$303,6,FALSE) -> TS3L4-RAM64
A55: 1408GB | B55: Memory Capacity | D55: =VLOOKUP(L55,Tabella_prezzi!$A$3:$K$303,8,FALSE) -> 64GB - 2RX4 DDR4 RDIMM 3200MHz | F55: 370-AEVP | G55: 21 | H55: =VLOOKUP(L55,Tabella_prezzi!$A$3:$K$303,9,FALSE) -> L4N04-OpzRAM64GB | I55: =VLOOKUP(L55,Tabella_prezzi!$A$3:$K$303,3,FALSE) -> OpzRAM64GB | J55: =VLOOKUP(L55,Tabella_prezzi!$A$3:$K$303,4,FALSE)*G55 -> 9324 | L55: L4N04 | M55: =VLOOKUP(L55,Tabella_prezzi!$A$3:$K$303,6,FALSE) -> TS3L4-RAM64
A56: 1536GB | B56: Memory Capacity | D56: =VLOOKUP(L56,Tabella_prezzi!$A$3:$K$303,8,FALSE) -> 64GB - 2RX4 DDR4 RDIMM 3200MHz | F56: 370-AEVP | G56: 23 | H56: =VLOOKUP(L56,Tabella_prezzi!$A$3:$K$303,9,FALSE) -> L4N04-OpzRAM64GB | I56: =VLOOKUP(L56,Tabella_prezzi!$A$3:$K$303,3,FALSE) -> OpzRAM64GB | J56: =VLOOKUP(L56,Tabella_prezzi!$A$3:$K$303,4,FALSE)*G56 -> 10212 | L56: L4N04 | M56: =VLOOKUP(L56,Tabella_prezzi!$A$3:$K$303,6,FALSE) -> TS3L4-RAM64
A57: 1 | B57: 2 | C57: 3 | D57: 4 | E57: 5 | F57: 6 | G57: 7 | H57: 8 | I57: 9 | J57: 10 | K57: 11 | L57: 12 | M57: 13 | N57: 14 | O57: 15 | P57: 16 | Q57: 17 | R57: 18 | S57: 19 | T57: 20 | U57: 21 | V57: 22 | W57: 23
A59: TS3L4_RAM (2CPU)vxfelx
A60: 192GB | B60: Memory Capacity | D60: =VLOOKUP(L60,Tabella_prezzi!$A$3:$K$303,8,FALSE) -> 64GB - 2RX4 DDR4 RDIMM 3200MHz | F60: 370-AEVP | G60: 2 | H60: =VLOOKUP(L60,Tabella_prezzi!$A$3:$K$303,9,FALSE) -> L4N04-OpzRAM64GB | I60: =VLOOKUP(L60,Tabella_prezzi!$A$3:$K$303,3,FALSE) -> OpzRAM64GB | J60: =VLOOKUP(L60,Tabella_prezzi!$A$3:$K$303,4,FALSE)*G60 -> 888 | L60: L4N04 | M60: =VLOOKUP(L60,Tabella_prezzi!$A$3:$K$303,6,FALSE) -> TS3L4-RAM64
A61: 384GB | B61: Memory Capacity | D61: =VLOOKUP(L61,Tabella_prezzi!$A$3:$K$303,8,FALSE) -> 64GB - 2RX4 DDR4 RDIMM 3200MHz | F61: 370-AEVP | G61: 5 | H61: =VLOOKUP(L61,Tabella_prezzi!$A$3:$K$303,9,FALSE) -> L4N04-OpzRAM64GB | I61: =VLOOKUP(L61,Tabella_prezzi!$A$3:$K$303,3,FALSE) -> OpzRAM64GB | J61: =VLOOKUP(L61,Tabella_prezzi!$A$3:$K$303,4,FALSE)*G61 -> 2220 | L61: L4N04 | M61: =VLOOKUP(L61,Tabella_prezzi!$A$3:$K$303,6,FALSE) -> TS3L4-RAM64
A62: 768GB | B62: Memory Capacity | D62: =VLOOKUP(L62,Tabella_prezzi!$A$3:$K$303,8,FALSE) -> 64GB - 2RX4 DDR4 RDIMM 3200MHz | F62: 370-AEVP | G62: 11 | H62: =VLOOKUP(L62,Tabella_prezzi!$A$3:$K$303,9,FALSE) -> L4N04-OpzRAM64GB | I62: =VLOOKUP(L62,Tabella_prezzi!$A$3:$K$303,3,FALSE) -> OpzRAM64GB | J62: =VLOOKUP(L62,Tabella_prezzi!$A$3:$K$303,4,FALSE)*G62 -> 4884 | L62: L4N04 | M62: =VLOOKUP(L62,Tabella_prezzi!$A$3:$K$303,6,FALSE) -> TS3L4-RAM64
A63: 1536GB | B63: Memory Capacity | D63: =VLOOKUP(L63,Tabella_prezzi!$A$3:$K$303,8,FALSE) -> 64GB - 2RX4 DDR4 RDIMM 3200MHz | F63: 370-AEVP | G63: 23 | H63: =VLOOKUP(L63,Tabella_prezzi!$A$3:$K$303,9,FALSE) -> L4N04-OpzRAM64GB | I63: =VLOOKUP(L63,Tabella_prezzi!$A$3:$K$303,3,FALSE) -> OpzRAM64GB | J63: =VLOOKUP(L63,Tabella_prezzi!$A$3:$K$303,4,FALSE)*G63 -> 10212 | L63: L4N04 | M63: =VLOOKUP(L63,Tabella_prezzi!$A$3:$K$303,6,FALSE) -> TS3L4-RAM64
A65: TS3L4_OS
A66: No Operating System | B66: Operating System | G66: 0 | I66: ="" ->  | L66: ="" ->  | M66: ="" ->  | N66: 0 | P66: ="" ->  | Q66: ="" ->  | S66: 0 | T66: 0 | W66: ="" -> 
A67: [TS3L4-WINSRVSTD] Windows Server® 2019 Standard | B67: Operating System | D67: =VLOOKUP(L67,Tabella_prezzi!$A$3:$K$303,8,FALSE) -> Windows Server 2019 Standard, ROK, 16CORE | G67: 1 | H67: =VLOOKUP(L67,Tabella_prezzi!$A$3:$K$303,9,FALSE) -> L4N22-OpzWinServSTD | I67: =VLOOKUP(L67,Tabella_prezzi!$A$3:$K$303,3,FALSE) -> OpzWinServSTD | J67: =VLOOKUP(L67,Tabella_prezzi!$A$3:$K$303,4,FALSE) -> 682 | L67: L4N22 | M67: =VLOOKUP(L67,Tabella_prezzi!$A$3:$K$303,6,FALSE) -> TS3L4-WINSRVSTD | N67: 20 | O67: =VLOOKUP(T67,Tabella_prezzi!$A$3:$K$303,9,FALSE) -> L4N25-OpzWinServSTD2core | P67: =VLOOKUP(T67,Tabella_prezzi!$A$3:$K$303,3,FALSE) -> OpzWinServSTD2core | Q67: =VLOOKUP(T67,Tabella_prezzi!$A$3:$K$303,4,FALSE)*N67 -> 1900 | S67: 6 | T67: L4N25 | U67: =VLOOKUP(T67,Tabella_prezzi!$A$3:$K$303,4,FALSE)*S67 -> 570 | W67: =VLOOKUP(T67,Tabella_prezzi!$A$3:$K$303,6,FALSE) -> TS3L4-WINSRV2C
A68: [TS3L4-WINDC] Windows Server® 2019 DataCenter | B68: Operating System | D68: =VLOOKUP(L68,Tabella_prezzi!$A$3:$K$303,8,FALSE) -> Windows Server 2019 Data Center, ROK, 16CORE | G68: 1 | H68: =VLOOKUP(L68,Tabella_prezzi!$A$3:$K$303,9,FALSE) -> TS3-OpzA20WDC | I68: =VLOOKUP(L68,Tabella_prezzi!$A$3:$K$303,3,FALSE) -> OpzWinServDC | K68: =VLOOKUP(L68,Tabella_prezzi!$A$3:$K$303,4,FALSE) -> 4339 | L68: L4N59 | M68: =VLOOKUP(L68,Tabella_prezzi!$A$3:$K$303,6,FALSE) -> TS3L4-WINDC | N68: 20 | O68: =VLOOKUP(T68,Tabella_prezzi!$A$3:$K$303,9,FALSE) -> TS3-OpzA20WDC2C | P68: =VLOOKUP(T68,Tabella_prezzi!$A$3:$K$303,3,FALSE) -> OpzWinServDC2core | R68: =VLOOKUP(T68,Tabella_prezzi!$A$3:$K$303,4,FALSE)*N68 -> 10900 | S68: 6 | T68: L4N60 | V68: =VLOOKUP(T68,Tabella_prezzi!$A$3:$K$303,4,FALSE)*S68 -> 3270 | W68: =VLOOKUP(T68,Tabella_prezzi!$A$3:$K$303,6,FALSE) -> TS3L4-WINDC2C
A69: [TS3L4-LINUX] Ubuntu 18.04 LTS 64 Bit | B69: Operating System | D69: =VLOOKUP(L69,Tabella_prezzi!$A$3:$K$303,8,FALSE) -> Ubuntu 18.04 LTS 64 Bit | G69: 1 | H69: =VLOOKUP(L69,Tabella_prezzi!$A$3:$K$303,9,FALSE) -> L4N26-OpzOpenSource | I69: =VLOOKUP(L69,Tabella_prezzi!$A$3:$K$303,3,FALSE) -> OpzOpenSource | J69: =VLOOKUP(L69,Tabella_prezzi!$A$3:$K$303,4,FALSE) -> 49 | L69: L4N26 | M69: =VLOOKUP(L69,Tabella_prezzi!$A$3:$K$303,6,FALSE) -> TS3L4-LINUX | N69: 0 | P69: ="" ->  | Q69: ="" ->  | S69: 0 | T69: 0 | W69: ="" -> 
A71: TS3L4_HDD
A72: ="" ->  | G72: ="" ->  | I72: ="" ->  | L72: ="" ->  | M72: ="" -> 
A73: 300GB 15K RPM SAS 12Gbps 2.5in Hot-plug | B73: Hard Drives | D73: =VLOOKUP(L73,Tabella_prezzi!$A$3:$K$303,8,FALSE) -> HDD 300GB 15K SAS 12Gbps 2.5in Hot-plug | G73: 1 | H73: =VLOOKUP(L73,Tabella_prezzi!$A$3:$K$303,9,FALSE) -> L4N12-OpzHDD300GB | I73: =VLOOKUP(L73,Tabella_prezzi!$A$3:$K$303,3,FALSE) -> OpzHDD300GB | J73: =VLOOKUP(L73,Tabella_prezzi!$A$3:$K$303,4,FALSE) -> 71 | L73: L4N12 | M73: =VLOOKUP(L73,Tabella_prezzi!$A$3:$K$303,6,FALSE) -> TS3L4-HDD300GB
A74: 1.2TB 10K RPM SAS 12Gbps 2.5in Hot-plug | B74: Hard Drives | D74: =VLOOKUP(L74,Tabella_prezzi!$A$3:$K$303,8,FALSE) -> HDD 1200GB 10K SAS 12Gbps 2.5in Hot-plug | G74: 1 | H74: =VLOOKUP(L74,Tabella_prezzi!$A$3:$K$303,9,FALSE) -> L4N11-OpzHDD1TB | I74: =VLOOKUP(L74,Tabella_prezzi!$A$3:$K$303,3,FALSE) -> OpzHDD1TB | J74: =VLOOKUP(L74,Tabella_prezzi!$A$3:$K$303,4,FALSE) -> 77 | L74: L4N11 | M74: =VLOOKUP(L74,Tabella_prezzi!$A$3:$K$303,6,FALSE) -> TS3L4-HDD1TB
A75: 2.4TB 10K RPM SAS 12Gbps 2.5in Hot-plug | B75: Hard Drives | D75: =VLOOKUP(L75,Tabella_prezzi!$A$3:$K$303,8,FALSE) -> HDD 2400GB 10K SAS 12Gbps 2.5in Hot-plug | G75: 1 | H75: =VLOOKUP(L75,Tabella_prezzi!$A$3:$K$303,9,FALSE) -> L4N10-OpzHDD2TB | I75: =VLOOKUP(L75,Tabella_prezzi!$A$3:$K$303,3,FALSE) -> OpzHDD2TB | J75: =VLOOKUP(L75,Tabella_prezzi!$A$3:$K$303,4,FALSE) -> 127 | L75: L4N10 | M75: =VLOOKUP(L75,Tabella_prezzi!$A$3:$K$303,6,FALSE) -> TS3L4-HDD2TB
A76: 960GB SSD SAS Read Intensive 12Gbps 2.5in Hot-plug | B76: Hard Drives | D76: =VLOOKUP(L76,Tabella_prezzi!$A$3:$K$303,8,FALSE) -> SSD 960GB SAS RI 12Gbps 2.5in Hot-plug, 1 DWPD | G76: 1 | H76: =VLOOKUP(L76,Tabella_prezzi!$A$3:$K$303,9,FALSE) -> L4N15-OpzSSD-RI800GB | I76: =VLOOKUP(L76,Tabella_prezzi!$A$3:$K$303,3,FALSE) -> OpzSSD-RI800GB | J76: =VLOOKUP(L76,Tabella_prezzi!$A$3:$K$303,4,FALSE) -> 241 | L76: L4N15 | M76: =VLOOKUP(L76,Tabella_prezzi!$A$3:$K$303,6,FALSE) -> TS3L4-RI800GB
A77: 1.92TB SSD SAS Read Intensive 12Gbps 2.5in Hot-plug | B77: Hard Drives | D77: =VLOOKUP(L77,Tabella_prezzi!$A$3:$K$303,8,FALSE) -> SSD 1,92TB SAS RI 12Gbps 2.5in Hot-plug, 1 DWPD | G77: 1 | H77: =VLOOKUP(L77,Tabella_prezzi!$A$3:$K$303,9,FALSE) -> L4N13-OpzSSD-RI1,6TB | I77: =VLOOKUP(L77,Tabella_prezzi!$A$3:$K$303,3,FALSE) -> OpzSSD-RI1,6TB | J77: =VLOOKUP(L77,Tabella_prezzi!$A$3:$K$303,4,FALSE) -> 412 | L77: L4N13 | M77: =VLOOKUP(L77,Tabella_prezzi!$A$3:$K$303,6,FALSE) -> TS3L4-RI1600GB
A78: 3.84TB SSD SAS Read Intensive 12Gbps 2.5in Hot-plug | B78: Hard Drives | D78: =VLOOKUP(L78,Tabella_prezzi!$A$3:$K$303,8,FALSE) -> SSD 3,84TB SAS RI 12Gbps 2.5in Hot-plug, 1 DWPD | G78: 1 | H78: =VLOOKUP(L78,Tabella_prezzi!$A$3:$K$303,9,FALSE) -> TS3-OpzA20RI384 | I78: =VLOOKUP(L78,Tabella_prezzi!$A$3:$K$303,3,FALSE) -> OpzSSD-RI3,84TB | K78: =VLOOKUP(L78,Tabella_prezzi!$A$3:$K$303,4,FALSE) -> 1380 | L78: L4N51 | M78: =VLOOKUP(L78,Tabella_prezzi!$A$3:$K$303,6,FALSE) -> TS3L4-RI3840GB
A79: 7.68TB SSD SAS Read Intensive 12Gbps 2.5in Hot-plug | B79: Hard Drives | D79: =VLOOKUP(L79,Tabella_prezzi!$A$3:$K$303,8,FALSE) -> SSD 7,68TB VSAS RI 12Gbps 2.5in Hot-plug, 1 DWPD | G79: 1 | H79: =VLOOKUP(L79,Tabella_prezzi!$A$3:$K$303,9,FALSE) -> TS3-OpzA20RI768 | I79: =VLOOKUP(L79,Tabella_prezzi!$A$3:$K$303,3,FALSE) -> OpzSSD-RI7,68TB | K79: =VLOOKUP(L79,Tabella_prezzi!$A$3:$K$303,4,FALSE) -> 2580 | L79: L4N52 | M79: =VLOOKUP(L79,Tabella_prezzi!$A$3:$K$303,6,FALSE) -> TS3L4-RI7680GB
A80: 960GB SSD SAS Mixed Use 12Gbps 512e 2.5in Hot-Plug | B80: Hard Drives | D80: =VLOOKUP(L80,Tabella_prezzi!$A$3:$K$303,8,FALSE) -> SSD 960GB SAS MU 12Gbps 2.5in Hot-plug, 3 DWPD | G80: 1 | H80: =VLOOKUP(L80,Tabella_prezzi!$A$3:$K$303,9,FALSE) -> L4N16-OpzSSD-MU800GB | I80: =VLOOKUP(L80,Tabella_prezzi!$A$3:$K$303,3,FALSE) -> OpzSSD-MU800GB | J80: =VLOOKUP(L80,Tabella_prezzi!$A$3:$K$303,4,FALSE) -> 609 | L80: L4N16 | M80: =VLOOKUP(L80,Tabella_prezzi!$A$3:$K$303,6,FALSE) -> TS3L4-MU800GB
A81: 1.6TB SSD SAS Mix Use 12Gbps 2.5in Hot-plug | B81: Hard Drives | D81: =VLOOKUP(L81,Tabella_prezzi!$A$3:$K$303,8,FALSE) -> SSD 1,6TB SAS MU 12Gbps 2.5in Hot-plug, 3 DWPD | G81: 1 | H81: =VLOOKUP(L81,Tabella_prezzi!$A$3:$K$303,9,FALSE) -> L4N14-OpzSSD-MU1,6TB | I81: =VLOOKUP(L81,Tabella_prezzi!$A$3:$K$303,3,FALSE) -> OpzSSD-MU1,6TB | J81: =VLOOKUP(L81,Tabella_prezzi!$A$3:$K$303,4,FALSE) -> 584 | L81: L4N14 | M81: =VLOOKUP(L81,Tabella_prezzi!$A$3:$K$303,6,FALSE) -> TS3L4-MU1600GB
A82: 800GB SSD SAS Write Intensive 12Gbps 2.5in Hot Plug | B82: Hard Drives | D82: =VLOOKUP(L82,Tabella_prezzi!$A$3:$K$303,8,FALSE) -> 800GB SSD SAS Write Intensive 12Gbps 512e 2.5in Hot Plug Drive, PM5, 10 DWPD, 29200 TBW, CK | G82: 1 | H82: =VLOOKUP(L82,Tabella_prezzi!$A$3:$K$303,9,FALSE) -> TS3-OpzA20800WI | I82: =VLOOKUP(L82,Tabella_prezzi!$A$3:$K$303,3,FALSE) -> OpzSSD-WI800GB | K82: =VLOOKUP(L82,Tabella_prezzi!$A$3:$K$303,4,FALSE) -> 1106 | L82: L4N53 | M82: =VLOOKUP(L82,Tabella_prezzi!$A$3:$K$303,6,FALSE) -> TS3L4-WI800GB
A83: 1.6TB SSD SAS Write Intensive 12Gbps 2.5in Hot Plug | B83: Hard Drives | D83: =VLOOKUP(L83,Tabella_prezzi!$A$3:$K$303,8,FALSE) -> 1.6TB SSD SAS Write Intensive 12Gbps 512e 2.5in Hot Plug PM5-M Dr, 10 DWPD, 29200 TBW, CK | G83: 1 | H83: =VLOOKUP(L83,Tabella_prezzi!$A$3:$K$303,9,FALSE) -> 0 | I83: =VLOOKUP(L83,Tabella_prezzi!$A$3:$K$303,3,FALSE) -> OpzSSD-WI1600GB | K83: =VLOOKUP(L83,Tabella_prezzi!$A$3:$K$303,4,FALSE) -> 9999 | L83: L4N54 | M83: =VLOOKUP(L83,Tabella_prezzi!$A$3:$K$303,6,FALSE) -> TS3L4-WI1600GB
B84: Hard Drives | L84: L4N16 | M84: =VLOOKUP(L84,Tabella_prezzi!$A$3:$K$303,6,FALSE) -> TS3L4-MU800GB
A86: TS3L4_PSU
A87: Dual, Hot-plug, Redundant Power Supply (1+1), 750W | B87: Power Supply | D87: Dual, Hot-plug, Redundant Power Supply (1+1), 750W | G87: ="" ->  | I87: ="" ->  | L87: ="" ->  | M87: ="" -> 
A88: Dual, Hot-plug Power Supply (1+1), 1100W | B88: Power Supply | D88: =VLOOKUP(L88,Tabella_prezzi!$A$3:$K$303,8,FALSE) -> Dual, Hot-plug Power Supply (1+1), 1100W in sostituzione di quelli in configurazione BASE | G88: 1 | H88: =VLOOKUP(L88,Tabella_prezzi!$A$3:$K$303,9,FALSE) -> TS3-OpzA201100W | I88: =VLOOKUP(L88,Tabella_prezzi!$A$3:$K$303,3,FALSE) -> OpzPSU1100W | K88: =VLOOKUP(L88,Tabella_prezzi!$A$3:$K$303,4,FALSE) -> 178 | L88: L4N49 | M88: =VLOOKUP(L88,Tabella_prezzi!$A$3:$K$303,6,FALSE) -> TS3L4-PSU1100W
A89: Dual, Hot-plug Power Supply (1+1), 2000W | B89: Power Supply | D89: =VLOOKUP(L89,Tabella_prezzi!$A$3:$K$303,8,FALSE) -> Dual, Hot-plug Power Supply (1+1), 2000W in sostituzione di quelli in configurazione BASE | G89: 1 | H89: =VLOOKUP(L89,Tabella_prezzi!$A$3:$K$303,9,FALSE) -> TS3-OpzA202000W | I89: =VLOOKUP(L89,Tabella_prezzi!$A$3:$K$303,3,FALSE) -> OpzPSU2000W | K89: =VLOOKUP(L89,Tabella_prezzi!$A$3:$K$303,4,FALSE) -> 306 | L89: L4N50 | M89: =VLOOKUP(L89,Tabella_prezzi!$A$3:$K$303,6,FALSE) -> TS3L4-PSU2000W
A91: TS3L4_AddCPU
A92: ="" -> 
A93: Aggiungere Secondo Processore
A96: Cavo “patch” di 3 mt RJ45 certificato per gigabit ethernet | D96: =VLOOKUP(L96,Tabella_prezzi!$A$3:$K$303,8,FALSE) -> Cavo “patch” di 3 mt RJ45 certificato per gigabit ethernet | G96: ="" ->  | H96: =VLOOKUP(L96,Tabella_prezzi!$A$3:$K$303,9,FALSE) -> TS3-OpzA20RJ45 | I96: =VLOOKUP(L96,Tabella_prezzi!$A$3:$K$303,3,FALSE) -> OpzRJ45 3m | K96: =VLOOKUP(L96,Tabella_prezzi!$A$3:$K$303,4,FALSE) -> 3 | L96: L4N62 | M96: =VLOOKUP(L96,Tabella_prezzi!$A$3:$K$303,6,FALSE) -> TS3L4-RJ453M
A97: Dell Networking, Cable, SFP+ to SFP+, 10GbE, Copper Twinax Direct Attach Cable, 3 Meter | D97: Dell Networking, Cable, SFP+ to SFP+, 10GbE, Copper Twinax Direct Attach Cable, 3 Meter | H97: =VLOOKUP(L97,Tabella_prezzi!$A$3:$K$303,9,FALSE) -> TS3-OpzA20DAC3S | I97: =VLOOKUP(L97,Tabella_prezzi!$A$3:$K$303,3,FALSE) -> 0 | K97: =VLOOKUP(L97,Tabella_prezzi!$A$3:$K$303,4,FALSE) -> 84 | L97: L4N91 | M97: =VLOOKUP(L97,Tabella_prezzi!$A$3:$K$303,6,FALSE) -> TS3L4-DAC3SFP
A98: Mellanox LinkX 100Gb/s Passive Copper DAC 3m per scheda TS3L4-CONX6DP | D98: Mellanox LinkX 100Gb/s Passive Copper DAC 3m | H98: =VLOOKUP(L98,Tabella_prezzi!$A$3:$K$303,9,FALSE) -> TS3-OpzA20ML100 | I98: =VLOOKUP(L98,Tabella_prezzi!$A$3:$K$303,3,FALSE) -> 0 | K98: =VLOOKUP(L98,Tabella_prezzi!$A$3:$K$303,4,FALSE) -> 258 | L98: L4N92 | M98: =VLOOKUP(L98,Tabella_prezzi!$A$3:$K$303,6,FALSE) -> TS3L4-MLX100M3
A99: Dell Cable SFP28 to SFP28 25GbE Passive Copper Twinax Direct Attach Cable 3 Meter | D99: Dell Cable SFP28 to SFP28 25GbE Passive Copper Twinax Direct Attach Cable 3 Meter | H99: =VLOOKUP(L99,Tabella_prezzi!$A$3:$K$303,9,FALSE) -> TS3-OpzA20DAC28 | I99: =VLOOKUP(L99,Tabella_prezzi!$A$3:$K$303,3,FALSE) -> 0 | K99: =VLOOKUP(L99,Tabella_prezzi!$A$3:$K$303,4,FALSE) -> 99 | L99: L4N93 | M99: =VLOOKUP(L99,Tabella_prezzi!$A$3:$K$303,6,FALSE) -> TS3L4-DAC3SFP28
A100: Cable, SFP+ to SFP+, 10GbE, Copper Twinax Direct Attach Cable, 3 Meter | D100: =VLOOKUP(L100,Tabella_prezzi!$A$3:$K$303,8,FALSE) -> Cable, SFP+ to SFP+, 10GbE, Copper Twinax Direct Attach Cable, 3 Meter | G100: ="" ->  | H100: =VLOOKUP(L100,Tabella_prezzi!$A$3:$K$303,9,FALSE) -> 0 | I100: =VLOOKUP(L100,Tabella_prezzi!$A$3:$K$303,3,FALSE) -> OpzDAC3M | K100: =VLOOKUP(L100,Tabella_prezzi!$A$3:$K$303,4,FALSE) -> 9999 | L100: L4N67 | M100: =VLOOKUP(L100,Tabella_prezzi!$A$3:$K$303,6,FALSE) -> TS3L4-DAC3M
A101: Transceiver, SFP+, 10GbE, SR, 850nm Wavelength, 300m | D101: =VLOOKUP(L101,Tabella_prezzi!$A$3:$K$303,8,FALSE) -> Transceiver, SFP+, 10GbE, SR, 850nm Wavelength, 300m Reach | H101: =VLOOKUP(L101,Tabella_prezzi!$A$3:$K$303,9,FALSE) -> 0 | I101: =VLOOKUP(L101,Tabella_prezzi!$A$3:$K$303,3,FALSE) -> Opz10GBIC | K101: =VLOOKUP(L101,Tabella_prezzi!$A$3:$K$303,4,FALSE) -> 90 | L101: L4N66 | M101: =VLOOKUP(L101,Tabella_prezzi!$A$3:$K$303,6,FALSE) -> TS3L4-10GBIC
A102: Mellanox LinkX 100Gb/s Passive Copper Cables - attacco cavo diretto - 3 m - nero | D102: =VLOOKUP(L102,Tabella_prezzi!$A$3:$K$303,8,FALSE) -> Mellanox LinkX 100Gb/s Passive Copper Cables - attacco cavo diretto - 3 m - nero | H102: =VLOOKUP(L102,Tabella_prezzi!$A$3:$K$303,9,FALSE) -> 0 | I102: =VLOOKUP(L102,Tabella_prezzi!$A$3:$K$303,3,FALSE) -> OpzLINKX3m | K102: =VLOOKUP(L102,Tabella_prezzi!$A$3:$K$303,4,FALSE) -> 9999 | L102: L4N63 | M102: =VLOOKUP(L102,Tabella_prezzi!$A$3:$K$303,6,FALSE) -> TS3L4-MEL100M3
A103: Mellanox LinkX 100Gb/s VCSEL-Based Active Optical Cables - cavo InfiniBand - 10 m | D103: =VLOOKUP(L103,Tabella_prezzi!$A$3:$K$303,8,FALSE) -> Mellanox LinkX 100Gb/s VCSEL-Based Active Optical Cables - cavo InfiniBand - 10 m | H103: =VLOOKUP(L103,Tabella_prezzi!$A$3:$K$303,9,FALSE) -> 0 | I103: =VLOOKUP(L103,Tabella_prezzi!$A$3:$K$303,3,FALSE) -> OpzLINKX10m | K103: =VLOOKUP(L103,Tabella_prezzi!$A$3:$K$303,4,FALSE) -> 9999 | L103: L4N64 | M103: =VLOOKUP(L103,Tabella_prezzi!$A$3:$K$303,6,FALSE) -> TS3L4-MEL100M10
A104: Dell EMC PowerEdge QSFP28 SR4 100GbE 85C optic | D104: =VLOOKUP(L104,Tabella_prezzi!$A$3:$K$303,8,FALSE) -> Dell EMC PowerEdge QSFP28 SR4 100GbE 85C optic Customer Install | H104: =VLOOKUP(L104,Tabella_prezzi!$A$3:$K$303,9,FALSE) -> 0 | I104: =VLOOKUP(L104,Tabella_prezzi!$A$3:$K$303,3,FALSE) -> OpzQSFP28 | K104: =VLOOKUP(L104,Tabella_prezzi!$A$3:$K$303,4,FALSE) -> 9999 | L104: L4N65 | M104: =VLOOKUP(L104,Tabella_prezzi!$A$3:$K$303,6,FALSE) -> TS3L4-QSFP28
A105: Dell Networking Cable, OM4 LC/LC Fiber Cable, 3 Meter | D105: =VLOOKUP(L105,Tabella_prezzi!$A$3:$K$303,8,FALSE) -> Dell Networking Cable, OM4 LC/LC Fiber Cable, 3 Meter | G105: ="" ->  | H105: =VLOOKUP(L105,Tabella_prezzi!$A$3:$K$303,9,FALSE) -> TS3L4-OM4M3 | I105: =VLOOKUP(L105,Tabella_prezzi!$A$3:$K$303,3,FALSE) -> 0 | K105: =VLOOKUP(L105,Tabella_prezzi!$A$3:$K$303,4,FALSE) -> 69 | L105: L4N130 | M105: =VLOOKUP(L105,Tabella_prezzi!$A$3:$K$303,6,FALSE) -> TS3L4-OM4M3
A107: TS3L4_CTRL
G108: ="" ->  | I108: ="" ->  | L108: ="" ->  | M108: ="" -> 
A109: PERC H740P RAID Controller, 8GB NV Cache | B109: PERC H740P RAID Controller, 8GB NV Cache | G109: ="" ->  | I109: ="" ->  | L109: ="" ->  | M109: ="" -> 
A110: [TS3L4-HBA330-L] HBA330 12Gbps SAS HBA Controller (NON-RAID) | B110: [TS3L4-HBA330-L] HBA330 12Gbps SAS HBA Controller (NON-RAID) | D110: HBA330 12Gbps SAS HBA Controller | G110: 1 | H110: =VLOOKUP(L110,Tabella_prezzi!$A$3:$K$303,9,FALSE) -> TS3-OpzA20HBA3L | I110: =VLOOKUP(L110,Tabella_prezzi!$A$3:$K$303,3,FALSE) -> 0 | K110: =VLOOKUP(L110,Tabella_prezzi!$A$3:$K$303,4,FALSE) -> 180 | L110: L4N34 | M110: =VLOOKUP(L110,Tabella_prezzi!$A$3:$K$303,6,FALSE) -> TS3L4-HBA330-L
A112: =Lotto4_R740XD_1!H4 ->  | B112: =IF(A112="",A109,"Pippo") -> PERC H740P RAID Controller, 8GB NV Cache | C112: Conf 1
A113: =Lotto4_R740XD_2!H4 ->  | C113: Conf 2
A114: =Lotto4_R740XD_3!H4 ->  | C114: Conf 3
A115: TS3L4_CMA
A116: No | G116: ="" ->  | I116: ="" ->  | L116: ="" ->  | M116: ="" -> 
A117: 2U Cable Management Arm | B117: CMA | C117: TS3L4-CMA2U | D117: 2U Cable Management Arm | G117: 1 | H117: =VLOOKUP(L117,Tabella_prezzi!$A$3:$K$303,9,FALSE) -> TS3-OpzA20CMA2U | I117: =VLOOKUP(L117,Tabella_prezzi!$A$3:$K$303,3,FALSE) -> 0 | K117: =VLOOKUP(L117,Tabella_prezzi!$A$3:$K$303,4,FALSE) -> 50 | L117: L4N135 | M117: =VLOOKUP(L117,Tabella_prezzi!$A$3:$K$303,6,FALSE) -> TS3L4-CMA2U
A120: TS3L4_BEZEL
A121: No Bezel | B121: Bezel | D121: No Bezel | G121: ="" ->  | I121: ="" ->  | L121: ="" ->  | M121: ="" -> 
A122: -=-=-=-=-=-=-=-=-=-=-=-=-=-=-=-=-20%-=-=-=-=-=-=-=-=-=-=-=-=-=-=-=-=- | G122: ="" ->  | I122: ="" ->  | L122: ="" ->  | M122: ="" -> 
A123: [TS3L4-BZLLCD] LCD Security Bezel | B123: Bezel | C123: TS3L4-BZLLCD | D123: LCD Security Bezel | G123: 1 | H123: =VLOOKUP(L123,Tabella_prezzi!$A$3:$K$303,9,FALSE) -> TS3-OpzA20BZLCD | I123: =VLOOKUP(L123,Tabella_prezzi!$A$3:$K$303,3,FALSE) -> OpzBezelLCD | K123: =VLOOKUP(L123,Tabella_prezzi!$A$3:$K$303,4,FALSE) -> 63 | L123: L4N68 | M123: =VLOOKUP(L123,Tabella_prezzi!$A$3:$K$303,6,FALSE) -> TS3L4-BZLLCD
A124: [TS3L4-BZLSTD] Standard Security Bezel | B124: Bezel | C124: TS3L4-BZLSTD | D124: Standard Security Bezel | G124: 1 | H124: =VLOOKUP(L124,Tabella_prezzi!$A$3:$K$303,9,FALSE) -> TS3-OpzA20BZSTD | I124: =VLOOKUP(L124,Tabella_prezzi!$A$3:$K$303,3,FALSE) -> OpzBezelSTD | K124: =VLOOKUP(L124,Tabella_prezzi!$A$3:$K$303,4,FALSE) -> 42 | L124: L4N69 | M124: =VLOOKUP(L124,Tabella_prezzi!$A$3:$K$303,6,FALSE) -> TS3L4-BZLSTD
A126: TS3L4_ISDM
A127: No ISDM | G127: ="" ->  | I127: ="" ->  | L127: ="" ->  | M127: ="" -> 
A128: -=-=-=-=-=-=-=-=-=-=-=-=-=-=-=-=-20%-=-=-=-=-=-=-=-=-=-=-=-=-=-=-=-=- | G128: ="" ->  | I128: ="" ->  | L128: ="" ->  | M128: ="" -> 
A129: [TS3L4-ISDM32GB] ISDM and Combo Card Reader with 2 x 32GB microSDHC/SDXC Card | D129: =VLOOKUP(L129,Tabella_prezzi!$A$3:$K$303,8,FALSE) -> ISDM and Combo Card Reader with 2 x 32GB microSDHC/SDXC Card | G129: 1 | H129: =VLOOKUP(L129,Tabella_prezzi!$A$3:$K$303,9,FALSE) -> TS3-OpzA20ISDM | I129: =VLOOKUP(L129,Tabella_prezzi!$A$3:$K$303,3,FALSE) -> OpzISDM | K129: =VLOOKUP(L129,Tabella_prezzi!$A$3:$K$303,4,FALSE) -> 134 | L129: L4N70 | M129: =VLOOKUP(L129,Tabella_prezzi!$A$3:$K$303,6,FALSE) -> TS3L4-ISDM32GB
A131: TS3L4_OME
A132: No OMEA | G132: ="" ->  | I132: ="" ->  | L132: ="" ->  | M132: ="" -> 
A133: [TS3L4-OMEA] OpenManage Enterprise Advanced | B133: OpenManage Enterprise Advanced | C133: TS3L4-OMEA | D133: OpenManage Enterprise Advanced | G133: 1 | H133: =VLOOKUP(L133,Tabella_prezzi!$A$3:$K$303,9,FALSE) -> TS3-OpzA20OMEA | I133: =VLOOKUP(L133,Tabella_prezzi!$A$3:$K$303,3,FALSE) -> 0 | K133: =VLOOKUP(L133,Tabella_prezzi!$A$3:$K$303,4,FALSE) -> 214 | L133: L4N96 | M133: =VLOOKUP(L133,Tabella_prezzi!$A$3:$K$303,6,FALSE) -> TS3L4-OMEA
A135: TS3L4_WARRANTY
A136: Manutenzione in garanzia (36 mesi) | B136: Dell Services: Extended Service | D136: RESTRICTED:ProSupport One Data Center and Next Business Day Onsite Service Volume Low, 39 Month(s) | G136: ="" ->  | I136: ="" ->  | L136: ="" ->  | M136: ="" -> 
A137: [TS3L4-5Y] Manutenzione in garanzia (60 mesi) | B137: Dell Services: Extended Service | D137: =VLOOKUP(L137,Tabella_prezzi!$A$3:$K$303,8,FALSE) -> Estensione della manutenzione in garanzia per ulteriori 24 mesi | G137: 1 | H137: =VLOOKUP(L137,Tabella_prezzi!$A$3:$K$498,9,FALSE) -> L4N28-OpzEstensione24 | I137: =VLOOKUP(L137,Tabella_prezzi!$A$3:$K$498,3,FALSE) -> OpzEstensione24 | J137: =VLOOKUP(L137,Tabella_prezzi!$A$3:$K$498,4,FALSE) -> 79 | L137: L4N28 | M137: =VLOOKUP(L137,Tabella_prezzi!$A$3:$K$303,6,FALSE) -> TS3L4-5Y
A139: TS34_KYHDD
A140: ="" ->  | B140: Keep Your Hard Drive | G140: ="" ->  | I140: ="" ->  | L140: ="" ->  | M140: ="" -> 
A141: Hard Disk Retention | B141: Keep Your Hard Drive | D141: =VLOOKUP(L141,Tabella_prezzi!$A$3:$K$303,8,FALSE) -> Hard Disk Retention 36 mesi | G141: 1 | H141: =VLOOKUP(L141,Tabella_prezzi!$A$3:$K$498,9,FALSE) -> L4N27-OpzHDDRetention | I141: =VLOOKUP(L141,Tabella_prezzi!$A$3:$K$498,3,FALSE) -> OpzHDDRetention | J141: =VLOOKUP(L141,Tabella_prezzi!$A$3:$K$498,4,FALSE) -> 32 | L141: L4N27 | M141: =VLOOKUP(L141,Tabella_prezzi!$A$3:$K$303,6,FALSE) -> TS3L4-HDRTNTN
A142: Hard Disk Retention (60 mesi) | B142: Keep Your Hard Drive | D142: =VLOOKUP(L142,Tabella_prezzi!$A$3:$K$303,8,FALSE) -> Hard Disk Retention 60 mesi | G142: 1 | H142: =VLOOKUP(L142,Tabella_prezzi!$A$3:$K$498,9,FALSE) -> L4N30-OpzHDDRetention60 | I142: =VLOOKUP(L142,Tabella_prezzi!$A$3:$K$498,3,FALSE) -> OpzHDDRetention | J142: =VLOOKUP(L142,Tabella_prezzi!$A$3:$K$498,4,FALSE) -> 53 | L142: L4N30 | M142: =VLOOKUP(L142,Tabella_prezzi!$A$3:$K$303,6,FALSE) -> TS3L4-HDRTNTN60
A144: TS3L2_UPS
A145: ="" ->  | G145: ="" ->  | I145: ="" ->  | L145: ="" ->  | M145: ="" -> 
A146: [TS3L2-UPS] UPS PowerMe RPMM/9K - 3000VA Tower | D146: =VLOOKUP(L146,Tabella_prezzi!$A$3:$K$303,8,FALSE) -> 0 | G146: 1 | H146: =VLOOKUP(L146,Tabella_prezzi!$A$3:$K$498,9,FALSE) -> TPMM/ 3K | I146: =VLOOKUP(L146,Tabella_prezzi!$A$3:$K$498,3,FALSE) -> OpzUps (3000VA) | J146: =VLOOKUP(L146,Tabella_prezzi!$A$3:$K$498,4,FALSE) -> 300 | L146: L2N10 | M146: =VLOOKUP(L146,Tabella_prezzi!$A$3:$K$303,6,FALSE) -> TS3L2-UPS
A148: TS3L2_GUI
A149: ="" ->  | G149: ="" ->  | I149: ="" ->  | L149: ="" ->  | M149: ="" -> 
A150: [TS3L2-GUI] Monitor DELL E1920H + Keyboard + Mouse | D150: =VLOOKUP(L150,Tabella_prezzi!$A$3:$K$303,8,FALSE) -> Monitor 19" E1920H, Mouse MS116, Tastiera KB216 | G150: 1 | H150: =VLOOKUP(L150,Tabella_prezzi!$A$3:$K$498,9,FALSE) -> 580-ADHM | I150: =VLOOKUP(L150,Tabella_prezzi!$A$3:$K$498,3,FALSE) -> OpzGUI per tower | J150: =VLOOKUP(L150,Tabella_prezzi!$A$3:$K$498,4,FALSE) -> 104 | L150: L2N11 | M150: =VLOOKUP(L150,Tabella_prezzi!$A$3:$K$303,6,FALSE) -> TS3L2-GUI
A152: SFP+ Transceivers
A153: Transceiver, SFP+ SR Optic for SFP+ ports (Intel X710) | D153: =VLOOKUP(L153,Tabella_prezzi!$A$3:$K$303,8,FALSE) -> SFP+ SR Optic for SFP+ ports (Intel X710) | G153: 1 | H153: =VLOOKUP(L153,Tabella_prezzi!$A$3:$K$498,9,FALSE) -> TS3-OpzA20O10GB | I153: =VLOOKUP(L153,Tabella_prezzi!$A$3:$K$498,3,FALSE) -> 0 | K153: =VLOOKUP(L153,Tabella_prezzi!$A$3:$K$303,4,FALSE) -> 126 | L153: L4N109 | M153: =VLOOKUP(L153,Tabella_prezzi!$A$3:$K$303,6,FALSE) -> TS3L4-OT10GB
B154: =ConfigurationTS3L4!$A$172:$A$186
A155: PCI1 | B155: =SE($N$75="SW";ConfigurationTS3L4!$A$283:$A$300;SE($N$75="DW";ConfigurationTS3L4!$A$240:$A$259;ConfigurationTS3L4!$A$172:$A$186)) | H155: =EXACT(B155,B156) -> FALSE
A156: PCI2 | B156: =SE($N$75="SW";ConfigurationTS3L4!$A$172:$A$186;SE($N$75="DW";ConfigurationTS3L4!$A$322:$A$322;ConfigurationTS3L4!$A$172:$A$186)) | H156: =EXACT(B156,B157) -> FALSE
A157: PCI3 | B157: =SE($N$75="SW";ConfigurationTS3L4!$A$172:$A$186;SE($N$75="DW";ConfigurationTS3L4!$A$189:$A$204;ConfigurationTS3L4!$A$172:$A$186))
A158: PCI4 | B158: =SE($N$75="SW";ConfigurationTS3L4!$A$303:$A$319;SE($N$75="DW";ConfigurationTS3L4!$A$262:$A$280;SE($N$75="2CPU";ConfigurationTS3L4!$A$189:$A$204;ConfigurationTS3L4!$A$103:$A$104)))
A159: PCI5 | B159: =SE($N$86="DW";ConfigurationTS3L4!$A$322;SE($N$75="SW";ConfigurationTS3L4!$A$172:$A$186;SE($N$75="DW";ConfigurationTS3L4!$A$172:$A$186;SE($N$75="2CPU";ConfigurationTS3L4!$A$172:$A$186;ConfigurationTS3L4!$A$103:$A$104))))
A160: PCI6 | B160: =SE($N$9="VxFlex";ConfigurationTS3L4!$A$230;ConfigurationTS3L4!$A$207:$A$218)
A161: PCI7 | B161: =SE($N$9="VxFlex";ConfigurationTS3L4!$A$235;SE($N$98="DW";ConfigurationTS3L4!$A$322;SE($N$75="1CPU";ConfigurationTS3L4!$A$103:$A$104;ConfigurationTS3L4!$A$172:$A$186)))
A162: PCI8 | B162: =SE($N$9="VxFlex";ConfigurationTS3L4!$A$235;SE($N$75="SW";ConfigurationTS3L4!$A$303:$A$319;SE($N$75="DW";ConfigurationTS3L4!$A$240:$A$259;SE($N$75="2CPU";ConfigurationTS3L4!$A$221:$A$237;ConfigurationTS3L4!$A$103:$A$104))))
A165: TS3L2_PCI_A
A166: ="" ->  | G166: ="" ->  | I166: ="" ->  | L166: ="" ->  | M166: ="" -> 
A167: [TS3L4-LAN1] Broadcom 5719 Quad Port 1Gb Network Interface Card, | D167: =VLOOKUP(L167,Tabella_prezzi!$A$3:$K$303,8,FALSE) -> Scheda LAN 5719 QP 1Gb FULL | F167: 540-BBCX | G167: 1 | H167: =VLOOKUP(L167,Tabella_prezzi!$A$3:$K$303,9,FALSE) -> L4N05-OpzGigabit | I167: =VLOOKUP(L167,Tabella_prezzi!$A$3:$K$303,3,FALSE) -> OpzGigabit | J167: =VLOOKUP(L167,Tabella_prezzi!$A$3:$K$303,4,FALSE) -> 26 | L167: L4N05 | M167: =VLOOKUP(L167,Tabella_prezzi!$A$3:$K$303,6,FALSE) -> TS3L4-LAN1
A168: [TS3L4-LAN10] Broadcom 57412 Dual Port 10Gb, SFP+, PCIe Adapter | D168: =VLOOKUP(L168,Tabella_prezzi!$A$3:$K$303,8,FALSE) -> Scheda 57412 DP 10Gb SFP+ FULL | F168: 540-BBCX | G168: 1 | H168: =VLOOKUP(L168,Tabella_prezzi!$A$3:$K$303,9,FALSE) -> L4N06-OpzGigabit10Gbps | I168: =VLOOKUP(L168,Tabella_prezzi!$A$3:$K$303,3,FALSE) -> OpzGigabit10Gbps | J168: =VLOOKUP(L168,Tabella_prezzi!$A$3:$K$303,4,FALSE) -> 126 | L168: L4N06 | M168: =VLOOKUP(L168,Tabella_prezzi!$A$3:$K$303,6,FALSE) -> TS3L4-LAN10
A169: [TS3L4-LAN25] QLogic 41262 Dual Port 25Gb SFP28 Adapter | D169: =VLOOKUP(L169,Tabella_prezzi!$A$3:$K$303,8,FALSE) -> Scheda 41262 DP 25Gb SFP28 FULL | F169: 540-BBCX | G169: 1 | H169: =VLOOKUP(L169,Tabella_prezzi!$A$3:$K$303,9,FALSE) -> L4N07-OpzGigabit25Gbps | I169: =VLOOKUP(L169,Tabella_prezzi!$A$3:$K$303,3,FALSE) -> OpzGigabit25Gbps | J169: =VLOOKUP(L169,Tabella_prezzi!$A$3:$K$303,4,FALSE) -> 341 | L169: L4N07 | M169: =VLOOKUP(L169,Tabella_prezzi!$A$3:$K$303,6,FALSE) -> TS3L4-LAN25
A170: [TS3L4CNA10] QLogic 41112 Dual Port 10Gb SFP+ Adapter | D170: =VLOOKUP(L170,Tabella_prezzi!$A$3:$K$303,8,FALSE) -> Scheda 41112 DP 10Gb SFP+ FULL | F170: 540-BBCX | G170: 1 | H170: =VLOOKUP(L170,Tabella_prezzi!$A$3:$K$303,9,FALSE) -> L4N08-OpzCNA10Gbps | I170: =VLOOKUP(L170,Tabella_prezzi!$A$3:$K$303,3,FALSE) -> OpzGigabit10Gbps CNA | J170: =VLOOKUP(L170,Tabella_prezzi!$A$3:$K$303,4,FALSE) -> 149 | L170: L4N08 | M170: =VLOOKUP(L170,Tabella_prezzi!$A$3:$K$303,6,FALSE) -> TS3L4-CNA10
A171: [TS3L4-FC16] Qlogic 2692 Dual Port 16Gb Fibre Channel HBA | D171: =VLOOKUP(L171,Tabella_prezzi!$A$3:$K$303,8,FALSE) -> Scheda FC 2692 DP 16Gb HBA FULL | F171: 540-BBCX | G171: 1 | H171: =VLOOKUP(L171,Tabella_prezzi!$A$3:$K$303,9,FALSE) -> L4N09-OpzFibreChannel | I171: =VLOOKUP(L171,Tabella_prezzi!$A$3:$K$303,3,FALSE) -> OpzFibreChannel | J171: =VLOOKUP(L171,Tabella_prezzi!$A$3:$K$303,4,FALSE) -> 309 | L171: L4N09 | M171: =VLOOKUP(L171,Tabella_prezzi!$A$3:$K$303,6,FALSE) -> TS3L4-FC16
A172: [TS3L4-NVME1600] Dell 1.6TB, NVMe, Mixed Use Express Flash, HHHL | D172: =VLOOKUP(L172,Tabella_prezzi!$A$3:$K$303,8,FALSE) -> NVME 1,6TB MU HHHL, 3 DWPD | F172: 540-BBCX | G172: 1 | H172: =VLOOKUP(L172,Tabella_prezzi!$A$3:$K$303,9,FALSE) -> L4N17-OpzNVME1,6TB | I172: =VLOOKUP(L172,Tabella_prezzi!$A$3:$K$303,3,FALSE) -> OpzNVME1,6TB | J172: =VLOOKUP(L172,Tabella_prezzi!$A$3:$K$303,4,FALSE) -> 1050 | L172: L4N17 | M172: =VLOOKUP(L172,Tabella_prezzi!$A$3:$K$303,6,FALSE) -> TS3L4-NVME1600
A173: [TS3L4-NVME800] Dell 1.6TB, NVMe, Mixed Use Express Flash, HHHL | D173: =VLOOKUP(L173,Tabella_prezzi!$A$3:$K$303,8,FALSE) -> NVME 1,6TB MU HHHL, 3 DWPD | F173: 540-BBCX | G173: 1 | H173: =VLOOKUP(L173,Tabella_prezzi!$A$3:$K$303,9,FALSE) -> L4N18-OpzNVME800GB | I173: =VLOOKUP(L173,Tabella_prezzi!$A$3:$K$303,3,FALSE) -> OpzNVME800GB | J173: =VLOOKUP(L173,Tabella_prezzi!$A$3:$K$303,4,FALSE) -> 919 | L173: L4N18 | M173: =VLOOKUP(L173,Tabella_prezzi!$A$3:$K$303,6,FALSE) -> TS3L4-NVME800
A174: -=-=-=-=-=-=-=-=-=-=-=-=-=-=-=-=-20%-=-=-=-=-=-=-=-=-=-=-=-=-=-=-=-=- | G174: ="" ->  | I174: ="" ->  | L174: ="" ->  | M174: ="" -> 
A175: [TS3L4-BOSS480] BOSS controller card, full height, with 2 480G M.2 Drives | D175: =VLOOKUP(L175,Tabella_prezzi!$A$3:$K$303,8,FALSE) -> BOSS controller card, full height, with 2 480G M.2 Drives | G175: 1 | I175: =VLOOKUP(L175,Tabella_prezzi!$A$3:$K$303,3,FALSE) -> 0 | K175: =VLOOKUP(L175,Tabella_prezzi!$A$3:$K$303,4,FALSE) -> 748 | L175: L4N33 | M175: =VLOOKUP(L175,Tabella_prezzi!$A$3:$K$303,6,FALSE) -> TS3L4-BOSS480
A176: [TS3L4-SAS12] SAS 12Gbps HBA External Controller, Full Height | D176: =VLOOKUP(L176,Tabella_prezzi!$A$3:$K$303,8,FALSE) -> SAS 12Gbps HBA External Controller, Full Height | G176: 1 | H176: =VLOOKUP(L176,Tabella_prezzi!$A$3:$K$303,9,FALSE) -> TS3-OpzA20SAS12 | I176: =VLOOKUP(L176,Tabella_prezzi!$A$3:$K$303,3,FALSE) -> 0 | K176: =VLOOKUP(L176,Tabella_prezzi!$A$3:$K$303,4,FALSE) -> 92 | L176: L4N101 | M176: =VLOOKUP(L176,Tabella_prezzi!$A$3:$K$303,6,FALSE) -> TS3L4-SAS12
A177: [TS3L4-H840] PERC H840 RAID Adapter for External MD14XX Only, 8GB NV Cache | D177: =VLOOKUP(L177,Tabella_prezzi!$A$3:$K$303,8,FALSE) -> PERC H840 RAID Adapter for External MD14XX Only, 8GB NV Cache, Full Height | G177: 1 | I177: =VLOOKUP(L177,Tabella_prezzi!$A$3:$K$303,3,FALSE) -> OpzH840 | K177: =VLOOKUP(L177,Tabella_prezzi!$A$3:$K$303,4,FALSE) -> 479 | L177: L4N71 | M177: =VLOOKUP(L177,Tabella_prezzi!$A$3:$K$303,6,FALSE) -> TS3L4-H840
A178: [TS3L4-57416] Broadcom 57416 Dual Port 10Gb, Base-T, PCIe Adapter | D178: =VLOOKUP(L178,Tabella_prezzi!$A$3:$K$303,8,FALSE) -> Broadcom 57416 Dual Port 10Gb, Base-T, PCIe Adapter, Full Height | G178: 1 | I178: =VLOOKUP(L178,Tabella_prezzi!$A$3:$K$303,3,FALSE) -> 0 | K178: =VLOOKUP(L178,Tabella_prezzi!$A$3:$K$303,4,FALSE) -> 334 | L178: L4N46 | M178: =VLOOKUP(L178,Tabella_prezzi!$A$3:$K$303,6,FALSE) -> TS3L4-57416
A179: [TS3L4-X710DP] Intel X710 Dual Port 10Gb Direct Attach, SFP+,PCIe | D179: =VLOOKUP(L179,Tabella_prezzi!$A$3:$K$303,8,FALSE) -> Intel X710 Dual Port 10Gb SFP+ FULL | G179: 1 | I179: =VLOOKUP(L179,Tabella_prezzi!$A$3:$K$303,3,FALSE) -> 0 | K179: =VLOOKUP(L179,Tabella_prezzi!$A$3:$K$303,4,FALSE) -> 342 | L179: L4N42 | M179: =VLOOKUP(L179,Tabella_prezzi!$A$3:$K$303,6,FALSE) -> TS3L4-X710DP
A180: [TS3L4-X710QP] Intel X710 Quad Port 10Gb Direct Attach, SFP+, PCIe | D180: =VLOOKUP(L180,Tabella_prezzi!$A$3:$K$303,8,FALSE) -> Intel X710 Quad Port 10Gb SFP+ FULL | G180: 1 | I180: =VLOOKUP(L180,Tabella_prezzi!$A$3:$K$303,3,FALSE) -> 0 | K180: =VLOOKUP(L180,Tabella_prezzi!$A$3:$K$303,4,FALSE) -> 518 | L180: L4N43 | M180: =VLOOKUP(L180,Tabella_prezzi!$A$3:$K$303,6,FALSE) -> TS3L4-X710QP
A181: [TS3L4-MCX4DP] Mellanox ConnectX-4 Lx Dual Port 25GbE SFP28 FL 2 x SFP28 SR Optic, 25GbE | C181: TS3L4-MCX4DP | D181: Mellanox ConnectX-4 Lx Dual Port 25GbE SFP28 Network Adapter, PCIe Full Height, 2 x SFP28 SR Optic, 25GbE | G181: 1 | H181: =VLOOKUP(L181,Tabella_prezzi!$A$3:$K$303,9,FALSE) -> TS3-OpzA20MCX4F | I181: =VLOOKUP(L181,Tabella_prezzi!$A$3:$K$303,3,FALSE) -> 0 | K181: =VLOOKUP(L181,Tabella_prezzi!$A$3:$K$303,4,FALSE) -> 419 | L181: L4N94 | M181: =VLOOKUP(L181,Tabella_prezzi!$A$3:$K$303,6,FALSE) -> TS3L4-MCX4DP
A183: TS3L2_PCI_B
A184: ="" ->  | G184: ="" ->  | I184: ="" ->  | L184: ="" ->  | M184: ="" -> 
A185: [TS3L4-LAN1] Broadcom 5719 Quad Port 1Gb Network Interface Card, | D185: =VLOOKUP(L185,Tabella_prezzi!$A$3:$K$303,8,FALSE) -> Scheda LAN 5719 QP 1Gb FULL | F185: 540-BBCX | G185: 1 | H185: =VLOOKUP(L185,Tabella_prezzi!$A$3:$K$303,9,FALSE) -> L4N05-OpzGigabit | I185: =VLOOKUP(L185,Tabella_prezzi!$A$3:$K$303,3,FALSE) -> OpzGigabit | J185: =VLOOKUP(L185,Tabella_prezzi!$A$3:$K$303,4,FALSE) -> 26 | L185: L4N05 | M185: =VLOOKUP(L185,Tabella_prezzi!$A$3:$K$303,6,FALSE) -> TS3L4-LAN1
A186: [TS3L4-LAN10] Broadcom 57412 Dual Port 10Gb, SFP+, PCIe Adapter | D186: =VLOOKUP(L186,Tabella_prezzi!$A$3:$K$303,8,FALSE) -> Scheda 57412 DP 10Gb SFP+ FULL | F186: 540-BBCX | G186: 1 | H186: =VLOOKUP(L186,Tabella_prezzi!$A$3:$K$303,9,FALSE) -> L4N06-OpzGigabit10Gbps | I186: =VLOOKUP(L186,Tabella_prezzi!$A$3:$K$303,3,FALSE) -> OpzGigabit10Gbps | J186: =VLOOKUP(L186,Tabella_prezzi!$A$3:$K$303,4,FALSE) -> 126 | L186: L4N06 | M186: =VLOOKUP(L186,Tabella_prezzi!$A$3:$K$303,6,FALSE) -> TS3L4-LAN10
A187: [TS3L4-LAN25] QLogic 41262 Dual Port 25Gb SFP28 Adapter | D187: =VLOOKUP(L187,Tabella_prezzi!$A$3:$K$303,8,FALSE) -> Scheda 41262 DP 25Gb SFP28 FULL | F187: 540-BBCX | G187: 1 | H187: =VLOOKUP(L187,Tabella_prezzi!$A$3:$K$303,9,FALSE) -> L4N07-OpzGigabit25Gbps | I187: =VLOOKUP(L187,Tabella_prezzi!$A$3:$K$303,3,FALSE) -> OpzGigabit25Gbps | J187: =VLOOKUP(L187,Tabella_prezzi!$A$3:$K$303,4,FALSE) -> 341 | L187: L4N07 | M187: =VLOOKUP(L187,Tabella_prezzi!$A$3:$K$303,6,FALSE) -> TS3L4-LAN25
A188: [TS3L4CNA10] QLogic 41112 Dual Port 10Gb SFP+ Adapter | D188: =VLOOKUP(L188,Tabella_prezzi!$A$3:$K$303,8,FALSE) -> Scheda 41112 DP 10Gb SFP+ FULL | F188: 540-BBCX | G188: 1 | H188: =VLOOKUP(L188,Tabella_prezzi!$A$3:$K$303,9,FALSE) -> L4N08-OpzCNA10Gbps | I188: =VLOOKUP(L188,Tabella_prezzi!$A$3:$K$303,3,FALSE) -> OpzGigabit10Gbps CNA | J188: =VLOOKUP(L188,Tabella_prezzi!$A$3:$K$303,4,FALSE) -> 149 | L188: L4N08 | M188: =VLOOKUP(L188,Tabella_prezzi!$A$3:$K$303,6,FALSE) -> TS3L4-CNA10
A189: [TS3L4-FC16] Qlogic 2692 Dual Port 16Gb Fibre Channel HBA | D189: =VLOOKUP(L189,Tabella_prezzi!$A$3:$K$303,8,FALSE) -> Scheda FC 2692 DP 16Gb HBA FULL | F189: 540-BBCX | G189: 1 | H189: =VLOOKUP(L189,Tabella_prezzi!$A$3:$K$303,9,FALSE) -> L4N09-OpzFibreChannel | I189: =VLOOKUP(L189,Tabella_prezzi!$A$3:$K$303,3,FALSE) -> OpzFibreChannel | J189: =VLOOKUP(L189,Tabella_prezzi!$A$3:$K$303,4,FALSE) -> 309 | L189: L4N09 | M189: =VLOOKUP(L189,Tabella_prezzi!$A$3:$K$303,6,FALSE) -> TS3L4-FC16
A190: [TS3L4-NVME1600] Dell 1.6TB, NVMe, Mixed Use Express Flash, HHHL | D190: =VLOOKUP(L190,Tabella_prezzi!$A$3:$K$303,8,FALSE) -> NVME 1,6TB MU HHHL, 3 DWPD | F190: 540-BBCX | G190: 1 | H190: =VLOOKUP(L190,Tabella_prezzi!$A$3:$K$303,9,FALSE) -> L4N17-OpzNVME1,6TB | I190: =VLOOKUP(L190,Tabella_prezzi!$A$3:$K$303,3,FALSE) -> OpzNVME1,6TB | J190: =VLOOKUP(L190,Tabella_prezzi!$A$3:$K$303,4,FALSE) -> 1050 | L190: L4N17 | M190: =VLOOKUP(L190,Tabella_prezzi!$A$3:$K$303,6,FALSE) -> TS3L4-NVME1600
A191: [TS3L4-NVME800] Dell 1.6TB, NVMe, Mixed Use Express Flash, HHHL | D191: =VLOOKUP(L191,Tabella_prezzi!$A$3:$K$303,8,FALSE) -> NVME 1,6TB MU HHHL, 3 DWPD | F191: 540-BBCX | G191: 1 | H191: =VLOOKUP(L191,Tabella_prezzi!$A$3:$K$303,9,FALSE) -> L4N18-OpzNVME800GB | I191: =VLOOKUP(L191,Tabella_prezzi!$A$3:$K$303,3,FALSE) -> OpzNVME800GB | J191: =VLOOKUP(L191,Tabella_prezzi!$A$3:$K$303,4,FALSE) -> 919 | L191: L4N18 | M191: =VLOOKUP(L191,Tabella_prezzi!$A$3:$K$303,6,FALSE) -> TS3L4-NVME800
A192: -=-=-=-=-=-=-=-=-=-=-=-=-=-=-=-=-20%-=-=-=-=-=-=-=-=-=-=-=-=-=-=-=-=- | G192: ="" ->  | I192: ="" ->  | L192: ="" ->  | M192: ="" -> 
A193: [TS3L4-BOSS480] BOSS controller card, full height, with 2 480G M.2 Drives | D193: =VLOOKUP(L193,Tabella_prezzi!$A$3:$K$303,8,FALSE) -> BOSS controller card, full height, with 2 480G M.2 Drives | G193: 1 | I193: =VLOOKUP(L193,Tabella_prezzi!$A$3:$K$303,3,FALSE) -> 0 | K193: =VLOOKUP(L193,Tabella_prezzi!$A$3:$K$303,4,FALSE) -> 748 | L193: L4N33 | M193: =VLOOKUP(L193,Tabella_prezzi!$A$3:$K$303,6,FALSE) -> TS3L4-BOSS480
A194: [TS3L4-SAS12] SAS 12Gbps HBA External Controller, Full Height | D194: =VLOOKUP(L194,Tabella_prezzi!$A$3:$K$303,8,FALSE) -> SAS 12Gbps HBA External Controller, Full Height | G194: 1 | H194: =VLOOKUP(L194,Tabella_prezzi!$A$3:$K$303,9,FALSE) -> TS3-OpzA20SAS12 | I194: =VLOOKUP(L194,Tabella_prezzi!$A$3:$K$303,3,FALSE) -> 0 | K194: =VLOOKUP(L194,Tabella_prezzi!$A$3:$K$303,4,FALSE) -> 92 | L194: L4N101 | M194: =VLOOKUP(L194,Tabella_prezzi!$A$3:$K$303,6,FALSE) -> TS3L4-SAS12
A195: [TS3L4-H840] PERC H840 RAID Adapter for External MD14XX Only, 8GB NV Cache | D195: =VLOOKUP(L195,Tabella_prezzi!$A$3:$K$303,8,FALSE) -> PERC H840 RAID Adapter for External MD14XX Only, 8GB NV Cache, Full Height | G195: 1 | I195: =VLOOKUP(L195,Tabella_prezzi!$A$3:$K$303,3,FALSE) -> OpzH840 | K195: =VLOOKUP(L195,Tabella_prezzi!$A$3:$K$303,4,FALSE) -> 479 | L195: L4N71 | M195: =VLOOKUP(L195,Tabella_prezzi!$A$3:$K$303,6,FALSE) -> TS3L4-H840
A196: [TS3L4-57416] Broadcom 57416 Dual Port 10Gb, Base-T, PCIe Adapter | D196: =VLOOKUP(L196,Tabella_prezzi!$A$3:$K$303,8,FALSE) -> Broadcom 57416 Dual Port 10Gb, Base-T, PCIe Adapter, Full Height | G196: 1 | I196: =VLOOKUP(L196,Tabella_prezzi!$A$3:$K$303,3,FALSE) -> 0 | K196: =VLOOKUP(L196,Tabella_prezzi!$A$3:$K$303,4,FALSE) -> 334 | L196: L4N46 | M196: =VLOOKUP(L196,Tabella_prezzi!$A$3:$K$303,6,FALSE) -> TS3L4-57416
A197: [TS3L4-X710DP] Intel X710 Dual Port 10Gb Direct Attach, SFP+,PCIe | D197: =VLOOKUP(L197,Tabella_prezzi!$A$3:$K$303,8,FALSE) -> Intel X710 Dual Port 10Gb SFP+ FULL | G197: 1 | I197: =VLOOKUP(L197,Tabella_prezzi!$A$3:$K$303,3,FALSE) -> 0 | K197: =VLOOKUP(L197,Tabella_prezzi!$A$3:$K$303,4,FALSE) -> 342 | L197: L4N42 | M197: =VLOOKUP(L197,Tabella_prezzi!$A$3:$K$303,6,FALSE) -> TS3L4-X710DP
A198: [TS3L4-X710QP] Intel X710 Quad Port 10Gb Direct Attach, SFP+, PCIe | D198: =VLOOKUP(L198,Tabella_prezzi!$A$3:$K$303,8,FALSE) -> Intel X710 Quad Port 10Gb SFP+ FULL | G198: 1 | I198: =VLOOKUP(L198,Tabella_prezzi!$A$3:$K$303,3,FALSE) -> 0 | K198: =VLOOKUP(L198,Tabella_prezzi!$A$3:$K$303,4,FALSE) -> 518 | L198: L4N43 | M198: =VLOOKUP(L198,Tabella_prezzi!$A$3:$K$303,6,FALSE) -> TS3L4-X710QP
A199: [TS3L4-CONX6DP] Mellanox ConnectX-6 DX Dual Port 100GbE QFSFP56 Network Adapter | D199: =VLOOKUP(L199,Tabella_prezzi!$A$3:$K$303,8,FALSE) -> Mellanox ConnectX-6 DX Dual Port 100GbE QFSFP56 FULL | G199: 1 | H199: =VLOOKUP(L199,Tabella_prezzi!$A$3:$K$303,9,FALSE) -> TS3-OpzA20CX6DP | I199: =VLOOKUP(L199,Tabella_prezzi!$A$3:$K$303,3,FALSE) -> 0 | K199: =VLOOKUP(L199,Tabella_prezzi!$A$3:$K$303,4,FALSE) -> 812 | L199: L4N40 | M199: =VLOOKUP(L199,Tabella_prezzi!$A$3:$K$303,6,FALSE) -> TS3L4-CONX6DP
A200: [TS3L4-MCX4DP] Mellanox ConnectX-4 Lx Dual Port 25GbE SFP28 FL 2 x SFP28 SR Optic, 25GbE | C200: TS3L4-MCX4DP | D200: Mellanox ConnectX-4 Lx Dual Port 25GbE SFP28 Network Adapter, PCIe Full Height, 2 x SFP28 SR Optic, 25GbE | G200: 1 | H200: =VLOOKUP(L200,Tabella_prezzi!$A$3:$K$303,9,FALSE) -> TS3-OpzA20MCX4F | I200: =VLOOKUP(L200,Tabella_prezzi!$A$3:$K$303,3,FALSE) -> 0 | K200: =VLOOKUP(L200,Tabella_prezzi!$A$3:$K$303,4,FALSE) -> 419 | L200: L4N94 | M200: =VLOOKUP(L200,Tabella_prezzi!$A$3:$K$303,6,FALSE) -> TS3L4-MCX4DP
A202: TS3L2_PCI_C
A203: ="" ->  | G203: ="" ->  | I203: ="" ->  | L203: ="" ->  | M203: ="" -> 
A204: [TS3L4-LAN1-L] Broadcom 5719 Quad Port 1Gb Network Interface Card, | D204: =VLOOKUP(L204,Tabella_prezzi!$A$3:$K$303,8,FALSE) -> Scheda LAN 5719 QP 1Gb LOW | G204: 1 | H204: =VLOOKUP(L204,Tabella_prezzi!$A$3:$K$303,9,FALSE) -> L4N75-OpzGigabitLP | I204: =VLOOKUP(L204,Tabella_prezzi!$A$3:$K$303,3,FALSE) -> OpzGigabit | J204: =VLOOKUP(L204,Tabella_prezzi!$A$3:$K$303,4,FALSE) -> 26 | L204: L4N75 | M204: =VLOOKUP(L204,Tabella_prezzi!$A$3:$K$303,6,FALSE) -> TS3L4-LAN1-L
A205: [TS3L4-LAN10-L] Broadcom 57412 Dual Port 10Gb, SFP+, PCIe Adapter | D205: =VLOOKUP(L205,Tabella_prezzi!$A$3:$K$303,8,FALSE) -> Scheda 57412 DP 10Gb SFP+ LOW | G205: 1 | H205: =VLOOKUP(L205,Tabella_prezzi!$A$3:$K$303,9,FALSE) -> L4N76-OpzGigabit10GbpsLP | I205: =VLOOKUP(L205,Tabella_prezzi!$A$3:$K$303,3,FALSE) -> OpzGigabit10Gbps | J205: =VLOOKUP(L205,Tabella_prezzi!$A$3:$K$303,4,FALSE) -> 126 | L205: L4N76 | M205: =VLOOKUP(L205,Tabella_prezzi!$A$3:$K$303,6,FALSE) -> TS3L4-LAN10-L
A206: [TS3L4-LAN25-L] QLogic 41262 Dual Port 25Gb SFP28 Adapter | D206: =VLOOKUP(L206,Tabella_prezzi!$A$3:$K$303,8,FALSE) -> Scheda 41262 DP 25Gb SFP28 LOW | G206: 1 | H206: =VLOOKUP(L206,Tabella_prezzi!$A$3:$K$303,9,FALSE) -> L4N77-OpzGigabit25GbpsLP | I206: =VLOOKUP(L206,Tabella_prezzi!$A$3:$K$303,3,FALSE) -> OpzGigabit25Gbps | J206: =VLOOKUP(L206,Tabella_prezzi!$A$3:$K$303,4,FALSE) -> 341 | L206: L4N77 | M206: =VLOOKUP(L206,Tabella_prezzi!$A$3:$K$303,6,FALSE) -> TS3L4-LAN25-L
A207: [TS3L4CNA10-L] QLogic 41112 Dual Port 10Gb SFP+ Adapter | D207: =VLOOKUP(L207,Tabella_prezzi!$A$3:$K$303,8,FALSE) -> Scheda 41112 DP 10Gb SFP+ LOW | G207: 1 | H207: =VLOOKUP(L207,Tabella_prezzi!$A$3:$K$303,9,FALSE) -> L4N78-OpzCNA10GbpsLP | I207: =VLOOKUP(L207,Tabella_prezzi!$A$3:$K$303,3,FALSE) -> OpzGigabit10Gbps CNA | J207: =VLOOKUP(L207,Tabella_prezzi!$A$3:$K$303,4,FALSE) -> 149 | L207: L4N78 | M207: =VLOOKUP(L207,Tabella_prezzi!$A$3:$K$303,6,FALSE) -> TS3L4-CNA10-L
A208: [TS3L4-FC16-L] Qlogic 2692 Dual Port 16Gb Fibre Channel HBA | D208: =VLOOKUP(L208,Tabella_prezzi!$A$3:$K$303,8,FALSE) -> Scheda FC 2692 DP 16Gb HBA LOW | G208: 1 | H208: =VLOOKUP(L208,Tabella_prezzi!$A$3:$K$303,9,FALSE) -> L4N79-OpzFibreChannelLP | I208: =VLOOKUP(L208,Tabella_prezzi!$A$3:$K$303,3,FALSE) -> OpzFibreChannel | J208: =VLOOKUP(L208,Tabella_prezzi!$A$3:$K$303,4,FALSE) -> 309 | L208: L4N79 | M208: =VLOOKUP(L208,Tabella_prezzi!$A$3:$K$303,6,FALSE) -> TS3L4-FC16-L
A209: [TS3L4-NVME1600] Dell 1.6TB, NVMe, Mixed Use Express Flash, HHHL | D209: =VLOOKUP(L209,Tabella_prezzi!$A$3:$K$303,8,FALSE) -> NVME 1,6TB MU HHHL, 3 DWPD | G209: 1 | H209: =VLOOKUP(L209,Tabella_prezzi!$A$3:$K$303,9,FALSE) -> L4N17-OpzNVME1,6TB | I209: =VLOOKUP(L209,Tabella_prezzi!$A$3:$K$303,3,FALSE) -> OpzNVME1,6TB | J209: =VLOOKUP(L209,Tabella_prezzi!$A$3:$K$303,4,FALSE) -> 1050 | L209: L4N17 | M209: =VLOOKUP(L209,Tabella_prezzi!$A$3:$K$303,6,FALSE) -> TS3L4-NVME1600
A210: [TS3L4-NVME800] Dell 1.6TB, NVMe, Mixed Use Express Flash, HHHL | D210: =VLOOKUP(L210,Tabella_prezzi!$A$3:$K$303,8,FALSE) -> NVME 1,6TB MU HHHL, 3 DWPD | G210: 1 | H210: =VLOOKUP(L210,Tabella_prezzi!$A$3:$K$303,9,FALSE) -> L4N18-OpzNVME800GB | I210: =VLOOKUP(L210,Tabella_prezzi!$A$3:$K$303,3,FALSE) -> OpzNVME800GB | J210: =VLOOKUP(L210,Tabella_prezzi!$A$3:$K$303,4,FALSE) -> 919 | L210: L4N18 | M210: =VLOOKUP(L210,Tabella_prezzi!$A$3:$K$303,6,FALSE) -> TS3L4-NVME800
A211: -=-=-=-=-=-=-=-=-=-=-=-=-=-=-=-=-20%-=-=-=-=-=-=-=-=-=-=-=-=-=-=-=-=- | G211: ="" ->  | I211: ="" ->  | L211: ="" ->  | M211: ="" -> 
A212: [TS3L4-57416-L] Broadcom 57416 Dual Port 10Gb, Base-T, PCIe Adapter | B212: Broadcom 57416 Dual Port 10Gb, Base-T, PCIe Adapter, Low Profile | C212: TS3L4-57416-L | D212: =VLOOKUP(L212,Tabella_prezzi!$A$3:$K$303,8,FALSE) -> Broadcom 57416 Dual Port 10Gb, Base-T, PCIe Adapter, Low Profile | G212: 1 | H212: =VLOOKUP(L212,Tabella_prezzi!$A$3:$K$303,9,FALSE) -> TS3-OpzA205741L | I212: =VLOOKUP(L212,Tabella_prezzi!$A$3:$K$303,3,FALSE) -> 0 | K212: =VLOOKUP(L212,Tabella_prezzi!$A$3:$K$303,4,FALSE) -> 334 | L212: L4N31 | M212: =VLOOKUP(L212,Tabella_prezzi!$A$3:$K$303,6,FALSE) -> TS3L4-57416-L
A213: [TS3L4-MCX4DP-L] Mellanox ConnectX-4 Lx Dual Port 25GbE SFP28 LP 2 x SFP28 SR Optic, 25GbE | B213: Mellanox ConnectX-4 Lx Dual Port 25GbE SFP28 Network Adapter, Low Profile, 2 x SFP28 SR Optic, 25GbE | C213: TS3L4-MCX4DP-L | D213: Mellanox ConnectX-4 Lx Dual Port 25GbE SFP28 Network Adapter, Low Profile, 2 x SFP28 SR Optic, 25GbE | G213: 1 | H213: =VLOOKUP(L213,Tabella_prezzi!$A$3:$K$303,9,FALSE) -> TS3-OpzA20MCX4L | I213: =VLOOKUP(L213,Tabella_prezzi!$A$3:$K$303,3,FALSE) -> 0 | K213: =VLOOKUP(L213,Tabella_prezzi!$A$3:$K$303,4,FALSE) -> 419 | L213: L4N95 | M213: =VLOOKUP(L213,Tabella_prezzi!$A$3:$K$303,6,FALSE) -> TS3L4-MCX4DP-L
A214: [TS3L4-H840-L] PERC H840 RAID Adapter, Low Profile for External Enclosure | C214: TS3L4-57416-L | D214: =VLOOKUP(L214,Tabella_prezzi!$A$3:$K$303,8,FALSE) -> PERC H840 RAID Adapter, Low Profile for External Enclosure | G214: 1 | H214: =VLOOKUP(L214,Tabella_prezzi!$A$3:$K$303,9,FALSE) -> TS3-OpzA20H840L | I214: =VLOOKUP(L214,Tabella_prezzi!$A$3:$K$303,3,FALSE) -> 0 | K214: =VLOOKUP(L214,Tabella_prezzi!$A$3:$K$303,4,FALSE) -> 479 | L214: L4N102 | M214: =VLOOKUP(L214,Tabella_prezzi!$A$3:$K$303,6,FALSE) -> TS3L4-H840-L
A215: [TS3L4-SAS12-L] SAS 12Gbps HBA External Controller, Low Profile | B215: SAS 12Gbps HBA External Controller, Low Profile | C215: TS3L4-57416-L | D215: =VLOOKUP(L215,Tabella_prezzi!$A$3:$K$303,8,FALSE) -> SAS 12Gbps HBA External Controller, Low Profile | G215: 1 | H215: =VLOOKUP(L215,Tabella_prezzi!$A$3:$K$303,9,FALSE) -> TS3-OpzA20SAS12L | I215: =VLOOKUP(L215,Tabella_prezzi!$A$3:$K$303,3,FALSE) -> 0 | K215: =VLOOKUP(L215,Tabella_prezzi!$A$3:$K$303,4,FALSE) -> 92 | L215: L4N100 | M215: =VLOOKUP(L215,Tabella_prezzi!$A$3:$K$303,6,FALSE) -> TS3L4-SAS12-L
A216: [TS3L4-X710DP-L] Intel X710 Dual Port 10Gb Direct Attach, SFP+,PCIe | B216: Intel X710 2-port 10GbE Adapter, Low Profile Low Profile, Cuskit | C216: TS3L4-X710DP-L | D216: =VLOOKUP(L216,Tabella_prezzi!$A$3:$K$303,8,FALSE) -> Intel X710 Dual Port 10Gb SFP+ LOW | G216: 1 | H216: =VLOOKUP(L216,Tabella_prezzi!$A$3:$K$303,9,FALSE) -> TS3-OpzA20710DL | I216: =VLOOKUP(L216,Tabella_prezzi!$A$3:$K$303,3,FALSE) -> 0 | K216: =VLOOKUP(L216,Tabella_prezzi!$A$3:$K$303,4,FALSE) -> 342 | L216: L4N41 | M216: =VLOOKUP(L216,Tabella_prezzi!$A$3:$K$303,6,FALSE) -> TS3L4-X710DP-L
A218: TS3L2_PCI_D
A219: ="" ->  | G219: ="" ->  | I219: ="" ->  | L219: ="" ->  | M219: ="" -> 
A220: [TS3L4-LAN1] Broadcom 5719 Quad Port 1Gb Network Interface Card, | D220: =VLOOKUP(L220,Tabella_prezzi!$A$3:$K$303,8,FALSE) -> Scheda LAN 5719 QP 1Gb FULL | F220: 540-BBCX | G220: 1 | H220: =VLOOKUP(L220,Tabella_prezzi!$A$3:$K$303,9,FALSE) -> L4N05-OpzGigabit | I220: =VLOOKUP(L220,Tabella_prezzi!$A$3:$K$303,3,FALSE) -> OpzGigabit | J220: =VLOOKUP(L220,Tabella_prezzi!$A$3:$K$303,4,FALSE) -> 26 | L220: L4N05 | M220: =VLOOKUP(L220,Tabella_prezzi!$A$3:$K$303,6,FALSE) -> TS3L4-LAN1
A221: [TS3L4-LAN10] Broadcom 57412 Dual Port 10Gb, SFP+, PCIe Adapter | D221: =VLOOKUP(L221,Tabella_prezzi!$A$3:$K$303,8,FALSE) -> Scheda 57412 DP 10Gb SFP+ FULL | F221: 540-BBCX | G221: 1 | H221: =VLOOKUP(L221,Tabella_prezzi!$A$3:$K$303,9,FALSE) -> L4N06-OpzGigabit10Gbps | I221: =VLOOKUP(L221,Tabella_prezzi!$A$3:$K$303,3,FALSE) -> OpzGigabit10Gbps | J221: =VLOOKUP(L221,Tabella_prezzi!$A$3:$K$303,4,FALSE) -> 126 | L221: L4N06 | M221: =VLOOKUP(L221,Tabella_prezzi!$A$3:$K$303,6,FALSE) -> TS3L4-LAN10
A222: [TS3L4-LAN25] QLogic 41262 Dual Port 25Gb SFP28 Adapter | D222: =VLOOKUP(L222,Tabella_prezzi!$A$3:$K$303,8,FALSE) -> Scheda 41262 DP 25Gb SFP28 FULL | F222: 540-BBCX | G222: 1 | H222: =VLOOKUP(L222,Tabella_prezzi!$A$3:$K$303,9,FALSE) -> L4N07-OpzGigabit25Gbps | I222: =VLOOKUP(L222,Tabella_prezzi!$A$3:$K$303,3,FALSE) -> OpzGigabit25Gbps | J222: =VLOOKUP(L222,Tabella_prezzi!$A$3:$K$303,4,FALSE) -> 341 | L222: L4N07 | M222: =VLOOKUP(L222,Tabella_prezzi!$A$3:$K$303,6,FALSE) -> TS3L4-LAN25
A223: [TS3L4CNA10] QLogic 41112 Dual Port 10Gb SFP+ Adapter | D223: =VLOOKUP(L223,Tabella_prezzi!$A$3:$K$303,8,FALSE) -> Scheda 41112 DP 10Gb SFP+ FULL | F223: 540-BBCX | G223: 1 | H223: =VLOOKUP(L223,Tabella_prezzi!$A$3:$K$303,9,FALSE) -> L4N08-OpzCNA10Gbps | I223: =VLOOKUP(L223,Tabella_prezzi!$A$3:$K$303,3,FALSE) -> OpzGigabit10Gbps CNA | J223: =VLOOKUP(L223,Tabella_prezzi!$A$3:$K$303,4,FALSE) -> 149 | L223: L4N08 | M223: =VLOOKUP(L223,Tabella_prezzi!$A$3:$K$303,6,FALSE) -> TS3L4-CNA10
A224: [TS3L4-FC16] Qlogic 2692 Dual Port 16Gb Fibre Channel HBA | D224: =VLOOKUP(L224,Tabella_prezzi!$A$3:$K$303,8,FALSE) -> Scheda FC 2692 DP 16Gb HBA FULL | F224: 540-BBCX | G224: 1 | H224: =VLOOKUP(L224,Tabella_prezzi!$A$3:$K$303,9,FALSE) -> L4N09-OpzFibreChannel | I224: =VLOOKUP(L224,Tabella_prezzi!$A$3:$K$303,3,FALSE) -> OpzFibreChannel | J224: =VLOOKUP(L224,Tabella_prezzi!$A$3:$K$303,4,FALSE) -> 309 | L224: L4N09 | M224: =VLOOKUP(L224,Tabella_prezzi!$A$3:$K$303,6,FALSE) -> TS3L4-FC16
A225: [TS3L4-NVME1600] Dell 1.6TB, NVMe, Mixed Use Express Flash, HHHL | D225: =VLOOKUP(L225,Tabella_prezzi!$A$3:$K$303,8,FALSE) -> NVME 1,6TB MU HHHL, 3 DWPD | F225: 540-BBCX | G225: 1 | H225: =VLOOKUP(L225,Tabella_prezzi!$A$3:$K$303,9,FALSE) -> L4N17-OpzNVME1,6TB | I225: =VLOOKUP(L225,Tabella_prezzi!$A$3:$K$303,3,FALSE) -> OpzNVME1,6TB | J225: =VLOOKUP(L225,Tabella_prezzi!$A$3:$K$303,4,FALSE) -> 1050 | L225: L4N17 | M225: =VLOOKUP(L225,Tabella_prezzi!$A$3:$K$303,6,FALSE) -> TS3L4-NVME1600
A226: [TS3L4-NVME800] Dell 1.6TB, NVMe, Mixed Use Express Flash, HHHL | D226: =VLOOKUP(L226,Tabella_prezzi!$A$3:$K$303,8,FALSE) -> NVME 1,6TB MU HHHL, 3 DWPD | F226: 540-BBCX | G226: 1 | H226: =VLOOKUP(L226,Tabella_prezzi!$A$3:$K$303,9,FALSE) -> L4N18-OpzNVME800GB | I226: =VLOOKUP(L226,Tabella_prezzi!$A$3:$K$303,3,FALSE) -> OpzNVME800GB | J226: =VLOOKUP(L226,Tabella_prezzi!$A$3:$K$303,4,FALSE) -> 919 | L226: L4N18 | M226: =VLOOKUP(L226,Tabella_prezzi!$A$3:$K$303,6,FALSE) -> TS3L4-NVME800
A227: -=-=-=-=-=-=-=-=-=-=-=-=-=-=-=-=-20%-=-=-=-=-=-=-=-=-=-=-=-=-=-=-=-=- | G227: ="" ->  | I227: ="" ->  | L227: ="" ->  | M227: ="" -> 
A228: [TS3L4-BOSS480] BOSS controller card, full height, with 2 480G M.2 Drives | D228: =VLOOKUP(L228,Tabella_prezzi!$A$3:$K$303,8,FALSE) -> BOSS controller card, full height, with 2 480G M.2 Drives | G228: 1 | I228: =VLOOKUP(L228,Tabella_prezzi!$A$3:$K$303,3,FALSE) -> 0 | K228: =VLOOKUP(L228,Tabella_prezzi!$A$3:$K$303,4,FALSE) -> 748 | L228: L4N33 | M228: =VLOOKUP(L228,Tabella_prezzi!$A$3:$K$303,6,FALSE) -> TS3L4-BOSS480
A229: [TS3L4-SAS12] SAS 12Gbps HBA External Controller, Full Height | D229: =VLOOKUP(L229,Tabella_prezzi!$A$3:$K$303,8,FALSE) -> SAS 12Gbps HBA External Controller, Full Height | G229: 1 | H229: =VLOOKUP(L229,Tabella_prezzi!$A$3:$K$303,9,FALSE) -> TS3-OpzA20SAS12 | I229: =VLOOKUP(L229,Tabella_prezzi!$A$3:$K$303,3,FALSE) -> 0 | K229: =VLOOKUP(L229,Tabella_prezzi!$A$3:$K$303,4,FALSE) -> 92 | L229: L4N101 | M229: =VLOOKUP(L229,Tabella_prezzi!$A$3:$K$303,6,FALSE) -> TS3L4-SAS12
A230: [TS3L4-H840] PERC H840 RAID Adapter for External MD14XX Only, 8GB NV Cache | D230: =VLOOKUP(L230,Tabella_prezzi!$A$3:$K$303,8,FALSE) -> PERC H840 RAID Adapter for External MD14XX Only, 8GB NV Cache, Full Height | G230: 1 | I230: =VLOOKUP(L230,Tabella_prezzi!$A$3:$K$303,3,FALSE) -> OpzH840 | K230: =VLOOKUP(L230,Tabella_prezzi!$A$3:$K$303,4,FALSE) -> 479 | L230: L4N71 | M230: =VLOOKUP(L230,Tabella_prezzi!$A$3:$K$303,6,FALSE) -> TS3L4-H840
A231: [TS3L4-57416] Broadcom 57416 Dual Port 10Gb, Base-T, PCIe Adapter | D231: =VLOOKUP(L231,Tabella_prezzi!$A$3:$K$303,8,FALSE) -> Broadcom 57416 Dual Port 10Gb, Base-T, PCIe Adapter, Full Height | G231: 1 | I231: =VLOOKUP(L231,Tabella_prezzi!$A$3:$K$303,3,FALSE) -> 0 | K231: =VLOOKUP(L231,Tabella_prezzi!$A$3:$K$303,4,FALSE) -> 334 | L231: L4N46 | M231: =VLOOKUP(L231,Tabella_prezzi!$A$3:$K$303,6,FALSE) -> TS3L4-57416
... 274 more rows

Sheet Tabella_prezzi (hidden)
A2: N° | C2: Attributo | D2: Valore inserito | E2: N° | F2: Codice Convenzione | G2: Qty: | H2: Description: | I2: Manufacturer Part | J2: Sku Number: | K2: Brand
A3: L1N01 | B3: 1 | C3: Server Tower mono-processore | D3: 1399 | E3: L1N01 | F3: TS3L1-SRV | G3: 1 | H3: PowerEdge T340 Server | I3: - | J3: - | K3: DELL
A4: L1N02 | B4: 2 | C4: OpzRAM16GB | D4: 98 | E4: L1N02 | F4: TS3L1-RAM16 | G4: 1 | H4: 16GB 2Rx8 DDR4 UDIMM 2666MHz | I4: AA335286 | J4: AA335286 | K4: DELL
A5: L1N03 | B5: 3 | C5: OpzGigabit | D5: 25 | E5: L1N03 | F5: TS3L1-LAN1 | G5: 1 | H5: Broadcom 5720 DP 1Gb NIC,Full Height | I5: 540-BBGY | J5: 540-BBGY | K5: DELL
A6: L1N04 | B6: 4 | C6: OpzHDD8TB | D6: 285 | E6: L1N04 | F6: TS3L1-HDD8TB | G6: 1 | H6: 8TB 7.2K RPM SATA 6Gbps 3.5in Hot-plug | I6: 400-AHID | J6: 400-AHID | K6: DELL
A7: L1N05 | B7: 5 | C7: OpzHDD4TB | D7: 194 | E7: L1N05 | F7: TS3L1-HDD4TB | G7: 1 | H7: 4TB 7.2K RPM SATA 6Gbps 3.5in Hot-plug | I7: 400-AUWY | J7: 400-AUWY | K7: DELL
A8: L1N06 | B8: 6 | C8: OpzHDD2TB | D8: 148 | E8: L1N06 | F8: TS3L1-HDD2TB | G8: 1 | H8: 2TB 7.2K RPM SATA 6Gbps 3.5in Hot-plug | I8: 400-AUWX | J8: 400-AUWX | K8: DELL
A9: L1N07 | B9: 7 | C9: OpzHDD1TB | D9: 80 | E9: L1N07 | F9: TS3L1-HDD1TB | G9: 1 | H9: 1TB 7.2K RPM SATA 6Gbps 3.5in Hot-plug | I9: 400-AURS | J9: 400-AURS | K9: DELL
A10: L1N08 | B10: 8 | C10: OpzSSD-RI800GB | D10: 216 | E10: L1N08 | F10: TS3L1-RI960GB | G10: 1 | H10: 960GB SSD SATA Read Intensive 6Gbps 2.5in Drive in 3.5in Hybrid Carrier, 1 DWPD | I10: 400-BDPC | J10: 400-BDPC | K10: DELL
A11: L1N09 | B11: 9 | C11: OpzSSD-RI400GB | D11: 160 | E11: L1N09 | F11: TS3L1-RI480GB | G11: 1 | H11: 480GB SSD SATA Read Intensive 6Gbps 2.5in Drive in 3.5in Hybrid Carrier, 1 DWPD | I11: 400-BDQT | J11: 400-BDQT | K11: DELL
A12: L1N10 | B12: 10 | C12: OpzUps (3000VA) | D12: 302 | E12: L1N10 | F12: TS3L1-UPS | G12: 1 | H12: Powerme Online UPS RPMM/9 3K, Tower, SNMP card | I12: TPMM/ 3K | J12: TPMM/ 3K | K12: PowerME
A13: L1N11 | B13: 11 | C13: OpzGUI per tower | D13: 69 | E13: L1N11 | F13: TS3L1-GUI | G13: 1 | H13: Monitor 19" E1920H, Mouse MS116, Tastiera KB216 | I13: 580-ADHM | J13: 580-ADHM | K13: DELL
G14: 1 | H14: Mouse ottico Dell MS116 - nero | I14: 570-AAIS | J14: 570-AAIS
G15: 1 | H15: BASE,DIS,MON,E1920H,EMEA | I15: 210-AURI | J15: 210-AURI
G16: 1 | H16: Italian 220V Power Cord | I16: 450-ABCK | J16: 450-ABCK
G17: 1 | H17: SnP order - EMEA. | I17: 800-10243 | J17: 800-10243
G18: 1 | H18: 39M Basic with Advanced Exchange Channel | I18: 709-17931 | J18: 709-17931
G19: 1 | H19: No Warranty Upgrade | I19: 710-10844 | J19: 710-10844
A20: L1N12 | B20: 12 | C20: OpzWinServESS | D20: 256 | E20: L1N12 | F20: TS3L1-WINSRVESS | G20: 1 | H20: Windows Server 2019,Essentials, ROK | I20: 634-BSFZ | J20: 634-BSFZ | K20: DELL
A21: L1N13 | B21: 13 | E21: L1N13
A22: L1N14 | B22: 14 | E22: L1N14
A23: L1N15 | B23: 15 | C23: OpzOpenSource | D23: 49 | E23: L1N15 | F23: TS3L1-LINUX | G23: 1 | H23: Ubuntu 18.04 LTS 64 Bit
A24: L1N16 | B24: 16 | C24: OpzHDDRetention | D24: 38 | E24: L1N16 | F24: TS3L1-HDRTNTN | G24: 1 | H24: Hard Disk Retention | I24: 785-10921 | J24: 785-10921 | K24: DELL
A25: L1N17 | B25: 17 | C25: OpzEstensione24 | D25: 79 | E25: L1N17 | F25: TS3L1-5Y | G25: 1 | H25: Estensione della manutenzione in garanzia per ulteriori 24 mesi | I25: 742-10105 | J25: 742-10105 | K25: DELL
A26: L1N18 | B26: 18 | C26: OpzPowerSupply | D26: 82 | E26: L1N18 | F26: TS3L1-PSU | G26: 1 | H26: Single, Hot-plug Power Supply (1+0), 495W,CusKit | I26: 450-AEBM | J26: 450-AEBM | K26: DELL
A27: L1N19 | B27: 19 | C27: OpzGigabit 4p | D27: 50 | E27: L1N19 | F27: TS3L1-LAN1QP | G27: 1 | H27: Broadcom 5719 QP 1Gb Network Interface Card,Full Height,CusKit | I27: 540-BBGX | J27: 540-BBGX | K27: DELL
A28: L1N20 | B28: 20 | C28: OpzGigabit I350 2p | D28: 99.99 | E28: L1N20 | F28: TS3L1-I3502P | G28: 1 | H28: Intel Ethernet I350 Dual Port 1GbE BASE-T Adapter, PCIe Full Height | I28: 540-BBGZ | J28: 540-BBGZ | K28: DELL
A29: L1N21 | B29: 21 | C29: OpzGigabit I350 4p | D29: 99.99 | E29: L1N21 | F29: TS3L1-I3504P | G29: 1 | H29: Intel Ethernet I350 Quad Port 1GbE BASE-T Adapter, PCIe Full Height | I29: 540-BBDS | J29: 540-BBDS | K29: DELL
A30: L1N22 | B30: 22 | C30: OpzGigabit10Gbps X550 2p T | D30: 99.99 | E30: L1N22 | F30: TS3L1-X550 | G30: 1 | H30: Intel X550 Dual Port 10GbE BASE-T Adapter, PCIe Full Height | I30: 540-BBRK | J30: 540-BBRK | K30: DELL
A31: L1N23 | B31: 23 | C31: OpzGigabit10Gbps X710 2p SFP+ | D31: 99.99 | E31: L1N23 | F31: TS3L1-X710 | G31: 1 | H31: Intel X710 Dual Port 10GbE SFP+ Adapter, PCIe Full Height | I31: 540-BBIV | J31: 540-BBIV | K31: DELL
A32: L1N24 | B32: 24 | C32: OpzFibreChannel Emulex LPE12002 | D32: 99.99 | E32: L1N24 | F32: TS3L1-E12002 | G32: 1 | H32: Emulex LPE 12002 Dual Port 8Gb Fibre Channel HBA, PCIe Full Height | I32: 406-BBGR | J32: 406-BBGR | K32: DELL
A33: L1N25 | B33: 25 | C33: OpzControllerSAS | D33: 99 | E33: L1N25 | F33: TS3L1-CtrlSAS | G33: 1 | H33: SAS 12Gbps HBA External Controller | I33: 405-AADZ | J33: 405-AADZ | K33: DELL
A34: L1N26 | B34: 26 | C34: OpzRJ45 3m | D34: 2 | E34: L1N26 | F34: TS3L1-RJ453M | G34: 1 | H34: cavo “patch” di 3 mt RJ45 certificato per gigabit ethernet
A35: L1N27 | B35: 27 | C35: OpzBezel | D35: 99.99 | E35: L1N27 | F35: TS3L1-BEZEL | G35: 1 | H35: Tower Bezel, PowerEdge, T340 | I35: 470-ACNV | J35: 470-ACNV | K35: DELL
A36: L1N28 | B36: 28 | C36: OpzDVD | D36: 99.99 | E36: L1N28 | F36: TS3L1-DVD | G36: 1 | H36: DVD+/-RW, SATA, Internal | I36: 429-ABIE | J36: 429-ABIE | K36: DELL
A37: L1N29 | B37: 29 | C37: OpzHDMiniSAS2M | D37: 80 | E37: L1N29 | F37: TS3L1-SAS2M | G37: 1 | H37: 12Gb HD-Mini to HD-Mini SAS Cable, 2M, Customer Kit | I37: 470-AATP | J37: 470-AATP | K37: DELL
A38: L1N30 | B38: 30 | C38: OpzHDMiniSAS6M | D38: 120 | E38: L1N30 | F38: TS3L1-SAS6M | G38: 1 | H38: 12Gb HD-Mini to HD-Mini SAS Cable, 6M, Customer Kit | I38: 470-AATR | J38: 470-AATR | K38: DELL
A39: L1N31 | B39: 31 | C39: OpzHDMiniSAS05M | D39: 50 | E39: L1N31 | F39: TS3L1-SAS05M | G39: 1 | H39: 12Gb HD-Mini SAS cable, 0.5m, Customer Kit | I39: 470-ABDQ | J39: 470-ABDQ | K39: DELL
A40: L1N32 | B40: 32 | C40: OpzHDMiniSAS2MB | D40: 80 | E40: L1N32 | F40: TS3L1-SAS2MB | G40: 1 | H40: 12Gb HD-Mini SAS cable, 2m, Customer Kit | I40: 470-ABDR | J40: 470-ABDR | K40: DELL
A41: L1N33 | B41: 33 | C41: OpzHDMiniSAS4M | D41: 100 | E41: L1N33 | F41: TS3L1-SAS4M | G41: 1 | H41: 12Gb Mini-SAS HD to Mini-SAS HD Cable, 4m, Customer Kit | I41: 470-ACIS | J41: 470-ACIS | K41: DELL
A42: L1N34 | B42: 34 | C42: OpzSFPALL | D42: 40 | E42: L1N34 | F42: TS3L1-SFPALL | G42: 1 | H42: SFP+ SR Optic for all SFP+ | I42: 407-BCBN | J42: 407-BCBN | K42: DELL
A43: L1N35 | B43: 35 | C43: OpzDAC1M | D43: 120 | E43: L1N35 | F43: TS3L1-DAC1M | G43: 1 | H43: Cable, SFP+ to SFP+, 10GbE, Copper Twinax Direct Attach Cable, 1 Meter | I43: 470-AAVG | J43: 470-AAVG | K43: DELL
A44: L1N36 | B44: 36 | C44: OpzDAC3M | D44: 150 | E44: L1N36 | F44: TS3L1-DAC3M | G44: 1 | H44: Cable, SFP+ to SFP+, 10GbE, Copper Twinax Direct Attach Cable, 3 Meter | I44: 470-AAVH | J44: 470-AAVH | K44: DELL
A45: L1N37 | B45: 37 | C45: OpzDAC5M | D45: 170 | E45: L1N37 | F45: TS3L1-DAC5M | G45: 1 | H45: Cable, SFP+ to SFP+, 10GbE, Copper Twinax Direct Attach Cable, 5 Meter | I45: 470-AAVJ | J45: 470-AAVJ | K45: DELL
A46: L1N38 | B46: 38 | E46: L1N38
A47: L1N39 | B47: 39 | E47: L1N39
A48: L1N40 | B48: 40 | E48: L1N40
A49: L1N41 | B49: 41 | E49: L1N41
A50: L1N42 | B50: 42 | E50: L1N42
A51: L1N43 | B51: 43 | E51: L1N43
A52: L1N44 | B52: 44 | E52: L1N44
A53: L1N45 | B53: 45 | E53: L1N45
A54: L1N46 | B54: 46 | E54: L1N46
A55: L1N47 | B55: 47 | E55: L1N47
A56: L1N48 | B56: 48 | E56: L1N48
A57: L1N49 | B57: 49 | E57: L1N49
A58: L1N50 | B58: 50 | E58: L1N50
A59: N° | C59: Attributo | D59: Valore inserito | E59: N° | F59: Codice Convenzione | G59: Qty: | H59: Description: | I59: Sku Number: | J59: Sku Number:
A60: L2N01 | B60: 1 | C60: Server Tower bi-processore | D60: 2088 | E60: L2N01 | F60: TS3L2-SRV | G60: 1 | H60: PowerEdge T640 Server | I60: - | J60: -
A61: L2N02 | B61: 2 | C61: Kit n. 1 Processore aggiuntivo | D61: 590 | E61: L2N02 | F61: TS3L2-CPU | G61: 1 | H61: Intel® Xeon® Silver 4112 Processor 2.20 GHz, 12C/24T | I61: 338-BSDR | J61: 338-BSDR
G62: 1 | I62: 412-AAMS | J62: 412-AAMS
A63: L2N03 | B63: 3 | C63: OpzRAM16GB | D63: 99 | E63: L2N03 | F63: TS3L2-RAM16 | G63: 1 | H63: 16GB 2Rx8 DDR4 RDIMM 3200MHz | I63: AA799064 | J63: AA799064
A64: L2N04 | B64: 4 | C64: OpzGigabit | D64: 26 | E64: L2N04 | F64: TS3L2-LAN1 | G64: 1 | H64: Broadcom 5720 DP 1Gb NIC,Full Height | I64: 540-BBGY | J64: 540-BBGY
A65: L2N05 | B65: 5 | C65: OpzHDD2TB | D65: 226 | E65: L2N05 | F65: TS3L2-HDD2TB | G65: 1 | H65: 1.8TB 10K RPM SAS 12Gbps 2.5in Hot-plug | I65: 400-AURF | J65: 400-AURF
A66: L2N06 | B66: 6 | C66: OpzHDD1TB | D66: 141 | E66: L2N06 | F66: TS3L2-HDD1TB | G66: 1 | H66: 1.2TB 10K RPM SAS 12Gbps 2.5in Hot-plug | I66: 400-AJPD | J66: 400-AJPD
A67: L2N07 | B67: 7 | C67: OpzHDD300GB | D67: 92 | E67: L2N07 | F67: TS3L2-HDD300GB | G67: 1 | H67: 300GB 15K RPM SAS 12Gbps 2.5in Hot-plug | I67: 400-AUXN | J67: 400-AUXN
A68: L2N08 | B68: 8 | C68: OpzSSD-RI800GB | D68: 727 | E68: L2N08 | F68: TS3L2-RI960GB | G68: 1 | H68: 960GB SSD SAS Read Intensive 12Gbps 2.5in Hot-plug | I68: 400-BBOU | J68: 400-BBOU
A69: L2N09 | B69: 9 | C69: OpzSSD-RI400GB | D69: 394 | E69: L2N09 | F69: TS3L2-RI480GB | G69: 1 | H69: 480GB SSD SAS Read Intensive 12Gbps 2.5in Hot-plug | I69: 400-BKSC | J69: 400-BKSC
A70: L2N10 | B70: 10 | C70: OpzUps (3000VA) | D70: 300 | E70: L2N10 | F70: TS3L2-UPS | G70: 1 | I70: TPMM/ 3K | J70: TPMM/ 3K
A71: L2N11 | B71: 11 | C71: OpzGUI per tower | D71: 104 | E71: L2N11 | F71: TS3L2-GUI | G71: 1 | H71: Monitor 19" E1920H, Mouse MS116, Tastiera KB216 | I71: 580-ADHM | J71: 580-ADHM
G72: 1 | I72: 570-AAIS | J72: 570-AAIS
G73: 1 | I73: 210-AURI | J73: 210-AURI
G74: 1 | I74: 450-ABCK | J74: 450-ABCK
G75: 1 | I75: 800-10243 | J75: 800-10243
G76: 1 | I76: 709-17931 | J76: 709-17931
G77: 1 | I77: 710-10844 | J77: 710-10844
A78: L2N12 | B78: 12 | C78: OpzWinServSTD | D78: 732 | E78: L2N12 | F78: TS3L2-WINSRVSTD | G78: 1 | H78: Windows Server 2019 Standard, ROK, 16CORE | I78: 634-BSFX | J78: 634-BSFX
A79: L2N13 | B79: 13 | C79: OpzWinServSTD2core | D79: 94 | E79: L2N13 | F79: TS3L2-WINSRV2C | G79: 1 | H79: Windows Server 2019 Standard, Additional License, 2CORE | I79: 634-BSGS | J79: 634-BSGS
A80: L2N14 | B80: 14 | C80: OpzDeviceCal | D80: 23 | E80: L2N14 | F80: TS3L2-WINDEVCAL | G80: 1 | H80: Windows Server 2019 Device CAL (STD or DC) | I80: 623-BBCV | J80: 623-BBCV
A81: L2N15 | B81: 15 | C81: OpzUserCal | D81: 29 | E81: L2N15 | F81: TS3L2-WINUSRCAL | G81: 1 | H81: Windows Server 2019 User CAL (STD or DC) | I81: 623-BBCT | J81: 623-BBCT
A82: L2N16 | B82: 16 | C82: OpzOpenSource | D82: 49 | E82: L2N16 | F82: TS3L2-LINUX | G82: 1 | H82: Ubuntu 18.04 LTS 64 Bit
A83: L2N17 | B83: 17 | C83: OpzHDDRetention | D83: 207 | E83: L2N17 | F83: TS3L2-HDRTNTN | G83: 1 | H83: Hard Disk Retention | I83: 785-10921 | J83: 785-10921
A84: L2N18 | B84: 18 | C84: OpzEstensione24 | D84: 79 | E84: L2N18 | F84: TS3L2-5Y | G84: 1 | H84: Estensione della manutenzione in garanzia per ulteriori 24 mesi | I84: 742-10105 | J84: 742-10105
A85: L2N19 | B85: 19 | C85: OpzBezel | D85: 99.99 | E85: L2N19 | F85: TS3L2-BEZEL | G85: 1 | H85: Tower Standard Bezel for T640 | I85: 325-BCMV | J85: 325-BCMV | K85: DELL
A86: L2N20 | B86: 20 | C86: OpzBOSS240 | D86: 199 | E86: L2N20 | F86: TS3L2-BOSS240 | G86: 1 | H86: BOSS controller card, full height, with 2 240G M.2 Drives | I86: 403-BBVQ | J86: 403-BBVQ | K86: DELL
G87: 2 | I87: 400-ASDQ | J87: 400-ASDQ | K87: DELL
A88: L2N21 | B88: 21 | C88: OpzBOSS480 | D88: 299 | E88: L2N21 | F88: TS3L2-BOSS480 | G88: 1 | H88: BOSS controller card, full height, with 2 480G M.2 Drives | I88: 403-BBVQ | J88: 403-BBVQ | K88: DELL
G89: 2 | I89: 400-AVSS | J89: 400-AVSS | K89: DELL
A90: L2N22 | B90: 22 | C90: OpzRackKit | D90: 99.99 | E90: L2N22 | F90: TS3L2-RACKKIT | G90: 1 | H90: Kit composto da: Tower to Rack Conversion Kit; Rack Standard Bezel; 3U Cable Management Arm; Ready Rails 3U Sliding Rails | I90: 325-BCOZ | J90: 325-BCOZ | K90: DELL
G91: 1 | H91: Rack Standard Bezel for T640 | I91: 325-BCOZ | J91: 325-BCOZ | K91: DELL
G92: 1 | H92: Tower to Rack,Conversion Kit T640 | I92: 770-BCJK | J92: 770-BCJK | K92: DELL
G93: 1 | H93: 3U Cable Management Arm | I93: 770-BBKV | J93: 770-BBKV | K93: DELL
G94: 1 | H94: Ready Rails 3U Sliding Rails | I94: 770-BBJJ | J94: 770-BBJJ | K94: DELL
A95: L2N23 | B95: 23 | C95: OpzCNA10Gb | D95: 249 | E95: L2N23 | F95: TS3L2-CNA10GB | G95: 1 | H95: QLogic 41112 Dual Port 10Gb SFP+ Adapter, Full Height | I95: 540-BBYH | J95: 540-BBYH | K95: DELL
A96: L2N24 | B96: 24 | C96: Opz10GBIC | D96: 90 | E96: L2N24 | F96: TS3L2-10GBIC | G96: 1 | H96: Transceiver, SFP+, 10GbE, SR, 850nm Wavelength, 300m Reach | I96: 407-BBOU | J96: 407-BBOU | K96: DELL
A97: L2N25 | B97: 25 | C97: OpzDAC3M | D97: 9999 | E97: L2N25 | F97: TS3L2-DAC3M | G97: 1 | H97: Cable, SFP+ to SFP+, 10GbE, Copper Twinax Direct Attach Cable, 3 Meter | I97: 470-AAVJ | J97: 470-AAVJ | K97: DELL
A98: L2N26 | B98: 26 | C98: OpzRJ45 3m | D98: 2 | E98: L2N26 | F98: TS3L2-RJ453M | G98: 1 | H98: Cavo “patch” di 3 mt RJ45 certificato per gigabit ethernet
A99: L2N27 | B99: 27 | C99: OpzH840 | D99: 100 | E99: L2N27 | F99: TS3L2-H840 | G99: 1 | H99: PERC H840 RAID Adapter for External MD14XX Only, 8GB NV Cache, Full Height | I99: 405-AAMZ | J99: 405-AAMZ | K99: DELL
A100: L2N28 | B100: 28 | C100: OpzSAS2M | E100: L2N28 | F100: TS3L2-SAS2M | G100: 1 | H100: 12Gb HD-Mini SAS cable, 2m, Customer Kit | I100: 470-ABDR | J100: 470-ABDR | K100: DELL
A101: L2N29 | B101: 29 | E101: L2N29 | K101: DELL
A102: L2N30 | B102: 30 | E102: L2N30 | K102: DELL
A103: L2N31 | B103: 31 | E103: L2N31 | K103: DELL
A104: L2N32 | B104: 32 | E104: L2N32 | K104: DELL
A105: L2N33 | B105: 33 | E105: L2N33 | K105: DELL
A106: L2N34 | B106: 34 | E106: L2N34
A107: L2N35 | B107: 35 | E107: L2N35
A108: L2N36 | B108: 36 | C108: OpzLCLC1M | E108: L2N36 | F108: TS3L2-LCLC1M | G108: 2 | H108: Networking Cable, OM4 LC/LC Fiber Cable, (Optics required), 1 Meter | I108: 470-ACLV | J108: 470-ACLV | K108: DELL
A109: L2N37 | B109: 37 | C109: OpzLCLC2M | E109: L2N37 | F109: TS3L2-LCLC2M | G109: 2 | H109: Networking Cable, OM4 LC/LC Fiber Cable, (Optics required), 2 Meter | I109: 470-ACLT | J109: 470-ACLT | K109: DELL
A110: L2N38 | B110: 38 | C110: OpzLCLC3M | E110: L2N38 | F110: TS3L2-LCLC3M | G110: 2 | H110: Networking Cable, OM4 LC/LC Fiber Cable, (Optics required), 3 Meter | I110: 470-ACMO | J110: 470-ACMO | K110: DELL
A111: L2N39 | B111: 39 | C111: OpzLCLC5M | E111: L2N39 | F111: TS3L2-LCLC5M | G111: 2 | H111: Networking Cable, OM4 LC/LC Fiber Cable, (Optics required), 5 Meter | I111: 470-ACLY | J111: 470-ACLY | K111: DELL
A112: L2N40 | B112: 40 | C112: OpzLCLC10M | E112: L2N40 | F112: TS3L2-LCLC10M | G112: 2 | H112: Networking Cable, OM4 LC/LC Fiber Cable, (Optics required), 10 Meter | I112: 470-ACMN | J112: 470-ACMN | K112: DELL
A113: L2N41 | B113: 41 | C113: OpzLCLC30M | E113: L2N41 | F113: TS3L2-LCLC30M | G113: 2 | H113: Networking Cable, OM4 LC/LC Fiber Cable, (Optics required), 30 Meter | I113: 470-ACLM | J113: 470-ACLM | K113: DELL
A114: L2N42 | B114: 42 | E114: L2N42
A115: L2N43 | B115: 43 | E115: L2N43
A116: L2N44 | B116: 44 | E116: L2N44
A117: L2N45 | B117: 45 | E117: L2N45
A118: L2N46 | B118: 46 | E118: L2N46 | P118: 24HD2P
A119: L2N47 | B119: 47 | E119: L2N47 | P119: 24HD1P
A120: L2N48 | B120: 48 | E120: L2N48 | P120: 24HD2PSW
A121: L2N49 | B121: 49 | E121: L2N49 | P121: 24HD2PDW
A122: L2N50 | B122: 50 | E122: L2N50
A123: L4N01 | B123: 1 | C123: Server rackable bi-processore prest. | D123: 2530 | E123: L4N01 | F123: TS3L4-SRV-U | G123: 1 | H123: PowerEdge R740xd Server | I123: L4N01-ServerR740XD | J123: 210-AMTE | K123: DELL | O123: 210-321-BCPX | P123: -
A124: L4N02 | B124: 2 | C124: Kit n. 1 Processore aggiuntivo | D124: 730 | E124: L4N02 | F124: TS3L4-CPU | G124: 1 | H124: Processore INTEL XEON GOLD 6238R 28C | I124: L4N02-OpzCPU | J124: 338-BVKX | K124: DELL | O124: 338-WX6G7 | P124: WX6G7
G125: 1 | H125: Heat Sink for R740/R740XD,125W or greater CPU (no MB or GPU),CK | J125: 412-AAME | K125: DELL | O125: 412-4RCGC | P125: 4RCGC
G126: 1 | H126: 2pc Fan Module (Kit) | J126: 384-BBSD | K126: DELL | O126: 384-HVVRP | P126: HVVRP
G127: 1 | H127: Riser 2A, Customer Install | J127: 330-BBLT | K127: DELL | O127: 330-234T7 | P127: 234T7
G128: 1 | H128: Riser 3A, Customer Install | J128: 330-BBLS | K128: DELL | O128: 330-R80PP | P128: R80PP
A129: L4N03 | B129: 3 | C129: OpzRAM32GB | D129: 155 | E129: L4N03 | F129: TS3L4-RAM32 | G129: 1 | H129: 32GB - 2Rx4 DDR4 RDIMM 3200MHz | I129: L4N03-OpzRAM32GB | J129: AA799087 | K129: DELL | O129: AA79SNP75X1VC/32G | P129: SNP75X1VC/32G
A130: L4N04 | B130: 4 | C130: OpzRAM64GB | D130: 444 | E130: L4N04 | F130: TS3L4-RAM64 | G130: 1 | H130: 64GB - 2RX4 DDR4 RDIMM 3200MHz | I130: L4N04-OpzRAM64GB | J130: AA799110 | K130: DELL | O130: AA79SNPP2MYXC/64G | P130: SNPP2MYXC/64G
A131: L4N05 | B131: 5 | C131: OpzGigabit | D131: 26 | E131: L4N05 | F131: TS3L4-LAN1 | G131: 1 | H131: Scheda LAN 5719 QP 1Gb FULL | I131: L4N05-OpzGigabit | J131: 540-BBGX | K131: DELL | L131: 1 | M131: 2 | N131: 3 | O131: 540-XF9VF | P131: XF9VF
A132: L4N75 | B132: 5 | C132: OpzGigabit | D132: 26 | E132: L4N05b | F132: TS3L4-LAN1-L | G132: 1 | H132: Scheda LAN 5719 QP 1Gb LOW | I132: L4N75-OpzGigabitLP | J132: 540-BBHB | K132: DELL | L132: 4 | O132: 540-W0N4T | P132: W0N4T
A133: L4N06 | B133: 6 | C133: OpzGigabit10Gbps | D133: 126 | E133: L4N06 | F133: TS3L4-LAN10 | G133: 1 | H133: Scheda 57412 DP 10Gb SFP+ FULL | I133: L4N06-OpzGigabit10Gbps | J133: 540-BBUN | K133: DELL | L133: 1 | M133: 2 | N133: 3 | O133: 540-H6N50 | P133: H6N50
G134: 2 | H134: SFP+ SR Optic for all SFP+ ports except high temp validation warning cards customer install | J134: 407-BCBN | K134: DELL | O134: 407-4Y8DN | P134: 4Y8DN
A135: L4N76 | B135: 6 | C135: OpzGigabit10Gbps | D135: 126 | E135: L4N06b | F135: TS3L4-LAN10-L | G135: 1 | H135: Scheda 57412 DP 10Gb SFP+ LOW | I135: L4N76-OpzGigabit10GbpsLP | J135: 540-BBVL | K135: DELL | L135: 4 | O135: 540-N7R67 | P135: N7R67
G136: 2 | H136: SFP+ SR Optic for all SFP+ ports except high temp validation warning cards customer install | J136: 407-BCBN | K136: DELL | O136: 407-4Y8DN | P136: 4Y8DN
A137: L4N07 | B137: 7 | C137: OpzGigabit25Gbps | D137: 341 | E137: L4N07 | F137: TS3L4-LAN25 | G137: 1 | H137: Scheda 41262 DP 25Gb SFP28 FULL | I137: L4N07-OpzGigabit25Gbps | J137: 540-BBYI | K137: DELL | L137: 1 | M137: 2 | N137: 3 | O137: 540-86P4V | P137: 86P4V
G138: 2 | H138: Dell EMC PowerEdge 10/25GbE Dual Rate SFP28 SR 85C Optic for all SFP28 ports, Customer Install | J138: 407-BCHI | K138: DELL | O138: 407-PY7V9 | P138: PY7V9
A139: L4N77 | B139: 7 | C139: OpzGigabit25Gbps | D139: 341 | E139: L4N07b | F139: TS3L4-LAN25-L | G139: 1 | H139: Scheda 41262 DP 25Gb SFP28 LOW | I139: L4N77-OpzGigabit25GbpsLP | J139: 540-BBZO | K139: DELL | L139: 4 | O139: 540-9RVF0 | P139: 9RVF0
G140: 2 | H140: Dell EMC PowerEdge 10/25GbE Dual Rate SFP28 SR 85C Optic for all SFP28 ports, Customer Install | J140: 407-BCHI | K140: DELL | O140: 407-PY7V9 | P140: PY7V9
A141: L4N08 | B141: 8 | C141: OpzGigabit10Gbps CNA | D141: 149 | E141: L4N08 | F141: TS3L4-CNA10 | G141: 1 | H141: Scheda 41112 DP 10Gb SFP+ FULL | I141: L4N08-OpzCNA10Gbps | J141: 540-BBYH | K141: DELL | L141: 1 | M141: 2 | N141: 3 | O141: 540-42H35 | P141: 42H35
G142: 2 | H142: SFP+ SR Optic for all SFP+ ports except high temp validation warning cards customer install | J142: 407-BCBN | K142: DELL | O142: 407-4Y8DN | P142: 4Y8DN
A143: L4N78 | B143: 8 | C143: OpzGigabit10Gbps CNA | D143: 149 | E143: L4N08b | F143: TS3L4-CNA10-L | G143: 1 | H143: Scheda 41112 DP 10Gb SFP+ LOW | I143: L4N78-OpzCNA10GbpsLP | J143: 540-BBZM | K143: DELL | L143: 4 | O143: 540-01CN1 | P143: 01CN1
G144: 2 | H144: SFP+ SR Optic for all SFP+ ports except high temp validation warning cards customer install | J144: 407-BCBN | K144: DELL | O144: 407-4Y8DN | P144: 4Y8DN
A145: L4N09 | B145: 9 | C145: OpzFibreChannel | D145: 309 | E145: L4N09 | F145: TS3L4-FC16 | G145: 1 | H145: Scheda FC 2692 DP 16Gb HBA FULL | I145: L4N09-OpzFibreChannel | J145: 403-BBMU | K145: DELL | L145: 1 | M145: 2 | N145: 3 | O145: 403-YH1DK | P145: YH1DK
A146: L4N79 | B146: 9 | C146: OpzFibreChannel | D146: 309 | E146: L4N09b | F146: TS3L4-FC16-L | G146: 1 | H146: Scheda FC 2692 DP 16Gb HBA LOW | I146: L4N79-OpzFibreChannelLP | J146: 403-BBMT | K146: DELL | L146: 4 | O146: 403-P0TRP | P146: P0TRP
A147: L4N10 | B147: 10 | C147: OpzHDD2TB | D147: 127 | E147: L4N10 | F147: TS3L4-HDD2TB | G147: 1 | H147: HDD 2400GB 10K SAS 12Gbps 2.5in Hot-plug | I147: L4N10-OpzHDD2TB | J147: 401-ABHQ | K147: DELL | O147: 400-HTMGW | P147: HTMGW
A148: L4N11 | B148: 11 | C148: OpzHDD1TB | D148: 77 | E148: L4N11 | F148: TS3L4-HDD1TB | G148: 1 | H148: HDD 1200GB 10K SAS 12Gbps 2.5in Hot-plug | I148: L4N11-OpzHDD1TB | J148: 400-ATJL | K148: DELL | O148: 400-400-ATJL | P148: 400-ATJL
A149: L4N12 | B149: 12 | C149: OpzHDD300GB | D149: 71 | E149: L4N12 | F149: TS3L4-HDD300GB | G149: 1 | H149: HDD 300GB 15K SAS 12Gbps 2.5in Hot-plug | I149: L4N12-OpzHDD300GB | J149: 400-ATII | K149: DELL | O149: 400-PDNT1 | P149: PDNT1
A150: L4N13 | B150: 13 | C150: OpzSSD-RI1,6TB | D150: 412 | E150: L4N13 | F150: TS3L4-RI1600GB | G150: 1 | H150: SSD 1,92TB SAS RI 12Gbps 2.5in Hot-plug, 1 DWPD | I150: L4N13-OpzSSD-RI1,6TB | J150: 400-BFZC | K150: DELL | O150: 400-2H59H | P150: 2H59H
A151: L4N14 | B151: 14 | C151: OpzSSD-MU1,6TB | D151: 584 | E151: L4N14 | F151: TS3L4-MU1600GB | G151: 1 | H151: SSD 1,6TB SAS MU 12Gbps 2.5in Hot-plug, 3 DWPD | I151: L4N14-OpzSSD-MU1,6TB | J151: 400-AZIH | K151: DELL | O151: 400-CDPWY | P151: CDPWY
A152: L4N15 | B152: 15 | C152: OpzSSD-RI800GB | D152: 241 | E152: L4N15 | F152: TS3L4-RI800GB | G152: 1 | H152: SSD 960GB SAS RI 12Gbps 2.5in Hot-plug, 1 DWPD | I152: L4N15-OpzSSD-RI800GB | J152: 400-BBPN | K152: DELL | O152: 400-VPV60 | P152: VPV60
A153: L4N16 | B153: 16 | C153: OpzSSD-MU800GB | D153: 609 | E153: L4N16 | F153: TS3L4-MU800GB | G153: 1 | H153: SSD 960GB SAS MU 12Gbps 2.5in Hot-plug, 3 DWPD | I153: L4N16-OpzSSD-MU800GB | J153: 400-BCNN | K153: DELL | O153: 400-MW0DK | P153: MW0DK
A154: L4N17 | B154: 17 | C154: OpzNVME1,6TB | D154: 1050 | E154: L4N17 | F154: TS3L4-NVME1600 | G154: 1 | H154: NVME 1,6TB MU HHHL, 3 DWPD | I154: L4N17-OpzNVME1,6TB | J154: 403-BCCE | K154: DELL | O154: 403-C359R | P154: C359R
A155: L4N18 | B155: 18 | C155: OpzNVME800GB | D155: 919 | E155: L4N18 | F155: TS3L4-NVME800 | G155: 1 | H155: NVME 1,6TB MU HHHL, 3 DWPD | I155: L4N18-OpzNVME800GB | J155: 403-BCCE | K155: DELL | O155: 403-C359R | P155: C359R
A156: L4N19 | B156: 19 | C156: OpzUps (3000VA) | D156: 308 | E156: L4N19 | F156: TS3L4-UPS | G156: 1 | H156: Powerme Online UPS RPMM/9 3K, Rack, SNMP card | I156: L4N19-OpzUps | J156: RPMM9/3K | O156: RPMMRPMM9/3K | P156: RPMM9/3K
G157: 1 | H157: KIT RACK incluso nella fornitura
A158: L4N20 | B158: 20 | C158: OpzGUI | D158: 439 | E158: L4N20 | F158: TS3L4-GUI | G158: 1 | H158: Unità KVM - monitor 17", cavo combi PS/2&USB da 1,8mt, tastiera italiana, touch pad | I158: L4N20-OpzGUI | J158: F9857N | O158: F985F9857N | P158: F9857N
A159: L4N21 | B159: 21 | C159: OpzKVM | D159: 506 | E159: L4N21 | F159: TS3L4-SWKVM | G159: 1 | H159: KVM Switch IP per GUI 16P | I159: L4N21-OpzKVM | J159: T9816NIP | O159: T981T9816NIP | P159: T9816NIP
A160: L4N22 | B160: 22 | C160: OpzWinServSTD | D160: 682 | E160: L4N22 | F160: TS3L4-WINSRVSTD | G160: 1 | H160: Windows Server 2019 Standard, ROK, 16CORE | I160: L4N22-OpzWinServSTD | J160: 634-BSFX | K160: DELL | O160: 634-634-BSFX | P160: 634-BSFX
A161: L4N23 | B161: 23 | C161: OpzDeviceCal | D161: 23 | E161: L4N23 | F161: TS3L4-WINDEVCAL | G161: 1 | H161: Windows Server 2019 Device CAL (STD or DC) | I161: L4N23-OpzDeviceCal | J161: 623-BBCV | K161: DELL | O161: 623-623-BBCV | P161: 623-BBCV
A162: L4N24 | B162: 24 | C162: OpzUserCal | D162: 29 | E162: L4N24 | F162: TS3L4-WINUSRCAL | G162: 1 | H162: Windows Server 2019 User CAL (STD or DC) | I162: L4N24-OpzUserCal | J162: 623-BBCT | K162: DELL | O162: 623-623-BBCT | P162: 623-BBCT
A163: L4N25 | B163: 25 | C163: OpzWinServSTD2core | D163: 95 | E163: L4N25 | F163: TS3L4-WINSRV2C | G163: 1 | H163: Windows Server 2019 Standard, Additional License, 2CORE | I163: L4N25-OpzWinServSTD2core | J163: 634-BSGS | K163: DELL | O163: 634-634-BSGS | P163: 634-BSGS
A164: L4N26 | B164: 26 | C164: OpzOpenSource | D164: 49 | E164: L4N26 | F164: TS3L4-LINUX | G164: 1 | H164: Ubuntu 18.04 LTS 64 Bit | I164: L4N26-OpzOpenSource
A165: L4N27 | B165: 27 | C165: OpzHDDRetention | D165: 32 | E165: L4N27 | F165: TS3L4-HDRTNTN | G165: 1 | H165: Hard Disk Retention 36 mesi | I165: L4N27-OpzHDDRetention | J165: 785-10921 | K165: DELL | O165: 785-785-10921 | P165: 785-10921
A166: L4N28 | B166: 28 | C166: OpzEstensione24 | D166: 79 | E166: L4N28 | F166: TS3L4-5Y | G166: 1 | H166: Estensione della manutenzione in garanzia per ulteriori 24 mesi | I166: L4N28-OpzEstensione24 | J166: 742-10105 | K166: DELL | O166: 742-742-10105 | P166: 742-10105
A167: L4N29 | B167: 29 | C167: OpzRack | D167: 511 | E167: L4N29 | F167: TS3L4-RACK | G167: 1 | H167: Armadio Rack 42U | I167: L4N29-OpzRack | J167: P6142NCONSIP | O167: P614P6142NCONSIP | P167: P6142NCONSIP
A168: L4N30 | B168: 30 | C168: OpzHDDRetention | D168: 53 | E168: L4N30 | F168: TS3L4-HDRTNTN60 | G168: 1 | H168: Hard Disk Retention 60 mesi | I168: L4N30-OpzHDDRetention60 | J168: 785-10921 | K168: DELL | L168: 1 | M168: 2 | N168: 3 | O168: 405-V5FKR | P168: V5FKR
A169: L4N31 | B169: 31 | D169: 334 | E169: L4N31 | F169: TS3L4-57416-L | G169: 1 | H169: Broadcom 57416 Dual Port 10Gb, Base-T, PCIe Adapter, Low Profile | I169: TS3-OpzA205741L | J169: 540-BBVM | K169: DELL | L169: 4 | O169: 540-MT69G | P169: MT69G
A170: L4N32 | B170: 32 | E170: L4N32 | F170: TS3L4-BOSS240 | G170: 1 | H170: BOSS controller card, full height, with 2 240G M.2 Drives | J170: 403-BBVQ | K170: DELL | L170: 1 | M170: 2 | N170: 3 | O170: 403-4FXXT | P170: 4FXXT
G171: 2 | H171: Dell 240GB SSD M.2 SATA 6Gbps Drive | J171: 400-ASDQ | K171: DELL | O171: 400-4GWX0 | P171: 4GWX0
A172: L4N33 | B172: 33 | D172: 748 | E172: L4N33 | F172: TS3L4-BOSS480 | G172: 1 | H172: BOSS controller card, full height, with 2 480G M.2 Drives | I172: TS3-OpzA20B480G | J172: 403-BBVQ | K172: DELL | L172: 1 | M172: 2 | N172: 3 | O172: 403-4FXXT | P172: 4FXXT
G173: 2 | H173: Dell 480GB M.2 SSD SATA 512n 6Gbps S3520 | J173: 400-AVSS | K173: DELL | O173: 400-9NF27 | P173: 9NF27
A174: L4N34 | B174: 34 | D174: 180 | E174: L4N34 | F174: TS3L4-HBA330-L | G174: 1 | H174: HBA330 Controller Card in sostituzione del Controller in configurazione BASE | I174: TS3-OpzA20HBA3L | J174: 405-AANM | K174: DELL | L174: 4 | O174: 405-Y29HF | P174: Y29HF
A175: L4N35 | B175: 35 | D175: 9999 | E175: L4N35 | F175: TS3L4-HBA330M | G175: 1 | H175: Customer Kit,Card,Controller,HBA330,Minicard | J175: 405-AAJW | K175: DELL | L175: int | O175: 405-THN56 | P175: THN56
A176: L4N36 | B176: 36 | D176: 299 | E176: L4N36 | F176: TS3L4-GPUSW | G176: 1 | H176: Kit upgrade chassies for Server GPU Single-Wide Ready | I176: TS3-OpzA20GPUSW | J176: 490-BEIX | K176: DELL | O176: 490-JKFGX | P176: JKFGX
A177: L4N37 | B177: 37 | D177: 299 | E177: L4N37 | F177: TS3L4-GPUDW | G177: 1 | H177: Kit upgrade chassies for Server GPU Double-Wide Ready | I177: TS3-OpzA20GPUDW | J177: 490-BEIX | K177: DELL | O177: 490-JKFGX | P177: JKFGX
A178: L4N38 | B178: 38 | D178: 80 | E178: L4N38 | F178: TS3L4-VSAN | G178: 1 | H178: Kit upgrade chassies for Server vSAN Ready | I178: TS3-OpzA20VSAN | K178: DELL
A179: L4N39 | B179: 39 | D179: 720 | E179: L4N39 | F179: TS3L4-CONX6SP | G179: 1 | H179: Mellanox ConnectX-6 Single Port HDR100 QSFP56 Infiniband FULL | I179: TS3-OpzA20CX6SP | J179: 540-BCMU | K179: DELL | L179: NO | O179: 540-DXMD8 | P179: DXMD8
A180: L4N40 | B180: 40 | D180: 812 | E180: L4N40 | F180: TS3L4-CONX6DP | G180: 1 | H180: Mellanox ConnectX-6 DX Dual Port 100GbE QFSFP56 FULL | I180: TS3-OpzA20CX6DP | J180: 540-BCXP | L180: NO | O180: 540-2RMCP | P180: 2RMCP
A181: L4N41 | B181: 41 | D181: 342 | E181: L4N41 | F181: TS3L4-X710DP-L | G181: 1 | H181: Intel X710 Dual Port 10Gb SFP+ LOW | I181: TS3-OpzA20710DL | J181: 540-BBML | K181: Intel X710 adapters require firmware 19.0 or later to work with the SFP + SR Optic (Factory Installed SKU # 407-BCBE and Kit SKU 407-BCBN). | L181: 4 | O181: 540-VHNMC | P181: VHNMC
A182: L4N42 | B182: 42 | D182: 342 | E182: L4N42 | F182: TS3L4-X710DP | G182: 1 | H182: Intel X710 Dual Port 10Gb SFP+ FULL | I182: TS3-OpzA20710D | J182: 540-BBIV | L182: 1 | M182: 2 | N182: 3 | O182: 540-6W1YC | P182: 6W1YC
A183: L4N43 | B183: 43 | D183: 518 | E183: L4N43 | F183: TS3L4-X710QP | G183: 1 | H183: Intel X710 Quad Port 10Gb SFP+ FULL | I183: TS3-OpzA20710Q | J183: 540-BBIW | K183: Intel X710 adapters require firmware 19.0 or later to work with the SFP + SR Optic (Factory Installed SKU # 407-BCBE and Kit SKU 407-BCBN). | O183: 540-60WX8 | P183: 60WX8
A184: L4N44 | B184: 44 | E184: L4N44 | G184: 1 | H184: PERC H740P RAID Controller Adapter, Low Profile,CK | J184: 405-AAMX | K184: DELL | L184: 4 | O184: 405-39M19 | P184: 39M19
A185: L4N45 | B185: 45 | E185: L4N45 | G185: 1 | H185: Customer Kit,Card,Controller,H740P,Minicard | J185: 405-AANL | K185: DELL | L185: int | O185: 405-4R84R | P185: 4R84R
A186: L4N46 | B186: 46 | D186: 334 | E186: L4N46 | F186: TS3L4-57416 | G186: 1 | H186: Broadcom 57416 Dual Port 10Gb, Base-T, PCIe Adapter, Full Height | I186: TS3-OpzA2057416 | J186: 540-BBUO | K186: DELL | O186: 540-GRT2K | P186: GRT2K
A187: L4N47 | B187: 47 | C187: Kit n. 1 Processore 8 Core base | D187: 99999 | E187: L4N47 | F187: TS3L4-SRV8CORE | G187: 1 | H187: Upgrade da Processore base a Processore 8 core | I187: TS3-OpzA20SRV8C | J187: 338-BTSX | K187: DELL | O187: 338-WP22J | P187: WP22J
A188: L4N48 | B188: 48 | C188: Kit n. 1 Processore 8 Core aggiuntivo | D188: 99999 | E188: L4N48 | F188: TS3L4-CPU8CORE | G188: 1 | H188: Upgrade da Processore aggiuntivo a Processore 8 core | I188: TS3-OpzA20CPU8C | J188: 338-BTSX | K188: DELL | O188: 338-WP22J | P188: WP22J
A189: L4N49 | B189: 49 | C189: OpzPSU1100W | D189: 178 | E189: L4N49 | F189: TS3L4-PSU1100W | G189: 1 | H189: Dual, Hot-plug Power Supply (1+1), 1100W in sostituzione di quelli in configurazione BASE | I189: TS3-OpzA201100W | J189: 450-AEBL | K189: DELL | O189: 450-T4RTF | P189: T4RTF
A190: L4N50 | B190: 50 | C190: OpzPSU2000W | D190: 306 | E190: L4N50 | F190: TS3L4-PSU2000W | G190: 1 | H190: Dual, Hot-plug Power Supply (1+1), 2000W in sostituzione di quelli in configurazione BASE | I190: TS3-OpzA202000W | J190: 450-AENT | K190: DELL | O190: 450-54WHW | P190: 54WHW
A191: L4N51 | B191: 51 | C191: OpzSSD-RI3,84TB | D191: 1380 | E191: L4N51 | F191: TS3L4-RI3840GB | G191: 1 | H191: SSD 3,84TB SAS RI 12Gbps 2.5in Hot-plug, 1 DWPD | I191: TS3-OpzA20RI384 | J191: 400-BBQZ | K191: DELL | O191: 400-64G77 | P191: 64G77
A192: L4N52 | B192: 52 | C192: OpzSSD-RI7,68TB | D192: 2580 | E192: L4N52 | F192: TS3L4-RI7680GB | G192: 1 | H192: SSD 7,68TB VSAS RI 12Gbps 2.5in Hot-plug, 1 DWPD | I192: TS3-OpzA20RI768 | J192: 400-BFPF | K192: DELL | O192: 400-7HH3W | P192: 7HH3W
A193: L4N53 | B193: 53 | C193: OpzSSD-WI800GB | D193: 1106 | E193: L4N53 | F193: TS3L4-WI800GB | G193: 1 | H193: 800GB SSD SAS Write Intensive 12Gbps 512e 2.5in Hot Plug Drive, PM5, 10 DWPD, 29200 TBW, CK | I193: TS3-OpzA20800WI | J193: 400-BDIL | K193: DELL | O193: 400-6P43P | P193: 6P43P
A194: L4N54 | B194: 54 | C194: OpzSSD-WI1600GB | D194: 9999 | E194: L4N54 | F194: TS3L4-WI1600GB | G194: 1 | H194: 1.6TB SSD SAS Write Intensive 12Gbps 512e 2.5in Hot Plug PM5-M Dr, 10 DWPD, 29200 TBW, CK | J194: 400-BDGY | K194: DELL | O194: 400-NHGRN | P194: NHGRN
A195: L4N55 | B195: 55 | C195: OpzGPUT4 | D195: 2450 | E195: L4N55 | F195: TS3L4-TESLAT4 | G195: 1 | H195: NVIDIA TeslaT4 16GB GPU | I195: TS3-OpzA20GPUT4 | J195: 490-BEYM | K195: DELL | O195: 490-F9PH5 | P195: F9PH5
A196: L4N56 | B196: 56 | C196: OpzGPURTX6000 | D196: 4800 | E196: L4N56 | F196: TS3L4-RTX6000 | G196: 1 | H196: NVIDIA Quadro RTX 6000 24 GB, 250W, Dual Slot, GPU | I196: TS3-OpzA20GPU60 | J196: 490-BFRS | K196: DELL | O196: 490-VN574 | P196: VN574
A197: L4N57 | B197: 57 | C197: OpzGPUM10 | D197: 2700 | E197: L4N57 | F197: TS3L4-TESLAM10 | G197: 1 | H197: NVIDIA Tesla M10 GPU | I197: TS3-OpzA20GPU10 | J197: 489-BBCJ | K197: DELL | O197: 489-409GF | P197: 409GF
A198: L4N58 | B198: 58 | C198: OpzGPUV100S | D198: 10130 | E198: L4N58 | F198: TS3L4-V100S32G | G198: 1 | H198: NVIDIA Tesla V100S 32GB, 250W, Passive, Double Wide, GPU | I198: TS3-OpzA20V100S | J198: 490-BFRT | K198: DELL | O198: 490-GH9J0 | P198: GH9J0
A199: L4N59 | B199: 59 | C199: OpzWinServDC | D199: 4339 | E199: L4N59 | F199: TS3L4-WINDC | G199: 1 | H199: Windows Server 2019 Data Center, ROK, 16CORE | I199: TS3-OpzA20WDC | J199: 634-BSGB | K199: DELL | O199: 634-634-BSGB | P199: 634-BSGB
A200: L4N60 | B200: 60 | C200: OpzWinServDC2core | D200: 545 | E200: L4N60 | F200: TS3L4-WINDC2C | G200: 1 | H200: Windows Server 2019 Data Center, Additional License, 2CORE | I200: TS3-OpzA20WDC2C | J200: 634-BSGR | K200: DELL | O200: 634-634-BSGR | P200: 634-BSGR
A201: L4N61 | B201: 61 | C201: OpzWinServDC16core | D201: 4336 | E201: L4N61 | F201: TS3L4-WINDC16C | G201: 1 | H201: MS2019 Datacenter Ed, Additional License, 16 CORE,NO MEDIA/KEY, Customer Kit | J201: 634-BSGT | K201: DELL | O201: 634-634-BSGT | P201: 634-BSGT
... 70 more rows

Sheet Riepilogo
J1: 1
B2: Ente: | J2: 1 | L2: ente | M2: =IF(D2>0,0,1) -> 1
J3: 1 | O3: Conf 1 | P3: Conf 2 | Q3: Conf 3
B4: Ordine N. | E4: =M7 -> ERRORE DI MANCATA COMPILAZIONE DATI NECESSARI PER L'ORDINATIVO | J4: 1 | L4: N°ordine | M4: =IF(D4>0,0,1) -> 1 | N4: Vsan Boot Check | O4: =IF(M68>0,IF(M63+M101=0,"ERRORE vSAN Config 1",""),"") ->  | P4: =IF(N68>0,IF(N63+N101=0," - ERRORE vSAN Config 2 - ",""),"") ->  | Q4: =IF(O68>0,IF(O63+O101=0,"ERRORE vSAN Config 3",""),"") ->  | R4: =IF(R5>0," - ERRORE BOSS CARD","") -> 
E5: =M8 ->  | J5: 1 | N5: Check BOSS card | O5: =IF(Lotto4_R740XD_1!M98>1,1,0) -> 0 | P5: =IF(Lotto4_R740XD_2!M98>1,1,0) -> 0 | Q5: =IF(Lotto4_R740XD_3!M98>1,1,0) -> 0 | R5: =SUM(O5:Q5) -> 0
B6: Data | E6: =M9 ->  | J6: 1 | L6: data | M6: =IF(D6>0,0,1) -> 1
E7: =M10 ->  | J7: 1 | L7: ERRORE1 | M7: =IF(M2+M4+M6+M11+M13+M16+M18+O18+O13,"ERRORE DI MANCATA COMPILAZIONE DATI NECESSARI PER L'ORDINATIVO","") -> ERRORE DI MANCATA COMPILAZIONE DATI NECESSARI PER L'ORDINATIVO | N7: =IF(M7="",0,1) -> 1
B8: Totale IVA incl. | D8: =G165 -> 0 | E8: =IF(Q11=0,"CONFIGURATORE OK", "") ->  | G8: Version 5.1 | J8: 1 | L8: Warning2 | M8: =IF(G162>D162,"!!! ATTENZIONE !!! L'IMPORTO 20% SUPERA IL VALORE MASSIMO CONSENTITO","") ->  | N8: =IF(M8="",0,1) -> 0
J9: 1 | L9: ERRORE3 | M9: =CONCATENATE(O4,P4,Q4,R4) ->  | N9: =IF(M9="",0,1) -> 0
J10: 1 | L10: Waning4 | M10: =IF(N10>0,"!!! ATTENZIONE !!! COMPLETARE IL CAMPO NOTE NELLE CONFIGURAZIONI","") ->  | N10: =IF(M22>0,O10,0)+IF(N22>0,P10,0)+IF(O22>0,Q10,0) -> 0 | O10: =IF(Lotto4_R740XD_1!$H$35="Specificare la configurazione RAID per l'installazione del Sistema Operativo, se richiesto. e/o inserire eventuali note.",1,0) -> 1 | P10: =IF(Lotto4_R740XD_2!$H$30="Specificare la configurazione RAID per l'installazione del Sistema Operativo, se richiesto. e/o inserire eventuali note.",1,0) -> 0 | Q10: =IF(Lotto4_R740XD_3!$H$30="Specificare la configurazione RAID per l'installazione del Sistema Operativo, se richiesto. e/o inserire eventuali note.",1,0) -> 0
B11: Referente Consegna | J11: 1 | L11: ref1 | M11: =IF(D11>0,0,1) -> 1 | O11: Verifica Errori | Q11: =N7+N9 -> 1
J12: 1
B13: Telefono | D13: email | J13: 1 | L13: tel1 | M13: =IF(C13>0,0,1) -> 1 | N13: mail1 | O13: =IF(E13>0,0,1) -> 1
J14: 1
J15: 1
B16: Referente Installazione | J16: 1 | L16: ref2 | M16: =IF(D16>0,0,1) -> 1
J17: 1
B18: Telefono | D18: email | J18: 1 | L18: tel2 | M18: =IF(C18>0,0,1) -> 1 | N18: mail2 | O18: =IF(E18>0,0,1) -> 1
J19: 1
J20: 1 | M20: Server1 | N20: Server2 | O20: Server3 | P20: Totale
B21: TECNOLOGIE SERVER 3 LOTTO 4 - LISTA ARTICOLI IN CONVENZIONE - | J21: =IF($G$161>0,1,0) -> 0
B22: Quantità | C22: Codice Articolo Produttore | D22: Codice Articolo Convenzione | E22: Descrizione | F22: Costo unitario | G22: Costo complessivo | J22: =IF($G$161>0,1,0) -> 0 | K22: Codice Convenzione | L22: N° | M22: =Lotto4_R740XD_1!F5 -> 0 | N22: =Lotto4_R740XD_2!F5 -> 0 | O22: =Lotto4_R740XD_3!F5 -> 0 | Q22: Qty_1 | R22: Qty_2 | S22: Qty_3
B23: =IF(P23>0,P23,"") ->  | C23: =IF(B23="","",VLOOKUP(L23,Tabella_prezzi!$A$3:$K$303,9,FALSE)) ->  | D23: =IF(B23="","",VLOOKUP(L23,Tabella_prezzi!$A$3:$K$303,6,FALSE)) ->  | E23: =IF(B23="","",VLOOKUP(L23,Tabella_prezzi!$A$3:$K$303,8,FALSE)) ->  | F23: =IF(B23="","",VLOOKUP(L23,Tabella_prezzi!$A$3:$K$303,4,FALSE)) ->  | G23: =IF(C23="","",F23*B23) ->  | J23: =IF(B23="",0,1) -> 0 | K23: =VLOOKUP(L23,Tabella_prezzi!A2:K303,6,FALSE) -> TS3L4-SRV-U | L23: L4N01 | M23: =COUNTIF(TS3L4_L4N_1,L23)*$M$22 -> 0 | N23: =COUNTIF(TS3L4_L4N_2,L23)*$N$22 -> 0 | O23: =COUNTIF(TS3L4_L4N_3,L23)*$O$22 -> 0 | P23: =SUM(M23:O23) -> 0 | T23: =Lotto4_R740XD_1!L9 -> L4N01 | U23: =Lotto4_R740XD_1!F9 ->  | V23: =Lotto4_R740XD_2!L9 -> L4N01 | W23: =Lotto4_R740XD_2!F9 ->  | X23: =Lotto4_R740XD_3!L9 -> L4N01 | Y23: =Lotto4_R740XD_3!F9 ->  | AA23: =ISODD(J23) -> FALSE | AB23: server
C24: =IF(B24="","",VLOOKUP(L24,Tabella_prezzi!$A$3:$K$303,9,FALSE)) ->  | D24: =IF(B24="","",VLOOKUP(L24,Tabella_prezzi!$A$3:$K$303,6,FALSE)) ->  | E24: =IF(B24="","",VLOOKUP(L24,Tabella_prezzi!$A$3:$K$303,8,FALSE)) ->  | F24: =IF(B24="","",VLOOKUP(L24,Tabella_prezzi!$A$3:$K$303,4,FALSE)) ->  | J24: =IF(B24="",0,1) -> 0 | K24: =VLOOKUP(L24,Tabella_prezzi!A3:K304,6,FALSE) -> TS3L4-CPU | L24: L4N02 | M24: =COUNTIF(TS3L4_L4N_1,L24)*$M$22 -> 0 | N24: =COUNTIF(TS3L4_L4N_2,L24)*$N$22 -> 0 | O24: =COUNTIF(TS3L4_L4N_3,L24)*$O$22 -> 0 | P24: 0 | T24: =Lotto4_R740XD_1!L21 ->  | U24: =Lotto4_R740XD_1!F21 -> 0 | V24: =Lotto4_R740XD_2!L20 -> 0 | W24: =Lotto4_R740XD_2!F20 -> 0 | X24: =Lotto4_R740XD_3!L20 -> 0 | Y24: =Lotto4_R740XD_3!F20 -> 0 | AA24: =ISODD(SUM($J$23:J24)) -> FALSE | AB24: Cpu
C25: =IF(B25="","",VLOOKUP(L25,Tabella_prezzi!$A$3:$K$303,9,FALSE)) ->  | D25: =IF(B25="","",VLOOKUP(L25,Tabella_prezzi!$A$3:$K$303,6,FALSE)) ->  | E25: =IF(B25="","",VLOOKUP(L25,Tabella_prezzi!$A$3:$K$303,8,FALSE)) ->  | F25: =IF(B25="","",VLOOKUP(L25,Tabella_prezzi!$A$3:$K$303,4,FALSE)) ->  | J25: 0 | K25: =VLOOKUP(L25,Tabella_prezzi!A4:K305,6,FALSE) -> TS3L4-RAM32 | L25: L4N03 | M25: =COUNTIF(TS3L4_L4N_1,L25)*$M$22 -> 0 | N25: =COUNTIF(TS3L4_L4N_2,L25)*$N$22 -> 0 | O25: =COUNTIF(TS3L4_L4N_3,L25)*$O$22 -> 0 | P25: 0 | T25: =Lotto4_R740XD_1!L24 ->  | U25: =Lotto4_R740XD_1!F24 -> 0 | V25: =Lotto4_R740XD_2!L23 -> 0 | W25: =Lotto4_R740XD_2!F23 -> 0 | X25: =Lotto4_R740XD_3!L23 -> 0 | Y25: =Lotto4_R740XD_3!F23 -> 0 | AA25: =ISODD(SUM($J$23:J25)) -> FALSE | AB25: ram
C26: =IF(B26="","",VLOOKUP(L26,Tabella_prezzi!$A$3:$K$303,9,FALSE)) ->  | D26: =IF(B26="","",VLOOKUP(L26,Tabella_prezzi!$A$3:$K$303,6,FALSE)) ->  | E26: =IF(B26="","",VLOOKUP(L26,Tabella_prezzi!$A$3:$K$303,8,FALSE)) ->  | F26: =IF(B26="","",VLOOKUP(L26,Tabella_prezzi!$A$3:$K$303,4,FALSE)) ->  | J26: 0 | K26: =VLOOKUP(L26,Tabella_prezzi!A5:K306,6,FALSE) -> TS3L4-RAM64 | L26: L4N04 | M26: =COUNTIF(TS3L4_L4N_1,L26)*$M$22*Q26 -> 0 | N26: =COUNTIF(TS3L4_L4N_2,L26)*$N$22*R26 -> 0 | O26: =COUNTIF(TS3L4_L4N_3,L26)*$O$22*S26 -> 0 | P26: 0 | Q26: =Lotto4_R740XD_1!$F$24 -> 0 | R26: =Lotto4_R740XD_2!$F$24 -> 0 | S26: =Lotto4_R740XD_3!$F$24 -> 0 | T26: =Lotto4_R740XD_1!L27 ->  | U26: =Lotto4_R740XD_1!F27 -> 0 | V26: =Lotto4_R740XD_2!L26 -> 0 | W26: =Lotto4_R740XD_2!F26 -> 0 | X26: =Lotto4_R740XD_3!L26 -> 0 | Y26: =Lotto4_R740XD_3!F26 -> 0 | AA26: =ISODD(SUM($J$23:J26)) -> FALSE | AB26: ram
C27: =IF(B27="","",VLOOKUP(L27,Tabella_prezzi!$A$3:$K$303,9,FALSE)) ->  | D27: =IF(B27="","",VLOOKUP(L27,Tabella_prezzi!$A$3:$K$303,6,FALSE)) ->  | E27: =IF(B27="","",VLOOKUP(L27,Tabella_prezzi!$A$3:$K$303,8,FALSE)) ->  | F27: =IF(B27="","",VLOOKUP(L27,Tabella_prezzi!$A$3:$K$303,4,FALSE)) ->  | J27: 0 | K27: =VLOOKUP(L27,Tabella_prezzi!A6:K307,6,FALSE) -> TS3L4-LAN1 | L27: L4N05 | M27: =COUNTIF(TS3L4_L4N_1,L27)*$M$22 -> 0 | N27: =COUNTIF(TS3L4_L4N_2,L27)*$N$22 -> 0 | O27: =COUNTIF(TS3L4_L4N_3,L27)*$O$22 -> 0 | P27: 0 | T27: =Lotto4_R740XD_1!L35 -> L4N12 | U27: =Lotto4_R740XD_1!F35 -> 0 | V27: =Lotto4_R740XD_2!L34 -> 0 | W27: =Lotto4_R740XD_2!F34 -> 0 | X27: =Lotto4_R740XD_3!L34 -> 0 | Y27: =Lotto4_R740XD_3!F34 -> 0 | AA27: =ISODD(SUM($J$23:J27)) -> FALSE | AB27: Sist Op
C28: =IF(B28="","",VLOOKUP(L28,Tabella_prezzi!$A$3:$K$303,9,FALSE)) ->  | D28: =IF(B28="","",VLOOKUP(L28,Tabella_prezzi!$A$3:$K$303,6,FALSE)) ->  | E28: =IF(B28="","",VLOOKUP(L28,Tabella_prezzi!$A$3:$K$303,8,FALSE)) ->  | F28: =IF(B28="","",VLOOKUP(L28,Tabella_prezzi!$A$3:$K$303,4,FALSE)) ->  | J28: 0 | K28: =VLOOKUP(L28,Tabella_prezzi!A7:K308,6,FALSE) -> TS3L4-LAN1-L | L28: L4N75 | M28: 0 | N28: 0 | O28: 0 | P28: 0 | T28: =Lotto4_R740XD_1!L37 -> L4N11 | U28: =Lotto4_R740XD_1!F37 -> 0 | V28: =Lotto4_R740XD_2!L36 -> 0 | W28: =Lotto4_R740XD_2!F36 -> 0 | X28: =Lotto4_R740XD_3!L36 -> 0 | Y28: =Lotto4_R740XD_3!F36 -> 0 | AA28: =ISODD(SUM($J$23:J28)) -> FALSE | AB28: hd2tb
C29: =IF(B29="","",VLOOKUP(L29,Tabella_prezzi!$A$3:$K$303,9,FALSE)) ->  | D29: =IF(B29="","",VLOOKUP(L29,Tabella_prezzi!$A$3:$K$303,6,FALSE)) ->  | E29: =IF(B29="","",VLOOKUP(L29,Tabella_prezzi!$A$3:$K$303,8,FALSE)) ->  | F29: =IF(B29="","",VLOOKUP(L29,Tabella_prezzi!$A$3:$K$303,4,FALSE)) ->  | J29: 0 | K29: =VLOOKUP(L29,Tabella_prezzi!A8:K309,6,FALSE) -> TS3L4-LAN10 | L29: L4N06 | M29: 0 | N29: 0 | O29: 0 | P29: 0 | T29: =Lotto4_R740XD_1!L39 -> L4N10 | U29: =Lotto4_R740XD_1!F39 -> 0 | V29: =Lotto4_R740XD_2!L38 -> 0 | W29: =Lotto4_R740XD_2!F38 -> 0 | X29: =Lotto4_R740XD_3!L38 -> 0 | Y29: =Lotto4_R740XD_3!F38 -> 0 | AA29: =ISODD(SUM($J$23:J29)) -> FALSE | AB29: hd1tb
C30: =IF(B30="","",VLOOKUP(L30,Tabella_prezzi!$A$3:$K$303,9,FALSE)) ->  | D30: =IF(B30="","",VLOOKUP(L30,Tabella_prezzi!$A$3:$K$303,6,FALSE)) ->  | E30: =IF(B30="","",VLOOKUP(L30,Tabella_prezzi!$A$3:$K$303,8,FALSE)) ->  | F30: =IF(B30="","",VLOOKUP(L30,Tabella_prezzi!$A$3:$K$303,4,FALSE)) ->  | J30: 0 | K30: =VLOOKUP(L30,Tabella_prezzi!A9:K310,6,FALSE) -> TS3L4-LAN10-L | L30: L4N76 | M30: 0 | N30: 0 | O30: 0 | P30: 0 | T30: =Lotto4_R740XD_1!L45 -> L4N51 | U30: =Lotto4_R740XD_1!F45 -> 0 | V30: =Lotto4_R740XD_2!L40 -> 0 | W30: =Lotto4_R740XD_2!F40 -> 0 | X30: =Lotto4_R740XD_3!L40 -> 0 | Y30: =Lotto4_R740XD_3!F40 -> 0 | AA30: =ISODD(SUM($J$23:J30)) -> FALSE | AB30: hd300gb
C31: =IF(B31="","",VLOOKUP(L31,Tabella_prezzi!$A$3:$K$303,9,FALSE)) ->  | D31: =IF(B31="","",VLOOKUP(L31,Tabella_prezzi!$A$3:$K$303,6,FALSE)) ->  | E31: =IF(B31="","",VLOOKUP(L31,Tabella_prezzi!$A$3:$K$303,8,FALSE)) ->  | F31: =IF(B31="","",VLOOKUP(L31,Tabella_prezzi!$A$3:$K$303,4,FALSE)) ->  | J31: 0 | K31: =VLOOKUP(L31,Tabella_prezzi!A10:K311,6,FALSE) -> TS3L4-LAN25 | L31: L4N07 | M31: 0 | N31: 0 | O31: 0 | P31: 0 | T31: =Lotto4_R740XD_1!L51 -> L4N14 | U31: =Lotto4_R740XD_1!F51 -> 0 | V31: =Lotto4_R740XD_2!L42 -> 0 | W31: =Lotto4_R740XD_2!F42 -> 0 | X31: =Lotto4_R740XD_3!L42 -> 0 | Y31: =Lotto4_R740XD_3!F42 -> 0 | AA31: =ISODD(SUM($J$23:J31)) -> FALSE | AB31: ssd960GB
C32: =IF(B32="","",VLOOKUP(L32,Tabella_prezzi!$A$3:$K$303,9,FALSE)) ->  | D32: =IF(B32="","",VLOOKUP(L32,Tabella_prezzi!$A$3:$K$303,6,FALSE)) ->  | E32: =IF(B32="","",VLOOKUP(L32,Tabella_prezzi!$A$3:$K$303,8,FALSE)) ->  | F32: =IF(B32="","",VLOOKUP(L32,Tabella_prezzi!$A$3:$K$303,4,FALSE)) ->  | J32: 0 | K32: =VLOOKUP(L32,Tabella_prezzi!A11:K312,6,FALSE) -> TS3L4-LAN25-L | L32: L4N77 | M32: 0 | N32: 0 | O32: 0 | P32: 0 | T32: =Lotto4_R740XD_1!L77 ->  | U32: =Lotto4_R740XD_1!F77 ->  | V32: =Lotto4_R740XD_2!L54 -> 0 | W32: =Lotto4_R740XD_2!F54 -> 0 | X32: =Lotto4_R740XD_3!L54 -> 0 | Y32: =Lotto4_R740XD_3!F54 -> 0 | AA32: =ISODD(SUM($J$23:J32)) -> FALSE | AB32: ssd480GB
C33: =IF(B33="","",VLOOKUP(L33,Tabella_prezzi!$A$3:$K$303,9,FALSE)) ->  | D33: =IF(B33="","",VLOOKUP(L33,Tabella_prezzi!$A$3:$K$303,6,FALSE)) ->  | E33: =IF(B33="","",VLOOKUP(L33,Tabella_prezzi!$A$3:$K$303,8,FALSE)) ->  | F33: =IF(B33="","",VLOOKUP(L33,Tabella_prezzi!$A$3:$K$303,4,FALSE)) ->  | J33: 0 | K33: =VLOOKUP(L33,Tabella_prezzi!A12:K313,6,FALSE) -> TS3L4-CNA10 | L33: L4N08 | M33: 0 | N33: 0 | O33: 0 | P33: 0 | T33: =Lotto4_R740XD_1!L80 ->  | U33: =Lotto4_R740XD_1!F80 ->  | V33: =Lotto4_R740XD_2!L57 -> 0 | W33: =Lotto4_R740XD_2!F57 -> 0 | X33: =Lotto4_R740XD_3!L57 -> 0 | Y33: =Lotto4_R740XD_3!F57 -> 0 | AA33: =ISODD(SUM($J$23:J33)) -> FALSE | AB33: pci1
B34: =IF(P34>0,P34,"") ->  | C34: =IF(B34="","",VLOOKUP(L34,Tabella_prezzi!$A$3:$K$303,9,FALSE)) ->  | D34: =IF(B34="","",VLOOKUP(L34,Tabella_prezzi!$A$3:$K$303,6,FALSE)) ->  | E34: =IF(B34="","",VLOOKUP(L34,Tabella_prezzi!$A$3:$K$303,8,FALSE)) ->  | F34: =IF(B34="","",VLOOKUP(L34,Tabella_prezzi!$A$3:$K$303,4,FALSE)) ->  | G34: =IF(C34="","",F34*B34) ->  | J34: 0 | K34: =VLOOKUP(L34,Tabella_prezzi!A13:K314,6,FALSE) -> TS3L4-CNA10-L | L34: L4N78 | M34: 0 | N34: 0 | O34: 0 | P34: 0 | T34: =Lotto4_R740XD_1!L83 ->  | U34: =Lotto4_R740XD_1!F83 ->  | V34: =Lotto4_R740XD_2!L60 ->  | W34: =Lotto4_R740XD_2!F60 ->  | X34: =Lotto4_R740XD_3!L60 ->  | Y34: =Lotto4_R740XD_3!F60 ->  | AA34: =ISODD(SUM($J$23:J34)) -> FALSE | AB34: pci2
C35: =IF(B35="","",VLOOKUP(L35,Tabella_prezzi!$A$3:$K$303,9,FALSE)) ->  | D35: =IF(B35="","",VLOOKUP(L35,Tabella_prezzi!$A$3:$K$303,6,FALSE)) ->  | E35: =IF(B35="","",VLOOKUP(L35,Tabella_prezzi!$A$3:$K$303,8,FALSE)) ->  | F35: =IF(B35="","",VLOOKUP(L35,Tabella_prezzi!$A$3:$K$303,4,FALSE)) ->  | J35: 0 | K35: =VLOOKUP(L35,Tabella_prezzi!A14:K315,6,FALSE) -> TS3L4-FC16 | L35: L4N09 | M35: 0 | N35: 0 | O35: 0 | P35: 0 | T35: =Lotto4_R740XD_1!L86 ->  | U35: =Lotto4_R740XD_1!F86 ->  | V35: =Lotto4_R740XD_2!L63 ->  | W35: =Lotto4_R740XD_2!F63 ->  | X35: =Lotto4_R740XD_3!L63 ->  | Y35: =Lotto4_R740XD_3!F63 ->  | AA35: =ISODD(SUM($J$23:J35)) -> FALSE | AB35: pci3
C36: =IF(B36="","",VLOOKUP(L36,Tabella_prezzi!$A$3:$K$303,9,FALSE)) ->  | D36: =IF(B36="","",VLOOKUP(L36,Tabella_prezzi!$A$3:$K$303,6,FALSE)) ->  | E36: =IF(B36="","",VLOOKUP(L36,Tabella_prezzi!$A$3:$K$303,8,FALSE)) ->  | F36: =IF(B36="","",VLOOKUP(L36,Tabella_prezzi!$A$3:$K$303,4,FALSE)) ->  | J36: 0 | K36: =VLOOKUP(L36,Tabella_prezzi!A15:K316,6,FALSE) -> TS3L4-FC16-L | L36: L4N79 | M36: 0 | N36: 0 | O36: 0 | P36: 0 | T36: =Lotto4_R740XD_1!L89 ->  | U36: =Lotto4_R740XD_1!F89 ->  | V36: =Lotto4_R740XD_2!L66 -> 0 | W36: =Lotto4_R740XD_2!F66 -> 0 | X36: =Lotto4_R740XD_3!L66 -> 0 | Y36: =Lotto4_R740XD_3!F66 -> 0 | AA36: =ISODD(SUM($J$23:J36)) -> FALSE | AB36: pci4
C37: =IF(B37="","",VLOOKUP(L37,Tabella_prezzi!$A$3:$K$303,9,FALSE)) ->  | D37: =IF(B37="","",VLOOKUP(L37,Tabella_prezzi!$A$3:$K$303,6,FALSE)) ->  | E37: =IF(B37="","",VLOOKUP(L37,Tabella_prezzi!$A$3:$K$303,8,FALSE)) ->  | F37: =IF(B37="","",VLOOKUP(L37,Tabella_prezzi!$A$3:$K$303,4,FALSE)) ->  | J37: 0 | K37: =VLOOKUP(L37,Tabella_prezzi!A16:K317,6,FALSE) -> TS3L4-HDD2TB | L37: L4N10 | M37: =COUNTIF(TS3L4_L4N_1,L37)*$M$22*Q37 -> 0 | N37: =COUNTIF(TS3L4_L4N_2,L37)*$N$22*R37 -> 0 | O37: =COUNTIF(TS3L4_L4N_3,L37)*$O$22*S37 -> 0 | P37: 0 | Q37: =Lotto4_R740XD_1!$F$39 -> 0 | R37: =Lotto4_R740XD_2!$F$39 -> 0 | S37: =Lotto4_R740XD_3!$F$39 -> 0 | T37: =Lotto4_R740XD_1!L92 ->  | U37: =Lotto4_R740XD_1!F92 ->  | V37: =Lotto4_R740XD_2!L72 -> 0 | W37: =Lotto4_R740XD_2!F72 -> 0 | X37: =Lotto4_R740XD_3!L72 -> 0 | Y37: =Lotto4_R740XD_3!F72 -> 0 | AA37: =ISODD(SUM($J$23:J37)) -> FALSE | AB37: pci5
C38: =IF(B38="","",VLOOKUP(L38,Tabella_prezzi!$A$3:$K$303,9,FALSE)) ->  | D38: =IF(B38="","",VLOOKUP(L38,Tabella_prezzi!$A$3:$K$303,6,FALSE)) ->  | E38: =IF(B38="","",VLOOKUP(L38,Tabella_prezzi!$A$3:$K$303,8,FALSE)) ->  | F38: =IF(B38="","",VLOOKUP(L38,Tabella_prezzi!$A$3:$K$303,4,FALSE)) ->  | J38: 0 | K38: =VLOOKUP(L38,Tabella_prezzi!A17:K318,6,FALSE) -> TS3L4-HDD1TB | L38: L4N11 | M38: 0 | N38: 0 | O38: 0 | P38: 0 | Q38: =Lotto4_R740XD_1!$F$37 -> 0 | R38: =Lotto4_R740XD_2!$F$37 -> 0 | S38: =Lotto4_R740XD_3!$F$37 -> 0 | T38: =Lotto4_R740XD_1!L95 ->  | U38: =Lotto4_R740XD_1!F95 ->  | V38: =Lotto4_R740XD_2!L75 -> 0 | W38: =Lotto4_R740XD_2!F75 -> 0 | X38: =Lotto4_R740XD_3!L75 -> 0 | Y38: =Lotto4_R740XD_3!F75 -> 0 | AA38: =ISODD(SUM($J$23:J38)) -> FALSE | AB38: pci6
C39: =IF(B39="","",VLOOKUP(L39,Tabella_prezzi!$A$3:$K$303,9,FALSE)) ->  | D39: =IF(B39="","",VLOOKUP(L39,Tabella_prezzi!$A$3:$K$303,6,FALSE)) ->  | E39: =IF(B39="","",VLOOKUP(L39,Tabella_prezzi!$A$3:$K$303,8,FALSE)) ->  | F39: =IF(B39="","",VLOOKUP(L39,Tabella_prezzi!$A$3:$K$303,4,FALSE)) ->  | J39: 0 | K39: =VLOOKUP(L39,Tabella_prezzi!A18:K319,6,FALSE) -> TS3L4-HDD300GB | L39: L4N12 | M39: 0 | N39: 0 | O39: 0 | P39: 0 | Q39: =Lotto4_R740XD_1!$F$35 -> 0 | R39: =Lotto4_R740XD_2!$F$35 -> 0 | S39: =Lotto4_R740XD_3!$F$35 -> 0 | T39: =Lotto4_R740XD_1!L98 ->  | U39: =Lotto4_R740XD_1!F98 ->  | V39: =Lotto4_R740XD_2!L78 -> 0 | W39: =Lotto4_R740XD_2!F78 -> 0 | X39: =Lotto4_R740XD_3!L78 -> 0 | Y39: =Lotto4_R740XD_3!F78 -> 0 | AA39: =ISODD(SUM($J$23:J39)) -> FALSE | AB39: pci7
C40: =IF(B40="","",VLOOKUP(L40,Tabella_prezzi!$A$3:$K$303,9,FALSE)) ->  | D40: =IF(B40="","",VLOOKUP(L40,Tabella_prezzi!$A$3:$K$303,6,FALSE)) ->  | E40: =IF(B40="","",VLOOKUP(L40,Tabella_prezzi!$A$3:$K$303,8,FALSE)) ->  | F40: =IF(B40="","",VLOOKUP(L40,Tabella_prezzi!$A$3:$K$303,4,FALSE)) ->  | J40: 0 | K40: =VLOOKUP(L40,Tabella_prezzi!A19:K320,6,FALSE) -> TS3L4-RI1600GB | L40: L4N13 | M40: 0 | N40: 0 | O40: 0 | P40: 0 | Q40: =Lotto4_R740XD_1!$F$43 -> 0 | R40: =Lotto4_R740XD_2!$F$43 -> 0 | S40: =Lotto4_R740XD_3!$F$43 -> 0 | T40: =Lotto4_R740XD_1!L28 -> 0 | U40: =Lotto4_R740XD_1!F28 -> 0 | V40: =Lotto4_R740XD_2!L27 ->  | W40: =Lotto4_R740XD_2!F27 -> 0 | X40: =Lotto4_R740XD_3!L27 ->  | Y40: =Lotto4_R740XD_3!F27 -> 0 | AA40: =ISODD(SUM($J$23:J40)) -> FALSE | AB40: pci8
C41: =IF(B41="","",VLOOKUP(L41,Tabella_prezzi!$A$3:$K$303,9,FALSE)) ->  | D41: =IF(B41="","",VLOOKUP(L41,Tabella_prezzi!$A$3:$K$303,6,FALSE)) ->  | E41: =IF(B41="","",VLOOKUP(L41,Tabella_prezzi!$A$3:$K$303,8,FALSE)) ->  | F41: =IF(B41="","",VLOOKUP(L41,Tabella_prezzi!$A$3:$K$303,4,FALSE)) ->  | J41: 0 | K41: =VLOOKUP(L41,Tabella_prezzi!A20:K321,6,FALSE) -> TS3L4-MU1600GB | L41: L4N14 | M41: 0 | N41: 0 | O41: 0 | P41: 0 | Q41: =Lotto4_R740XD_1!$F$51 -> 0 | R41: =Lotto4_R740XD_2!$F$51 -> 0 | S41: =Lotto4_R740XD_3!$F$51 -> 0 | AA41: =ISODD(SUM($J$23:J41)) -> FALSE | AB41: win2core
C42: =IF(B42="","",VLOOKUP(L42,Tabella_prezzi!$A$3:$K$303,9,FALSE)) ->  | D42: =IF(B42="","",VLOOKUP(L42,Tabella_prezzi!$A$3:$K$303,6,FALSE)) ->  | E42: =IF(B42="","",VLOOKUP(L42,Tabella_prezzi!$A$3:$K$303,8,FALSE)) ->  | F42: =IF(B42="","",VLOOKUP(L42,Tabella_prezzi!$A$3:$K$303,4,FALSE)) ->  | J42: 0 | K42: =VLOOKUP(L42,Tabella_prezzi!A21:K322,6,FALSE) -> TS3L4-RI800GB | L42: L4N15 | M42: 0 | N42: 0 | O42: 0 | P42: 0 | Q42: =IF(Lotto4_R740XD_1!$F$41>2,Lotto4_R740XD_1!$F$41-2,0) -> 0 | R42: =IF(Lotto4_R740XD_2!$F$41>2,Lotto4_R740XD_2!$F$41-2,0) -> 0 | S42: =IF(Lotto4_R740XD_3!$F$41>2,Lotto4_R740XD_3!$F$41-2,0) -> 0 | AA42: =ISODD(SUM($J$23:J42)) -> FALSE
C43: =IF(B43="","",VLOOKUP(L43,Tabella_prezzi!$A$3:$K$303,9,FALSE)) ->  | D43: =IF(B43="","",VLOOKUP(L43,Tabella_prezzi!$A$3:$K$303,6,FALSE)) ->  | E43: =IF(B43="","",VLOOKUP(L43,Tabella_prezzi!$A$3:$K$303,8,FALSE)) ->  | F43: =IF(B43="","",VLOOKUP(L43,Tabella_prezzi!$A$3:$K$303,4,FALSE)) ->  | J43: 0 | K43: =VLOOKUP(L43,Tabella_prezzi!A22:K323,6,FALSE) -> TS3L4-MU800GB | L43: L4N16 | M43: 0 | N43: 0 | O43: 0 | P43: 0 | Q43: =Lotto4_R740XD_1!$F$49 -> 0 | R43: =Lotto4_R740XD_2!$F$49 -> 0 | S43: =Lotto4_R740XD_3!$F$49 -> 0 | AA43: =ISODD(SUM($J$23:J43)) -> FALSE
C44: =IF(B44="","",VLOOKUP(L44,Tabella_prezzi!$A$3:$K$303,9,FALSE)) ->  | D44: =IF(B44="","",VLOOKUP(L44,Tabella_prezzi!$A$3:$K$303,6,FALSE)) ->  | E44: =IF(B44="","",VLOOKUP(L44,Tabella_prezzi!$A$3:$K$303,8,FALSE)) ->  | F44: =IF(B44="","",VLOOKUP(L44,Tabella_prezzi!$A$3:$K$303,4,FALSE)) ->  | J44: 0 | K44: =VLOOKUP(L44,Tabella_prezzi!A23:K324,6,FALSE) -> TS3L4-NVME1600 | L44: L4N17 | M44: =COUNTIF(TS3L4_L4N_1,L44)*$M$22 -> 0 | N44: =COUNTIF(TS3L4_L4N_2,L44)*$N$22 -> 0 | O44: =COUNTIF(TS3L4_L4N_3,L44)*$O$22 -> 0 | P44: 0 | AA44: =ISODD(SUM($J$23:J44)) -> FALSE
C45: =IF(B45="","",VLOOKUP(L45,Tabella_prezzi!$A$3:$K$303,9,FALSE)) ->  | D45: =IF(B45="","",VLOOKUP(L45,Tabella_prezzi!$A$3:$K$303,6,FALSE)) ->  | E45: =IF(B45="","",VLOOKUP(L45,Tabella_prezzi!$A$3:$K$303,8,FALSE)) ->  | F45: =IF(B45="","",VLOOKUP(L45,Tabella_prezzi!$A$3:$K$303,4,FALSE)) ->  | J45: 0 | K45: =VLOOKUP(L45,Tabella_prezzi!A24:K325,6,FALSE) -> TS3L4-NVME800 | L45: L4N18 | M45: 0 | N45: 0 | O45: 0 | P45: 0 | AA45: =ISODD(SUM($J$23:J45)) -> FALSE
C46: =IF(B46="","",VLOOKUP(L46,Tabella_prezzi!$A$3:$K$303,9,FALSE)) ->  | D46: =IF(B46="","",VLOOKUP(L46,Tabella_prezzi!$A$3:$K$303,6,FALSE)) ->  | E46: =IF(B46="","",VLOOKUP(L46,Tabella_prezzi!$A$3:$K$303,8,FALSE)) ->  | F46: =IF(B46="","",VLOOKUP(L46,Tabella_prezzi!$A$3:$K$303,4,FALSE)) ->  | J46: 0 | K46: =VLOOKUP(L46,Tabella_prezzi!A25:K326,6,FALSE) -> TS3L4-UPS | L46: L4N19 | P46: =Altre_Opzioni!F72 -> 0 | AA46: =ISODD(SUM($J$23:J46)) -> FALSE
C47: =IF(B47="","",VLOOKUP(L47,Tabella_prezzi!$A$3:$K$303,9,FALSE)) ->  | D47: =IF(B47="","",VLOOKUP(L47,Tabella_prezzi!$A$3:$K$303,6,FALSE)) ->  | E47: =IF(B47="","",VLOOKUP(L47,Tabella_prezzi!$A$3:$K$303,8,FALSE)) ->  | F47: =IF(B47="","",VLOOKUP(L47,Tabella_prezzi!$A$3:$K$303,4,FALSE)) ->  | J47: 0 | K47: =VLOOKUP(L47,Tabella_prezzi!A26:K327,6,FALSE) -> TS3L4-GUI | L47: L4N20 | P47: =Altre_Opzioni!F76 -> 0 | AA47: =ISODD(SUM($J$23:J47)) -> FALSE
C48: =IF(B48="","",VLOOKUP(L48,Tabella_prezzi!$A$3:$K$303,9,FALSE)) ->  | D48: =IF(B48="","",VLOOKUP(L48,Tabella_prezzi!$A$3:$K$303,6,FALSE)) ->  | E48: =IF(B48="","",VLOOKUP(L48,Tabella_prezzi!$A$3:$K$303,8,FALSE)) ->  | F48: =IF(B48="","",VLOOKUP(L48,Tabella_prezzi!$A$3:$K$303,4,FALSE)) ->  | J48: 0 | K48: =VLOOKUP(L48,Tabella_prezzi!A27:K328,6,FALSE) -> TS3L4-SWKVM | L48: L4N21 | P48: =Altre_Opzioni!F80 -> 0 | AA48: =ISODD(SUM($J$23:J48)) -> FALSE
C49: =IF(B49="","",VLOOKUP(L49,Tabella_prezzi!$A$3:$K$303,9,FALSE)) ->  | D49: =IF(B49="","",VLOOKUP(L49,Tabella_prezzi!$A$3:$K$303,6,FALSE)) ->  | E49: =IF(B49="","",VLOOKUP(L49,Tabella_prezzi!$A$3:$K$303,8,FALSE)) ->  | F49: =IF(B49="","",VLOOKUP(L49,Tabella_prezzi!$A$3:$K$303,4,FALSE)) ->  | J49: 0 | K49: =VLOOKUP(L49,Tabella_prezzi!A28:K329,6,FALSE) -> TS3L4-WINSRVSTD | L49: L4N22 | M49: 0 | N49: 0 | O49: 0 | P49: 0 | AA49: =ISODD(SUM($J$23:J49)) -> FALSE
C50: =IF(B50="","",VLOOKUP(L50,Tabella_prezzi!$A$3:$K$303,9,FALSE)) ->  | D50: =IF(B50="","",VLOOKUP(L50,Tabella_prezzi!$A$3:$K$303,6,FALSE)) ->  | E50: =IF(B50="","",VLOOKUP(L50,Tabella_prezzi!$A$3:$K$303,8,FALSE)) ->  | F50: =IF(B50="","",VLOOKUP(L50,Tabella_prezzi!$A$3:$K$303,4,FALSE)) ->  | J50: 0 | K50: =VLOOKUP(L50,Tabella_prezzi!A29:K330,6,FALSE) -> TS3L4-WINDEVCAL | L50: L4N23 | P50: =Altre_Opzioni!F83 -> 0 | AA50: =ISODD(SUM($J$23:J50)) -> FALSE
C51: =IF(B51="","",VLOOKUP(L51,Tabella_prezzi!$A$3:$K$303,9,FALSE)) ->  | D51: =IF(B51="","",VLOOKUP(L51,Tabella_prezzi!$A$3:$K$303,6,FALSE)) ->  | E51: =IF(B51="","",VLOOKUP(L51,Tabella_prezzi!$A$3:$K$303,8,FALSE)) ->  | F51: =IF(B51="","",VLOOKUP(L51,Tabella_prezzi!$A$3:$K$303,4,FALSE)) ->  | J51: 0 | K51: =VLOOKUP(L51,Tabella_prezzi!A30:K331,6,FALSE) -> TS3L4-WINUSRCAL | L51: L4N24 | P51: =Altre_Opzioni!F86 -> 0 | AA51: =ISODD(SUM($J$23:J51)) -> FALSE
C52: =IF(B52="","",VLOOKUP(L52,Tabella_prezzi!$A$3:$K$303,9,FALSE)) ->  | D52: =IF(B52="","",VLOOKUP(L52,Tabella_prezzi!$A$3:$K$303,6,FALSE)) ->  | E52: =IF(B52="","",VLOOKUP(L52,Tabella_prezzi!$A$3:$K$303,8,FALSE)) ->  | F52: =IF(B52="","",VLOOKUP(L52,Tabella_prezzi!$A$3:$K$303,4,FALSE)) ->  | J52: 0 | K52: =VLOOKUP(L52,Tabella_prezzi!A31:K332,6,FALSE) -> TS3L4-WINSRV2C | L52: L4N25 | M52: =COUNTIF(TS3L4_L4N_1,L52)*$M$22*Q52 -> 0 | N52: =COUNTIF(TS3L4_L4N_2,L52)*$N$22*R52 -> 0 | O52: =COUNTIF(TS3L4_L4N_3,L52)*$O$22*S52 -> 0 | P52: 0 | Q52: =Lotto4_R740XD_1!$F$28 -> 0 | R52: =Lotto4_R740XD_2!$F$28 -> 0 | S52: =Lotto4_R740XD_3!$F$28 -> 0 | AA52: =ISODD(SUM($J$23:J52)) -> FALSE
C53: =IF(B53="","",VLOOKUP(L53,Tabella_prezzi!$A$3:$K$303,9,FALSE)) ->  | D53: =IF(B53="","",VLOOKUP(L53,Tabella_prezzi!$A$3:$K$303,6,FALSE)) ->  | E53: =IF(B53="","",VLOOKUP(L53,Tabella_prezzi!$A$3:$K$303,8,FALSE)) ->  | F53: =IF(B53="","",VLOOKUP(L53,Tabella_prezzi!$A$3:$K$303,4,FALSE)) ->  | J53: 0 | K53: =VLOOKUP(L53,Tabella_prezzi!A32:K333,6,FALSE) -> TS3L4-LINUX | L53: L4N26 | M53: =COUNTIF(TS3L4_L4N_1,L53)*$M$22 -> 0 | N53: =COUNTIF(TS3L4_L4N_2,L53)*$N$22 -> 0 | O53: =COUNTIF(TS3L4_L4N_3,L53)*$O$22 -> 0 | P53: 0 | AA53: =ISODD(SUM($J$23:J53)) -> FALSE
C54: =IF(B54="","",VLOOKUP(L54,Tabella_prezzi!$A$3:$K$303,9,FALSE)) ->  | D54: =IF(B54="","",VLOOKUP(L54,Tabella_prezzi!$A$3:$K$303,6,FALSE)) ->  | E54: =IF(B54="","",VLOOKUP(L54,Tabella_prezzi!$A$3:$K$303,8,FALSE)) ->  | F54: =IF(B54="","",VLOOKUP(L54,Tabella_prezzi!$A$3:$K$303,4,FALSE)) ->  | J54: 0 | K54: =VLOOKUP(L54,Tabella_prezzi!A33:K334,6,FALSE) -> TS3L4-HDRTNTN | L54: L4N27 | M54: 0 | N54: 0 | O54: 0 | P54: 0 | AA54: =ISODD(SUM($J$23:J54)) -> FALSE
C55: =IF(B55="","",VLOOKUP(L55,Tabella_prezzi!$A$3:$K$303,9,FALSE)) ->  | D55: =IF(B55="","",VLOOKUP(L55,Tabella_prezzi!$A$3:$K$303,6,FALSE)) ->  | E55: =IF(B55="","",VLOOKUP(L55,Tabella_prezzi!$A$3:$K$303,8,FALSE)) ->  | F55: =IF(B55="","",VLOOKUP(L55,Tabella_prezzi!$A$3:$K$303,4,FALSE)) ->  | J55: 0 | K55: =VLOOKUP(L55,Tabella_prezzi!A34:K335,6,FALSE) -> TS3L4-5Y | L55: L4N28 | M55: 0 | N55: 0 | O55: 0 | P55: 0 | AA55: =ISODD(SUM($J$23:J55)) -> FALSE
C56: =IF(B56="","",VLOOKUP(L56,Tabella_prezzi!$A$3:$K$303,9,FALSE)) ->  | D56: =IF(B56="","",VLOOKUP(L56,Tabella_prezzi!$A$3:$K$303,6,FALSE)) ->  | E56: =IF(B56="","",VLOOKUP(L56,Tabella_prezzi!$A$3:$K$303,8,FALSE)) ->  | F56: =IF(B56="","",VLOOKUP(L56,Tabella_prezzi!$A$3:$K$303,4,FALSE)) ->  | J56: 0 | K56: =VLOOKUP(L56,Tabella_prezzi!A35:K336,6,FALSE) -> TS3L4-RACK | L56: L4N29 | P56: =Altre_Opzioni!F16 -> 0 | AA56: =ISODD(SUM($J$23:J56)) -> FALSE
C57: =IF(B57="","",VLOOKUP(L57,Tabella_prezzi!$A$3:$K$303,9,FALSE)) ->  | D57: =IF(B57="","",VLOOKUP(L57,Tabella_prezzi!$A$3:$K$303,6,FALSE)) ->  | E57: =IF(B57="","",VLOOKUP(L57,Tabella_prezzi!$A$3:$K$303,8,FALSE)) ->  | F57: =IF(B57="","",VLOOKUP(L57,Tabella_prezzi!$A$3:$K$303,4,FALSE)) ->  | G57: =IF(C57="","",F57*B57) ->  | J57: 0 | K57: =VLOOKUP(L57,Tabella_prezzi!A19:K320,6,FALSE) -> TS3L4-HDRTNTN60 | L57: L4N30 | M57: =COUNTIF(TS3L4_L4N_1,L57)*$M$22 -> 0 | N57: =COUNTIF(TS3L4_L4N_2,L57)*$N$22 -> 0 | O57: =COUNTIF(TS3L4_L4N_3,L57)*$O$22 -> 0 | P57: =SUM(M57:O57) -> 0
B58: TECNOLOGIE SERVER 3 LOTTO 4 - LISTA ULTERIORI ARTICOLI IN CONVENZIONE (20%) - | J58: =IF($G$162>0,1,0) -> 0 | T58: =Lotto4_R740XD_1!L96 -> 0 | U58: =Lotto4_R740XD_1!F135 ->  | V58: =Lotto4_R740XD_2!L96 -> 0 | W58: =Lotto4_R740XD_2!F96 -> 0 | X58: =Lotto4_R740XD_3!L96 -> 0 | Y58: =Lotto4_R740XD_3!F96 -> 0 | AA58: =ISODD(SUM($J$23:J58)) -> FALSE | AB58: retention
B59: Quantità | C59: Codice Articolo Produttore | D59: Codice Articolo Convenzione | E59: Descrizione | F59: Costo unitario | G59: Costo complessivo | J59: =IF($G$162>0,1,0) -> 0 | T59: =Lotto4_R740XD_1!L132 ->  | U59: =Lotto4_R740XD_1!F132 ->  | V59: =Lotto4_R740XD_2!L93 -> 0 | W59: =Lotto4_R740XD_2!F93 -> 0 | X59: =Lotto4_R740XD_3!L93 -> 0 | Y59: =Lotto4_R740XD_3!F93 -> 0 | AA59: =ISODD(SUM($J$23:J59)) -> FALSE | AB59: warranty
J60: =IF(B60="",0,1) -> 0 | T60: =Lotto4_R740XD_1!L139 ->  | U60: =Lotto4_R740XD_1!F139 ->  | V60: =Lotto4_R740XD_2!L100 -> 0 | W60: =Lotto4_R740XD_2!F100 -> 0 | X60: =Lotto4_R740XD_3!L100 -> 0 | Y60: =Lotto4_R740XD_3!F100 -> 0 | AA60: =ISODD(SUM($J$23:J60)) -> FALSE | AB60: ups
B61: =IF(P61>0,P61,"") ->  | C61: =IF(B61="","",VLOOKUP(L61,Tabella_prezzi!$A$3:$K$303,9,FALSE)) ->  | D61: =IF(B61="","",VLOOKUP(L61,Tabella_prezzi!$A$3:$K$303,6,FALSE)) ->  | E61: =IF(B61="","",VLOOKUP(L61,Tabella_prezzi!$A$3:$K$303,8,FALSE)) ->  | F61: =IF(B61="","",VLOOKUP(L61,Tabella_prezzi!$A$3:$K$303,4,FALSE)) ->  | G61: =IF(C61="","",F61*B61) ->  | J61: 0 | K61: =VLOOKUP(L61,Tabella_prezzi!A23:K324,6,FALSE) -> TS3L4-57416-L | L61: L4N31 | M61: 0 | N61: =COUNTIF(TS3L4_L4N_2,L61)*$N$22 -> 0 | O61: =COUNTIF(TS3L4_L4N_3,L61)*$O$22 -> 0 | P61: 0 | T61: =Lotto4_R740XD_1!L142 ->  | U61: =Lotto4_R740XD_1!F142 ->  | V61: =Lotto4_R740XD_2!L103 -> 0 | W61: =Lotto4_R740XD_2!F103 -> 0 | X61: =Lotto4_R740XD_3!L103 -> 0 | Y61: =Lotto4_R740XD_3!F103 -> 0 | AA61: =ISODD(SUM($J$23:J61)) -> FALSE | AB61: gui
B62: =IF(P62>0,P62,"") ->  | C62: =IF(B62="","",VLOOKUP(L62,Tabella_prezzi!$A$3:$K$303,9,FALSE)) ->  | D62: =IF(B62="","",VLOOKUP(L62,Tabella_prezzi!$A$3:$K$303,6,FALSE)) ->  | E62: =IF(B62="","",VLOOKUP(L62,Tabella_prezzi!$A$3:$K$303,8,FALSE)) ->  | F62: =IF(B62="","",VLOOKUP(L62,Tabella_prezzi!$A$3:$K$303,4,FALSE)) ->  | G62: =IF(C62="","",F62*B62) ->  | J62: 0 | K62: =VLOOKUP(L62,Tabella_prezzi!A24:K325,6,FALSE) -> TS3L4-BOSS240 | L62: L4N32 | M62: 0 | N62: 0 | O62: 0 | P62: 0 | T62: =Lotto4_R740XD_1!L129 ->  | U62: =Lotto4_R740XD_1!F129 ->  | V62: =Lotto4_R740XD_2!L90 -> 0 | W62: =Lotto4_R740XD_2!F90 -> 0 | X62: =Lotto4_R740XD_3!L90 -> 0 | Y62: =Lotto4_R740XD_3!F90 -> 0 | AA62: =ISODD(SUM($J$23:J62)) -> FALSE
C63: =IF(B63="","",VLOOKUP(L63,Tabella_prezzi!$A$3:$K$303,9,FALSE)) ->  | D63: =IF(B63="","",VLOOKUP(L63,Tabella_prezzi!$A$3:$K$303,6,FALSE)) ->  | E63: =IF(B63="","",VLOOKUP(L63,Tabella_prezzi!$A$3:$K$303,8,FALSE)) ->  | F63: =IF(B63="","",VLOOKUP(L63,Tabella_prezzi!$A$3:$K$303,4,FALSE)) ->  | J63: 0 | K63: =VLOOKUP(L63,Tabella_prezzi!A25:K326,6,FALSE) -> TS3L4-BOSS480 | L63: L4N33 | M63: 0 | N63: 0 | O63: 0 | P63: 0 | T63: =Lotto4_R740XD_1!L115 -> L4N62 | U63: =Lotto4_R740XD_1!F115 -> 5 | V63: =Lotto4_R740XD_2!L87 -> 0 | W63: =Lotto4_R740XD_2!F87 -> 0 | X63: =Lotto4_R740XD_3!L87 -> 0 | Y63: =Lotto4_R740XD_3!F87 -> 0 | AA63: =ISODD(SUM($J$23:J63)) -> FALSE
C64: =IF(B64="","",VLOOKUP(L64,Tabella_prezzi!$A$3:$K$303,9,FALSE)) ->  | D64: =IF(B64="","",VLOOKUP(L64,Tabella_prezzi!$A$3:$K$303,6,FALSE)) ->  | E64: =IF(B64="","",VLOOKUP(L64,Tabella_prezzi!$A$3:$K$303,8,FALSE)) ->  | F64: =IF(B64="","",VLOOKUP(L64,Tabella_prezzi!$A$3:$K$303,4,FALSE)) ->  | J64: 0 | K64: =VLOOKUP(L64,Tabella_prezzi!A26:K327,6,FALSE) -> TS3L4-HBA330-L | L64: L4N34 | M64: 0 | N64: 0 | O64: 0 | P64: 0 | T64: =Lotto4_R740XD_1!L104 -> 0 | U64: =Lotto4_R740XD_1!F104 -> 0 | V64: =Lotto4_R740XD_2!L84 -> 0 | W64: =Lotto4_R740XD_2!F84 -> 0 | X64: =Lotto4_R740XD_3!L84 -> 0 | Y64: =Lotto4_R740XD_3!F84 -> 0 | AA64: =ISODD(SUM($J$23:J64)) -> FALSE
C65: =IF(B65="","",VLOOKUP(L65,Tabella_prezzi!$A$3:$K$303,9,FALSE)) ->  | D65: =IF(B65="","",VLOOKUP(L65,Tabella_prezzi!$A$3:$K$303,6,FALSE)) ->  | E65: =IF(B65="","",VLOOKUP(L65,Tabella_prezzi!$A$3:$K$303,8,FALSE)) ->  | F65: =IF(B65="","",VLOOKUP(L65,Tabella_prezzi!$A$3:$K$303,4,FALSE)) ->  | J65: 0 | K65: =VLOOKUP(L65,Tabella_prezzi!A27:K328,6,FALSE) -> TS3L4-HBA330M | L65: L4N35 | M65: 0 | N65: 0 | O65: 0 | P65: 0 | T65: =Lotto4_R740XD_1!L101 -> 0 | U65: =Lotto4_R740XD_1!F101 -> 0 | V65: =Lotto4_R740XD_2!L81 -> 0 | W65: =Lotto4_R740XD_2!F81 -> 0 | X65: =Lotto4_R740XD_3!L81 -> 0 | Y65: =Lotto4_R740XD_3!F81 -> 0 | AA65: =ISODD(SUM($J$23:J65)) -> FALSE
C66: =IF(B66="","",VLOOKUP(L66,Tabella_prezzi!$A$3:$K$303,9,FALSE)) ->  | D66: =IF(B66="","",VLOOKUP(L66,Tabella_prezzi!$A$3:$K$303,6,FALSE)) ->  | E66: =IF(B66="","",VLOOKUP(L66,Tabella_prezzi!$A$3:$K$303,8,FALSE)) ->  | F66: =IF(B66="","",VLOOKUP(L66,Tabella_prezzi!$A$3:$K$303,4,FALSE)) ->  | J66: 0 | K66: =VLOOKUP(L66,Tabella_prezzi!A28:K329,6,FALSE) -> TS3L4-GPUSW | L66: L4N36 | M66: 0 | N66: 0 | O66: 0 | P66: 0 | T66: =Lotto4_R740XD_1!L12 ->  | U66: =Lotto4_R740XD_1!F12 ->  | V66: =Lotto4_R740XD_2!L11 -> 0 | W66: =Lotto4_R740XD_2!F11 -> 0 | X66: =Lotto4_R740XD_3!L11 -> 0 | Y66: =Lotto4_R740XD_3!F11 -> 0 | AA66: =ISODD(SUM($J$23:J66)) -> FALSE
C67: =IF(B67="","",VLOOKUP(L67,Tabella_prezzi!$A$3:$K$303,9,FALSE)) ->  | D67: =IF(B67="","",VLOOKUP(L67,Tabella_prezzi!$A$3:$K$303,6,FALSE)) ->  | E67: =IF(B67="","",VLOOKUP(L67,Tabella_prezzi!$A$3:$K$303,8,FALSE)) ->  | F67: =IF(B67="","",VLOOKUP(L67,Tabella_prezzi!$A$3:$K$303,4,FALSE)) ->  | J67: 0 | K67: =VLOOKUP(L67,Tabella_prezzi!A29:K330,6,FALSE) -> TS3L4-GPUDW | L67: L4N37 | M67: 0 | N67: 0 | O67: 0 | P67: 0 | AA67: =ISODD(SUM($J$23:J67)) -> FALSE
C68: =IF(B68="","",VLOOKUP(L68,Tabella_prezzi!$A$3:$K$303,9,FALSE)) ->  | D68: =IF(B68="","",VLOOKUP(L68,Tabella_prezzi!$A$3:$K$303,6,FALSE)) ->  | E68: =IF(B68="","",VLOOKUP(L68,Tabella_prezzi!$A$3:$K$303,8,FALSE)) ->  | F68: =IF(B68="","",VLOOKUP(L68,Tabella_prezzi!$A$3:$K$303,4,FALSE)) ->  | J68: 0 | K68: =VLOOKUP(L68,Tabella_prezzi!A30:K331,6,FALSE) -> TS3L4-VSAN | L68: L4N38 | M68: 0 | N68: 0 | O68: 0 | P68: 0 | AA68: =ISODD(SUM($J$23:J68)) -> FALSE
C69: =IF(B69="","",VLOOKUP(L69,Tabella_prezzi!$A$3:$K$303,9,FALSE)) ->  | D69: =IF(B69="","",VLOOKUP(L69,Tabella_prezzi!$A$3:$K$303,6,FALSE)) ->  | E69: =IF(B69="","",VLOOKUP(L69,Tabella_prezzi!$A$3:$K$303,8,FALSE)) ->  | F69: =IF(B69="","",VLOOKUP(L69,Tabella_prezzi!$A$3:$K$303,4,FALSE)) ->  | J69: 0 | K69: =VLOOKUP(L69,Tabella_prezzi!A31:K332,6,FALSE) -> TS3L4-CONX6SP | L69: L4N39 | M69: 0 | N69: 0 | O69: 0 | P69: 0 | AA69: =ISODD(SUM($J$23:J69)) -> FALSE
C70: =IF(B70="","",VLOOKUP(L70,Tabella_prezzi!$A$3:$K$303,9,FALSE)) ->  | D70: =IF(B70="","",VLOOKUP(L70,Tabella_prezzi!$A$3:$K$303,6,FALSE)) ->  | E70: =IF(B70="","",VLOOKUP(L70,Tabella_prezzi!$A$3:$K$303,8,FALSE)) ->  | F70: =IF(B70="","",VLOOKUP(L70,Tabella_prezzi!$A$3:$K$303,4,FALSE)) ->  | J70: 0 | K70: =VLOOKUP(L70,Tabella_prezzi!A32:K333,6,FALSE) -> TS3L4-CONX6DP | L70: L4N40 | M70: 0 | N70: 0 | O70: 0 | P70: 0 | AA70: =ISODD(SUM($J$23:J70)) -> FALSE
C71: =IF(B71="","",VLOOKUP(L71,Tabella_prezzi!$A$3:$K$303,9,FALSE)) ->  | D71: =IF(B71="","",VLOOKUP(L71,Tabella_prezzi!$A$3:$K$303,6,FALSE)) ->  | E71: =IF(B71="","",VLOOKUP(L71,Tabella_prezzi!$A$3:$K$303,8,FALSE)) ->  | F71: =IF(B71="","",VLOOKUP(L71,Tabella_prezzi!$A$3:$K$303,4,FALSE)) ->  | J71: 0 | K71: =VLOOKUP(L71,Tabella_prezzi!A33:K334,6,FALSE) -> TS3L4-X710DP-L | L71: L4N41 | M71: 0 | N71: 0 | O71: 0 | P71: 0 | AA71: =ISODD(SUM($J$23:J71)) -> FALSE
C72: =IF(B72="","",VLOOKUP(L72,Tabella_prezzi!$A$3:$K$303,9,FALSE)) ->  | D72: =IF(B72="","",VLOOKUP(L72,Tabella_prezzi!$A$3:$K$303,6,FALSE)) ->  | E72: =IF(B72="","",VLOOKUP(L72,Tabella_prezzi!$A$3:$K$303,8,FALSE)) ->  | F72: =IF(B72="","",VLOOKUP(L72,Tabella_prezzi!$A$3:$K$303,4,FALSE)) ->  | J72: 0 | K72: =VLOOKUP(L72,Tabella_prezzi!A34:K335,6,FALSE) -> TS3L4-X710DP | L72: L4N42 | M72: 0 | N72: 0 | O72: 0 | P72: 0 | AA72: =ISODD(SUM($J$23:J72)) -> FALSE
C73: =IF(B73="","",VLOOKUP(L73,Tabella_prezzi!$A$3:$K$303,9,FALSE)) ->  | D73: =IF(B73="","",VLOOKUP(L73,Tabella_prezzi!$A$3:$K$303,6,FALSE)) ->  | E73: =IF(B73="","",VLOOKUP(L73,Tabella_prezzi!$A$3:$K$303,8,FALSE)) ->  | F73: =IF(B73="","",VLOOKUP(L73,Tabella_prezzi!$A$3:$K$303,4,FALSE)) ->  | J73: 0 | K73: =VLOOKUP(L73,Tabella_prezzi!A35:K336,6,FALSE) -> TS3L4-X710QP | L73: L4N43 | M73: 0 | N73: 0 | O73: 0 | P73: 0 | AA73: =ISODD(SUM($J$23:J73)) -> FALSE
C74: =IF(B74="","",VLOOKUP(L74,Tabella_prezzi!$A$3:$K$303,9,FALSE)) ->  | D74: =IF(B74="","",VLOOKUP(L74,Tabella_prezzi!$A$3:$K$303,6,FALSE)) ->  | E74: =IF(B74="","",VLOOKUP(L74,Tabella_prezzi!$A$3:$K$303,8,FALSE)) ->  | F74: =IF(B74="","",VLOOKUP(L74,Tabella_prezzi!$A$3:$K$303,4,FALSE)) ->  | J74: 0 | K74: =VLOOKUP(L74,Tabella_prezzi!A36:K337,6,FALSE) -> 0 | L74: L4N44 | M74: 0 | N74: 0 | O74: 0 | P74: 0 | AA74: =ISODD(SUM($J$23:J74)) -> FALSE
C75: =IF(B75="","",VLOOKUP(L75,Tabella_prezzi!$A$3:$K$303,9,FALSE)) ->  | D75: =IF(B75="","",VLOOKUP(L75,Tabella_prezzi!$A$3:$K$303,6,FALSE)) ->  | E75: =IF(B75="","",VLOOKUP(L75,Tabella_prezzi!$A$3:$K$303,8,FALSE)) ->  | F75: =IF(B75="","",VLOOKUP(L75,Tabella_prezzi!$A$3:$K$303,4,FALSE)) ->  | J75: 0 | K75: =VLOOKUP(L75,Tabella_prezzi!A37:K338,6,FALSE) -> 0 | L75: L4N45 | M75: 0 | N75: 0 | O75: 0 | P75: 0 | AA75: =ISODD(SUM($J$23:J75)) -> FALSE
C76: =IF(B76="","",VLOOKUP(L76,Tabella_prezzi!$A$3:$K$303,9,FALSE)) ->  | D76: =IF(B76="","",VLOOKUP(L76,Tabella_prezzi!$A$3:$K$303,6,FALSE)) ->  | E76: =IF(B76="","",VLOOKUP(L76,Tabella_prezzi!$A$3:$K$303,8,FALSE)) ->  | F76: =IF(B76="","",VLOOKUP(L76,Tabella_prezzi!$A$3:$K$303,4,FALSE)) ->  | J76: 0 | K76: =VLOOKUP(L76,Tabella_prezzi!A38:K339,6,FALSE) -> TS3L4-57416 | L76: L4N46 | M76: 0 | N76: 0 | O76: 0 | P76: 0 | AA76: =ISODD(SUM($J$23:J76)) -> FALSE
C77: =IF(B77="","",VLOOKUP(L77,Tabella_prezzi!$A$3:$K$303,9,FALSE)) ->  | D77: =IF(B77="","",VLOOKUP(L77,Tabella_prezzi!$A$3:$K$303,6,FALSE)) ->  | E77: =IF(B77="","",VLOOKUP(L77,Tabella_prezzi!$A$3:$K$303,8,FALSE)) ->  | F77: =IF(B77="","",VLOOKUP(L77,Tabella_prezzi!$A$3:$K$303,4,FALSE)) ->  | J77: 0 | K77: =VLOOKUP(L77,Tabella_prezzi!A39:K340,6,FALSE) -> TS3L4-SRV8CORE | L77: L4N47 | M77: 0 | N77: 0 | O77: 0 | P77: 0 | AA77: =ISODD(SUM($J$23:J77)) -> FALSE
C78: =IF(B78="","",VLOOKUP(L78,Tabella_prezzi!$A$3:$K$303,9,FALSE)) ->  | D78: =IF(B78="","",VLOOKUP(L78,Tabella_prezzi!$A$3:$K$303,6,FALSE)) ->  | E78: =IF(B78="","",VLOOKUP(L78,Tabella_prezzi!$A$3:$K$303,8,FALSE)) ->  | F78: =IF(B78="","",VLOOKUP(L78,Tabella_prezzi!$A$3:$K$303,4,FALSE)) ->  | J78: 0 | K78: =VLOOKUP(L78,Tabella_prezzi!A40:K341,6,FALSE) -> TS3L4-CPU8CORE | L78: L4N48 | M78: 0 | N78: 0 | O78: 0 | P78: 0 | AA78: =ISODD(SUM($J$23:J78)) -> FALSE
C79: =IF(B79="","",VLOOKUP(L79,Tabella_prezzi!$A$3:$K$303,9,FALSE)) ->  | D79: =IF(B79="","",VLOOKUP(L79,Tabella_prezzi!$A$3:$K$303,6,FALSE)) ->  | E79: =IF(B79="","",VLOOKUP(L79,Tabella_prezzi!$A$3:$K$303,8,FALSE)) ->  | F79: =IF(B79="","",VLOOKUP(L79,Tabella_prezzi!$A$3:$K$303,4,FALSE)) ->  | J79: 0 | K79: =VLOOKUP(L79,Tabella_prezzi!A41:K342,6,FALSE) -> TS3L4-PSU1100W | L79: L4N49 | M79: 0 | N79: 0 | O79: 0 | P79: 0 | AA79: =ISODD(SUM($J$23:J79)) -> FALSE
C80: =IF(B80="","",VLOOKUP(L80,Tabella_prezzi!$A$3:$K$303,9,FALSE)) ->  | D80: =IF(B80="","",VLOOKUP(L80,Tabella_prezzi!$A$3:$K$303,6,FALSE)) ->  | E80: =IF(B80="","",VLOOKUP(L80,Tabella_prezzi!$A$3:$K$303,8,FALSE)) ->  | F80: =IF(B80="","",VLOOKUP(L80,Tabella_prezzi!$A$3:$K$303,4,FALSE)) ->  | J80: 0 | K80: =VLOOKUP(L80,Tabella_prezzi!A42:K343,6,FALSE) -> TS3L4-PSU2000W | L80: L4N50 | M80: 0 | N80: 0 | O80: 0 | P80: 0 | AA80: =ISODD(SUM($J$23:J80)) -> FALSE
C81: =IF(B81="","",VLOOKUP(L81,Tabella_prezzi!$A$3:$K$303,9,FALSE)) ->  | D81: =IF(B81="","",VLOOKUP(L81,Tabella_prezzi!$A$3:$K$303,6,FALSE)) ->  | E81: =IF(B81="","",VLOOKUP(L81,Tabella_prezzi!$A$3:$K$303,8,FALSE)) ->  | F81: =IF(B81="","",VLOOKUP(L81,Tabella_prezzi!$A$3:$K$303,4,FALSE)) ->  | J81: 0 | K81: =VLOOKUP(L81,Tabella_prezzi!A43:K344,6,FALSE) -> TS3L4-RI3840GB | L81: L4N51 | M81: =COUNTIF(TS3L4_L4N_1,L81)*$M$22*Q81 -> 0 | N81: =COUNTIF(TS3L4_L4N_2,L81)*$N$22*R81 -> 0 | O81: =COUNTIF(TS3L4_L4N_3,L81)*$O$22*S81 -> 0 | P81: 0 | Q81: =Lotto4_R740XD_1!$F$45 -> 0 | R81: =Lotto4_R740XD_2!$F$45 -> 0 | S81: =Lotto4_R740XD_3!$F$45 -> 0 | AA81: =ISODD(SUM($J$23:J81)) -> FALSE
C82: =IF(B82="","",VLOOKUP(L82,Tabella_prezzi!$A$3:$K$303,9,FALSE)) ->  | D82: =IF(B82="","",VLOOKUP(L82,Tabella_prezzi!$A$3:$K$303,6,FALSE)) ->  | E82: =IF(B82="","",VLOOKUP(L82,Tabella_prezzi!$A$3:$K$303,8,FALSE)) ->  | F82: =IF(B82="","",VLOOKUP(L82,Tabella_prezzi!$A$3:$K$303,4,FALSE)) ->  | J82: 0 | K82: =VLOOKUP(L82,Tabella_prezzi!A44:K345,6,FALSE) -> TS3L4-RI7680GB | L82: L4N52 | M82: =COUNTIF(TS3L4_L4N_1,L82)*$M$22*Q82 -> 0 | N82: =COUNTIF(TS3L4_L4N_2,L82)*$N$22*R82 -> 0 | O82: =COUNTIF(TS3L4_L4N_3,L82)*$O$22*S82 -> 0 | P82: 0 | Q82: =Lotto4_R740XD_1!$F$47 -> 0 | R82: =Lotto4_R740XD_2!$F$47 -> 0 | S82: =Lotto4_R740XD_3!$F$47 -> 0 | AA82: =ISODD(SUM($J$23:J82)) -> FALSE
C83: =IF(B83="","",VLOOKUP(L83,Tabella_prezzi!$A$3:$K$303,9,FALSE)) ->  | D83: =IF(B83="","",VLOOKUP(L83,Tabella_prezzi!$A$3:$K$303,6,FALSE)) ->  | E83: =IF(B83="","",VLOOKUP(L83,Tabella_prezzi!$A$3:$K$303,8,FALSE)) ->  | F83: =IF(B83="","",VLOOKUP(L83,Tabella_prezzi!$A$3:$K$303,4,FALSE)) ->  | J83: 0 | K83: =VLOOKUP(L83,Tabella_prezzi!A45:K346,6,FALSE) -> TS3L4-WI800GB | L83: L4N53 | M83: =COUNTIF(TS3L4_L4N_1,L83)*$M$22*Q83 -> 0 | N83: =COUNTIF(TS3L4_L4N_2,L83)*$N$22*R83 -> 0 | O83: =COUNTIF(TS3L4_L4N_3,L83)*$O$22*S83 -> 0 | P83: 0 | Q83: =Lotto4_R740XD_1!$F$53 -> 0 | R83: =Lotto4_R740XD_2!$F$53 -> 0 | S83: =Lotto4_R740XD_3!$F$53 -> 0 | AA83: =ISODD(SUM($J$23:J83)) -> FALSE
C84: =IF(B84="","",VLOOKUP(L84,Tabella_prezzi!$A$3:$K$303,9,FALSE)) ->  | D84: =IF(B84="","",VLOOKUP(L84,Tabella_prezzi!$A$3:$K$303,6,FALSE)) ->  | E84: =IF(B84="","",VLOOKUP(L84,Tabella_prezzi!$A$3:$K$303,8,FALSE)) ->  | F84: =IF(B84="","",VLOOKUP(L84,Tabella_prezzi!$A$3:$K$303,4,FALSE)) ->  | J84: 0 | K84: =VLOOKUP(L84,Tabella_prezzi!A46:K347,6,FALSE) -> TS3L4-WI1600GB | L84: L4N54 | M84: =COUNTIF(TS3L4_L4N_1,L84)*$M$22*Q84 -> 0 | N84: =COUNTIF(TS3L4_L4N_2,L84)*$N$22*R84 -> 0 | O84: =COUNTIF(TS3L4_L4N_3,L84)*$O$22*S84 -> 0 | P84: 0 | Q84: =Lotto4_R740XD_1!$F$55 -> 0 | R84: =Lotto4_R740XD_2!$F$55 -> 0 | S84: =Lotto4_R740XD_3!$F$55 -> 0 | AA84: =ISODD(SUM($J$23:J84)) -> FALSE
C85: =IF(B85="","",VLOOKUP(L85,Tabella_prezzi!$A$3:$K$303,9,FALSE)) ->  | D85: =IF(B85="","",VLOOKUP(L85,Tabella_prezzi!$A$3:$K$303,6,FALSE)) ->  | E85: =IF(B85="","",VLOOKUP(L85,Tabella_prezzi!$A$3:$K$303,8,FALSE)) ->  | F85: =IF(B85="","",VLOOKUP(L85,Tabella_prezzi!$A$3:$K$303,4,FALSE)) ->  | J85: 0 | K85: =VLOOKUP(L85,Tabella_prezzi!A47:K348,6,FALSE) -> TS3L4-TESLAT4 | L85: L4N55 | M85: =COUNTIF(TS3L4_L4N_1,L85)*$M$22 -> 0 | N85: =COUNTIF(TS3L4_L4N_2,L85)*$N$22 -> 0 | O85: =COUNTIF(TS3L4_L4N_3,L85)*$O$22 -> 0 | P85: 0 | AA85: =ISODD(SUM($J$23:J85)) -> FALSE
C86: =IF(B86="","",VLOOKUP(L86,Tabella_prezzi!$A$3:$K$303,9,FALSE)) ->  | D86: =IF(B86="","",VLOOKUP(L86,Tabella_prezzi!$A$3:$K$303,6,FALSE)) ->  | E86: =IF(B86="","",VLOOKUP(L86,Tabella_prezzi!$A$3:$K$303,8,FALSE)) ->  | F86: =IF(B86="","",VLOOKUP(L86,Tabella_prezzi!$A$3:$K$303,4,FALSE)) ->  | J86: 0 | K86: =VLOOKUP(L86,Tabella_prezzi!A48:K349,6,FALSE) -> TS3L4-RTX6000 | L86: L4N56 | M86: =COUNTIF(TS3L4_L4N_1,L86)*$M$22 -> 0 | N86: =COUNTIF(TS3L4_L4N_2,L86)*$N$22 -> 0 | O86: =COUNTIF(TS3L4_L4N_3,L86)*$O$22 -> 0 | P86: 0 | AA86: =ISODD(SUM($J$23:J86)) -> FALSE
C87: =IF(B87="","",VLOOKUP(L87,Tabella_prezzi!$A$3:$K$303,9,FALSE)) ->  | D87: =IF(B87="","",VLOOKUP(L87,Tabella_prezzi!$A$3:$K$303,6,FALSE)) ->  | E87: =IF(B87="","",VLOOKUP(L87,Tabella_prezzi!$A$3:$K$303,8,FALSE)) ->  | F87: =IF(B87="","",VLOOKUP(L87,Tabella_prezzi!$A$3:$K$303,4,FALSE)) ->  | J87: 0 | K87: =VLOOKUP(L87,Tabella_prezzi!A49:K350,6,FALSE) -> TS3L4-TESLAM10 | L87: L4N57 | M87: =COUNTIF(TS3L4_L4N_1,L87)*$M$22 -> 0 | N87: =COUNTIF(TS3L4_L4N_2,L87)*$N$22 -> 0 | O87: =COUNTIF(TS3L4_L4N_3,L87)*$O$22 -> 0 | P87: 0 | AA87: =ISODD(SUM($J$23:J87)) -> FALSE
C88: =IF(B88="","",VLOOKUP(L88,Tabella_prezzi!$A$3:$K$303,9,FALSE)) ->  | D88: =IF(B88="","",VLOOKUP(L88,Tabella_prezzi!$A$3:$K$303,6,FALSE)) ->  | E88: =IF(B88="","",VLOOKUP(L88,Tabella_prezzi!$A$3:$K$303,8,FALSE)) ->  | F88: =IF(B88="","",VLOOKUP(L88,Tabella_prezzi!$A$3:$K$303,4,FALSE)) ->  | J88: 0 | K88: =VLOOKUP(L88,Tabella_prezzi!A50:K351,6,FALSE) -> TS3L4-V100S32G | L88: L4N58 | M88: =COUNTIF(TS3L4_L4N_1,L88)*$M$22 -> 0 | N88: =COUNTIF(TS3L4_L4N_2,L88)*$N$22 -> 0 | O88: =COUNTIF(TS3L4_L4N_3,L88)*$O$22 -> 0 | P88: =SUM(M88:O88) -> 0 | AA88: =ISODD(SUM($J$23:J88)) -> FALSE
C89: =IF(B89="","",VLOOKUP(L89,Tabella_prezzi!$A$3:$K$303,9,FALSE)) ->  | D89: =IF(B89="","",VLOOKUP(L89,Tabella_prezzi!$A$3:$K$303,6,FALSE)) ->  | E89: =IF(B89="","",VLOOKUP(L89,Tabella_prezzi!$A$3:$K$303,8,FALSE)) ->  | F89: =IF(B89="","",VLOOKUP(L89,Tabella_prezzi!$A$3:$K$303,4,FALSE)) ->  | J89: =IF(B89="",0,1) -> 0 | K89: =VLOOKUP(L89,Tabella_prezzi!A51:K352,6,FALSE) -> TS3L4-WINDC | L89: L4N59 | M89: =COUNTIF(TS3L4_L4N_1,L89)*$M$22 -> 0 | N89: =COUNTIF(TS3L4_L4N_2,L89)*$N$22 -> 0 | O89: =COUNTIF(TS3L4_L4N_3,L89)*$O$22 -> 0 | P89: 0 | AA89: =ISODD(SUM($J$23:J89)) -> FALSE
C90: =IF(B90="","",VLOOKUP(L90,Tabella_prezzi!$A$3:$K$303,9,FALSE)) ->  | D90: =IF(B90="","",VLOOKUP(L90,Tabella_prezzi!$A$3:$K$303,6,FALSE)) ->  | E90: =IF(B90="","",VLOOKUP(L90,Tabella_prezzi!$A$3:$K$303,8,FALSE)) ->  | F90: =IF(B90="","",VLOOKUP(L90,Tabella_prezzi!$A$3:$K$303,4,FALSE)) ->  | J90: 0 | K90: =VLOOKUP(L90,Tabella_prezzi!A52:K353,6,FALSE) -> TS3L4-WINDC2C | L90: L4N60 | M90: =COUNTIF(TS3L4_L4N_1,L90)*$M$22*Q90 -> 0 | N90: =COUNTIF(TS3L4_L4N_2,L90)*$N$22*R90 -> 0 | O90: =COUNTIF(TS3L4_L4N_3,L90)*$O$22*S90 -> 0 | P90: 0 | Q90: =Lotto4_R740XD_1!$F$28 -> 0 | R90: =Lotto4_R740XD_2!$F$28 -> 0 | S90: =Lotto4_R740XD_3!$F$28 -> 0 | AA90: =ISODD(SUM($J$23:J90)) -> FALSE
C91: =IF(B91="","",VLOOKUP(L91,Tabella_prezzi!$A$3:$K$303,9,FALSE)) ->  | D91: =IF(B91="","",VLOOKUP(L91,Tabella_prezzi!$A$3:$K$303,6,FALSE)) ->  | E91: =IF(B91="","",VLOOKUP(L91,Tabella_prezzi!$A$3:$K$303,8,FALSE)) ->  | F91: =IF(B91="","",VLOOKUP(L91,Tabella_prezzi!$A$3:$K$303,4,FALSE)) ->  | J91: 0 | K91: =VLOOKUP(L91,Tabella_prezzi!A53:K354,6,FALSE) -> TS3L4-WINDC16C | L91: L4N61 | M91: =COUNTIF(TS3L4_L4N_1,L91)*$M$22 -> 0 | N91: =COUNTIF(TS3L4_L4N_2,L91)*$N$22 -> 0 | O91: =COUNTIF(TS3L4_L4N_3,L91)*$O$22 -> 0 | P91: 0 | AA91: =ISODD(SUM($J$23:J91)) -> FALSE
C92: =IF(B92="","",VLOOKUP(L92,Tabella_prezzi!$A$3:$K$303,9,FALSE)) ->  | D92: =IF(B92="","",VLOOKUP(L92,Tabella_prezzi!$A$3:$K$303,6,FALSE)) ->  | E92: =IF(B92="","",VLOOKUP(L92,Tabella_prezzi!$A$3:$K$303,8,FALSE)) ->  | F92: =IF(B92="","",VLOOKUP(L92,Tabella_prezzi!$A$3:$K$303,4,FALSE)) ->  | J92: =IF(B92="",0,1) -> 0 | K92: =VLOOKUP(L92,Tabella_prezzi!A57:K358,6,FALSE) -> TS3L4-OT10GB | L92: L4N109 | M92: =COUNTIF(TS3L4_L4N_1,L92)*$M$22*Q92 -> 0 | N92: =COUNTIF(TS3L4_L4N_2,L92)*$N$22*R92 -> 0 | O92: =COUNTIF(TS3L4_L4N_3,L92)*$O$22*S92 -> 0 | P92: =SUM(M92:O92) -> 0 | Q92: =Lotto4_R740XD_1!$F$101 -> 0 | R92: =Lotto4_R740XD_2!$F$101 -> 0 | S92: =Lotto4_R740XD_3!$F$101 -> 0 | AA92: =ISODD(SUM($J$23:J92)) -> FALSE
C93: =IF(B93="","",VLOOKUP(L93,Tabella_prezzi!$A$3:$K$303,9,FALSE)) ->  | D93: =IF(B93="","",VLOOKUP(L93,Tabella_prezzi!$A$3:$K$303,6,FALSE)) ->  | E93: =IF(B93="","",VLOOKUP(L93,Tabella_prezzi!$A$3:$K$303,8,FALSE)) ->  | F93: =IF(B93="","",VLOOKUP(L93,Tabella_prezzi!$A$3:$K$303,4,FALSE)) ->  | J93: 0 | K93: =VLOOKUP(L93,Tabella_prezzi!A54:K355,6,FALSE) -> TS3L4-RJ453M | L93: L4N62 | M93: =COUNTIF(TS3L4_L4N_1,L93)*$M$22*Q93 -> 0 | N93: =COUNTIF(TS3L4_L4N_2,L93)*$N$22*R93 -> 0 | O93: =COUNTIF(TS3L4_L4N_3,L93)*$O$22*S93 -> 0 | P93: 0 | Q93: =Lotto4_R740XD_1!$F$115 -> 5 | R93: =Lotto4_R740XD_2!$F$115 -> 5 | S93: =Lotto4_R740XD_3!$F$115 -> 5 | AA93: =ISODD(SUM($J$23:J93)) -> FALSE
C94: =IF(B94="","",VLOOKUP(L94,Tabella_prezzi!$A$3:$K$303,9,FALSE)) ->  | D94: =IF(B94="","",VLOOKUP(L94,Tabella_prezzi!$A$3:$K$303,6,FALSE)) ->  | E94: =IF(B94="","",VLOOKUP(L94,Tabella_prezzi!$A$3:$K$303,8,FALSE)) ->  | F94: =IF(B94="","",VLOOKUP(L94,Tabella_prezzi!$A$3:$K$303,4,FALSE)) ->  | J94: 0 | K94: =VLOOKUP(L94,Tabella_prezzi!A55:K356,6,FALSE) -> TS3L4-MEL100M3 | L94: L4N63 | M94: 0 | N94: 0 | O94: 0 | P94: 0 | Q94: =Lotto4_R740XD_1!$F$110 -> 0 | R94: =Lotto4_R740XD_2!$F$110 -> 0 | S94: =Lotto4_R740XD_3!$F$110 -> 0 | AA94: =ISODD(SUM($J$23:J94)) -> FALSE
C95: =IF(B95="","",VLOOKUP(L95,Tabella_prezzi!$A$3:$K$303,9,FALSE)) ->  | D95: =IF(B95="","",VLOOKUP(L95,Tabella_prezzi!$A$3:$K$303,6,FALSE)) ->  | E95: =IF(B95="","",VLOOKUP(L95,Tabella_prezzi!$A$3:$K$303,8,FALSE)) ->  | F95: =IF(B95="","",VLOOKUP(L95,Tabella_prezzi!$A$3:$K$303,4,FALSE)) ->  | J95: 0 | K95: =VLOOKUP(L95,Tabella_prezzi!A56:K357,6,FALSE) -> TS3L4-MEL100M10 | L95: L4N64 | M95: 0 | N95: 0 | O95: 0 | P95: 0 | Q95: =Lotto4_R740XD_1!$F$112 -> 0 | R95: =Lotto4_R740XD_2!$F$112 -> 0 | S95: =Lotto4_R740XD_3!$F$112 -> 0 | AA95: =ISODD(SUM($J$23:J95)) -> FALSE
C96: =IF(B96="","",VLOOKUP(L96,Tabella_prezzi!$A$3:$K$303,9,FALSE)) ->  | D96: =IF(B96="","",VLOOKUP(L96,Tabella_prezzi!$A$3:$K$303,6,FALSE)) ->  | E96: =IF(B96="","",VLOOKUP(L96,Tabella_prezzi!$A$3:$K$303,8,FALSE)) ->  | F96: =IF(B96="","",VLOOKUP(L96,Tabella_prezzi!$A$3:$K$303,4,FALSE)) ->  | J96: 0 | K96: =VLOOKUP(L96,Tabella_prezzi!A57:K358,6,FALSE) -> TS3L4-QSFP28 | L96: L4N65 | M96: 0 | N96: 0 | O96: 0 | P96: 0 | Q96: =Lotto4_R740XD_1!$F$107 -> 0 | R96: =Lotto4_R740XD_2!$F$107 -> 0 | S96: =Lotto4_R740XD_3!$F$107 -> 0 | AA96: =ISODD(SUM($J$23:J96)) -> FALSE
C97: =IF(B97="","",VLOOKUP(L97,Tabella_prezzi!$A$3:$K$303,9,FALSE)) ->  | D97: =IF(B97="","",VLOOKUP(L97,Tabella_prezzi!$A$3:$K$303,6,FALSE)) ->  | E97: =IF(B97="","",VLOOKUP(L97,Tabella_prezzi!$A$3:$K$303,8,FALSE)) ->  | F97: =IF(B97="","",VLOOKUP(L97,Tabella_prezzi!$A$3:$K$303,4,FALSE)) ->  | J97: 0 | K97: =VLOOKUP(L97,Tabella_prezzi!A58:K359,6,FALSE) -> TS3L4-10GBIC | L97: L4N66 | M97: 0 | N97: 0 | O97: 0 | P97: 0 | Q97: =Lotto4_R740XD_1!$F$101 -> 0 | R97: =Lotto4_R740XD_2!$F$101 -> 0 | S97: =Lotto4_R740XD_3!$F$101 -> 0 | AA97: =ISODD(SUM($J$23:J97)) -> FALSE
C98: =IF(B98="","",VLOOKUP(L98,Tabella_prezzi!$A$3:$K$303,9,FALSE)) ->  | D98: =IF(B98="","",VLOOKUP(L98,Tabella_prezzi!$A$3:$K$303,6,FALSE)) ->  | E98: =IF(B98="","",VLOOKUP(L98,Tabella_prezzi!$A$3:$K$303,8,FALSE)) ->  | F98: =IF(B98="","",VLOOKUP(L98,Tabella_prezzi!$A$3:$K$303,4,FALSE)) ->  | J98: 0 | K98: =VLOOKUP(L98,Tabella_prezzi!A59:K360,6,FALSE) -> TS3L4-DAC3M | L98: L4N67 | M98: 0 | N98: 0 | O98: 0 | P98: 0 | Q98: =Lotto4_R740XD_1!$F$104 -> 0 | R98: =Lotto4_R740XD_2!$F$104 -> 0 | S98: =Lotto4_R740XD_3!$F$104 -> 0 | AA98: =ISODD(SUM($J$23:J98)) -> FALSE
C99: =IF(B99="","",VLOOKUP(L99,Tabella_prezzi!$A$3:$K$303,9,FALSE)) ->  | D99: =IF(B99="","",VLOOKUP(L99,Tabella_prezzi!$A$3:$K$303,6,FALSE)) ->  | E99: =IF(B99="","",VLOOKUP(L99,Tabella_prezzi!$A$3:$K$303,8,FALSE)) ->  | F99: =IF(B99="","",VLOOKUP(L99,Tabella_prezzi!$A$3:$K$303,4,FALSE)) ->  | J99: 0 | K99: =VLOOKUP(L99,Tabella_prezzi!A60:K361,6,FALSE) -> TS3L4-BZLLCD | L99: L4N68 | M99: =COUNTIF(TS3L4_L4N_1,L99)*$M$22 -> 0 | N99: =COUNTIF(TS3L4_L4N_2,L99)*$N$22 -> 0 | O99: =COUNTIF(TS3L4_L4N_3,L99)*$O$22 -> 0 | P99: 0 | AA99: =ISODD(SUM($J$23:J99)) -> FALSE
C100: =IF(B100="","",VLOOKUP(L100,Tabella_prezzi!$A$3:$K$303,9,FALSE)) ->  | D100: =IF(B100="","",VLOOKUP(L100,Tabella_prezzi!$A$3:$K$303,6,FALSE)) ->  | E100: =IF(B100="","",VLOOKUP(L100,Tabella_prezzi!$A$3:$K$303,8,FALSE)) ->  | F100: =IF(B100="","",VLOOKUP(L100,Tabella_prezzi!$A$3:$K$303,4,FALSE)) ->  | J100: 0 | K100: =VLOOKUP(L100,Tabella_prezzi!A61:K362,6,FALSE) -> TS3L4-BZLSTD | L100: L4N69 | M100: 0 | N100: 0 | O100: 0 | P100: 0 | AA100: =ISODD(SUM($J$23:J100)) -> FALSE
C101: =IF(B101="","",VLOOKUP(L101,Tabella_prezzi!$A$3:$K$303,9,FALSE)) ->  | D101: =IF(B101="","",VLOOKUP(L101,Tabella_prezzi!$A$3:$K$303,6,FALSE)) ->  | E101: =IF(B101="","",VLOOKUP(L101,Tabella_prezzi!$A$3:$K$303,8,FALSE)) ->  | F101: =IF(B101="","",VLOOKUP(L101,Tabella_prezzi!$A$3:$K$303,4,FALSE)) ->  | J101: 0 | K101: =VLOOKUP(L101,Tabella_prezzi!A62:K363,6,FALSE) -> TS3L4-ISDM32GB | L101: L4N70 | M101: 0 | N101: 0 | O101: 0 | P101: 0 | AA101: =ISODD(SUM($J$23:J101)) -> FALSE
C102: =IF(B102="","",VLOOKUP(L102,Tabella_prezzi!$A$3:$K$303,9,FALSE)) ->  | D102: =IF(B102="","",VLOOKUP(L102,Tabella_prezzi!$A$3:$K$303,6,FALSE)) ->  | E102: =IF(B102="","",VLOOKUP(L102,Tabella_prezzi!$A$3:$K$303,8,FALSE)) ->  | F102: =IF(B102="","",VLOOKUP(L102,Tabella_prezzi!$A$3:$K$303,4,FALSE)) ->  | J102: 0 | K102: =VLOOKUP(L102,Tabella_prezzi!A63:K364,6,FALSE) -> TS3L4-H840 | L102: L4N71 | M102: 0 | N102: 0 | O102: 0 | P102: =SUM(M102:O102) -> 0 | AA102: =ISODD(SUM($J$23:J102)) -> FALSE
C103: =IF(B103="","",VLOOKUP(L103,Tabella_prezzi!$A$3:$K$303,9,FALSE)) ->  | D103: =IF(B103="","",VLOOKUP(L103,Tabella_prezzi!$A$3:$K$303,6,FALSE)) ->  | E103: =IF(B103="","",VLOOKUP(L103,Tabella_prezzi!$A$3:$K$303,8,FALSE)) ->  | F103: =IF(B103="","",VLOOKUP(L103,Tabella_prezzi!$A$3:$K$303,4,FALSE)) ->  | J103: 0 | K103: =VLOOKUP(L103,Tabella_prezzi!A64:K365,6,FALSE) -> TS3L4-VS7STD6AK | L103: L4N72 | P103: =Altre_Opzioni!F20 -> 0 | AA103: =ISODD(SUM($J$23:J103)) -> FALSE
C104: =IF(B104="","",VLOOKUP(L104,Tabella_prezzi!$A$3:$K$303,9,FALSE)) ->  | D104: =IF(B104="","",VLOOKUP(L104,Tabella_prezzi!$A$3:$K$303,6,FALSE)) ->  | E104: =IF(B104="","",VLOOKUP(L104,Tabella_prezzi!$A$3:$K$303,8,FALSE)) ->  | F104: =IF(B104="","",VLOOKUP(L104,Tabella_prezzi!$A$3:$K$303,4,FALSE)) ->  | J104: 0 | K104: =VLOOKUP(L104,Tabella_prezzi!A65:K366,6,FALSE) -> TS3L4-VS7STD | L104: L4N73 | P104: =Altre_Opzioni!F21 -> 0 | AA104: =ISODD(SUM($J$23:J104)) -> FALSE
C105: =IF(B105="","",VLOOKUP(L105,Tabella_prezzi!$A$3:$K$303,9,FALSE)) ->  | D105: =IF(B105="","",VLOOKUP(L105,Tabella_prezzi!$A$3:$K$303,6,FALSE)) ->  | E105: =IF(B105="","",VLOOKUP(L105,Tabella_prezzi!$A$3:$K$303,8,FALSE)) ->  | F105: =IF(B105="","",VLOOKUP(L105,Tabella_prezzi!$A$3:$K$303,4,FALSE)) ->  | J105: 0 | K105: =VLOOKUP(L105,Tabella_prezzi!A66:K367,6,FALSE) -> TS3L4-VS7EPL6AK | L105: L4N74 | P105: =Altre_Opzioni!F22 -> 0 | AA105: =ISODD(SUM($J$23:J105)) -> FALSE
C106: =IF(B106="","",VLOOKUP(L106,Tabella_prezzi!$A$3:$K$303,9,FALSE)) ->  | D106: =IF(B106="","",VLOOKUP(L106,Tabella_prezzi!$A$3:$K$303,6,FALSE)) ->  | E106: =IF(B106="","",VLOOKUP(L106,Tabella_prezzi!$A$3:$K$303,8,FALSE)) ->  | F106: =IF(B106="","",VLOOKUP(L106,Tabella_prezzi!$A$3:$K$303,4,FALSE)) ->  | J106: 0 | K106: =VLOOKUP(L106,Tabella_prezzi!A67:K368,6,FALSE) -> TS3L4-VS7EPL | L106: L4N80 | P106: =Altre_Opzioni!F23 -> 0 | AA106: =ISODD(SUM($J$23:J106)) -> FALSE
C107: =IF(B107="","",VLOOKUP(L107,Tabella_prezzi!$A$3:$K$303,9,FALSE)) ->  | D107: =IF(B107="","",VLOOKUP(L107,Tabella_prezzi!$A$3:$K$303,6,FALSE)) ->  | E107: =IF(B107="","",VLOOKUP(L107,Tabella_prezzi!$A$3:$K$303,8,FALSE)) ->  | F107: =IF(B107="","",VLOOKUP(L107,Tabella_prezzi!$A$3:$K$303,4,FALSE)) ->  | J107: 0 | K107: =VLOOKUP(L107,Tabella_prezzi!A68:K369,6,FALSE) -> TS3L4-VCS7STD | L107: L4N81 | P107: =Altre_Opzioni!F24 -> 0 | AA107: =ISODD(SUM($J$23:J107)) -> FALSE
C108: =IF(B108="","",VLOOKUP(L108,Tabella_prezzi!$A$3:$K$303,9,FALSE)) ->  | D108: =IF(B108="","",VLOOKUP(L108,Tabella_prezzi!$A$3:$K$303,6,FALSE)) ->  | E108: =IF(B108="","",VLOOKUP(L108,Tabella_prezzi!$A$3:$K$303,8,FALSE)) ->  | F108: =IF(B108="","",VLOOKUP(L108,Tabella_prezzi!$A$3:$K$303,4,FALSE)) ->  | J108: 0 | K108: =VLOOKUP(L108,Tabella_prezzi!A69:K370,6,FALSE) -> TS3L4-ST7ENT | L108: L4N82 | P108: =Altre_Opzioni!F25 -> 0 | AA108: =ISODD(SUM($J$23:J108)) -> FALSE
C109: =IF(B109="","",VLOOKUP(L109,Tabella_prezzi!$A$3:$K$303,9,FALSE)) ->  | D109: =IF(B109="","",VLOOKUP(L109,Tabella_prezzi!$A$3:$K$303,6,FALSE)) ->  | E109: =IF(B109="","",VLOOKUP(L109,Tabella_prezzi!$A$3:$K$303,8,FALSE)) ->  | F109: =IF(B109="","",VLOOKUP(L109,Tabella_prezzi!$A$3:$K$303,4,FALSE)) ->  | J109: 0 | K109: =VLOOKUP(L109,Tabella_prezzi!A70:K371,6,FALSE) -> TS3L4-HZ8ADC10 | L109: L4N83 | P109: =Altre_Opzioni!F26 -> 0 | AA109: =ISODD(SUM($J$23:J109)) -> FALSE
C110: =IF(B110="","",VLOOKUP(L110,Tabella_prezzi!$A$3:$K$303,9,FALSE)) ->  | D110: =IF(B110="","",VLOOKUP(L110,Tabella_prezzi!$A$3:$K$303,6,FALSE)) ->  | E110: =IF(B110="","",VLOOKUP(L110,Tabella_prezzi!$A$3:$K$303,8,FALSE)) ->  | F110: =IF(B110="","",VLOOKUP(L110,Tabella_prezzi!$A$3:$K$303,4,FALSE)) ->  | J110: 0 | K110: =VLOOKUP(L110,Tabella_prezzi!A71:K372,6,FALSE) -> TS3L4-HZ8ENC10 | L110: L4N84 | P110: =Altre_Opzioni!F27 -> 0 | AA110: =ISODD(SUM($J$23:J110)) -> FALSE
C111: =IF(B111="","",VLOOKUP(L111,Tabella_prezzi!$A$3:$K$303,9,FALSE)) ->  | D111: =IF(B111="","",VLOOKUP(L111,Tabella_prezzi!$A$3:$K$303,6,FALSE)) ->  | E111: =IF(B111="","",VLOOKUP(L111,Tabella_prezzi!$A$3:$K$303,8,FALSE)) ->  | F111: =IF(B111="","",VLOOKUP(L111,Tabella_prezzi!$A$3:$K$303,4,FALSE)) ->  | J111: 0 | K111: =VLOOKUP(L111,Tabella_prezzi!A72:K373,6,FALSE) -> TS3L4-HZ8ADN10 | L111: L4N85 | P111: =Altre_Opzioni!F28 -> 0 | AA111: =ISODD(SUM($J$23:J111)) -> FALSE
C112: =IF(B112="","",VLOOKUP(L112,Tabella_prezzi!$A$3:$K$303,9,FALSE)) ->  | D112: =IF(B112="","",VLOOKUP(L112,Tabella_prezzi!$A$3:$K$303,6,FALSE)) ->  | E112: =IF(B112="","",VLOOKUP(L112,Tabella_prezzi!$A$3:$K$303,8,FALSE)) ->  | F112: =IF(B112="","",VLOOKUP(L112,Tabella_prezzi!$A$3:$K$303,4,FALSE)) ->  | J112: 0 | K112: =VLOOKUP(L112,Tabella_prezzi!A73:K374,6,FALSE) -> TS3L4-HZ8ENN10 | L112: L4N86 | P112: =Altre_Opzioni!F29 -> 0 | AA112: =ISODD(SUM($J$23:J112)) -> FALSE
B113: =IF(P113>0,P113,"") ->  | C113: =IF(B113="","",VLOOKUP(L113,Tabella_prezzi!$A$3:$K$303,9,FALSE)) ->  | D113: =IF(B113="","",VLOOKUP(L113,Tabella_prezzi!$A$3:$K$303,6,FALSE)) ->  | E113: =IF(B113="","",VLOOKUP(L113,Tabella_prezzi!$A$3:$K$303,8,FALSE)) ->  | F113: =IF(B113="","",VLOOKUP(L113,Tabella_prezzi!$A$3:$K$303,4,FALSE)) ->  | J113: 0 | K113: =VLOOKUP(L113,Tabella_prezzi!A74:K375,6,FALSE) -> TS3L4-Encl13Y4H | L113: L4N87 | P113: =Altre_Opzioni!F33 -> 0 | AA113: =ISODD(SUM($J$23:J113)) -> FALSE
B114: =IF(P114>0,P114,"") ->  | C114: =IF(B114="","",VLOOKUP(L114,Tabella_prezzi!$A$3:$K$303,9,FALSE)) ->  | D114: =IF(B114="","",VLOOKUP(L114,Tabella_prezzi!$A$3:$K$303,6,FALSE)) ->  | E114: =IF(B114="","",VLOOKUP(L114,Tabella_prezzi!$A$3:$K$303,8,FALSE)) ->  | F114: =IF(B114="","",VLOOKUP(L114,Tabella_prezzi!$A$3:$K$303,4,FALSE)) ->  | J114: 0 | K114: =VLOOKUP(L114,Tabella_prezzi!A75:K376,6,FALSE) -> TS3L4-Encl25Y4H | L114: L4N88 | P114: =Altre_Opzioni!F34 -> 0 | AA114: =ISODD(SUM($J$23:J114)) -> FALSE
C115: =IF(B115="","",VLOOKUP(L115,Tabella_prezzi!$A$3:$K$303,9,FALSE)) ->  | D115: =IF(B115="","",VLOOKUP(L115,Tabella_prezzi!$A$3:$K$303,6,FALSE)) ->  | E115: =IF(B115="","",VLOOKUP(L115,Tabella_prezzi!$A$3:$K$303,8,FALSE)) ->  | F115: =IF(B115="","",VLOOKUP(L115,Tabella_prezzi!$A$3:$K$303,4,FALSE)) ->  | J115: 0 | K115: =VLOOKUP(L115,Tabella_prezzi!A76:K377,6,FALSE) -> TS3L4-RACKM32A | L115: L4N89 | P115: =Altre_Opzioni!F9 -> 0 | AA115: =ISODD(SUM($J$23:J115)) -> FALSE
B116: =IF(P116>0,P116,"") ->  | C116: =IF(B116="","",VLOOKUP(L116,Tabella_prezzi!$A$3:$K$303,9,FALSE)) ->  | D116: =IF(B116="","",VLOOKUP(L116,Tabella_prezzi!$A$3:$K$303,6,FALSE)) ->  | E116: =IF(B116="","",VLOOKUP(L116,Tabella_prezzi!$A$3:$K$303,8,FALSE)) ->  | F116: =IF(B116="","",VLOOKUP(L116,Tabella_prezzi!$A$3:$K$303,4,FALSE)) ->  | J116: 0 | K116: =VLOOKUP(L116,Tabella_prezzi!A77:K378,6,FALSE) -> TS3L4-RACKT32A | L116: L4N90 | P116: =Altre_Opzioni!F12 -> 0 | AA116: =ISODD(SUM($J$23:J116)) -> FALSE
B117: =IF(P117>0,P117,"") ->  | C117: =IF(B117="","",VLOOKUP(L117,Tabella_prezzi!$A$3:$K$303,9,FALSE)) ->  | D117: =IF(B117="","",VLOOKUP(L117,Tabella_prezzi!$A$3:$K$303,6,FALSE)) ->  | E117: =IF(B117="","",VLOOKUP(L117,Tabella_prezzi!$A$3:$K$303,8,FALSE)) ->  | F117: =IF(B117="","",VLOOKUP(L117,Tabella_prezzi!$A$3:$K$303,4,FALSE)) ->  | G117: =IF(C117="","",F117*B117) ->  | J117: =IF(B117="",0,1) -> 0 | K117: =VLOOKUP(L117,Tabella_prezzi!A83:K384,6,FALSE) -> TS3L4-ED16TB | L117: L4N103 | P117: =Altre_Opzioni!F36 -> 0 | AA117: =ISODD(SUM($J$23:J117)) -> FALSE
B118: =IF(P118>0,P118,"") ->  | C118: =IF(B118="","",VLOOKUP(L118,Tabella_prezzi!$A$3:$K$303,9,FALSE)) ->  | D118: =IF(B118="","",VLOOKUP(L118,Tabella_prezzi!$A$3:$K$303,6,FALSE)) ->  | E118: =IF(B118="","",VLOOKUP(L118,Tabella_prezzi!$A$3:$K$303,8,FALSE)) ->  | F118: =IF(B118="","",VLOOKUP(L118,Tabella_prezzi!$A$3:$K$303,4,FALSE)) ->  | G118: =IF(C118="","",F118*B118) ->  | J118: =IF(B118="",0,1) -> 0 | K118: =VLOOKUP(L118,Tabella_prezzi!A84:K385,6,FALSE) -> TS3L4-ED12TB | L118: L4N104 | P118: =Altre_Opzioni!F37 -> 0 | AA118: =ISODD(SUM($J$23:J118)) -> FALSE
B119: =IF(P119>0,P119,"") ->  | C119: =IF(B119="","",VLOOKUP(L119,Tabella_prezzi!$A$3:$K$303,9,FALSE)) ->  | D119: =IF(B119="","",VLOOKUP(L119,Tabella_prezzi!$A$3:$K$303,6,FALSE)) ->  | E119: =IF(B119="","",VLOOKUP(L119,Tabella_prezzi!$A$3:$K$303,8,FALSE)) ->  | F119: =IF(B119="","",VLOOKUP(L119,Tabella_prezzi!$A$3:$K$303,4,FALSE)) ->  | G119: =IF(C119="","",F119*B119) ->  | J119: =IF(B119="",0,1) -> 0 | K119: =VLOOKUP(L119,Tabella_prezzi!A85:K386,6,FALSE) -> TS3L4-ED08TB | L119: L4N105 | P119: =Altre_Opzioni!F38 -> 0 | AA119: =ISODD(SUM($J$23:J119)) -> FALSE
B120: =IF(P120>0,P120,"") ->  | C120: =IF(B120="","",VLOOKUP(L120,Tabella_prezzi!$A$3:$K$303,9,FALSE)) ->  | D120: =IF(B120="","",VLOOKUP(L120,Tabella_prezzi!$A$3:$K$303,6,FALSE)) ->  | E120: =IF(B120="","",VLOOKUP(L120,Tabella_prezzi!$A$3:$K$303,8,FALSE)) ->  | F120: =IF(B120="","",VLOOKUP(L120,Tabella_prezzi!$A$3:$K$303,4,FALSE)) ->  | G120: =IF(C120="","",F120*B120) ->  | J120: 0 | K120: =VLOOKUP(L120,Tabella_prezzi!A78:K379,6,FALSE) -> TS3L4-Encl33Y4H | L120: L4N98 | P120: =Altre_Opzioni!F41 -> 0 | AA120: =ISODD(SUM($J$23:J120)) -> FALSE
B121: =IF(P121>0,P121,"") ->  | C121: =IF(B121="","",VLOOKUP(L121,Tabella_prezzi!$A$3:$K$303,9,FALSE)) ->  | D121: =IF(B121="","",VLOOKUP(L121,Tabella_prezzi!$A$3:$K$303,6,FALSE)) ->  | E121: =IF(B121="","",VLOOKUP(L121,Tabella_prezzi!$A$3:$K$303,8,FALSE)) ->  | F121: =IF(B121="","",VLOOKUP(L121,Tabella_prezzi!$A$3:$K$303,4,FALSE)) ->  | J121: 0 | K121: =VLOOKUP(L121,Tabella_prezzi!A79:K380,6,FALSE) -> TS3L4-Encl45Y4H | L121: L4N99 | P121: =Altre_Opzioni!F42 -> 0 | AA121: =ISODD(SUM($J$23:J121)) -> FALSE
C122: =IF(B122="","",VLOOKUP(L122,Tabella_prezzi!$A$3:$K$303,9,FALSE)) ->  | D122: =IF(B122="","",VLOOKUP(L122,Tabella_prezzi!$A$3:$K$303,6,FALSE)) ->  | E122: =IF(B122="","",VLOOKUP(L122,Tabella_prezzi!$A$3:$K$303,8,FALSE)) ->  | F122: =IF(B122="","",VLOOKUP(L122,Tabella_prezzi!$A$3:$K$303,4,FALSE)) ->  | J122: 0 | K122: =VLOOKUP(L122,Tabella_prezzi!A86:K387,6,FALSE) -> TS3L4-ED2TB | L122: L4N106 | P122: =Altre_Opzioni!F44 -> 0 | AA122: =ISODD(SUM($J$23:J122)) -> FALSE
C123: =IF(B123="","",VLOOKUP(L123,Tabella_prezzi!$A$3:$K$303,9,FALSE)) ->  | D123: =IF(B123="","",VLOOKUP(L123,Tabella_prezzi!$A$3:$K$303,6,FALSE)) ->  | E123: =IF(B123="","",VLOOKUP(L123,Tabella_prezzi!$A$3:$K$303,8,FALSE)) ->  | F123: =IF(B123="","",VLOOKUP(L123,Tabella_prezzi!$A$3:$K$303,4,FALSE)) ->  | J123: 0 | K123: =VLOOKUP(L123,Tabella_prezzi!A87:K388,6,FALSE) -> TS3L2-EDRI800 | L123: L4N107 | P123: =Altre_Opzioni!F45 -> 0 | AA123: =ISODD(SUM($J$23:J123)) -> FALSE
C124: =IF(B124="","",VLOOKUP(L124,Tabella_prezzi!$A$3:$K$303,9,FALSE)) ->  | D124: =IF(B124="","",VLOOKUP(L124,Tabella_prezzi!$A$3:$K$303,6,FALSE)) ->  | E124: =IF(B124="","",VLOOKUP(L124,Tabella_prezzi!$A$3:$K$303,8,FALSE)) ->  | F124: =IF(B124="","",VLOOKUP(L124,Tabella_prezzi!$A$3:$K$303,4,FALSE)) ->  | J124: 0 | K124: =VLOOKUP(L124,Tabella_prezzi!A90:K391,6,FALSE) -> TS3L4-VAPPS1Y | L124: L4N110 | P124: =Altre_Opzioni!F49 -> 0 | AA124: =ISODD(SUM($J$23:J124)) -> FALSE
C125: =IF(B125="","",VLOOKUP(L125,Tabella_prezzi!$A$3:$K$303,9,FALSE)) ->  | D125: =IF(B125="","",VLOOKUP(L125,Tabella_prezzi!$A$3:$K$303,6,FALSE)) ->  | E125: =IF(B125="","",VLOOKUP(L125,Tabella_prezzi!$A$3:$K$303,8,FALSE)) ->  | F125: =IF(B125="","",VLOOKUP(L125,Tabella_prezzi!$A$3:$K$303,4,FALSE)) ->  | J125: 0 | K125: =VLOOKUP(L125,Tabella_prezzi!A91:K392,6,FALSE) -> TS3L4-VAPPS3Y | L125: L4N111 | P125: =Altre_Opzioni!F50 -> 0 | AA125: =ISODD(SUM($J$23:J125)) -> FALSE
C126: =IF(B126="","",VLOOKUP(L126,Tabella_prezzi!$A$3:$K$303,9,FALSE)) ->  | D126: =IF(B126="","",VLOOKUP(L126,Tabella_prezzi!$A$3:$K$303,6,FALSE)) ->  | E126: =IF(B126="","",VLOOKUP(L126,Tabella_prezzi!$A$3:$K$303,8,FALSE)) ->  | F126: =IF(B126="","",VLOOKUP(L126,Tabella_prezzi!$A$3:$K$303,4,FALSE)) ->  | J126: 0 | K126: =VLOOKUP(L126,Tabella_prezzi!A92:K393,6,FALSE) -> TS3L4-VAPPS5Y | L126: L4N112 | P126: =Altre_Opzioni!F51 -> 0 | AA126: =ISODD(SUM($J$23:J126)) -> FALSE
C127: =IF(B127="","",VLOOKUP(L127,Tabella_prezzi!$A$3:$K$303,9,FALSE)) ->  | D127: =IF(B127="","",VLOOKUP(L127,Tabella_prezzi!$A$3:$K$303,6,FALSE)) ->  | E127: =IF(B127="","",VLOOKUP(L127,Tabella_prezzi!$A$3:$K$303,8,FALSE)) ->  | F127: =IF(B127="","",VLOOKUP(L127,Tabella_prezzi!$A$3:$K$303,4,FALSE)) ->  | J127: 0 | K127: =VLOOKUP(L127,Tabella_prezzi!A93:K394,6,FALSE) -> TS3L4-VPC1Y | L127: L4N113 | P127: =Altre_Opzioni!F52 -> 0 | AA127: =ISODD(SUM($J$23:J127)) -> FALSE
C128: =IF(B128="","",VLOOKUP(L128,Tabella_prezzi!$A$3:$K$303,9,FALSE)) ->  | D128: =IF(B128="","",VLOOKUP(L128,Tabella_prezzi!$A$3:$K$303,6,FALSE)) ->  | E128: =IF(B128="","",VLOOKUP(L128,Tabella_prezzi!$A$3:$K$303,8,FALSE)) ->  | F128: =IF(B128="","",VLOOKUP(L128,Tabella_prezzi!$A$3:$K$303,4,FALSE)) ->  | J128: 0 | K128: =VLOOKUP(L128,Tabella_prezzi!A94:K395,6,FALSE) -> TS3L4-VPC3Y | L128: L4N114 | P128: =Altre_Opzioni!F53 -> 0 | AA128: =ISODD(SUM($J$23:J128)) -> FALSE
C129: =IF(B129="","",VLOOKUP(L129,Tabella_prezzi!$A$3:$K$303,9,FALSE)) ->  | D129: =IF(B129="","",VLOOKUP(L129,Tabella_prezzi!$A$3:$K$303,6,FALSE)) ->  | E129: =IF(B129="","",VLOOKUP(L129,Tabella_prezzi!$A$3:$K$303,8,FALSE)) ->  | F129: =IF(B129="","",VLOOKUP(L129,Tabella_prezzi!$A$3:$K$303,4,FALSE)) ->  | J129: 0 | K129: =VLOOKUP(L129,Tabella_prezzi!A95:K396,6,FALSE) -> TS3L4-VPC5Y | L129: L4N115 | P129: =Altre_Opzioni!F54 -> 0 | AA129: =ISODD(SUM($J$23:J129)) -> FALSE
C130: =IF(B130="","",VLOOKUP(L130,Tabella_prezzi!$A$3:$K$303,9,FALSE)) ->  | D130: =IF(B130="","",VLOOKUP(L130,Tabella_prezzi!$A$3:$K$303,6,FALSE)) ->  | E130: =IF(B130="","",VLOOKUP(L130,Tabella_prezzi!$A$3:$K$303,8,FALSE)) ->  | F130: =IF(B130="","",VLOOKUP(L130,Tabella_prezzi!$A$3:$K$303,4,FALSE)) ->  | J130: 0 | K130: =VLOOKUP(L130,Tabella_prezzi!A96:K397,6,FALSE) -> TS3L4-VWS1Y | L130: L4N116 | P130: =Altre_Opzioni!F55 -> 0 | AA130: =ISODD(SUM($J$23:J130)) -> FALSE
C131: =IF(B131="","",VLOOKUP(L131,Tabella_prezzi!$A$3:$K$303,9,FALSE)) ->  | D131: =IF(B131="","",VLOOKUP(L131,Tabella_prezzi!$A$3:$K$303,6,FALSE)) ->  | E131: =IF(B131="","",VLOOKUP(L131,Tabella_prezzi!$A$3:$K$303,8,FALSE)) ->  | F131: =IF(B131="","",VLOOKUP(L131,Tabella_prezzi!$A$3:$K$303,4,FALSE)) ->  | J131: 0 | K131: =VLOOKUP(L131,Tabella_prezzi!A97:K398,6,FALSE) -> TS3L4-VWS3Y | L131: L4N117 | P131: =Altre_Opzioni!F56 -> 0 | AA131: =ISODD(SUM($J$23:J131)) -> FALSE
C132: =IF(B132="","",VLOOKUP(L132,Tabella_prezzi!$A$3:$K$303,9,FALSE)) ->  | D132: =IF(B132="","",VLOOKUP(L132,Tabella_prezzi!$A$3:$K$303,6,FALSE)) ->  | E132: =IF(B132="","",VLOOKUP(L132,Tabella_prezzi!$A$3:$K$303,8,FALSE)) ->  | F132: =IF(B132="","",VLOOKUP(L132,Tabella_prezzi!$A$3:$K$303,4,FALSE)) ->  | J132: 0 | K132: =VLOOKUP(L132,Tabella_prezzi!A98:K399,6,FALSE) -> TS3L4-VWS5Y | L132: L4N118 | P132: =Altre_Opzioni!F57 -> 0 | AA132: =ISODD(SUM($J$23:J132)) -> FALSE
C133: =IF(B133="","",VLOOKUP(L133,Tabella_prezzi!$A$3:$K$303,9,FALSE)) ->  | D133: =IF(B133="","",VLOOKUP(L133,Tabella_prezzi!$A$3:$K$303,6,FALSE)) ->  | E133: =IF(B133="","",VLOOKUP(L133,Tabella_prezzi!$A$3:$K$303,8,FALSE)) ->  | F133: =IF(B133="","",VLOOKUP(L133,Tabella_prezzi!$A$3:$K$303,4,FALSE)) ->  | J133: 0 | K133: =VLOOKUP(L133,Tabella_prezzi!A99:K400,6,FALSE) -> TS3L4-VCS1Y | L133: L4N119 | P133: =Altre_Opzioni!F58 -> 0 | AA133: =ISODD(SUM($J$23:J133)) -> FALSE
C134: =IF(B134="","",VLOOKUP(L134,Tabella_prezzi!$A$3:$K$303,9,FALSE)) ->  | D134: =IF(B134="","",VLOOKUP(L134,Tabella_prezzi!$A$3:$K$303,6,FALSE)) ->  | E134: =IF(B134="","",VLOOKUP(L134,Tabella_prezzi!$A$3:$K$303,8,FALSE)) ->  | F134: =IF(B134="","",VLOOKUP(L134,Tabella_prezzi!$A$3:$K$303,4,FALSE)) ->  | J134: 0 | K134: =VLOOKUP(L134,Tabella_prezzi!A100:K401,6,FALSE) -> TS3L4-VCS3Y | L134: L4N120 | P134: =Altre_Opzioni!F59 -> 0 | AA134: =ISODD(SUM($J$23:J134)) -> FALSE
C135: =IF(B135="","",VLOOKUP(L135,Tabella_prezzi!$A$3:$K$303,9,FALSE)) ->  | D135: =IF(B135="","",VLOOKUP(L135,Tabella_prezzi!$A$3:$K$303,6,FALSE)) ->  | E135: =IF(B135="","",VLOOKUP(L135,Tabella_prezzi!$A$3:$K$303,8,FALSE)) ->  | F135: =IF(B135="","",VLOOKUP(L135,Tabella_prezzi!$A$3:$K$303,4,FALSE)) ->  | J135: 0 | K135: =VLOOKUP(L135,Tabella_prezzi!A101:K402,6,FALSE) -> TS3L4-VCS5Y | L135: L4N121 | P135: =Altre_Opzioni!F60 -> 0 | AA135: =ISODD(SUM($J$23:J135)) -> FALSE
C136: =IF(B136="","",VLOOKUP(L136,Tabella_prezzi!$A$3:$K$303,9,FALSE)) ->  | D136: =IF(B136="","",VLOOKUP(L136,Tabella_prezzi!$A$3:$K$303,6,FALSE)) ->  | E136: =IF(B136="","",VLOOKUP(L136,Tabella_prezzi!$A$3:$K$303,8,FALSE)) ->  | F136: =IF(B136="","",VLOOKUP(L136,Tabella_prezzi!$A$3:$K$303,4,FALSE)) ->  | J136: 0 | K136: =VLOOKUP(L136,Tabella_prezzi!A102:K403,6,FALSE) -> TS3L4-VAPPS-P4Y | L136: L4N122 | P136: =Altre_Opzioni!F61 -> 0 | AA136: =ISODD(SUM($J$23:J136)) -> FALSE
C137: =IF(B137="","",VLOOKUP(L137,Tabella_prezzi!$A$3:$K$303,9,FALSE)) ->  | D137: =IF(B137="","",VLOOKUP(L137,Tabella_prezzi!$A$3:$K$303,6,FALSE)) ->  | E137: =IF(B137="","",VLOOKUP(L137,Tabella_prezzi!$A$3:$K$303,8,FALSE)) ->  | F137: =IF(B137="","",VLOOKUP(L137,Tabella_prezzi!$A$3:$K$303,4,FALSE)) ->  | J137: 0 | K137: =VLOOKUP(L137,Tabella_prezzi!A103:K404,6,FALSE) -> TS3L4-VAPPS-P5Y | L137: L4N123 | P137: =Altre_Opzioni!F62 -> 0 | AA137: =ISODD(SUM($J$23:J137)) -> FALSE
C138: =IF(B138="","",VLOOKUP(L138,Tabella_prezzi!$A$3:$K$303,9,FALSE)) ->  | D138: =IF(B138="","",VLOOKUP(L138,Tabella_prezzi!$A$3:$K$303,6,FALSE)) ->  | E138: =IF(B138="","",VLOOKUP(L138,Tabella_prezzi!$A$3:$K$303,8,FALSE)) ->  | F138: =IF(B138="","",VLOOKUP(L138,Tabella_prezzi!$A$3:$K$303,4,FALSE)) ->  | J138: 0 | K138: =VLOOKUP(L138,Tabella_prezzi!A104:K405,6,FALSE) -> TS3L4-VPC-P4Y | L138: L4N124 | P138: =Altre_Opzioni!F63 -> 0 | AA138: =ISODD(SUM($J$23:J138)) -> FALSE
C139: =IF(B139="","",VLOOKUP(L139,Tabella_prezzi!$A$3:$K$303,9,FALSE)) ->  | D139: =IF(B139="","",VLOOKUP(L139,Tabella_prezzi!$A$3:$K$303,6,FALSE)) ->  | E139: =IF(B139="","",VLOOKUP(L139,Tabella_prezzi!$A$3:$K$303,8,FALSE)) ->  | F139: =IF(B139="","",VLOOKUP(L139,Tabella_prezzi!$A$3:$K$303,4,FALSE)) ->  | J139: 0 | K139: =VLOOKUP(L139,Tabella_prezzi!A105:K406,6,FALSE) -> TS3L4-VPC-P5Y | L139: L4N125 | P139: =Altre_Opzioni!F64 -> 0 | AA139: =ISODD(SUM($J$23:J139)) -> FALSE
C140: =IF(B140="","",VLOOKUP(L140,Tabella_prezzi!$A$3:$K$303,9,FALSE)) ->  | D140: =IF(B140="","",VLOOKUP(L140,Tabella_prezzi!$A$3:$K$303,6,FALSE)) ->  | E140: =IF(B140="","",VLOOKUP(L140,Tabella_prezzi!$A$3:$K$303,8,FALSE)) ->  | F140: =IF(B140="","",VLOOKUP(L140,Tabella_prezzi!$A$3:$K$303,4,FALSE)) ->  | J140: 0 | K140: =VLOOKUP(L140,Tabella_prezzi!A106:K407,6,FALSE) -> TS3L4-VWS-P4Y | L140: L4N126 | P140: =Altre_Opzioni!F65 -> 0 | AA140: =ISODD(SUM($J$23:J140)) -> FALSE
C141: =IF(B141="","",VLOOKUP(L141,Tabella_prezzi!$A$3:$K$303,9,FALSE)) ->  | D141: =IF(B141="","",VLOOKUP(L141,Tabella_prezzi!$A$3:$K$303,6,FALSE)) ->  | E141: =IF(B141="","",VLOOKUP(L141,Tabella_prezzi!$A$3:$K$303,8,FALSE)) ->  | F141: =IF(B141="","",VLOOKUP(L141,Tabella_prezzi!$A$3:$K$303,4,FALSE)) ->  | J141: 0 | K141: =VLOOKUP(L141,Tabella_prezzi!A107:K408,6,FALSE) -> TS3L4-VWS-P5Y | L141: L4N127 | P141: =Altre_Opzioni!F66 -> 0 | AA141: =ISODD(SUM($J$23:J141)) -> FALSE
C142: =IF(B142="","",VLOOKUP(L142,Tabella_prezzi!$A$3:$K$303,9,FALSE)) ->  | D142: =IF(B142="","",VLOOKUP(L142,Tabella_prezzi!$A$3:$K$303,6,FALSE)) ->  | E142: =IF(B142="","",VLOOKUP(L142,Tabella_prezzi!$A$3:$K$303,8,FALSE)) ->  | F142: =IF(B142="","",VLOOKUP(L142,Tabella_prezzi!$A$3:$K$303,4,FALSE)) ->  | J142: 0 | K142: =VLOOKUP(L142,Tabella_prezzi!A108:K409,6,FALSE) -> TS3L4-VWSUPG4Y | L142: L4N128 | P142: =Altre_Opzioni!F67 -> 0 | AA142: =ISODD(SUM($J$23:J142)) -> FALSE
C143: =IF(B143="","",VLOOKUP(L143,Tabella_prezzi!$A$3:$K$303,9,FALSE)) ->  | D143: =IF(B143="","",VLOOKUP(L143,Tabella_prezzi!$A$3:$K$303,6,FALSE)) ->  | E143: =IF(B143="","",VLOOKUP(L143,Tabella_prezzi!$A$3:$K$303,8,FALSE)) ->  | F143: =IF(B143="","",VLOOKUP(L143,Tabella_prezzi!$A$3:$K$303,4,FALSE)) ->  | J143: 0 | K143: =VLOOKUP(L143,Tabella_prezzi!A109:K410,6,FALSE) -> TS3L4-VWSUPG5Y | L143: L4N129 | P143: =Altre_Opzioni!F68 -> 0 | AA143: =ISODD(SUM($J$23:J143)) -> FALSE
C144: =IF(B144="","",VLOOKUP(L144,Tabella_prezzi!$A$3:$K$303,9,FALSE)) ->  | D144: =IF(B144="","",VLOOKUP(L144,Tabella_prezzi!$A$3:$K$303,6,FALSE)) ->  | E144: =IF(B144="","",VLOOKUP(L144,Tabella_prezzi!$A$3:$K$303,8,FALSE)) ->  | F144: =IF(B144="","",VLOOKUP(L144,Tabella_prezzi!$A$3:$K$303,4,FALSE)) ->  | J144: =IF(B144="",0,1) -> 0 | K144: =VLOOKUP(L144,Tabella_prezzi!A110:K411,6,FALSE) -> TS3L4-OM4M3 | L144: L4N130 | M144: =COUNTIF(TS3L4_L4N_1,L144)*$M$22*Q144 -> 0 | N144: =COUNTIF(TS3L4_L4N_2,L144)*$N$22*R144 -> 0 | O144: =COUNTIF(TS3L4_L4N_3,L144)*$O$22*S144 -> 0 | P144: =SUM(M144:O144) -> 0 | Q144: =Lotto4_R740XD_1!$F$118 -> 0 | R144: =Lotto4_R740XD_2!$F$118 -> 0 | S144: =Lotto4_R740XD_3!$F$118 -> 0
C145: =IF(B145="","",VLOOKUP(L145,Tabella_prezzi!$A$3:$K$303,9,FALSE)) ->  | D145: =IF(B145="","",VLOOKUP(L145,Tabella_prezzi!$A$3:$K$303,6,FALSE)) ->  | E145: =IF(B145="","",VLOOKUP(L145,Tabella_prezzi!$A$3:$K$303,8,FALSE)) ->  | F145: =IF(B145="","",VLOOKUP(L145,Tabella_prezzi!$A$3:$K$303,4,FALSE)) ->  | J145: 0 | K145: TS3L4-A10080GB | L145: L4N131 | M145: =COUNTIF(TS3L4_L4N_1,L145)*$M$22 -> 0 | N145: =COUNTIF(TS3L4_L4N_2,L145)*$N$22 -> 0 | O145: =COUNTIF(TS3L4_L4N_3,L145)*$O$22 -> 0 | P145: =SUM(M145:O145) -> 0
C146: =IF(B146="","",VLOOKUP(L146,Tabella_prezzi!$A$3:$K$303,9,FALSE)) ->  | D146: =IF(B146="","",VLOOKUP(L146,Tabella_prezzi!$A$3:$K$303,6,FALSE)) ->  | E146: =IF(B146="","",VLOOKUP(L146,Tabella_prezzi!$A$3:$K$303,8,FALSE)) ->  | F146: =IF(B146="","",VLOOKUP(L146,Tabella_prezzi!$A$3:$K$303,4,FALSE)) ->  | J146: 0 | K146: TS3L4-GPUA2 | L146: L4N132 | M146: =COUNTIF(TS3L4_L4N_1,L146)*$M$22 -> 0 | N146: =COUNTIF(TS3L4_L4N_2,L146)*$N$22 -> 0 | O146: =COUNTIF(TS3L4_L4N_3,L146)*$O$22 -> 0 | P146: 0
C147: =IF(B147="","",VLOOKUP(L147,Tabella_prezzi!$A$3:$K$303,9,FALSE)) ->  | D147: =IF(B147="","",VLOOKUP(L147,Tabella_prezzi!$A$3:$K$303,6,FALSE)) ->  | E147: =IF(B147="","",VLOOKUP(L147,Tabella_prezzi!$A$3:$K$303,8,FALSE)) ->  | F147: =IF(B147="","",VLOOKUP(L147,Tabella_prezzi!$A$3:$K$303,4,FALSE)) ->  | J147: 0 | K147: TS3L4-GPUA30 | L147: L4N133 | M147: =COUNTIF(TS3L4_L4N_1,L147)*$M$22 -> 0 | N147: =COUNTIF(TS3L4_L4N_2,L147)*$N$22 -> 0 | O147: =COUNTIF(TS3L4_L4N_3,L147)*$O$22 -> 0 | P147: 0
C148: =IF(B148="","",VLOOKUP(L148,Tabella_prezzi!$A$3:$K$303,9,FALSE)) ->  | D148: =IF(B148="","",VLOOKUP(L148,Tabella_prezzi!$A$3:$K$303,6,FALSE)) ->  | E148: =IF(B148="","",VLOOKUP(L148,Tabella_prezzi!$A$3:$K$303,8,FALSE)) ->  | F148: =IF(B148="","",VLOOKUP(L148,Tabella_prezzi!$A$3:$K$303,4,FALSE)) ->  | J148: 0 | K148: TS3L4-GPUA16 | L148: L4N134 | M148: =COUNTIF(TS3L4_L4N_1,L148)*$M$22 -> 0 | N148: =COUNTIF(TS3L4_L4N_2,L148)*$N$22 -> 0 | O148: =COUNTIF(TS3L4_L4N_3,L148)*$O$22 -> 0 | P148: 0
C149: =IF(B149="","",VLOOKUP(L149,Tabella_prezzi!$A$3:$K$303,9,FALSE)) ->  | D149: =IF(B149="","",VLOOKUP(L149,Tabella_prezzi!$A$3:$K$303,6,FALSE)) ->  | E149: =IF(B149="","",VLOOKUP(L149,Tabella_prezzi!$A$3:$K$303,8,FALSE)) ->  | F149: =IF(B149="","",VLOOKUP(L149,Tabella_prezzi!$A$3:$K$303,4,FALSE)) ->  | J149: 0 | K149: TS3L4-CMA2U | L149: L4N135 | M149: =COUNTIF(TS3L4_L4N_1,L149)*$M$22 -> 0 | N149: =COUNTIF(TS3L4_L4N_2,L149)*$N$22 -> 0 | O149: =COUNTIF(TS3L4_L4N_3,L149)*$O$22 -> 0 | P149: 0
C150: =IF(B150="","",VLOOKUP(L150,Tabella_prezzi!$A$3:$K$303,9,FALSE)) ->  | D150: =IF(B150="","",VLOOKUP(L150,Tabella_prezzi!$A$3:$K$303,6,FALSE)) ->  | E150: =IF(B150="","",VLOOKUP(L150,Tabella_prezzi!$A$3:$K$303,8,FALSE)) ->  | F150: =IF(B150="","",VLOOKUP(L150,Tabella_prezzi!$A$3:$K$303,4,FALSE)) ->  | J150: 0 | K150: TS3L4-PWRFLEX | L150: L4N97 | M150: =COUNTIF(TS3L4_L4N_1,L150)*$M$22 -> 0 | N150: =COUNTIF(TS3L4_L4N_2,L150)*$N$22 -> 0 | O150: =COUNTIF(TS3L4_L4N_3,L150)*$O$22 -> 0 | P150: =SUM(M150:O150) -> 0 | AA150: =ISODD(SUM($J$23:J150)) -> FALSE
C151: =IF(B151="","",VLOOKUP(L151,Tabella_prezzi!$A$3:$K$303,9,FALSE)) ->  | D151: =IF(B151="","",VLOOKUP(L151,Tabella_prezzi!$A$3:$K$303,6,FALSE)) ->  | E151: =IF(B151="","",VLOOKUP(L151,Tabella_prezzi!$A$3:$K$303,8,FALSE)) ->  | F151: =IF(B151="","",VLOOKUP(L151,Tabella_prezzi!$A$3:$K$303,4,FALSE)) ->  | J151: 0 | K151: =VLOOKUP(L151,Tabella_prezzi!A74:K375,6,FALSE) -> TS3L4-DAC3SFP28 | L151: L4N93 | M151: =COUNTIF(TS3L4_L4N_1,L151)*$M$22*Q151 -> 0 | N151: =COUNTIF(TS3L4_L4N_2,L151)*$N$22*R151 -> 0 | O151: =COUNTIF(TS3L4_L4N_3,L151)*$O$22*S151 -> 0 | P151: =SUM(M151:O151) -> 0 | Q151: =Lotto4_R740XD_1!$F$123 -> 0 | R151: =Lotto4_R740XD_2!$F$123 -> 0 | S151: =Lotto4_R740XD_3!$F$123 -> 0 | AA151: =ISODD(SUM($J$23:J151)) -> FALSE
C152: =IF(B152="","",VLOOKUP(L152,Tabella_prezzi!$A$3:$K$303,9,FALSE)) ->  | D152: =IF(B152="","",VLOOKUP(L152,Tabella_prezzi!$A$3:$K$303,6,FALSE)) ->  | E152: =IF(B152="","",VLOOKUP(L152,Tabella_prezzi!$A$3:$K$303,8,FALSE)) ->  | F152: =IF(B152="","",VLOOKUP(L152,Tabella_prezzi!$A$3:$K$303,4,FALSE)) ->  | J152: 0 | K152: TS3L4-DAC3SFP | L152: L4N91 | M152: =COUNTIF(TS3L4_L4N_1,L152)*$M$22*Q152 -> 0 | N152: =COUNTIF(TS3L4_L4N_2,L152)*$N$22*R152 -> 0 | O152: =COUNTIF(TS3L4_L4N_3,L152)*$O$22*S152 -> 0 | P152: =SUM(M152:O152) -> 0 | Q152: =Lotto4_R740XD_1!$F$121 -> 0 | R152: =Lotto4_R740XD_2!$F$121 -> 0 | S152: =Lotto4_R740XD_3!$F$121 -> 0 | AA152: =ISODD(SUM($J$23:J152)) -> FALSE
C153: =IF(B153="","",VLOOKUP(L153,Tabella_prezzi!$A$3:$K$303,9,FALSE)) ->  | D153: =IF(B153="","",VLOOKUP(L153,Tabella_prezzi!$A$3:$K$303,6,FALSE)) ->  | E153: =IF(B153="","",VLOOKUP(L153,Tabella_prezzi!$A$3:$K$303,8,FALSE)) ->  | F153: =IF(B153="","",VLOOKUP(L153,Tabella_prezzi!$A$3:$K$303,4,FALSE)) ->  | J153: 0 | K153: TS3L4-MLX100M3 | L153: L4N92 | M153: =COUNTIF(TS3L4_L4N_1,L153)*$M$22*Q153 -> 0 | N153: =COUNTIF(TS3L4_L4N_2,L153)*$N$22*R153 -> 0 | O153: =COUNTIF(TS3L4_L4N_3,L153)*$O$22*S153 -> 0 | P153: =SUM(M153:O153) -> 0 | Q153: =Lotto4_R740XD_1!$F$122 -> 0 | R153: =Lotto4_R740XD_2!$F$122 -> 0 | S153: =Lotto4_R740XD_3!$F$122 -> 0 | AA153: =ISODD(SUM($J$23:J153)) -> FALSE
C154: =IF(B154="","",VLOOKUP(L154,Tabella_prezzi!$A$3:$K$303,9,FALSE)) ->  | D154: =IF(B154="","",VLOOKUP(L154,Tabella_prezzi!$A$3:$K$303,6,FALSE)) ->  | E154: =IF(B154="","",VLOOKUP(L154,Tabella_prezzi!$A$3:$K$303,8,FALSE)) ->  | F154: =IF(B154="","",VLOOKUP(L154,Tabella_prezzi!$A$3:$K$303,4,FALSE)) ->  | J154: =IF(B154="",0,1) -> 0 | K154: TS3L4-MCX4DP | L154: L4N94 | M154: =COUNTIF(TS3L4_L4N_1,L154)*$M$22 -> 0 | N154: =COUNTIF(TS3L4_L4N_2,L154)*$N$22 -> 0 | O154: =COUNTIF(TS3L4_L4N_3,L154)*$O$22 -> 0 | P154: =SUM(M154:O154) -> 0 | AA154: =ISODD(SUM($J$23:J154)) -> FALSE
C155: =IF(B155="","",VLOOKUP(L155,Tabella_prezzi!$A$3:$K$303,9,FALSE)) ->  | D155: =IF(B155="","",VLOOKUP(L155,Tabella_prezzi!$A$3:$K$303,6,FALSE)) ->  | E155: =IF(B155="","",VLOOKUP(L155,Tabella_prezzi!$A$3:$K$303,8,FALSE)) ->  | F155: =IF(B155="","",VLOOKUP(L155,Tabella_prezzi!$A$3:$K$303,4,FALSE)) ->  | J155: 0 | K155: TS3L4-MCX4DP-L | L155: L4N95 | M155: 0 | N155: 0 | O155: 0 | P155: 0 | AA155: =ISODD(SUM($J$23:J155)) -> FALSE
C156: =IF(B156="","",VLOOKUP(L156,Tabella_prezzi!$A$3:$K$303,9,FALSE)) ->  | D156: =IF(B156="","",VLOOKUP(L156,Tabella_prezzi!$A$3:$K$303,6,FALSE)) ->  | E156: =IF(B156="","",VLOOKUP(L156,Tabella_prezzi!$A$3:$K$303,8,FALSE)) ->  | F156: =IF(B156="","",VLOOKUP(L156,Tabella_prezzi!$A$3:$K$303,4,FALSE)) ->  | J156: 0 | K156: TS3L4-OMEA | L156: L4N96 | M156: 0 | N156: 0 | O156: 0 | P156: 0 | AA156: =ISODD(SUM($J$23:J156)) -> FALSE
C157: =IF(B157="","",VLOOKUP(L157,Tabella_prezzi!$A$3:$K$303,9,FALSE)) ->  | D157: =IF(B157="","",VLOOKUP(L157,Tabella_prezzi!$A$3:$K$303,6,FALSE)) ->  | E157: =IF(B157="","",VLOOKUP(L157,Tabella_prezzi!$A$3:$K$303,8,FALSE)) ->  | F157: =IF(B157="","",VLOOKUP(L157,Tabella_prezzi!$A$3:$K$303,4,FALSE)) ->  | J157: 0 | K157: =VLOOKUP(L157,Tabella_prezzi!A88:K389,6,FALSE) -> TS3L4-A100 | L157: L4N108 | M157: =COUNTIF(TS3L4_L4N_1,L157)*$M$22 -> 0 | N157: =COUNTIF(TS3L4_L4N_2,L157)*$N$22 -> 0 | O157: =COUNTIF(TS3L4_L4N_3,L157)*$O$22 -> 0 | P157: =SUM(M157:O157) -> 0 | AA157: =ISODD(SUM($J$23:J157)) -> FALSE
C158: =IF(B158="","",VLOOKUP(L158,Tabella_prezzi!$A$3:$K$303,9,FALSE)) ->  | D158: =IF(B158="","",VLOOKUP(L158,Tabella_prezzi!$A$3:$K$303,6,FALSE)) ->  | E158: =IF(B158="","",VLOOKUP(L158,Tabella_prezzi!$A$3:$K$303,8,FALSE)) ->  | F158: =IF(B158="","",VLOOKUP(L158,Tabella_prezzi!$A$3:$K$303,4,FALSE)) ->  | J158: 0 | K158: =VLOOKUP(L158,Tabella_prezzi!A80:K381,6,FALSE) -> TS3L4-SAS12-L | L158: L4N100 | M158: =COUNTIF(TS3L4_L4N_1,L158)*$M$22 -> 0 | N158: =COUNTIF(TS3L4_L4N_2,L158)*$N$22 -> 0 | O158: =COUNTIF(TS3L4_L4N_3,L158)*$O$22 -> 0 | P158: 0 | AA158: =ISODD(SUM($J$23:J158)) -> FALSE
C159: =IF(B159="","",VLOOKUP(L159,Tabella_prezzi!$A$3:$K$303,9,FALSE)) ->  | D159: =IF(B159="","",VLOOKUP(L159,Tabella_prezzi!$A$3:$K$303,6,FALSE)) ->  | E159: =IF(B159="","",VLOOKUP(L159,Tabella_prezzi!$A$3:$K$303,8,FALSE)) ->  | F159: =IF(B159="","",VLOOKUP(L159,Tabella_prezzi!$A$3:$K$303,4,FALSE)) ->  | J159: 0 | K159: =VLOOKUP(L159,Tabella_prezzi!A81:K382,6,FALSE) -> TS3L4-SAS12 | L159: L4N101 | M159: =COUNTIF(TS3L4_L4N_1,L159)*$M$22 -> 0 | N159: =COUNTIF(TS3L4_L4N_2,L159)*$N$22 -> 0 | O159: =COUNTIF(TS3L4_L4N_3,L159)*$O$22 -> 0 | P159: 0 | AA159: =ISODD(SUM($J$23:J159)) -> FALSE
C160: =IF(B160="","",VLOOKUP(L160,Tabella_prezzi!$A$3:$K$303,9,FALSE)) ->  | D160: =IF(B160="","",VLOOKUP(L160,Tabella_prezzi!$A$3:$K$303,6,FALSE)) ->  | E160: =IF(B160="","",VLOOKUP(L160,Tabella_prezzi!$A$3:$K$303,8,FALSE)) ->  | F160: =IF(B160="","",VLOOKUP(L160,Tabella_prezzi!$A$3:$K$303,4,FALSE)) ->  | J160: 0 | K160: =VLOOKUP(L160,Tabella_prezzi!A82:K383,6,FALSE) -> TS3L4-H840-L | L160: L4N102 | M160: =COUNTIF(TS3L4_L4N_1,L160)*$M$22 -> 0 | N160: =COUNTIF(TS3L4_L4N_2,L160)*$N$22 -> 0 | O160: =COUNTIF(TS3L4_L4N_3,L160)*$O$22 -> 0 | P160: 0 | AA160: =ISODD(SUM($J$23:J160)) -> FALSE
B161: Convenzione | G161: =SUM(G23:G57) -> 0 | J161: =IF(G161=0,0,1) -> 0
B162: Valore economico 20% consentito | D162: =G161/100*20 -> 0 | E162: Ulteriori componenti opzionali (20%) | G162: =SUM(G60:G160) -> 0 | J162: =IF(G162=0,0,1) -> 0
B163: =IF(M163+N163+O163>0,"Le estensioni di garanzia e/o i servizi di Hard Disk Retention sono inferiori al numero dei server","") ->  | E163: Totale iva esclusa | G163: =G162+G161 -> 0 | J163: =IF(G163=0,0,1) -> 0 | K163: Verifica garanzia | M163: =IF(B55="",0,IF(B23=B55,0,1)) -> 0 | N163: =IF(B57="",0,IF(B23=B57,0,1)) -> 0 | O163: =IF(B54="",0,IF(B23=B54,0,1)) -> 0
B164: I.V.A. | G164: =G163/100*22 -> 0 | J164: =IF(G164=0,0,1) -> 0
B165: TOTALE ORDINE | G165: =G163+G164 -> 0 | J165: =IF(G165=0,0,1) -> 0
J166: 1

Sheet Configurazione
V1: 1 | X1: TS3L4-GPUSW | Y1: TS3L4-GPUDW | Z1: TS3L4-GPUSW | AA1: TS3L4-GPUDW | AB1: TS3L4-GPUSW | AC1: TS3L4-GPUDW
B2: =Riepilogo!M22 -> 0 | C2: PowerEdge R740xd Configurazione 1 | E2: =Riepilogo!N22 -> 0 | F2: PowerEdge R740xd Configurazione 2 | H2: =Riepilogo!O22 -> 0 | I2: PowerEdge R740xd Configurazione 3 | V2: 1
B3: =IF(X3=1,"Configurazione Single-Wide",IF(Y3=1,"Configurazione Double-Wide","")) ->  | E3: =IF(Z3=1,"Configurazione Single-Wide",IF(AA3=1,"Configurazione Double-Wide","")) ->  | H3: =IF(AB3=1,"Configurazione Single-Wide",IF(AC3=1,"Configurazione Double-Wide","")) ->  | U3: =SUM(X3:AC3) -> 0 | V3: =IF(U3>0,1,0) -> 0 | X3: =COUNTIF($C$5:$C$106,X1) -> 0 | Y3: =COUNTIF($C$5:$C$106,Y1) -> 0 | Z3: =COUNTIF($F$5:$F$106,Z1) -> 0 | AA3: =COUNTIF($F$5:$F$106,AA1) -> 0 | AB3: =COUNTIF($I$5:$I$106,AB1) -> 0 | AC3: =COUNTIF($I$5:$I$106,AC1) -> 0
V4: =IF($U$5>0,1,0) -> 0
B5: =IF(Riepilogo!M23>0,Riepilogo!M23/$B$2,"") ->  | C5: =IF(B5="","",CONCATENATE(Riepilogo!K23,ConfigurationTS3L4!J420)) ->  | E5: =IF(Riepilogo!N23>0,Riepilogo!N23/$E$2,"") ->  | F5: =IF(E5="","",CONCATENATE(Riepilogo!K23,ConfigurationTS3L4!T420)) ->  | H5: =IF(Riepilogo!O23>0,Riepilogo!O23/$H$2,"") ->  | I5: =IF(H5="","",CONCATENATE(Riepilogo!K23,ConfigurationTS3L4!AD420)) ->  | L5: =IF(B5="",0,B5) -> 0 | O5: =IF(E5="",0,E5) -> 0 | R5: =IF(H5="",0,H5) -> 0 | U5: =SUM(L5:T5) -> 0 | V5: =IF(U5>0,1,0) -> 0 | W5: =ISODD(V5) -> FALSE
B6: =IF(Riepilogo!M24>0,Riepilogo!M24/$B$2,"") ->  | C6: =IF(B6="","",CONCATENATE(Riepilogo!K24,ConfigurationTS3L4!J421)) ->  | E6: =IF(Riepilogo!N24>0,Riepilogo!N24/$E$2,"") ->  | F6: =IF(E6="","",CONCATENATE(Riepilogo!K24,ConfigurationTS3L4!T421)) ->  | H6: =IF(Riepilogo!O24>0,Riepilogo!O24/$H$2,"") ->  | I6: =IF(H6="","",CONCATENATE(Riepilogo!K24,ConfigurationTS3L4!AD421)) ->  | L6: =IF(B6="",0,B6) -> 0 | O6: =IF(E6="",0,E6) -> 0 | R6: =IF(H6="",0,H6) -> 0 | U6: =SUM(L6:T6) -> 0 | V6: =IF(U6>0,1,0) -> 0 | W6: =ISODD(SUM($V$5:V6)) -> FALSE
B7: =IF(Riepilogo!M25>0,Riepilogo!M25/$B$2,"") ->  | C7: =IF(B7="","",CONCATENATE(Riepilogo!K25,ConfigurationTS3L4!J422)) ->  | E7: =IF(Riepilogo!N25>0,Riepilogo!N25/$E$2,"") ->  | F7: =IF(E7="","",CONCATENATE(Riepilogo!K25,ConfigurationTS3L4!T422)) ->  | H7: =IF(Riepilogo!O25>0,Riepilogo!O25/$H$2,"") ->  | I7: =IF(H7="","",CONCATENATE(Riepilogo!K25,ConfigurationTS3L4!AD422)) ->  | L7: 0 | O7: 0 | R7: 0 | U7: 0 | V7: 0 | W7: =ISODD(SUM($V$5:V7)) -> FALSE
B8: =IF(Riepilogo!M26>0,Riepilogo!M26/$B$2,"") ->  | C8: =IF(B8="","",CONCATENATE(Riepilogo!K26,ConfigurationTS3L4!J423)) ->  | E8: =IF(Riepilogo!N26>0,Riepilogo!N26/$E$2,"") ->  | F8: =IF(E8="","",CONCATENATE(Riepilogo!K26,ConfigurationTS3L4!T423)) ->  | H8: =IF(Riepilogo!O26>0,Riepilogo!O26/$H$2,"") ->  | I8: =IF(H8="","",CONCATENATE(Riepilogo!K26,ConfigurationTS3L4!AD423)) ->  | L8: 0 | O8: 0 | R8: 0 | U8: 0 | V8: 0 | W8: =ISODD(SUM($V$5:V8)) -> FALSE
B9: =IF(Riepilogo!M27>0,Riepilogo!M27/$B$2,"") ->  | C9: =IF(B9="","",CONCATENATE(Riepilogo!K27,ConfigurationTS3L4!J424)) ->  | E9: =IF(Riepilogo!N27>0,Riepilogo!N27/$E$2,"") ->  | F9: =IF(E9="","",CONCATENATE(Riepilogo!K27,ConfigurationTS3L4!T424)) ->  | H9: =IF(Riepilogo!O27>0,Riepilogo!O27/$H$2,"") ->  | I9: =IF(H9="","",CONCATENATE(Riepilogo!K27,ConfigurationTS3L4!AD424)) ->  | L9: 0 | O9: 0 | R9: 0 | U9: 0 | V9: 0 | W9: =ISODD(SUM($V$5:V9)) -> FALSE
B10: =IF(Riepilogo!M28>0,Riepilogo!M28/$B$2,"") ->  | C10: =IF(B10="","",CONCATENATE(Riepilogo!K28,ConfigurationTS3L4!J425)) ->  | E10: =IF(Riepilogo!N28>0,Riepilogo!N28/$E$2,"") ->  | F10: =IF(E10="","",CONCATENATE(Riepilogo!K28,ConfigurationTS3L4!T425)) ->  | H10: =IF(Riepilogo!O28>0,Riepilogo!O28/$H$2,"") ->  | I10: =IF(H10="","",CONCATENATE(Riepilogo!K28,ConfigurationTS3L4!AD425)) ->  | L10: 0 | O10: 0 | R10: 0 | U10: 0 | V10: 0 | W10: =ISODD(SUM($V$5:V10)) -> FALSE
B11: =IF(Riepilogo!M29>0,Riepilogo!M29/$B$2,"") ->  | C11: =IF(B11="","",CONCATENATE(Riepilogo!K29,ConfigurationTS3L4!J426)) ->  | E11: =IF(Riepilogo!N29>0,Riepilogo!N29/$E$2,"") ->  | F11: =IF(E11="","",CONCATENATE(Riepilogo!K29,ConfigurationTS3L4!T426)) ->  | H11: =IF(Riepilogo!O29>0,Riepilogo!O29/$H$2,"") ->  | I11: =IF(H11="","",CONCATENATE(Riepilogo!K29,ConfigurationTS3L4!AD426)) ->  | L11: 0 | O11: 0 | R11: 0 | U11: 0 | V11: 0 | W11: =ISODD(SUM($V$5:V11)) -> FALSE
B12: =IF(Riepilogo!M30>0,Riepilogo!M30/$B$2,"") ->  | C12: =IF(B12="","",CONCATENATE(Riepilogo!K30,ConfigurationTS3L4!J427)) ->  | E12: =IF(Riepilogo!N30>0,Riepilogo!N30/$E$2,"") ->  | F12: =IF(E12="","",CONCATENATE(Riepilogo!K30,ConfigurationTS3L4!T427)) ->  | H12: =IF(Riepilogo!O30>0,Riepilogo!O30/$H$2,"") ->  | I12: =IF(H12="","",CONCATENATE(Riepilogo!K30,ConfigurationTS3L4!AD427)) ->  | L12: 0 | O12: 0 | R12: 0 | U12: 0 | V12: 0 | W12: =ISODD(SUM($V$5:V12)) -> FALSE
B13: =IF(Riepilogo!M31>0,Riepilogo!M31/$B$2,"") ->  | C13: =IF(B13="","",CONCATENATE(Riepilogo!K31,ConfigurationTS3L4!J428)) ->  | E13: =IF(Riepilogo!N31>0,Riepilogo!N31/$E$2,"") ->  | F13: =IF(E13="","",CONCATENATE(Riepilogo!K31,ConfigurationTS3L4!T428)) ->  | H13: =IF(Riepilogo!O31>0,Riepilogo!O31/$H$2,"") ->  | I13: =IF(H13="","",CONCATENATE(Riepilogo!K31,ConfigurationTS3L4!AD428)) ->  | L13: 0 | O13: 0 | R13: 0 | U13: 0 | V13: 0 | W13: =ISODD(SUM($V$5:V13)) -> FALSE
B14: =IF(Riepilogo!M32>0,Riepilogo!M32/$B$2,"") ->  | C14: =IF(B14="","",CONCATENATE(Riepilogo!K32,ConfigurationTS3L4!J429)) ->  | E14: =IF(Riepilogo!N32>0,Riepilogo!N32/$E$2,"") ->  | F14: =IF(E14="","",CONCATENATE(Riepilogo!K32,ConfigurationTS3L4!T429)) ->  | H14: =IF(Riepilogo!O32>0,Riepilogo!O32/$H$2,"") ->  | I14: =IF(H14="","",CONCATENATE(Riepilogo!K32,ConfigurationTS3L4!AD429)) ->  | L14: 0 | O14: 0 | R14: 0 | U14: 0 | V14: 0 | W14: =ISODD(SUM($V$5:V14)) -> FALSE
B15: =IF(Riepilogo!M33>0,Riepilogo!M33/$B$2,"") ->  | C15: =IF(B15="","",CONCATENATE(Riepilogo!K33,ConfigurationTS3L4!J430)) ->  | E15: =IF(Riepilogo!N33>0,Riepilogo!N33/$E$2,"") ->  | F15: =IF(E15="","",CONCATENATE(Riepilogo!K33,ConfigurationTS3L4!T430)) ->  | H15: =IF(Riepilogo!O33>0,Riepilogo!O33/$H$2,"") ->  | I15: =IF(H15="","",CONCATENATE(Riepilogo!K33,ConfigurationTS3L4!AD430)) ->  | L15: 0 | O15: 0 | R15: 0 | U15: 0 | V15: 0 | W15: =ISODD(SUM($V$5:V15)) -> FALSE
B16: =IF(Riepilogo!M34>0,Riepilogo!M34/$B$2,"") ->  | C16: =IF(B16="","",CONCATENATE(Riepilogo!K34,ConfigurationTS3L4!J431)) ->  | E16: =IF(Riepilogo!N34>0,Riepilogo!N34/$E$2,"") ->  | F16: =IF(E16="","",CONCATENATE(Riepilogo!K34,ConfigurationTS3L4!T431)) ->  | H16: =IF(Riepilogo!O34>0,Riepilogo!O34/$H$2,"") ->  | I16: =IF(H16="","",CONCATENATE(Riepilogo!K34,ConfigurationTS3L4!AD431)) ->  | L16: 0 | O16: 0 | R16: 0 | U16: 0 | V16: 0 | W16: =ISODD(SUM($V$5:V16)) -> FALSE
B17: =IF(Riepilogo!M35>0,Riepilogo!M35/$B$2,"") ->  | C17: =IF(B17="","",CONCATENATE(Riepilogo!K35,ConfigurationTS3L4!J432)) ->  | E17: =IF(Riepilogo!N35>0,Riepilogo!N35/$E$2,"") ->  | F17: =IF(E17="","",CONCATENATE(Riepilogo!K35,ConfigurationTS3L4!T432)) ->  | H17: =IF(Riepilogo!O35>0,Riepilogo!O35/$H$2,"") ->  | I17: =IF(H17="","",CONCATENATE(Riepilogo!K35,ConfigurationTS3L4!AD432)) ->  | L17: 0 | O17: 0 | R17: 0 | U17: 0 | V17: 0 | W17: =ISODD(SUM($V$5:V17)) -> FALSE
B18: =IF(Riepilogo!M36>0,Riepilogo!M36/$B$2,"") ->  | C18: =IF(B18="","",CONCATENATE(Riepilogo!K36,ConfigurationTS3L4!J433)) ->  | E18: =IF(Riepilogo!N36>0,Riepilogo!N36/$E$2,"") ->  | F18: =IF(E18="","",CONCATENATE(Riepilogo!K36,ConfigurationTS3L4!T433)) ->  | H18: =IF(Riepilogo!O36>0,Riepilogo!O36/$H$2,"") ->  | I18: =IF(H18="","",CONCATENATE(Riepilogo!K36,ConfigurationTS3L4!AD433)) ->  | L18: 0 | O18: 0 | R18: 0 | U18: 0 | V18: 0 | W18: =ISODD(SUM($V$5:V18)) -> FALSE
B19: =IF(Riepilogo!M37>0,Riepilogo!M37/$B$2,"") ->  | C19: =IF(B19="","",CONCATENATE(Riepilogo!K37,ConfigurationTS3L4!J434)) ->  | E19: =IF(Riepilogo!N37>0,Riepilogo!N37/$E$2,"") ->  | F19: =IF(E19="","",CONCATENATE(Riepilogo!K37,ConfigurationTS3L4!T434)) ->  | H19: =IF(Riepilogo!O37>0,Riepilogo!O37/$H$2,"") ->  | I19: =IF(H19="","",CONCATENATE(Riepilogo!K37,ConfigurationTS3L4!AD434)) ->  | L19: 0 | O19: 0 | R19: 0 | U19: 0 | V19: 0 | W19: =ISODD(SUM($V$5:V19)) -> FALSE
B20: =IF(Riepilogo!M38>0,Riepilogo!M38/$B$2,"") ->  | C20: =IF(B20="","",CONCATENATE(Riepilogo!K38,ConfigurationTS3L4!J435)) ->  | E20: =IF(Riepilogo!N38>0,Riepilogo!N38/$E$2,"") ->  | F20: =IF(E20="","",CONCATENATE(Riepilogo!K38,ConfigurationTS3L4!T435)) ->  | H20: =IF(Riepilogo!O38>0,Riepilogo!O38/$H$2,"") ->  | I20: =IF(H20="","",CONCATENATE(Riepilogo!K38,ConfigurationTS3L4!AD435)) ->  | L20: 0 | O20: 0 | R20: 0 | U20: 0 | V20: 0 | W20: =ISODD(SUM($V$5:V20)) -> FALSE
B21: =IF(Riepilogo!M39>0,Riepilogo!M39/$B$2,"") ->  | C21: =IF(B21="","",CONCATENATE(Riepilogo!K39,ConfigurationTS3L4!J436)) ->  | E21: =IF(Riepilogo!N39>0,Riepilogo!N39/$E$2,"") ->  | F21: =IF(E21="","",CONCATENATE(Riepilogo!K39,ConfigurationTS3L4!T436)) ->  | H21: =IF(Riepilogo!O39>0,Riepilogo!O39/$H$2,"") ->  | I21: =IF(H21="","",CONCATENATE(Riepilogo!K39,ConfigurationTS3L4!AD436)) ->  | L21: 0 | O21: 0 | R21: 0 | U21: 0 | V21: 0 | W21: =ISODD(SUM($V$5:V21)) -> FALSE
B22: =IF(Riepilogo!M40>0,Riepilogo!M40/$B$2,"") ->  | C22: =IF(B22="","",CONCATENATE(Riepilogo!K40,ConfigurationTS3L4!J437)) ->  | E22: =IF(Riepilogo!N40>0,Riepilogo!N40/$E$2,"") ->  | F22: =IF(E22="","",CONCATENATE(Riepilogo!K40,ConfigurationTS3L4!T437)) ->  | H22: =IF(Riepilogo!O40>0,Riepilogo!O40/$H$2,"") ->  | I22: =IF(H22="","",CONCATENATE(Riepilogo!K40,ConfigurationTS3L4!AD437)) ->  | L22: 0 | O22: 0 | R22: 0 | U22: 0 | V22: 0 | W22: =ISODD(SUM($V$5:V22)) -> FALSE
B23: =IF(Riepilogo!M41>0,Riepilogo!M41/$B$2,"") ->  | C23: =IF(B23="","",CONCATENATE(Riepilogo!K41,ConfigurationTS3L4!J438)) ->  | E23: =IF(Riepilogo!N41>0,Riepilogo!N41/$E$2,"") ->  | F23: =IF(E23="","",CONCATENATE(Riepilogo!K41,ConfigurationTS3L4!T438)) ->  | H23: =IF(Riepilogo!O41>0,Riepilogo!O41/$H$2,"") ->  | I23: =IF(H23="","",CONCATENATE(Riepilogo!K41,ConfigurationTS3L4!AD438)) ->  | L23: 0 | O23: 0 | R23: 0 | U23: 0 | V23: 0 | W23: =ISODD(SUM($V$5:V23)) -> FALSE
B24: =IF(Riepilogo!M42>0,Riepilogo!M42/$B$2,"") ->  | C24: =IF(B24="","",CONCATENATE(Riepilogo!K42,ConfigurationTS3L4!J439)) ->  | E24: =IF(Riepilogo!N42>0,Riepilogo!N42/$E$2,"") ->  | F24: =IF(E24="","",CONCATENATE(Riepilogo!K42,ConfigurationTS3L4!T439)) ->  | H24: =IF(Riepilogo!O42>0,Riepilogo!O42/$H$2,"") ->  | I24: =IF(H24="","",CONCATENATE(Riepilogo!K42,ConfigurationTS3L4!AD439)) ->  | L24: 0 | O24: 0 | R24: 0 | U24: 0 | V24: 0 | W24: =ISODD(SUM($V$5:V24)) -> FALSE
B25: =IF(Riepilogo!M43>0,Riepilogo!M43/$B$2,"") ->  | C25: =IF(B25="","",CONCATENATE(Riepilogo!K43,ConfigurationTS3L4!J440)) ->  | E25: =IF(Riepilogo!N43>0,Riepilogo!N43/$E$2,"") ->  | F25: =IF(E25="","",CONCATENATE(Riepilogo!K43,ConfigurationTS3L4!T440)) ->  | H25: =IF(Riepilogo!O43>0,Riepilogo!O43/$H$2,"") ->  | I25: =IF(H25="","",CONCATENATE(Riepilogo!K43,ConfigurationTS3L4!AD440)) ->  | L25: 0 | O25: 0 | R25: 0 | U25: 0 | V25: 0 | W25: =ISODD(SUM($V$5:V25)) -> FALSE
B26: =IF(Riepilogo!M44>0,Riepilogo!M44/$B$2,"") ->  | C26: =IF(B26="","",CONCATENATE(Riepilogo!K44,ConfigurationTS3L4!J441)) ->  | E26: =IF(Riepilogo!N44>0,Riepilogo!N44/$E$2,"") ->  | F26: =IF(E26="","",CONCATENATE(Riepilogo!K44,ConfigurationTS3L4!T441)) ->  | H26: =IF(Riepilogo!O44>0,Riepilogo!O44/$H$2,"") ->  | I26: =IF(H26="","",CONCATENATE(Riepilogo!K44,ConfigurationTS3L4!AD441)) ->  | L26: 0 | O26: 0 | R26: 0 | U26: 0 | V26: 0 | W26: =ISODD(SUM($V$5:V26)) -> FALSE
B27: =IF(Riepilogo!M45>0,Riepilogo!M45/$B$2,"") ->  | C27: =IF(B27="","",CONCATENATE(Riepilogo!K45,ConfigurationTS3L4!J442)) ->  | E27: =IF(Riepilogo!N45>0,Riepilogo!N45/$E$2,"") ->  | F27: =IF(E27="","",CONCATENATE(Riepilogo!K45,ConfigurationTS3L4!T442)) ->  | H27: =IF(Riepilogo!O45>0,Riepilogo!O45/$H$2,"") ->  | I27: =IF(H27="","",CONCATENATE(Riepilogo!K45,ConfigurationTS3L4!AD442)) ->  | L27: 0 | O27: 0 | R27: 0 | U27: 0 | V27: 0 | W27: =ISODD(SUM($V$5:V27)) -> FALSE
B28: =IF(Riepilogo!M46>0,Riepilogo!M46/$B$2,"") ->  | C28: =IF(B28="","",CONCATENATE(Riepilogo!K46,ConfigurationTS3L4!J443)) ->  | E28: =IF(Riepilogo!N46>0,Riepilogo!N46/$E$2,"") ->  | F28: =IF(E28="","",CONCATENATE(Riepilogo!K46,ConfigurationTS3L4!T443)) ->  | H28: =IF(Riepilogo!O46>0,Riepilogo!O46/$H$2,"") ->  | I28: =IF(H28="","",CONCATENATE(Riepilogo!K46,ConfigurationTS3L4!AD443)) ->  | L28: 0 | O28: 0 | R28: 0 | U28: 0 | V28: 0 | W28: =ISODD(SUM($V$5:V28)) -> FALSE
B29: =IF(Riepilogo!M47>0,Riepilogo!M47/$B$2,"") ->  | C29: =IF(B29="","",CONCATENATE(Riepilogo!K47,ConfigurationTS3L4!J444)) ->  | E29: =IF(Riepilogo!N47>0,Riepilogo!N47/$E$2,"") ->  | F29: =IF(E29="","",CONCATENATE(Riepilogo!K47,ConfigurationTS3L4!T444)) ->  | H29: =IF(Riepilogo!O47>0,Riepilogo!O47/$H$2,"") ->  | I29: =IF(H29="","",CONCATENATE(Riepilogo!K47,ConfigurationTS3L4!AD444)) ->  | L29: 0 | O29: 0 | R29: 0 | U29: 0 | V29: 0 | W29: =ISODD(SUM($V$5:V29)) -> FALSE
B30: =IF(Riepilogo!M48>0,Riepilogo!M48/$B$2,"") ->  | C30: =IF(B30="","",CONCATENATE(Riepilogo!K48,ConfigurationTS3L4!J445)) ->  | E30: =IF(Riepilogo!N48>0,Riepilogo!N48/$E$2,"") ->  | F30: =IF(E30="","",CONCATENATE(Riepilogo!K48,ConfigurationTS3L4!T445)) ->  | H30: =IF(Riepilogo!O48>0,Riepilogo!O48/$H$2,"") ->  | I30: =IF(H30="","",CONCATENATE(Riepilogo!K48,ConfigurationTS3L4!AD445)) ->  | L30: 0 | O30: 0 | R30: 0 | U30: 0 | V30: 0 | W30: =ISODD(SUM($V$5:V30)) -> FALSE
B31: =IF(Riepilogo!M49>0,Riepilogo!M49/$B$2,"") ->  | C31: =IF(B31="","",CONCATENATE(Riepilogo!K49,ConfigurationTS3L4!J446)) ->  | E31: =IF(Riepilogo!N49>0,Riepilogo!N49/$E$2,"") ->  | F31: =IF(E31="","",CONCATENATE(Riepilogo!K49,ConfigurationTS3L4!T446)) ->  | H31: =IF(Riepilogo!O49>0,Riepilogo!O49/$H$2,"") ->  | I31: =IF(H31="","",CONCATENATE(Riepilogo!K49,ConfigurationTS3L4!AD446)) ->  | L31: 0 | O31: 0 | R31: 0 | U31: 0 | V31: 0 | W31: =ISODD(SUM($V$5:V31)) -> FALSE
B32: =IF(Riepilogo!M50>0,Riepilogo!M50/$B$2,"") ->  | C32: =IF(B32="","",CONCATENATE(Riepilogo!K50,ConfigurationTS3L4!J447)) ->  | E32: =IF(Riepilogo!N50>0,Riepilogo!N50/$E$2,"") ->  | F32: =IF(E32="","",CONCATENATE(Riepilogo!K50,ConfigurationTS3L4!T447)) ->  | H32: =IF(Riepilogo!O50>0,Riepilogo!O50/$H$2,"") ->  | I32: =IF(H32="","",CONCATENATE(Riepilogo!K50,ConfigurationTS3L4!AD447)) ->  | L32: 0 | O32: 0 | R32: 0 | U32: 0 | V32: 0 | W32: =ISODD(SUM($V$5:V32)) -> FALSE
B33: =IF(Riepilogo!M51>0,Riepilogo!M51/$B$2,"") ->  | C33: =IF(B33="","",CONCATENATE(Riepilogo!K51,ConfigurationTS3L4!J448)) ->  | E33: =IF(Riepilogo!N51>0,Riepilogo!N51/$E$2,"") ->  | F33: =IF(E33="","",CONCATENATE(Riepilogo!K51,ConfigurationTS3L4!T448)) ->  | H33: =IF(Riepilogo!O51>0,Riepilogo!O51/$H$2,"") ->  | I33: =IF(H33="","",CONCATENATE(Riepilogo!K51,ConfigurationTS3L4!AD448)) ->  | L33: 0 | O33: 0 | R33: 0 | U33: 0 | V33: 0 | W33: =ISODD(SUM($V$5:V33)) -> FALSE
B34: =IF(Riepilogo!M52>0,Riepilogo!M52/$B$2,"") ->  | C34: =IF(B34="","",CONCATENATE(Riepilogo!K52,ConfigurationTS3L4!J449)) ->  | E34: =IF(Riepilogo!N52>0,Riepilogo!N52/$E$2,"") ->  | F34: =IF(E34="","",CONCATENATE(Riepilogo!K52,ConfigurationTS3L4!T449)) ->  | H34: =IF(Riepilogo!O52>0,Riepilogo!O52/$H$2,"") ->  | I34: =IF(H34="","",CONCATENATE(Riepilogo!K52,ConfigurationTS3L4!AD449)) ->  | L34: 0 | O34: 0 | R34: 0 | U34: 0 | V34: 0 | W34: =ISODD(SUM($V$5:V34)) -> FALSE
B35: =IF(Riepilogo!M53>0,Riepilogo!M53/$B$2,"") ->  | C35: =IF(B35="","",CONCATENATE(Riepilogo!K53,ConfigurationTS3L4!J450)) ->  | E35: =IF(Riepilogo!N53>0,Riepilogo!N53/$E$2,"") ->  | F35: =IF(E35="","",CONCATENATE(Riepilogo!K53,ConfigurationTS3L4!T450)) ->  | H35: =IF(Riepilogo!O53>0,Riepilogo!O53/$H$2,"") ->  | I35: =IF(H35="","",CONCATENATE(Riepilogo!K53,ConfigurationTS3L4!AD450)) ->  | L35: 0 | O35: 0 | R35: 0 | U35: 0 | V35: 0 | W35: =ISODD(SUM($V$5:V35)) -> FALSE
B36: =IF(Riepilogo!M54>0,Riepilogo!M54/$B$2,"") ->  | C36: =IF(B36="","",CONCATENATE(Riepilogo!K54,ConfigurationTS3L4!J451)) ->  | E36: =IF(Riepilogo!N54>0,Riepilogo!N54/$E$2,"") ->  | F36: =IF(E36="","",CONCATENATE(Riepilogo!K54,ConfigurationTS3L4!T451)) ->  | H36: =IF(Riepilogo!O54>0,Riepilogo!O54/$H$2,"") ->  | I36: =IF(H36="","",CONCATENATE(Riepilogo!K54,ConfigurationTS3L4!AD451)) ->  | L36: 0 | O36: 0 | R36: 0 | U36: 0 | V36: 0 | W36: =ISODD(SUM($V$5:V36)) -> FALSE
B37: =IF(Riepilogo!M55>0,Riepilogo!M55/$B$2,"") ->  | C37: =IF(B37="","",CONCATENATE(Riepilogo!K55,ConfigurationTS3L4!J452)) ->  | E37: =IF(Riepilogo!N55>0,Riepilogo!N55/$E$2,"") ->  | F37: =IF(E37="","",CONCATENATE(Riepilogo!K55,ConfigurationTS3L4!T452)) ->  | H37: =IF(Riepilogo!O55>0,Riepilogo!O55/$H$2,"") ->  | I37: =IF(H37="","",CONCATENATE(Riepilogo!K55,ConfigurationTS3L4!AD452)) ->  | L37: 0 | O37: 0 | R37: 0 | U37: 0 | V37: 0 | W37: =ISODD(SUM($V$5:V37)) -> FALSE
B38: =IF(Riepilogo!M56>0,Riepilogo!M56/$B$2,"") ->  | C38: =IF(B38="","",CONCATENATE(Riepilogo!K56,ConfigurationTS3L4!J453)) ->  | E38: =IF(Riepilogo!N56>0,Riepilogo!N56/$E$2,"") ->  | F38: =IF(E38="","",CONCATENATE(Riepilogo!K56,ConfigurationTS3L4!T453)) ->  | H38: =IF(Riepilogo!O56>0,Riepilogo!O56/$H$2,"") ->  | I38: =IF(H38="","",CONCATENATE(Riepilogo!K56,ConfigurationTS3L4!AD453)) ->  | L38: 0 | O38: 0 | R38: 0 | U38: 0 | V38: 0 | W38: =ISODD(SUM($V$5:V38)) -> FALSE
B39: =IF(Riepilogo!M57>0,Riepilogo!M57/$B$2,"") ->  | C39: =IF(B39="","",CONCATENATE(Riepilogo!K57,ConfigurationTS3L4!J454)) ->  | E39: =IF(Riepilogo!N57>0,Riepilogo!N57/$E$2,"") ->  | F39: =IF(E39="","",CONCATENATE(Riepilogo!K57,ConfigurationTS3L4!T454)) ->  | H39: =IF(Riepilogo!O57>0,Riepilogo!O57/$H$2,"") ->  | I39: =IF(H39="","",CONCATENATE(Riepilogo!K57,ConfigurationTS3L4!AD454)) ->  | L39: 0 | O39: 0 | R39: 0 | U39: 0 | V39: 0 | W39: =ISODD(SUM($V$5:V39)) -> FALSE
C40: =IF(B40="","",CONCATENATE(Riepilogo!K58,ConfigurationTS3L4!J455)) ->  | F40: =IF(E40="","",CONCATENATE(Riepilogo!K58,ConfigurationTS3L4!T455)) ->  | I40: =IF(H40="","",CONCATENATE(Riepilogo!K58,ConfigurationTS3L4!AD455)) ->  | V40: 0
C41: =IF(B41="","",CONCATENATE(Riepilogo!K59,ConfigurationTS3L4!J456)) ->  | F41: =IF(E41="","",CONCATENATE(Riepilogo!K59,ConfigurationTS3L4!T456)) ->  | I41: =IF(H41="","",CONCATENATE(Riepilogo!K59,ConfigurationTS3L4!AD456)) ->  | V41: 0
B42: =IF(Riepilogo!M60>0,Riepilogo!M60/$B$2,"") ->  | C42: =IF(B42="","",CONCATENATE(Riepilogo!K60,ConfigurationTS3L4!J457)) ->  | E42: =IF(Riepilogo!N60>0,Riepilogo!N60/$E$2,"") ->  | F42: =IF(E42="","",CONCATENATE(Riepilogo!K60,ConfigurationTS3L4!T457)) ->  | H42: =IF(Riepilogo!O60>0,Riepilogo!O60/$H$2,"") ->  | I42: =IF(H42="","",CONCATENATE(Riepilogo!K60,ConfigurationTS3L4!AD457)) ->  | L42: =IF(B42="",0,B42) -> 0 | O42: =IF(E42="",0,E42) -> 0 | R42: =IF(H42="",0,H42) -> 0 | U42: =SUM(L42:T42) -> 0 | V42: =IF(U42>0,1,0) -> 0 | W42: =ISODD(SUM($V$5:V42)) -> FALSE
B43: =IF(Riepilogo!M61>0,Riepilogo!M61/$B$2,"") ->  | C43: =IF(B43="","",CONCATENATE(Riepilogo!K61,ConfigurationTS3L4!J458)) ->  | E43: =IF(Riepilogo!N61>0,Riepilogo!N61/$E$2,"") ->  | F43: =IF(E43="","",CONCATENATE(Riepilogo!K61,ConfigurationTS3L4!T458)) ->  | H43: =IF(Riepilogo!O61>0,Riepilogo!O61/$H$2,"") ->  | I43: =IF(H43="","",CONCATENATE(Riepilogo!K61,ConfigurationTS3L4!AD458)) ->  | L43: =IF(B43="",0,B43) -> 0 | O43: =IF(E43="",0,E43) -> 0 | R43: =IF(H43="",0,H43) -> 0 | U43: =SUM(L43:T43) -> 0 | V43: =IF(U43>0,1,0) -> 0 | W43: =ISODD(SUM($V$5:V43)) -> FALSE
B44: =IF(Riepilogo!M62>0,Riepilogo!M62/$B$2,"") ->  | C44: =IF(B44="","",CONCATENATE(Riepilogo!K62,ConfigurationTS3L4!J459)) ->  | E44: =IF(Riepilogo!N62>0,Riepilogo!N62/$E$2,"") ->  | F44: =IF(E44="","",CONCATENATE(Riepilogo!K62,ConfigurationTS3L4!T459)) ->  | H44: =IF(Riepilogo!O62>0,Riepilogo!O62/$H$2,"") ->  | I44: =IF(H44="","",CONCATENATE(Riepilogo!K62,ConfigurationTS3L4!AD459)) ->  | L44: 0 | O44: 0 | R44: 0 | U44: 0 | V44: 0 | W44: =ISODD(SUM($V$5:V44)) -> FALSE
B45: =IF(Riepilogo!M63>0,Riepilogo!M63/$B$2,"") ->  | C45: =IF(B45="","",CONCATENATE(Riepilogo!K63,ConfigurationTS3L4!J460)) ->  | E45: =IF(Riepilogo!N63>0,Riepilogo!N63/$E$2,"") ->  | F45: =IF(E45="","",CONCATENATE(Riepilogo!K63,ConfigurationTS3L4!T460)) ->  | H45: =IF(Riepilogo!O63>0,Riepilogo!O63/$H$2,"") ->  | I45: =IF(H45="","",CONCATENATE(Riepilogo!K63,ConfigurationTS3L4!AD460)) ->  | L45: 0 | O45: 0 | R45: 0 | U45: 0 | V45: 0 | W45: =ISODD(SUM($V$5:V45)) -> FALSE
B46: =IF(Riepilogo!M64>0,Riepilogo!M64/$B$2,"") ->  | C46: =IF(B46="","",CONCATENATE(Riepilogo!K64,ConfigurationTS3L4!J461)) ->  | E46: =IF(Riepilogo!N64>0,Riepilogo!N64/$E$2,"") ->  | F46: =IF(E46="","",CONCATENATE(Riepilogo!K64,ConfigurationTS3L4!T461)) ->  | H46: =IF(Riepilogo!O64>0,Riepilogo!O64/$H$2,"") ->  | I46: =IF(H46="","",CONCATENATE(Riepilogo!K64,ConfigurationTS3L4!AD461)) ->  | L46: 0 | O46: 0 | R46: 0 | U46: 0 | V46: 0 | W46: =ISODD(SUM($V$5:V46)) -> FALSE
B47: =IF(Riepilogo!M65>0,Riepilogo!M65/$B$2,"") ->  | C47: =IF(B47="","",CONCATENATE(Riepilogo!K65,ConfigurationTS3L4!J462)) ->  | E47: =IF(Riepilogo!N65>0,Riepilogo!N65/$E$2,"") ->  | F47: =IF(E47="","",CONCATENATE(Riepilogo!K65,ConfigurationTS3L4!T462)) ->  | H47: =IF(Riepilogo!O65>0,Riepilogo!O65/$H$2,"") ->  | I47: =IF(H47="","",CONCATENATE(Riepilogo!K65,ConfigurationTS3L4!AD462)) ->  | L47: 0 | O47: 0 | R47: 0 | U47: 0 | V47: 0 | W47: =ISODD(SUM($V$5:V47)) -> FALSE
B48: =IF(Riepilogo!M66>0,Riepilogo!M66/$B$2,"") ->  | C48: =IF(B48="","",CONCATENATE(Riepilogo!K66,ConfigurationTS3L4!J463)) ->  | E48: =IF(Riepilogo!N66>0,Riepilogo!N66/$E$2,"") ->  | F48: =IF(E48="","",CONCATENATE(Riepilogo!K66,ConfigurationTS3L4!T463)) ->  | H48: =IF(Riepilogo!O66>0,Riepilogo!O66/$H$2,"") ->  | I48: =IF(H48="","",CONCATENATE(Riepilogo!K66,ConfigurationTS3L4!AD463)) ->  | L48: 0 | O48: 0 | R48: 0 | U48: 0 | V48: 0 | W48: =ISODD(SUM($V$5:V48)) -> FALSE
B49: =IF(Riepilogo!M67>0,Riepilogo!M67/$B$2,"") ->  | C49: =IF(B49="","",CONCATENATE(Riepilogo!K67,ConfigurationTS3L4!J464)) ->  | E49: =IF(Riepilogo!N67>0,Riepilogo!N67/$E$2,"") ->  | F49: =IF(E49="","",CONCATENATE(Riepilogo!K67,ConfigurationTS3L4!T464)) ->  | H49: =IF(Riepilogo!O67>0,Riepilogo!O67/$H$2,"") ->  | I49: =IF(H49="","",CONCATENATE(Riepilogo!K67,ConfigurationTS3L4!AD464)) ->  | L49: 0 | O49: 0 | R49: 0 | U49: 0 | V49: 0 | W49: =ISODD(SUM($V$5:V49)) -> FALSE
B50: =IF(Riepilogo!M68>0,Riepilogo!M68/$B$2,"") ->  | C50: =IF(B50="","",CONCATENATE(Riepilogo!K68,ConfigurationTS3L4!J465)) ->  | E50: =IF(Riepilogo!N68>0,Riepilogo!N68/$E$2,"") ->  | F50: =IF(E50="","",CONCATENATE(Riepilogo!K68,ConfigurationTS3L4!T465)) ->  | H50: =IF(Riepilogo!O68>0,Riepilogo!O68/$H$2,"") ->  | I50: =IF(H50="","",CONCATENATE(Riepilogo!K68,ConfigurationTS3L4!AD465)) ->  | L50: 0 | O50: 0 | R50: 0 | U50: 0 | V50: 0 | W50: =ISODD(SUM($V$5:V50)) -> FALSE
B51: =IF(Riepilogo!M69>0,Riepilogo!M69/$B$2,"") ->  | C51: =IF(B51="","",CONCATENATE(Riepilogo!K69,ConfigurationTS3L4!J466)) ->  | E51: =IF(Riepilogo!N69>0,Riepilogo!N69/$E$2,"") ->  | F51: =IF(E51="","",CONCATENATE(Riepilogo!K69,ConfigurationTS3L4!T466)) ->  | H51: =IF(Riepilogo!O69>0,Riepilogo!O69/$H$2,"") ->  | I51: =IF(H51="","",CONCATENATE(Riepilogo!K69,ConfigurationTS3L4!AD466)) ->  | L51: 0 | O51: 0 | R51: 0 | U51: 0 | V51: 0 | W51: =ISODD(SUM($V$5:V51)) -> FALSE
B52: =IF(Riepilogo!M70>0,Riepilogo!M70/$B$2,"") ->  | C52: =IF(B52="","",CONCATENATE(Riepilogo!K70,ConfigurationTS3L4!J467)) ->  | E52: =IF(Riepilogo!N70>0,Riepilogo!N70/$E$2,"") ->  | F52: =IF(E52="","",CONCATENATE(Riepilogo!K70,ConfigurationTS3L4!T467)) ->  | H52: =IF(Riepilogo!O70>0,Riepilogo!O70/$H$2,"") ->  | I52: =IF(H52="","",CONCATENATE(Riepilogo!K70,ConfigurationTS3L4!AD467)) ->  | L52: 0 | O52: 0 | R52: 0 | U52: 0 | V52: 0 | W52: =ISODD(SUM($V$5:V52)) -> FALSE
B53: =IF(Riepilogo!M71>0,Riepilogo!M71/$B$2,"") ->  | C53: =IF(B53="","",CONCATENATE(Riepilogo!K71,ConfigurationTS3L4!J468)) ->  | E53: =IF(Riepilogo!N71>0,Riepilogo!N71/$E$2,"") ->  | F53: =IF(E53="","",CONCATENATE(Riepilogo!K71,ConfigurationTS3L4!T468)) ->  | H53: =IF(Riepilogo!O71>0,Riepilogo!O71/$H$2,"") ->  | I53: =IF(H53="","",CONCATENATE(Riepilogo!K71,ConfigurationTS3L4!AD468)) ->  | L53: 0 | O53: 0 | R53: 0 | U53: 0 | V53: 0 | W53: =ISODD(SUM($V$5:V53)) -> FALSE
B54: =IF(Riepilogo!M72>0,Riepilogo!M72/$B$2,"") ->  | C54: =IF(B54="","",CONCATENATE(Riepilogo!K72,ConfigurationTS3L4!J469)) ->  | E54: =IF(Riepilogo!N72>0,Riepilogo!N72/$E$2,"") ->  | F54: =IF(E54="","",CONCATENATE(Riepilogo!K72,ConfigurationTS3L4!T469)) ->  | H54: =IF(Riepilogo!O72>0,Riepilogo!O72/$H$2,"") ->  | I54: =IF(H54="","",CONCATENATE(Riepilogo!K72,ConfigurationTS3L4!AD469)) ->  | L54: 0 | O54: 0 | R54: 0 | U54: 0 | V54: 0 | W54: =ISODD(SUM($V$5:V54)) -> FALSE
